{"text_format":"1","workbook":"xlsx","n_sheets":4,"sheets":["OVS Proposal Form - ROMANIAN","OVS Proposal Form ALL Languages","OVS Price List","Specificatii"],"not_rendered":{"charts":0,"images":5,"macros":1,"external_links":0,"defined_names":53,"comments":0,"pivot_tables":0},"unopened":[],"bounds":{"document_bytes":16777216,"sheet_cells":100000,"rows_first":2000,"rows_last":500,"rows_between":2000,"halvings":0,"cell_chars":16384,"cell_head_chars":4096},"cells_cut":0,"cells_raw":0,"read":"whole","date_system":"1900"}

{"sheet":"OVS Proposal Form - ROMANIAN","index":0,"n_rows":301,"n_cols":256,"rows_kept":301,"cut":false,"hidden":false,"merged":[[126,0,254,0],[2,2,2,7],[7,1,7,7],[16,3,16,9],[49,0,63,0],[66,0,73,0],[76,0,83,0],[89,0,123,0],[124,0,125,0]]}
[null,null,null,null,null,null,null,null,null,null,null,null,null,null,null," ",null,null,null,null,null,null,null,null,null,null,null,null,null,null,null,null,null,null,null,null,null,null,null,null,null,null,null,null,null,null,null,null,null,null,null,null,null,null,null,null,null,null,null,null,null,null,null,null,null,null,null,null,null,null,null,null,null,null,null,null,null,null,null,null,null,null,null,null,null,null,null,null,null,null,null,null,null,null,null,null,null,null,null,null,null,null,null,null,null,null,null,null,null,null,null,null,null,null,null,null,null,null,null,null,null,null,null,null,null,null,null,null,null,null,null,null,null,null,null,null,null,null,null,null,null,null,null,null,null,null,null,null,null,null,null,null,null,null,null,null,null,null,null,null,null,null,null,null,null,null,null,null,null,null,null,null,null,null,null,null,null,null,null,null,null,null,null,null,null,null,null,null,null,null,null,null,null,null,null,null,null,null,null,null,null,null,null,null,null,null,null,null,null,null,null,null,null,null,null,null,null,null,null,null,null,null,null,null,null,null,null,null,null,null,null,null,null,null,null,null,null,null,null,null,null,null,null,null,null,null,null,null,null,null,null,null,null,null,null," "]
[]
[null,null,"Open Value Subscription - Reseller Proposal Form",null,null,null,null,null,null,null,null,null,null,null,null,null,null,null,null,null,null,null,null,null,null,null,null,null,null,null," ",null,null,null,null,null,null,null,null,null,null,null,null,null,null,null,null,null,null,null,null,null,null,null,null,null,null,null,null,null,null,null,null,null,null,null,null,null,null,null,null,null,null,null,null,null,null,null,null,null,null,null,null,null,null,null,null,null,null,null,null,null,null,null,null,null,null,null,null,null,null,null,null,null,null,null,null,null,null,null,null,null,null,null,null,null,null,null,null,null,null,null,null,null,null,null,null,null,null,null,null,null,null,null,null,null,null,null,null,null,null,null,null,null,null,null,null,null,null,null,null,null,null,null,null,null,null,null,null,null,null,null,null,null,null,null,null,null,null,null,null,null,null,null,null,null,null,null,null,null,null,null,null,null,null,null,null,null,null,null,null,null,null,null,null,null,null,null,null,null,null,null,null,null,null,null,null,null,null,null,null,null,null,null,null,null,null,null,null,null,null,null,null,null,null,null,null,null,null,null,null,null,null,null,null,null,null,null,null,null,null,null,null,null,null,null,null,null,null,0]
[null,null,null,null,null,"Ultima actualizare:","01-Septembrie-2010",null,null,null,null,null,null,null,null,null,null,null,null,null,null,null,null,null,null,null,null,null,null,null,null,null,null,null,null,null,null,null,null,null,null,null,null,null,null,null,null,null,null,null,null,null,null,null,null,null,null,null,null,null,null,null,null,null,null,null,null,null,null,null,null,null,null,null,null,null,null,null,null,null,null,null,null,null,null,null,null,null,null,null,null,null,null,null,null,null,null,null,null,null,null,null,null,null,null,null,null,null,null,null,null,null,null,null,null,null,null,null,null,null,null,null,null,null,null,null,null,null,null,null,null,null,null,null,null,null,null,null,null,null,null,null,null,null,null,null,null,null,null,null,null,null,null,null,null,null,null,null,null,null,null,null,null,null,null,null,null,null,null,null,null,null,null,null,null,null,null,null,null,null,null,null,null,null,null,null,null,null,null,null,null,null,null,null,null,null,null,null,null,null,null,null,null,null,null,null,null,null,null,null,null,null,null,null,null,null,null,null,null,null,null,null,null,null,null,null,null,null,null,null,null,null,null,null,null,null,null,null,null,null,null,null,null,null,null,null,null,null,null,"RAB"]
[null,null,null,null,null,null,null,null,null,null,null,null,null,null,null,null,null,null,null,null,null,null,null,null,null,null,null,null,null,null,null,null,null,null,null,null,null,null,null,null,null,null,null,null,null,null,null,null,null,null,null,null,null,null,null,null,null,null,null,null,null,null,null,null,null,null,null,null,null,null,null,null,null,null,null,null,null,null,null,null,null,null,null,null,null,null,null,null,null,null,null,null,null,null,null,null,null,null,null,null,null,null,null,null,null,null,null,null,null,null,null,null,null,null,null,null,null,null,null,null,null,null,null,null,null,null,null,null,null,null,null,null,null,null,null,null,null,null,null,null,null,null,null,null,null,null,null,null,null,null,null,null,null,null,null,null,null,null,null,null,null,null,null,null,null,null,null,null,null,null,null,null,null,null,null,null,null,null,null,null,null,null,null,null,null,null,null,null,null,null,null,null,null,null,null,null,null,null,null,null,null,null,null,null,null,null,null,null,null,null,null,null,null,null,null,null,null,null,null,null,null,null,null,null,null,null,null,null,null,null,null,null,null,null,null,null,null,null,null,null,null,null,null,null,null,null,null,null,null,"All Languages"]
[]
[null,"Atentie: Pentru o functionare corecta, alegeti la deschiderea fisierului optiunea <<Enable Macros>>/ <<Enable Content>>."]
[null,"Daca aceasta optiune nu apare la deshiderea fisierului, alegeti nivelul Medium la Macro Security din meniul Tools/Options/Security"]
[null,"Se completeaza celulele verzi"]
[null,"Detaliile Beneficiarului",null,"Detaliile Resellerului"]
[null,"Nume Beneficiar:",null,"Nume Reseller:"]
[null,"Nume Contact Beneficiar:",null,"Nume Contact Reseller:"]
[null,"Adresa de email Beneficiar:",null,"Adresa de email Reseller:"]
[null,null,null,"Adresa postala Reseller:"]
[null,null,null,"Tel/Fax Reseller:"]
[]
[null,"Nr. Total de PC-uri eligibile:",40,"(Minim 5 PC-uri: Titular contract + eventuali afiliati)"]
[]
[null,"Achizitie de platforma sau de componente - alegeti una dintre cele 2 variante"]
[]
[null,"Platforma","                               include discount de platforma 5%",null,null,null,"Distribuirea platilor (EURO)"]
[null,null,null,null,null,null,"Plata anul 1",{"$f":"H65+lblAdditionalProductsTotalValue","v":11364},null,null,null,null,null,null,null,null," "]
[null,"Componente"," ",null,null,null,"Plata anul 2",{"$f":"H75+lblAdditionalProductsTotalValue","v":11364}]
[null,null," ",null,null,null,"Plata anul 3",{"$f":"H85+lblAdditionalProductsTotalValue","v":11364}]
[null,"Varianta limba pentru platforma sau componente - ROMANIAN",null," ",null,null,null,null,null,null,null,null,null,null,null,null," "]
[null,"Include dreptul de folosire a produselor componente sau platforma doar in ROMANA si Bulgara; daca doriti orice alta varianta de limba suplimentara, "]
[null,"inclusiv Engleza, va rugam folositi foaia urmatoare \"OVS Proposal Form ALL Languages\""]
[]
[]
[null,"Discountul UTD (Up To Date)  50% - se acorda in primul an pentru produsele detinute in versiuni curente (N si N-1)"]
[null,"Suma produselor Current + NonCurrent trebuie sa fie egala cu nr total de PC-uri eligibile"]
[null,"SKU","Descriere","Current/Non-Current","Nivel","Cantitate","Pret","Total"]
[null,{"$f":"VLOOKUP(O33,'OVS Price List'!A:C,2,0)","v":"W06-01598"},{"$f":"IF($IP$3=0,IF(D33=\"Current (UTD)\",\"Core CAL (Client Access License) Platform UTD\",\"Core CAL (Client Access License) Platform\"),IF(D33=\"Current (UTD)\",\"Core CAL (Client Access License) Component UTD\",\"Core CAL (Client Access License) Component\"))","v":"Core CAL (Client Access License) Platform UTD"},"Current (UTD)",{"$f":"IF(sysEligiblePCs<=249,\"Non-Specific\",\"C\")","v":"Non-Specific"},0,{"$f":"IF(ISERROR(B33),0,VLOOKUP(O33,'OVS Price List'!A:Q,16,0))","v":31.05},{"$f":"F33*G33","v":0},null,null,null,null,null,null,{"$f":"CONCATENATE(C33,\" \",D33,\" \",E33,\" \",$IP$4)","v":"Core CAL (Client Access License) Platform UTD Current (UTD) Non-Specific RAB"}]
[null,{"$f":"VLOOKUP(O34,'OVS Price List'!A:C,2,0)","v":"W06-01508"},{"$f":"IF($IP$3=0,IF(D34=\"Current (UTD)\",\"Core CAL (Client Access License) Platform UTD\",\"Core CAL (Client Access License) Platform\"),IF(D34=\"Current (UTD)\",\"Core CAL (Client Access License) Component UTD\",\"Core CAL (Client Access License) Component\"))","v":"Core CAL (Client Access License) Platform"},"Non-Current","Non-Specific",40,{"$f":"IF(ISERROR(B34),0,VLOOKUP(O34,'OVS Price List'!A:Q,16,0))","v":62.1},{"$f":"F34*G34","v":2484},null,null,null,null,null,null,{"$f":"CONCATENATE(C34,\" \",D34,\" \",E34,\" \",$IP$4)","v":"Core CAL (Client Access License) Platform Non-Current Non-Specific RAB"}]
[null,{"$f":"VLOOKUP(O35,'OVS Price List'!A:C,2,0)","v":"76A-00825"},{"$f":"IF($IP$3=0,IF(D35=\"Current (UTD)\",\"Enterprise CAL Platform UTD\",\"Enterprise CAL Platform\"),IF(D35=\"Current (UTD)\",\"Enterprise CAL Component UTD\",\"Enterprise CAL Component\"))","v":"Enterprise CAL Platform UTD"},"Current (UTD)","Non-Specific",0,{"$f":"IF(ISERROR(B35),0,VLOOKUP(O35,'OVS Price List'!A:Q,16,0))","v":82.8},0,null,null,null,null,null,null,"Enterprise CAL Platform UTD Current (UTD) Non-Specific RAB"]
[null,{"$f":"VLOOKUP(O36,'OVS Price List'!A:C,2,0)","v":"76A-00499"},{"$f":"IF($IP$3=0,IF(D36=\"Current (UTD)\",\"Enterprise CAL Platform UTD\",\"Enterprise CAL Platform\"),IF(D36=\"Current (UTD)\",\"Enterprise CAL Component UTD\",\"Enterprise CAL Component\"))","v":"Enterprise CAL Platform"},"Non-Current","Non-Specific",0,{"$f":"IF(ISERROR(B36),0,VLOOKUP(O36,'OVS Price List'!A:Q,16,0))","v":165.6},0,null,null,null,null,null,null,"Enterprise CAL Platform Non-Current Non-Specific RAB"]
[null,{"$f":"VLOOKUP(O37,'OVS Price List'!A:C,2,0)","v":"6UA-02461"},{"$f":"IF($IP$3=0,IF(D37=\"Current (UTD)\",\"Windows Small Bus CAL Ste Platform UTD\",\"Windows Small Bus CAL Ste Platform\"),IF(D37=\"Current (UTD)\",\"Windows Small Bus CAL Ste Component UTD\",\"Windows Small Bus CAL Ste Component\"))","v":"Windows Small Bus CAL Ste Platform UTD"},"Current (UTD)","Non-Specific",0,{"$f":"IF(ISERROR(B37),0,VLOOKUP(O37,'OVS Price List'!A:Q,16,0))","v":10.5},0,null,null,null,null,null,null,"Windows Small Bus CAL Ste Platform UTD Current (UTD) Non-Specific RAB"]
[null,{"$f":"VLOOKUP(O38,'OVS Price List'!A:C,2,0)","v":"6UA-02367"},{"$f":"IF($IP$3=0,IF(D38=\"Current (UTD)\",\"Windows Small Bus CAL Ste Platform UTD\",\"Windows Small Bus CAL Ste Platform\"),IF(D38=\"Current (UTD)\",\"Windows Small Bus CAL Ste Component UTD\",\"Windows Small Bus CAL Ste Component\"))","v":"Windows Small Bus CAL Ste Platform"},"Non-Current","Non-Specific",0,{"$f":"IF(ISERROR(B38),0,VLOOKUP(O38,'OVS Price List'!A:Q,16,0))","v":21},0,null,null,null,null,null,null,"Windows Small Bus CAL Ste Platform Non-Current Non-Specific RAB"]
[null,{"$f":"VLOOKUP(O39,'OVS Price List'!A:C,2,0)","v":"6VA-02639"},{"$f":"IF($IP$3=0,IF(D39=\"Current (UTD)\",\"Windows Small Bus Svr Prem CAL Ste Platform UTD\",\"Windows Small Bus Svr Prem CAL Ste Platform\"),IF(D39=\"Current (UTD)\",\"Windows Small Bus Svr Prem CAL Ste Component UTD\",\"Windows Small Bus Svr Prem CAL Ste Component\"))","v":"Windows Small Bus Svr Prem CAL Ste Platform UTD"},"Current (UTD)","Non-Specific",0,{"$f":"IF(ISERROR(B39),0,VLOOKUP(O39,'OVS Price List'!A:Q,16,0))","v":25.8},0,null,null,null,null,null,null,"Windows Small Bus Svr Prem CAL Ste Platform UTD Current (UTD) Non-Specific RAB"]
[null,{"$f":"VLOOKUP(O40,'OVS Price List'!A:C,2,0)","v":"6VA-02557"},{"$f":"IF($IP$3=0,IF(D40=\"Current (UTD)\",\"Windows Small Bus Svr Prem CAL Ste Platform UTD\",\"Windows Small Bus Svr Prem CAL Ste Platform\"),IF(D40=\"Current (UTD)\",\"Windows Small Bus Svr Prem CAL Ste Component UTD\",\"Windows Small Bus Svr Prem CAL Ste Component\"))","v":"Windows Small Bus Svr Prem CAL Ste Platform"},"Non-Current","Non-Specific",null,{"$f":"IF(ISERROR(B40),0,VLOOKUP(O40,'OVS Price List'!A:Q,16,0))","v":51.6},0,null,null,null,null,null,null,"Windows Small Bus Svr Prem CAL Ste Platform Non-Current Non-Specific RAB"]
[null,{"$f":"VLOOKUP(O41,'OVS Price List'!A:C,2,0)","v":"79P-02406"},{"$f":"IF($IP$3=0,IF(D41=\"Current (UTD)\",\"Office Professional Plus Platform UTD\",\"Office Professional Plus Platform\"),IF(D41=\"Current (UTD)\",\"Office Professional Plus Component UTD\",\"Office Professional Plus Component\"))","v":"Office Professional Plus Platform UTD"},"Current (UTD)","Non-Specific",0,{"$f":"IF(ISERROR(B41),0,VLOOKUP(O41,'OVS Price List'!A:Q,16,0))","v":77.174999999999997},0,null,null,null,null,null,null,"Office Professional Plus Platform UTD Current (UTD) Non-Specific RAB"]
[null,{"$f":"VLOOKUP(O42,'OVS Price List'!A:C,2,0)","v":"79P-02340"},{"$f":"IF($IP$3=0,IF(D42=\"Current (UTD)\",\"Office Professional Plus Platform UTD\",\"Office Professional Plus Platform\"),IF(D42=\"Current (UTD)\",\"Office Professional Plus Component UTD\",\"Office Professional Plus Component\"))","v":"Office Professional Plus Platform"},"Non-Current","Non-Specific",40,{"$f":"IF(ISERROR(B42),0,VLOOKUP(O42,'OVS Price List'!A:Q,16,0))","v":154.35},6174,null,null,null,null,null,null,"Office Professional Plus Platform Non-Current Non-Specific RAB"]
[null,{"$f":"VLOOKUP(O43,'OVS Price List'!A:C,2,0)","v":"FQC-02747"},{"$f":"IF($IP$3=0,IF(D43=\"Current (UTD)\",\"Win Pro Upgr Platform UTD\",\"Win Pro Upgr Platform\"),IF(D43=\"Current (UTD)\",\"Win Pro Upgr Component UTD\",\"Win Pro Upgr Component\"))","v":"Win Pro Upgr Platform UTD"},"Current (UTD)","Non-Specific",0,{"$f":"IF(ISERROR(B43),0,VLOOKUP(O43,'OVS Price List'!A:Q,16,0))","v":33.824999999999996},0,null,null,null,null,null,null,"Win Pro Upgr Platform UTD Current (UTD) Non-Specific RAB"]
[null,{"$f":"VLOOKUP(O44,'OVS Price List'!A:C,2,0)","v":"FQC-02745"},{"$f":"IF($IP$3=0,IF(D44=\"Current (UTD)\",\"Win Pro Upgr Platform UTD\",\"Win Pro Upgr Platform\"),IF(D44=\"Current (UTD)\",\"Win Pro 7 Component UTD\",\"Win Pro Upgr Component\"))","v":"Win Pro Upgr Platform"},"Non-Current","Non-Specific",40,{"$f":"IF(ISERROR(B44),0,VLOOKUP(O44,'OVS Price List'!A:Q,16,0))","v":67.649999999999991},2705.9999999999995,null,null,null,null,null,null,"Win Pro Upgr Platform Non-Current Non-Specific RAB"]
[null,{"$f":"VLOOKUP(O45,'OVS Price List'!A:C,2,0)","v":"FQC-02930"},{"$f":"IF($IP$3=0,IF(D45=\"Current (UTD)\",\"Win Pro Upgr w/MDOP Platform UTD\",\"Win Pro Upgr w/MDOP Platform\"),IF(D45=\"Current (UTD)\",\"Win Pro Upgr w/MDOP Component UTD\",\"Win Pro Upgr w/MDOP Component\"))","v":"Win Pro Upgr w/MDOP Platform UTD"},"Current (UTD)","Non-Specific",0,{"$f":"IF(ISERROR(B45),0,VLOOKUP(O45,'OVS Price List'!A:Q,16,0))","v":39.15},0,null,null,null,null,null,null,"Win Pro Upgr w/MDOP Platform UTD Current (UTD) Non-Specific RAB"]
[null,{"$f":"VLOOKUP(O46,'OVS Price List'!A:C,2,0)","v":"FQC-02926"},{"$f":"IF($IP$3=0,IF(D46=\"Current (UTD)\",\"Win Pro Upgr w/MDOP Platform UTD\",\"Win Pro Upgr w/MDOP Platform\"),IF(D46=\"Current (UTD)\",\"Win Pro Upgr w/MDOP Component UTD\",\"Win Pro Upgr w/MDOP Component\"))","v":"Win Pro Upgr w/MDOP Platform"},"Non-Current","Non-Specific",0,{"$f":"IF(ISERROR(B46),0,VLOOKUP(O46,'OVS Price List'!A:Q,16,0))","v":78.3},0,null,null,null,null,null,null,"Win Pro Upgr w/MDOP Platform Non-Current Non-Specific RAB"]
[null,null,null,null,null,null,"Total :",{"$f":"SUM(H33:H46)","v":11364}]
[null,"Detaliile achizitiei",null,null,null,null,null,null,null,null,null,null,null,null," "]
[null,"Produse platforma",null,null,null,null,null,null,null,null,null,null,null,null," "]
["Anul 1","SKU","Descriere","Current/Non-Current","Nivel","Cantitate","Pret","Total",null,null,null,null,null,null," "]
[null,{"$f":"B33","v":"W06-01598"},"Core CAL (Client Access License) Platform UTD","Current (UTD)","Non-Specific",0,31.05,{"$f":"F51*G51","v":0}]
[null,"W06-01508","Core CAL (Client Access License) Platform","Non-Current","Non-Specific",40,62.1,{"$f":"F52*G52","v":2484}]
[null,"76A-00825","Enterprise CAL Platform UTD","Current (UTD)","Non-Specific",0,82.8,0]
[null,"76A-00499","Enterprise CAL Platform","Non-Current","Non-Specific",0,165.6,0]
[null,"6UA-02461","Windows Small Bus CAL Ste Platform UTD","Current (UTD)","Non-Specific",0,10.5,0]
[null,"6UA-02367","Windows Small Bus CAL Ste Platform","Non-Current","Non-Specific",0,21,0]
[null,"6VA-02639","Windows Small Bus Svr Prem CAL Ste Platform UTD","Current (UTD)","Non-Specific",0,25.8,0]
[null,"6VA-02557","Windows Small Bus Svr Prem CAL Ste Platform","Non-Current","Non-Specific",0,51.6,0]
[null,"79P-02406","Office Professional Plus Platform UTD","Current (UTD)","Non-Specific",0,77.174999999999997,0]
[null,"79P-02340","Office Professional Plus Platform","Non-Current","Non-Specific",40,154.35,6174]
[null,"FQC-02747","Win Pro Upgr Platform UTD","Current (UTD)","Non-Specific",0,33.824999999999996,0]
[null,"FQC-02745","Win Pro Upgr Platform","Non-Current","Non-Specific",40,67.649999999999991,2705.9999999999995]
[null,"FQC-02930","Win Pro Upgr w/MDOP Platform UTD","Current (UTD)","Non-Specific",0,39.15,0]
[null,"FQC-02926","Win Pro Upgr w/MDOP Platform","Non-Current","Non-Specific",0,78.3,0]
[null,null,null,null,null,null,"Anul 1 Total",{"$f":"SUM(H51:H64)","v":11364}]
[]
["Anul 2","SKU","Descriere","Current/Non-Current","Nivel","Cantitate","Pret","Total"]
[null,{"$f":"B52","v":"W06-01508"},{"$f":"C52","v":"Core CAL (Client Access License) Platform"},"N/A",{"$f":"E52","v":"Non-Specific"},{"$f":"F51+F52","v":40},{"$f":"G52","v":62.1},{"$f":"F68*G68","v":2484}]
[null,{"$f":"B54","v":"76A-00499"},{"$f":"C54","v":"Enterprise CAL Platform"},"N/A",{"$f":"E54","v":"Non-Specific"},{"$f":"F53+F54","v":0},{"$f":"G54","v":165.6},{"$f":"F69*G69","v":0}]
[null,{"$f":"B56","v":"6UA-02367"},{"$f":"C56","v":"Windows Small Bus CAL Ste Platform"},"N/A",{"$f":"E56","v":"Non-Specific"},{"$f":"F55+F56","v":0},{"$f":"G56","v":21},0]
[null,{"$f":"B58","v":"6VA-02557"},{"$f":"C58","v":"Windows Small Bus Svr Prem CAL Ste Platform"},"N/A",{"$f":"E58","v":"Non-Specific"},{"$f":"F57+F58","v":0},{"$f":"G58","v":51.6},0]
[null,{"$f":"B60","v":"79P-02340"},{"$f":"C60","v":"Office Professional Plus Platform"},"N/A",{"$f":"E60","v":"Non-Specific"},{"$f":"F59+F60","v":40},{"$f":"G60","v":154.35},{"$f":"F72*G72","v":6174}]
[null,{"$f":"B62","v":"FQC-02745"},{"$f":"C62","v":"Win Pro Upgr Platform"},"N/A",{"$f":"E62","v":"Non-Specific"},{"$f":"F61+F62","v":40},{"$f":"G62","v":67.649999999999991},2705.9999999999995]
[null,{"$f":"B64","v":"FQC-02926"},{"$f":"C64","v":"Win Pro Upgr w/MDOP Platform"},"N/A",{"$f":"E64","v":"Non-Specific"},{"$f":"F63+F64","v":0},{"$f":"G64","v":78.3},0]
[null,null,null,null,null,null,"Anul 2 Total",{"$f":"SUM(H68:H74)","v":11364}]
[]
["Anul 3","SKU","Descriere","Current/Non-Current","Nivel","Cantitate","Pret","Total"]
[null,{"$f":"B68","v":"W06-01508"},"Core CAL (Client Access License) Platform","N/A","Non-Specific",40,62.1,2484]
[null,"76A-00499","Enterprise CAL Platform","N/A","Non-Specific",0,165.6,0]
[null,"6UA-02367","Windows Small Bus CAL Ste Platform","N/A","Non-Specific",0,21,0]
[null,"6VA-02557","Windows Small Bus Svr Prem CAL Ste Platform","N/A","Non-Specific",0,51.6,0]
[null,"79P-02340","Office Professional Plus Platform","N/A","Non-Specific",40,154.35,6174]
[null,"FQC-02745","Win Pro Upgr Platform","N/A","Non-Specific",40,67.649999999999991,2705.9999999999995]
[null,"FQC-02926","Win Pro Upgr w/MDOP Platform","N/A","Non-Specific",0,78.3,0]
[null,null,null,null,null,null,"Anul 3 Total",{"$f":"SUM(H78:H84)","v":11364}]
[]
[]
[null,"Produse aditionale - Toate produsele aditionale au varianta de licenta si limba: ALL Languages"]
[null,"Produse aditionale neincluse in comanda initiala a contractului se pot comanda ulterior la preturile in vigoare in luna de comanda, preturi ce pot fi diferite fata de cele de mai jos"]
["Aplicatii","SKU","Descriere","Nivel","Pret","Cantitate","Total","Nr useri/ nr srvs","Obs"]
[null,{"$f":"VLOOKUP(O91,'OVS Price List'!A:C,2,0)","v":"077-03627"},"Access   ",{"$f":"IF(sysEligiblePCs<=249,\"Non-Specific\",\"C\")","v":"Non-Specific"},{"$f":"IF(ISERROR(B91),0,VLOOKUP(O91,'OVS Price List'!A:Q,16,0))","v":97.5},null,{"$f":"IF(F91<>0,E91*F91,0)","v":0},null,null,null,null,null,null,null,{"$f":"CONCATENATE(C91,D91,\" \",$IP$5)","v":"Access   Non-Specific All Languages"}]
[null,{"$f":"VLOOKUP(O92,'OVS Price List'!A:C,2,0)","v":"689-00741"},"AutoRoute Euro   ","Non-Specific",{"$f":"IF(ISERROR(B92),0,VLOOKUP(O92,'OVS Price List'!A:Q,16,0))","v":16.05},null,{"$f":"IF(F92<>0,E92*F92,0)","v":0},null,null,null,null,null,null,null,{"$f":"CONCATENATE(C92,D92,\" \",$IP$5)","v":"AutoRoute Euro   Non-Specific All Languages"}]
[null,{"$f":"VLOOKUP(O93,'OVS Price List'!A:C,2,0)","v":"Q56-00264"},"Entourage   ","Non-Specific",{"$f":"IF(ISERROR(B93),0,VLOOKUP(O93,'OVS Price List'!A:Q,16,0))","v":35.4},null,{"$f":"IF(F93<>0,E93*F93,0)","v":0},null,null,null,null,null,null,null,"Entourage   Non-Specific All Languages"]
[null,{"$f":"VLOOKUP(O94,'OVS Price List'!A:C,2,0)","v":"065-04766"},"Excel   ","Non-Specific",{"$f":"IF(ISERROR(B94),0,VLOOKUP(O94,'OVS Price List'!A:Q,16,0))","v":95.25},null,0,null,null,null,null,null,null,null,"Excel   Non-Specific All Languages"]
[null,{"$f":"VLOOKUP(O95,'OVS Price List'!A:C,2,0)","v":"D46-00525"},"Excel Mac   ","Non-Specific",{"$f":"IF(ISERROR(B95),0,VLOOKUP(O95,'OVS Price List'!A:Q,16,0))","v":109.94999999999999},null,0,null,null,null,null,null,null,null,"Excel Mac   Non-Specific All Languages"]
[null,{"$f":"VLOOKUP(O96,'OVS Price List'!A:C,2,0)","v":"NKF-00397"},"Expression Studio Ultimate   ","Non-Specific",{"$f":"IF(ISERROR(B96),0,VLOOKUP(O96,'OVS Price List'!A:Q,16,0))","v":246.14999999999998},null,0,null,null,null,null,null,null,null,"Expression Studio Ultimate   Non-Specific All Languages"]
[null,{"$f":"VLOOKUP(O97,'OVS Price List'!A:C,2,0)","v":"NHF-00171"},"Expression Studio Web Professional   ","Non-Specific",{"$f":"IF(ISERROR(B97),0,VLOOKUP(O97,'OVS Price List'!A:Q,16,0))","v":61.2},null,0,null,null,null,null,null,null,null,"Expression Studio Web Professional   Non-Specific All Languages"]
[null,{"$f":"VLOOKUP(O98,'OVS Price List'!A:C,2,0)","v":"47F-00109"},"Expression Encoder Pro   ","Non-Specific",{"$f":"IF(ISERROR(B98),0,VLOOKUP(O98,'OVS Price List'!A:Q,16,0))","v":24.6},null,{"$f":"IF(F98<>0,E98*F98,0)","v":0},null,null,null,null,null,null,null,"Expression Encoder Pro   Non-Specific All Languages"]
[null,{"$f":"VLOOKUP(O99,'OVS Price List'!A:C,2,0)","v":"S27-01198"},"InfoPath   ","Non-Specific",{"$f":"IF(ISERROR(B99),0,VLOOKUP(O99,'OVS Price List'!A:Q,16,0))","v":91.5},null,0,null,null,null,null,null,null,null,"InfoPath   Non-Specific All Languages"]
[null,{"$f":"VLOOKUP(O100,'OVS Price List'!A:C,2,0)","v":"B21-00756"},"MapPoint   ","Non-Specific",{"$f":"IF(ISERROR(B100),0,VLOOKUP(O100,'OVS Price List'!A:Q,16,0))","v":122.69999999999999},null,0,null,null,null,null,null,null,null,"MapPoint   Non-Specific All Languages"]
[null,{"$f":"VLOOKUP(O101,'OVS Price List'!A:C,2,0)","v":"ZS3-00250"},"MapPoint Fleet   ","Non-Specific",{"$f":"IF(ISERROR(B101),0,VLOOKUP(O101,'OVS Price List'!A:Q,16,0))","v":603.15},null,0,null,null,null,null,null,null,null,"MapPoint Fleet   Non-Specific All Languages"]
[null,{"$f":"VLOOKUP(O102,'OVS Price List'!A:C,2,0)","v":"G71-03832"},"MSDN OS   ","Non-Specific",{"$f":"IF(ISERROR(B102),0,VLOOKUP(O102,'OVS Price List'!A:Q,16,0))","v":530.1},null,0,null,null,null,null,null,null,null,"MSDN OS   Non-Specific All Languages"]
[null,{"$f":"VLOOKUP(O103,'OVS Price List'!A:C,2,0)","v":"B6I-00342"},"Office Communicator   ","Non-Specific",{"$f":"IF(ISERROR(B103),0,VLOOKUP(O103,'OVS Price List'!A:Q,16,0))","v":16.05},null,0,null,null,null,null,null,null,null,"Office Communicator   Non-Specific All Languages"]
[null,{"$f":"VLOOKUP(O104,'OVS Price List'!A:C,2,0)","v":"ZUD-00348"},"SharePoint Workspace   ","Non-Specific",{"$f":"IF(ISERROR(B104),0,VLOOKUP(O104,'OVS Price List'!A:Q,16,0))","v":66.900000000000006},null,0,null,null,null,null,null,null,null,"SharePoint Workspace   Non-Specific All Languages"]
[null,{"$f":"VLOOKUP(O105,'OVS Price List'!A:C,2,0)","v":"731-01323"},"Office Mac   ","Non-Specific",{"$f":"IF(ISERROR(B105),0,VLOOKUP(O105,'OVS Price List'!A:Q,16,0))","v":193.35000000000002},null,0,null,null,null,null,null,null,null,"Office Mac   Non-Specific All Languages"]
[null,{"$f":"VLOOKUP(O106,'OVS Price List'!A:C,2,0)","v":"021-09106"},"Office Standard   ","Non-Specific",{"$f":"IF(ISERROR(B106),0,VLOOKUP(O106,'OVS Price List'!A:Q,16,0))","v":193.35000000000002},null,0,null,null,null,null,null,null,null,"Office Standard   Non-Specific All Languages"]
[null,{"$f":"VLOOKUP(O107,'OVS Price List'!A:C,2,0)","v":"S26-01776"},"OneNote   ","Non-Specific",{"$f":"IF(ISERROR(B107),0,VLOOKUP(O107,'OVS Price List'!A:Q,16,0))","v":36.450000000000003},null,0,null,null,null,null,null,null,null,"OneNote   Non-Specific All Languages"]
[null,{"$f":"VLOOKUP(O108,'OVS Price List'!A:C,2,0)","v":"543-02834"},"Outlook   ","Non-Specific",{"$f":"IF(ISERROR(B108),0,VLOOKUP(O108,'OVS Price List'!A:Q,16,0))","v":40.949999999999996},null,0,null,null,null,null,null,null,null,"Outlook   Non-Specific All Languages"]
[null,{"$f":"VLOOKUP(O109,'OVS Price List'!A:C,2,0)","v":"164-03900"},"Publisher   ","Non-Specific",{"$f":"IF(ISERROR(B109),0,VLOOKUP(O109,'OVS Price List'!A:Q,16,0))","v":67.8},null,0,null,null,null,null,null,null,null,"Publisher   Non-Specific All Languages"]
[null,{"$f":"VLOOKUP(O110,'OVS Price List'!A:C,2,0)","v":"076-03609"},"Project   ","Non-Specific",{"$f":"IF(ISERROR(B110),0,VLOOKUP(O110,'OVS Price List'!A:Q,16,0))","v":278.55},null,0,null,null,null,null,null,null,null,"Project   Non-Specific All Languages"]
[null,{"$f":"VLOOKUP(O111,'OVS Price List'!A:C,2,0)","v":"H30-01671"},"Project Professional   ","Non-Specific",{"$f":"IF(ISERROR(B111),0,VLOOKUP(O111,'OVS Price List'!A:Q,16,0))","v":464.4},null,0,null,null,null,null,null,null,null,"Project Professional   Non-Specific All Languages"]
[null,{"$f":"VLOOKUP(O112,'OVS Price List'!A:C,2,0)","v":"079-02674"},"PowerPoint   ","Non-Specific",{"$f":"IF(ISERROR(B112),0,VLOOKUP(O112,'OVS Price List'!A:Q,16,0))","v":95.25},null,0,null,null,null,null,null,null,null,"PowerPoint   Non-Specific All Languages"]
[null,{"$f":"VLOOKUP(O113,'OVS Price List'!A:C,2,0)","v":"D47-00347"},"PowerPoint Mac   ","Non-Specific",{"$f":"IF(ISERROR(B113),0,VLOOKUP(O113,'OVS Price List'!A:Q,16,0))","v":109.94999999999999},null,0,null,null,null,null,null,null,null,"PowerPoint Mac   Non-Specific All Languages"]
[null,{"$f":"VLOOKUP(O114,'OVS Price List'!A:C,2,0)","v":"JT9-00044"},"TechNet Plus Direct   ","Non-Specific",{"$f":"IF(ISERROR(B114),0,VLOOKUP(O114,'OVS Price List'!A:Q,16,0))","v":309.60000000000002},null,0,null,null,null,null,null,null,null,"TechNet Plus Direct   Non-Specific All Languages"]
[null,{"$f":"VLOOKUP(O115,'OVS Price List'!A:C,2,0)","v":"D87-02619"},"Visio Professional   ","Non-Specific",{"$f":"IF(ISERROR(B115),0,VLOOKUP(O115,'OVS Price List'!A:Q,16,0))","v":238.35000000000002},null,0,null,null,null,null,null,null,null,"Visio Professional   Non-Specific All Languages"]
[null,{"$f":"VLOOKUP(O116,'OVS Price List'!A:C,2,0)","v":"D86-02606"},"Visio Standard   ","Non-Specific",{"$f":"IF(ISERROR(B116),0,VLOOKUP(O116,'OVS Price List'!A:Q,16,0))","v":107.85},null,0,null,null,null,null,null,null,null,"Visio Standard   Non-Specific All Languages"]
[null,{"$f":"VLOOKUP(O117,'OVS Price List'!A:C,2,0)","v":"77D-00053"},"Visual Studio Pro w/MSDN   ","Non-Specific",{"$f":"IF(ISERROR(B117),0,VLOOKUP(O117,'OVS Price List'!A:Q,16,0))","v":580.34999999999991},null,0,null,null,null,null,null,null,null,"Visual Studio Pro w/MSDN   Non-Specific All Languages"]
[null,{"$f":"VLOOKUP(O118,'OVS Price List'!A:C,2,0)","v":"6KD-00053"},"Visual Studio Pro w/MSDN Emb   ","Non-Specific",{"$f":"IF(ISERROR(B118),0,VLOOKUP(O118,'OVS Price List'!A:Q,16,0))","v":580.34999999999991},null,0,null,null,null,null,null,null,null,"Visual Studio Pro w/MSDN Emb   Non-Specific All Languages"]
[null,{"$f":"VLOOKUP(O119,'OVS Price List'!A:C,2,0)","v":"9ED-00079"},"Visual Studio Prem w/MSDN   ","Non-Specific",{"$f":"IF(ISERROR(B119),0,VLOOKUP(O119,'OVS Price List'!A:Q,16,0))","v":2330.6999999999998},null,0,null,null,null,null,null,null,null,"Visual Studio Prem w/MSDN   Non-Specific All Languages"]
[null,{"$f":"VLOOKUP(O120,'OVS Price List'!A:C,2,0)","v":"9JD-00097"},"Visual Studio Ult w/MSDN   ","Non-Specific",{"$f":"IF(ISERROR(B120),0,VLOOKUP(O120,'OVS Price List'!A:Q,16,0))","v":5083.95},null,0,null,null,null,null,null,null,null,"Visual Studio Ult w/MSDN   Non-Specific All Languages"]
[null,{"$f":"VLOOKUP(O121,'OVS Price List'!A:C,2,0)","v":"L5D-00104"},"Visual Studio Test Pro w/MSDN   ","Non-Specific",{"$f":"IF(ISERROR(B121),0,VLOOKUP(O121,'OVS Price List'!A:Q,16,0))","v":939.15000000000009},null,0,null,null,null,null,null,null,null,"Visual Studio Test Pro w/MSDN   Non-Specific All Languages"]
[null,{"$f":"VLOOKUP(O122,'OVS Price List'!A:C,2,0)","v":"KKF-00298"},"Visual Studio Team Explrer Everywhr   ","Non-Specific",{"$f":"IF(ISERROR(B122),0,VLOOKUP(O122,'OVS Price List'!A:Q,16,0))","v":123.3},null,0,null,null,null,null,null,null,null,"Visual Studio Team Explrer Everywhr   Non-Specific All Languages"]
[null,{"$f":"VLOOKUP(O123,'OVS Price List'!A:C,2,0)","v":"059-05310"},"Word   ","Non-Specific",{"$f":"IF(ISERROR(B123),0,VLOOKUP(O123,'OVS Price List'!A:Q,16,0))","v":95.25},null,0,null,null,null,null,null,null,null,"Word   Non-Specific All Languages"]
[null,{"$f":"VLOOKUP(O124,'OVS Price List'!A:C,2,0)","v":"D48-00675"},"Word Mac   ","Non-Specific",{"$f":"IF(ISERROR(B124),0,VLOOKUP(O124,'OVS Price List'!A:Q,16,0))","v":109.94999999999999},null,0,null,null,null,null,null,null,null,"Word Mac   Non-Specific All Languages"]
["Sys",{"$f":"VLOOKUP(O125,'OVS Price List'!A:C,2,0)","v":"WSB-00074"},"Desktop Optimization Pack for SA (Per Device; monthly) ",{"$f":"IF(sysEligiblePCs<=249,\"Non-Specific\",\"C\")","v":"Non-Specific"},{"$f":"IF(ISERROR(B125),0,VLOOKUP(O125,'OVS Price List'!A:Q,16,0))","v":1.0125000000000002},null,{"$f":"IF(F125<>0,E125*F125*H125,0)","v":0},12," nr de luni pana la urmatoarea aniversare, cu care se va inmulti automat cantitatea",null,null,null,null,null,"Desktop Optimization Pack for SA (Per Device; monthly) Non-Specific All Languages"]
[null,{"$f":"VLOOKUP(O126,'OVS Price List'!A:C,2,0)","v":"4ZF-00010"},"Virtual Desktop Access (Per Device; monthly)   ","Non-Specific",{"$f":"IF(ISERROR(B126),0,VLOOKUP(O126,'OVS Price List'!A:Q,16,0))","v":9.6},null,{"$f":"IF(F126<>0,E126*F126*H126,0)","v":0},12," nr de luni pana la urmatoarea aniversare, cu care se va inmulti automat cantitatea",null,null,null,null,null,{"$f":"CONCATENATE(C126,D126,\" \",$IP$4)","v":"Virtual Desktop Access (Per Device; monthly)   Non-Specific RAB"}]
["Servere",{"$f":"VLOOKUP(O127,'OVS Price List'!A:C,2,0)","v":"73F-00020"},"Antigen Enterprise Manager (Services; monthly)  ","Non-Specific",{"$f":"IF(ISERROR(B127),0,VLOOKUP(O127,'OVS Price List'!A:Q,16,0))","v":9.2750000000000004},null,{"$f":"IF(F127<>0,E127*F127*H127,0)","v":0},12," nr de luni pana la urmatoarea aniversare, cu care se va inmulti automat cantitatea",null,null,null,null,null,"Antigen Enterprise Manager (Services; monthly)  Non-Specific All Languages"]
[null,{"$f":"VLOOKUP(O128,'OVS Price List'!A:C,2,0)","v":"XRA-00107"},"BizTalk Adapter Pack 1 Proc Lic  ","Non-Specific",{"$f":"IF(ISERROR(B128),0,VLOOKUP(O128,'OVS Price List'!A:Q,16,0))","v":2663.55},null,0,null,null,null,null,null,null,null,"BizTalk Adapter Pack 1 Proc Lic  Non-Specific All Languages"]
[null,{"$f":"VLOOKUP(O129,'OVS Price List'!A:C,2,0)","v":"HJA-00352"},"BizTalk Server Branch 1 Proc Lic  ","Non-Specific",{"$f":"IF(ISERROR(B129),0,VLOOKUP(O129,'OVS Price List'!A:Q,16,0))","v":814.5},null,0,null,null,null,null,null,null,null,"BizTalk Server Branch 1 Proc Lic  Non-Specific All Languages"]
[null,{"$f":"VLOOKUP(O130,'OVS Price List'!A:C,2,0)","v":"R04-00558"},"BizTalk Server Developer   ","Non-Specific",{"$f":"IF(ISERROR(B130),0,VLOOKUP(O130,'OVS Price List'!A:Q,16,0))","v":225.75},null,0,null,null,null,null,null,null,null,"BizTalk Server Developer   Non-Specific All Languages"]
[null,{"$f":"VLOOKUP(O131,'OVS Price List'!A:C,2,0)","v":"F52-01292"},"BizTalk Server Enterprise 1 Proc Lic  ","Non-Specific",{"$f":"IF(ISERROR(B131),0,VLOOKUP(O131,'OVS Price List'!A:Q,16,0))","v":15847.2},null,0,null,null,null,null,null,null,null,"BizTalk Server Enterprise 1 Proc Lic  Non-Specific All Languages"]
[null,{"$f":"VLOOKUP(O132,'OVS Price List'!A:C,2,0)","v":"D75-00851"},"BizTalk Server Standard 1 Proc Lic  ","Non-Specific",{"$f":"IF(ISERROR(B132),0,VLOOKUP(O132,'OVS Price List'!A:Q,16,0))","v":3848.25},null,0,null,null,null,null,null,null,null,"BizTalk Server Standard 1 Proc Lic  Non-Specific All Languages"]
[null,{"$f":"VLOOKUP(O133,'OVS Price List'!A:C,2,0)","v":"DHD-00059"},"BizTalk Svr Ent RFID 1 Proc Lic ","Non-Specific",{"$f":"IF(ISERROR(B133),0,VLOOKUP(O133,'OVS Price List'!A:Q,16,0))","v":2253.3000000000002},null,0,null,null,null,null,null,null,null,"BizTalk Svr Ent RFID 1 Proc Lic Non-Specific All Languages"]
[null,{"$f":"VLOOKUP(O134,'OVS Price List'!A:C,2,0)","v":"G20-00360"},"Commerce Server Enterprise 1 Proc Lic  ","Non-Specific",{"$f":"IF(ISERROR(B134),0,VLOOKUP(O134,'OVS Price List'!A:Q,16,0))","v":9055.0499999999993},null,0,null,null,null,null,null,null,null,"Commerce Server Enterprise 1 Proc Lic  Non-Specific All Languages"]
[null,{"$f":"VLOOKUP(O135,'OVS Price List'!A:C,2,0)","v":"532-01151"},"Commerce Server Standard 1 Proc Lic  ","Non-Specific",{"$f":"IF(ISERROR(B135),0,VLOOKUP(O135,'OVS Price List'!A:Q,16,0))","v":3168.75},null,0,null,null,null,null,null,null,null,"Commerce Server Standard 1 Proc Lic  Non-Specific All Languages"]
[null,{"$f":"VLOOKUP(O136,'OVS Price List'!A:C,2,0)","v":"JS6-00187"},"Duet for MS Office and SAP CAL   ","Non-Specific",{"$f":"IF(ISERROR(B136),0,VLOOKUP(O136,'OVS Price List'!A:Q,16,0))","v":50.7},null,0,null,null,null,null,null,null,null,"Duet for MS Office and SAP CAL   Non-Specific All Languages"]
[null,{"$f":"VLOOKUP(O137,'OVS Price List'!A:C,2,0)","v":"JS5-00094"},"Duet for MS Office SAP Svr   ",{"$f":"IF(sysEligiblePCs<=249,\"Non-Specific\",\"C\")","v":"Non-Specific"},{"$f":"IF(ISERROR(B137),0,VLOOKUP(O137,'OVS Price List'!A:Q,16,0))","v":50.7},null,0,null,null,null,null,null,null,null,"Duet for MS Office SAP Svr   Non-Specific All Languages"]
[null,{"$f":"VLOOKUP(O138,'OVS Price List'!A:C,2,0)","v":"QYA-00046"},"Dynamics CRM Full Use Add CAL   ","Non-Specific",{"$f":"IF(ISERROR(B138),0,VLOOKUP(O138,'OVS Price List'!A:Q,16,0))","v":220.79999999999998},null,0,null,null,null,null,null,null,null,{"$f":"CONCATENATE(C138,D138,\" \",$IP$5)","v":"Dynamics CRM Full Use Add CAL   Non-Specific All Languages"}]
[null,{"$f":"VLOOKUP(O139,'OVS Price List'!A:C,2,0)","v":"QHA-00007"},"Dynamics CRM FU Add Extrnl Con   ","Non-Specific",{"$f":"IF(ISERROR(B139),0,VLOOKUP(O139,'OVS Price List'!A:Q,16,0))","v":946.5},null,0,null,null,null,null,null,null,null,"Dynamics CRM FU Add Extrnl Con   Non-Specific All Languages"]
[null,{"$f":"VLOOKUP(O140,'OVS Price List'!A:C,2,0)","v":"ZFA-00409"},"Dynamics CRM CAL   ","Non-Specific",{"$f":"IF(ISERROR(B140),0,VLOOKUP(O140,'OVS Price List'!A:Q,16,0))","v":314.85000000000002},null,0,null,null,null,null,null,null,null,"Dynamics CRM CAL   Non-Specific All Languages"]
[null,{"$f":"VLOOKUP(O141,'OVS Price List'!A:C,2,0)","v":"QJA-00839"},"Dynamics CRM Enterprise Svr   ","Non-Specific",{"$f":"IF(ISERROR(B141),0,VLOOKUP(O141,'OVS Price List'!A:Q,16,0))","v":1577.4},null,0,null,null,null,null,null,null,null,"Dynamics CRM Enterprise Svr   Non-Specific All Languages"]
[null,{"$f":"VLOOKUP(O142,'OVS Price List'!A:C,2,0)","v":"ZGA-00228"},"Dynamics CRM External Connector   ","Non-Specific",{"$f":"IF(ISERROR(B142),0,VLOOKUP(O142,'OVS Price List'!A:Q,16,0))","v":1577.4},null,{"$f":"IF(F142<>0,E142*F142,0)","v":0},null,null,null,null,null,null,null,"Dynamics CRM External Connector   Non-Specific All Languages"]
[null,{"$f":"VLOOKUP(O143,'OVS Price List'!A:C,2,0)","v":"QZA-00254"},"Dynamics CRM Limited CAL   ","Non-Specific",{"$f":"IF(ISERROR(B143),0,VLOOKUP(O143,'OVS Price List'!A:Q,16,0))","v":94.5},null,0,null,null,null,null,null,null,null,"Dynamics CRM Limited CAL   Non-Specific All Languages"]
[null,{"$f":"VLOOKUP(O144,'OVS Price List'!A:C,2,0)","v":"Q5A-00007"},"Dynamics CRM Ltd Extrnl Con   ","Non-Specific",{"$f":"IF(ISERROR(B144),0,VLOOKUP(O144,'OVS Price List'!A:Q,16,0))","v":630.90000000000009},null,0,null,null,null,null,null,null,null,"Dynamics CRM Ltd Extrnl Con   Non-Specific All Languages"]
[null,{"$f":"VLOOKUP(O145,'OVS Price List'!A:C,2,0)","v":"QCA-01050"},"Dynamics CRM Professional Svr 5 Clts   ","Non-Specific",{"$f":"IF(ISERROR(B145),0,VLOOKUP(O145,'OVS Price List'!A:Q,16,0))","v":2205.9},null,0,null,null,null,null,null,null,null,"Dynamics CRM Professional Svr 5 Clts   Non-Specific All Languages"]
[null,{"$f":"VLOOKUP(O146,'OVS Price List'!A:C,2,0)","v":"QCA-00729"},"Dynamics CRM Professional Svr","Non-Specific",{"$f":"IF(ISERROR(B146),0,VLOOKUP(O146,'OVS Price List'!A:Q,16,0))","v":630.90000000000009},null,0,null,null,null,null,null,null,null,"Dynamics CRM Professional SvrNon-Specific All Languages"]
[null,{"$f":"VLOOKUP(O147,'OVS Price List'!A:C,2,0)","v":"QAA-00083"},"Dynamics CRM Workgroup Svr   ","Non-Specific",{"$f":"IF(ISERROR(B147),0,VLOOKUP(O147,'OVS Price List'!A:Q,16,0))","v":788.55000000000007},null,0,null,null,null,null,null,null,null,"Dynamics CRM Workgroup Svr   Non-Specific All Languages"]
[null,{"$f":"VLOOKUP(O148,'OVS Price List'!A:C,2,0)","v":"PGI-00144"},"Exchange Enterprise CAL w Svc   ","Non-Specific",{"$f":"IF(ISERROR(B148),0,VLOOKUP(O148,'OVS Price List'!A:Q,16,0))","v":33.6},null,0,null,null,null,null,null,null,null,"Exchange Enterprise CAL w Svc   Non-Specific All Languages"]
[null,{"$f":"VLOOKUP(O149,'OVS Price List'!A:C,2,0)","v":"74P-00007"},"MS Exchange Hosted Archive (monthly)  ","Non-Specific",{"$f":"IF(ISERROR(B149),0,VLOOKUP(O149,'OVS Price List'!A:Q,16,0))","v":5.0124999999999993},null,{"$f":"IF(F149<>0,E149*F149*H149,0)","v":0},12," nr de luni pana la urmatoarea aniversare, cu care se va inmulti automat cantitatea",null,null,null,null,null,"MS Exchange Hosted Archive (monthly)  Non-Specific All Languages"]
[null,{"$f":"VLOOKUP(O150,'OVS Price List'!A:C,2,0)","v":"74G-00007"},"MS Exchange Hosted Encryption (monthly)  ","Non-Specific",{"$f":"IF(ISERROR(B150),0,VLOOKUP(O150,'OVS Price List'!A:Q,16,0))","v":2.1375000000000002},null,{"$f":"IF(F150<>0,E150*F150*H150,0)","v":0},12," nr de luni pana la urmatoarea aniversare, cu care se va inmulti automat cantitatea",null,null,null,null,null,"MS Exchange Hosted Encryption (monthly)  Non-Specific All Languages"]
[null,{"$f":"VLOOKUP(O151,'OVS Price List'!A:C,2,0)","v":"395-03516"},"Exchange Server - Enterprise   ","Non-Specific",{"$f":"IF(ISERROR(B151),0,VLOOKUP(O151,'OVS Price List'!A:Q,16,0))","v":1814.25},null,{"$f":"IF(F151<>0,E151*F151,0)","v":0},null,null,null,null,null,null,null,"Exchange Server - Enterprise   Non-Specific All Languages"]
[null,{"$f":"VLOOKUP(O152,'OVS Price List'!A:C,2,0)","v":"394-00837"},"Exchange Svr ExtrnConn   ","Non-Specific",{"$f":"IF(ISERROR(B152),0,VLOOKUP(O152,'OVS Price List'!A:Q,16,0))","v":22639.050000000003},null,{"$f":"IF(F152<>0,E152*F152,0)","v":0},null,null,null,null,null,null,null,"Exchange Svr ExtrnConn   Non-Specific All Languages"]
[null,{"$f":"VLOOKUP(O153,'OVS Price List'!A:C,2,0)","v":"312-03195"},"Exchange Server - Standard   ","Non-Specific",{"$f":"IF(ISERROR(B153),0,VLOOKUP(O153,'OVS Price List'!A:Q,16,0))","v":316.95},null,{"$f":"IF(F153<>0,E153*F153,0)","v":0},null,null,null,null,null,null,null,"Exchange Server - Standard   Non-Specific All Languages"]
[null,{"$f":"VLOOKUP(O154,'OVS Price List'!A:C,2,0)","v":"UFB-00063"},"Forefront Client Security (Per User; monthly)  ","Non-Specific",{"$f":"IF(ISERROR(B154),0,VLOOKUP(O154,'OVS Price List'!A:Q,16,0))","v":1.2},null,{"$f":"IF(F154<>0,E154*F154*H154,0)","v":0},12," nr de luni pana la urmatoarea aniversare, cu care se va inmulti automat cantitatea",null,null,null,null,null,"Forefront Client Security (Per User; monthly)  Non-Specific All Languages"]
[null,{"$f":"VLOOKUP(O155,'OVS Price List'!A:C,2,0)","v":"FTZ-00050"},"Forefront Client Sec Mgt Cnsl (monthly)  ","Non-Specific",{"$f":"IF(ISERROR(B155),0,VLOOKUP(O155,'OVS Price List'!A:Q,16,0))","v":9.2874999999999996},null,0,12," nr de luni pana la urmatoarea aniversare, cu care se va inmulti automat cantitatea",null,null,null,null,null,"Forefront Client Sec Mgt Cnsl (monthly)  Non-Specific All Languages"]
[null,{"$f":"VLOOKUP(O156,'OVS Price List'!A:C,2,0)","v":"FTZ-00017"},"Forefront Client Sec Mgt Cnsl (wSQL; monthly)  ","Non-Specific",{"$f":"IF(ISERROR(B156),0,VLOOKUP(O156,'OVS Price List'!A:Q,16,0))","v":233.9375},null,0,12," nr de luni pana la urmatoarea aniversare, cu care se va inmulti automat cantitatea",null,null,null,null,null,"Forefront Client Sec Mgt Cnsl (wSQL; monthly)  Non-Specific All Languages"]
[null,{"$f":"VLOOKUP(O157,'OVS Price List'!A:C,2,0)","v":"5KD-00002"},"Forefront Protection Exchange Svr Ext Conn (monthly)  ","Non-Specific",{"$f":"IF(ISERROR(B157),0,VLOOKUP(O157,'OVS Price List'!A:Q,16,0))","v":1579.8},null,0,12," nr de luni pana la urmatoarea aniversare, cu care se va inmulti automat cantitatea",null,null,null,null,null,"Forefront Protection Exchange Svr Ext Conn (monthly)  Non-Specific All Languages"]
[null,{"$f":"VLOOKUP(O158,'OVS Price List'!A:C,2,0)","v":"5FD-00038"},"Forefront Protection Exchange Svr (Per User; monthly)  ","Non-Specific",{"$f":"IF(ISERROR(B158),0,VLOOKUP(O158,'OVS Price List'!A:Q,16,0))","v":1.4000000000000001},null,0,12," nr de luni pana la urmatoarea aniversare, cu care se va inmulti automat cantitatea",null,null,null,null,null,"Forefront Protection Exchange Svr (Per User; monthly)  Non-Specific All Languages"]
[null,{"$f":"VLOOKUP(O159,'OVS Price List'!A:C,2,0)","v":"74H-00145"},"Forefront Online Protection for Exchange (monthly) PROMO ","Non-Specific",{"$f":"IF(ISERROR(B159),0,VLOOKUP(O159,'OVS Price List'!A:Q,16,0))","v":1.4000000000000001},null,0,12," nr de luni pana la urmatoarea aniversare, cu care se va inmulti automat cantitatea",null,null,null,null,null,"Forefront Online Protection for Exchange (monthly) PROMO Non-Specific All Languages"]
[null,{"$f":"VLOOKUP(O160,'OVS Price List'!A:C,2,0)","v":"PFF-00047"},"Forefront Sec SharePoint (IntrntSitesAdd-on; monthly)  ","Non-Specific",{"$f":"IF(ISERROR(B160),0,VLOOKUP(O160,'OVS Price List'!A:Q,16,0))","v":1639.35},null,0,12," nr de luni pana la urmatoarea aniversare, cu care se va inmulti automat cantitatea",null,null,null,null,null,"Forefront Sec SharePoint (IntrntSitesAdd-on; monthly)  Non-Specific All Languages"]
[null,{"$f":"VLOOKUP(O161,'OVS Price List'!A:C,2,0)","v":"PFF-00068"},"Forefront Sec SharePoint (Per User; monthly)  ","Non-Specific",{"$f":"IF(ISERROR(B161),0,VLOOKUP(O161,'OVS Price List'!A:Q,16,0))","v":0.65},null,0,12," nr de luni pana la urmatoarea aniversare, cu care se va inmulti automat cantitatea",null,null,null,null,null,"Forefront Sec SharePoint (Per User; monthly)  Non-Specific All Languages"]
[null,{"$f":"VLOOKUP(O162,'OVS Price List'!A:C,2,0)","v":"9SE-00042"},"Forefront Sec Suite (Per User; monthly)  ","Non-Specific",{"$f":"IF(ISERROR(B162),0,VLOOKUP(O162,'OVS Price List'!A:Q,16,0))","v":5.0625},null,0,12," nr de luni pana la urmatoarea aniversare, cu care se va inmulti automat cantitatea",null,null,null,null,null,"Forefront Sec Suite (Per User; monthly)  Non-Specific All Languages"]
[null,{"$f":"VLOOKUP(O163,'OVS Price List'!A:C,2,0)","v":"HTC-00052"},"Forefront Sec Off Comm Svr (Per User; monthly) ","Non-Specific",{"$f":"IF(ISERROR(B163),0,VLOOKUP(O163,'OVS Price List'!A:Q,16,0))","v":0.65},null,0,12," nr de luni pana la urmatoarea aniversare, cu care se va inmulti automat cantitatea",null,null,null,null,null,"Forefront Sec Off Comm Svr (Per User; monthly) Non-Specific All Languages"]
[null,{"$f":"VLOOKUP(O164,'OVS Price List'!A:C,2,0)","v":"HTC-00090"},"Forefront Sec Off Comm Svr ExtConnector AddOn (Services; monthly)  ","Non-Specific",{"$f":"IF(ISERROR(B164),0,VLOOKUP(O164,'OVS Price List'!A:Q,16,0))","v":1639.35},null,{"$f":"IF(F164<>0,E164*F164*H164,0)","v":0},12," nr de luni pana la urmatoarea aniversare, cu care se va inmulti automat cantitatea",null,null,null,null,null,"Forefront Sec Off Comm Svr ExtConnector AddOn (Services; monthly)  Non-Specific All Languages"]
[null,{"$f":"VLOOKUP(O165,'OVS Price List'!A:C,2,0)","v":"4VD-00074"},"Forefront TMG Enterprise   ","Non-Specific",{"$f":"IF(ISERROR(B165),0,VLOOKUP(O165,'OVS Price List'!A:Q,16,0))","v":2580.4500000000003},null,{"$f":"IF(F165<>0,E165*F165,0)","v":0},null,null,null,null,null,null,null,"Forefront TMG Enterprise   Non-Specific All Languages"]
[null,{"$f":"VLOOKUP(O166,'OVS Price List'!A:C,2,0)","v":"4WD-00098"},"Forefront TMG Standard   ","Non-Specific",{"$f":"IF(ISERROR(B166),0,VLOOKUP(O166,'OVS Price List'!A:Q,16,0))","v":586.95000000000005},null,0,null,null,null,null,null,null,null,"Forefront TMG Standard   Non-Specific All Languages"]
[null,{"$f":"VLOOKUP(O167,'OVS Price List'!A:C,2,0)","v":"5TD-00002"},"Forefront TMG Web Protection Service (Per User; monthly)  ","Non-Specific",{"$f":"IF(ISERROR(B167),0,VLOOKUP(O167,'OVS Price List'!A:Q,16,0))","v":1.1125},null,{"$f":"IF(F167<>0,E167*F167*H167,0)","v":0},12," nr de luni pana la urmatoarea aniversare, cu care se va inmulti automat cantitatea",null,null,null,null,null,"Forefront TMG Web Protection Service (Per User; monthly)  Non-Specific All Languages"]
[null,{"$f":"VLOOKUP(O168,'OVS Price List'!A:C,2,0)","v":"9TA-00586"},"HPC Enterprise   ","Non-Specific",{"$f":"IF(ISERROR(B168),0,VLOOKUP(O168,'OVS Price List'!A:Q,16,0))","v":201.6},null,0,null,null,null,null,null,null,null,"HPC Enterprise   Non-Specific All Languages"]
[null,{"$f":"VLOOKUP(O169,'OVS Price List'!A:C,2,0)","v":"9TA-00419"},"HPC for Workstation   ","Non-Specific",{"$f":"IF(ISERROR(B169),0,VLOOKUP(O169,'OVS Price List'!A:Q,16,0))","v":52.05},null,{"$f":"IF(F169<>0,E169*F169,0)","v":0},null,null,null,null,null,null,null,"HPC for Workstation   Non-Specific All Languages"]
[null,{"$f":"VLOOKUP(O170,'OVS Price List'!A:C,2,0)","v":"KPA-00384"},"Office Comm Server Ent   ","Non-Specific",{"$f":"IF(ISERROR(B170),0,VLOOKUP(O170,'OVS Price List'!A:Q,16,0))","v":1814.25},null,0,null,null,null,null,null,null,null,"Office Comm Server Ent   Non-Specific All Languages"]
[null,{"$f":"VLOOKUP(O171,'OVS Price List'!A:C,2,0)","v":"KMA-00625"},"Office Comm Server Ent CAL   ","Non-Specific",{"$f":"IF(ISERROR(B171),0,VLOOKUP(O171,'OVS Price List'!A:Q,16,0))","v":63},null,0,null,null,null,null,null,null,null,"Office Comm Server Ent CAL   Non-Specific All Languages"]
[null,{"$f":"VLOOKUP(O172,'OVS Price List'!A:C,2,0)","v":"KSA-00050"},"Office Comm Server Ext Conn-Ent   ","Non-Specific",{"$f":"IF(ISERROR(B172),0,VLOOKUP(O172,'OVS Price List'!A:Q,16,0))","v":905.25},null,0,null,null,null,null,null,null,null,"Office Comm Server Ext Conn-Ent   Non-Specific All Languages"]
[null,{"$f":"VLOOKUP(O173,'OVS Price List'!A:C,2,0)","v":"KTA-00033"},"Office Comm Server Ext Conn-Std   ","Non-Specific",{"$f":"IF(ISERROR(B173),0,VLOOKUP(O173,'OVS Price List'!A:Q,16,0))","v":905.25},null,0,null,null,null,null,null,null,null,"Office Comm Server Ext Conn-Std   Non-Specific All Languages"]
[null,{"$f":"VLOOKUP(O174,'OVS Price List'!A:C,2,0)","v":"KNA-00389"},"Office Comm Server Std   ","Non-Specific",{"$f":"IF(ISERROR(B174),0,VLOOKUP(O174,'OVS Price List'!A:Q,16,0))","v":316.95},null,0,null,null,null,null,null,null,null,"Office Comm Server Std   Non-Specific All Languages"]
[null,{"$f":"VLOOKUP(O175,'OVS Price List'!A:C,2,0)","v":"KLA-00465"},"Office Comm Server Std CAL   ","Non-Specific",{"$f":"IF(ISERROR(B175),0,VLOOKUP(O175,'OVS Price List'!A:Q,16,0))","v":13.95},null,0,null,null,null,null,null,null,null,"Office Comm Server Std CAL   Non-Specific All Languages"]
[null,{"$f":"VLOOKUP(O176,'OVS Price List'!A:C,2,0)","v":"YYB-00014"},"Groove Server   ","Non-Specific",{"$f":"IF(ISERROR(B176),0,VLOOKUP(O176,'OVS Price List'!A:Q,16,0))","v":2206.35},null,{"$f":"IF(F176<>0,E176*F176,0)","v":0},null,null,null,null,null,null,null,"Groove Server   Non-Specific All Languages"]
[null,{"$f":"VLOOKUP(O177,'OVS Price List'!A:C,2,0)","v":"A9S-00031"},"Office LCS Connect to Public IM (Per User; monthly)  ","Non-Specific",{"$f":"IF(ISERROR(B177),0,VLOOKUP(O177,'OVS Price List'!A:Q,16,0))","v":0.32500000000000001},null,{"$f":"IF(F177<>0,E177*F177*H177,0)","v":0},12," nr de luni pana la urmatoarea aniversare, cu care se va inmulti automat cantitatea",null,null,null,null,null,"Office LCS Connect to Public IM (Per User; monthly)  Non-Specific All Languages"]
[null,{"$f":"VLOOKUP(O178,'OVS Price List'!A:C,2,0)","v":"BU8-00044"},"Office Live Mtg Professional (Per User; monthly)  ","Non-Specific",{"$f":"IF(ISERROR(B178),0,VLOOKUP(O178,'OVS Price List'!A:Q,16,0))","v":13.625},null,{"$f":"IF(F178<>0,E178*F178*H178,0)","v":0},12," nr de luni pana la urmatoarea aniversare, cu care se va inmulti automat cantitatea",null,null,null,null,null,"Office Live Mtg Professional (Per User; monthly)  Non-Specific All Languages"]
[null,{"$f":"VLOOKUP(O179,'OVS Price List'!A:C,2,0)","v":"BT1-00021"},"Office Live Mtg Standard (Per User; monthly)  ","Non-Specific",{"$f":"IF(ISERROR(B179),0,VLOOKUP(O179,'OVS Price List'!A:Q,16,0))","v":4.0500000000000007},null,{"$f":"IF(F179<>0,E179*F179*H179,0)","v":0},12," nr de luni pana la urmatoarea aniversare, cu care se va inmulti automat cantitatea",null,null,null,null,null,"Office Live Mtg Standard (Per User; monthly)  Non-Specific All Languages"]
[null,{"$f":"VLOOKUP(O180,'OVS Price List'!A:C,2,0)","v":"H04-01506"},"Office SharePoint Server   ","Non-Specific",{"$f":"IF(ISERROR(B180),0,VLOOKUP(O180,'OVS Price List'!A:Q,16,0))","v":2206.35},null,0,null,null,null,null,null,null,null,"Office SharePoint Server   Non-Specific All Languages"]
[null,{"$f":"VLOOKUP(O181,'OVS Price List'!A:C,2,0)","v":"H22-01460"},"Project Server   ","Non-Specific",{"$f":"IF(ISERROR(B181),0,VLOOKUP(O181,'OVS Price List'!A:Q,16,0))","v":2206.35},null,0,null,null,null,null,null,null,null,"Project Server   Non-Specific All Languages"]
[null,{"$f":"VLOOKUP(O182,'OVS Price List'!A:C,2,0)","v":"H21-02129"},"Project Server CAL   ","Non-Specific",{"$f":"IF(ISERROR(B182),0,VLOOKUP(O182,'OVS Price List'!A:Q,16,0))","v":72},null,0,null,null,null,null,null,null,null,"Project Server CAL   Non-Specific All Languages"]
[null,{"$f":"VLOOKUP(O183,'OVS Price List'!A:C,2,0)","v":"76N-01514"},"SharePoint Enterprise CAL   ","Non-Specific",{"$f":"IF(ISERROR(B183),0,VLOOKUP(O183,'OVS Price List'!A:Q,16,0))","v":37.049999999999997},null,0,null,null,null,null,null,null,null,"SharePoint Enterprise CAL   Non-Specific All Languages"]
[null,{"$f":"VLOOKUP(O184,'OVS Price List'!A:C,2,0)","v":"CLF-00086"},"SharePoint Internet Std   ","Non-Specific",{"$f":"IF(ISERROR(B184),0,VLOOKUP(O184,'OVS Price List'!A:Q,16,0))","v":5281.7999999999993},null,0,null,null,null,null,null,null,null,"SharePoint Internet Std   Non-Specific All Languages"]
[null,{"$f":"VLOOKUP(O185,'OVS Price List'!A:C,2,0)","v":"CKF-00086"},"SharePoint Internet Ent   ","Non-Specific",{"$f":"IF(ISERROR(B185),0,VLOOKUP(O185,'OVS Price List'!A:Q,16,0))","v":18538.800000000003},null,{"$f":"IF(F185<>0,E185*F185,0)","v":0},null,null,null,null,null,null,null,"SharePoint Internet Ent   Non-Specific All Languages"]
[null,{"$f":"VLOOKUP(O186,'OVS Price List'!A:C,2,0)","v":"359-01631"},"SQL CAL   ",{"$f":"IF(sysEligiblePCs<=249,\"Non-Specific\",\"C\")","v":"Non-Specific"},{"$f":"IF(ISERROR(B186),0,VLOOKUP(O186,'OVS Price List'!A:Q,16,0))","v":73.349999999999994},null,0,null,null,null,null,null,null,null,"SQL CAL   Non-Specific All Languages"]
[null,{"$f":"VLOOKUP(O187,'OVS Price List'!A:C,2,0)","v":"810-04921"},"SQL Server Enterprise Edition   ","Non-Specific",{"$f":"IF(ISERROR(B187),0,VLOOKUP(O187,'OVS Price List'!A:Q,16,0))","v":3847.9500000000003},null,0,null,null,null,null,null,null,null,{"$f":"CONCATENATE(C187,D187,\" \",$IP$5)","v":"SQL Server Enterprise Edition   Non-Specific All Languages"}]
[null,{"$f":"VLOOKUP(O188,'OVS Price List'!A:C,2,0)","v":"810-03110"},"SQL Server Enterprise Edition 1 Proc Lic  ","Non-Specific",{"$f":"IF(ISERROR(B188),0,VLOOKUP(O188,'OVS Price List'!A:Q,16,0))","v":12314.7},null,0,null,null,null,null,null,null,null,"SQL Server Enterprise Edition 1 Proc Lic  Non-Specific All Languages"]
[null,{"$f":"VLOOKUP(O189,'OVS Price List'!A:C,2,0)","v":"228-04735"},"SQL Server Standard Edition   ","Non-Specific",{"$f":"IF(ISERROR(B189),0,VLOOKUP(O189,'OVS Price List'!A:Q,16,0))","v":401.85},null,0,null,null,null,null,null,null,null,"SQL Server Standard Edition   Non-Specific All Languages"]
[null,{"$f":"VLOOKUP(O190,'OVS Price List'!A:C,2,0)","v":"228-05175"},"SQL Server Standard Edition 1 Proc Lic  ","Non-Specific",{"$f":"IF(ISERROR(B190),0,VLOOKUP(O190,'OVS Price List'!A:Q,16,0))","v":3211.65},null,0,null,null,null,null,null,null,null,"SQL Server Standard Edition 1 Proc Lic  Non-Specific All Languages"]
[null,{"$f":"VLOOKUP(O191,'OVS Price List'!A:C,2,0)","v":"TFA-00087"},"SQL Server Web Edition 1 Proc Lic  ","Non-Specific",{"$f":"IF(ISERROR(B191),0,VLOOKUP(O191,'OVS Price List'!A:Q,16,0))","v":1567.5},null,0,null,null,null,null,null,null,null,"SQL Server Web Edition 1 Proc Lic  Non-Specific All Languages"]
[null,{"$f":"VLOOKUP(O192,'OVS Price List'!A:C,2,0)","v":"P6R-00138"},"Search Server   ","Non-Specific",{"$f":"IF(ISERROR(B192),0,VLOOKUP(O192,'OVS Price List'!A:Q,16,0))","v":7148.7},null,0,null,null,null,null,null,null,null,"Search Server   Non-Specific All Languages"]
[null,{"$f":"VLOOKUP(O193,'OVS Price List'!A:C,2,0)","v":"J3A-00250"},"Sys Ctr Config Mgr Svr   ","Non-Specific",{"$f":"IF(ISERROR(B193),0,VLOOKUP(O193,'OVS Price List'!A:Q,16,0))","v":259.34999999999997},null,0,null,null,null,null,null,null,null,"Sys Ctr Config Mgr Svr   Non-Specific All Languages"]
[null,{"$f":"VLOOKUP(O194,'OVS Price List'!A:C,2,0)","v":"J7A-00245"},"Sys Ctr Config Mgr Svr Mgmt Lic Ent   ","Non-Specific",{"$f":"IF(ISERROR(B194),0,VLOOKUP(O194,'OVS Price List'!A:Q,16,0))","v":192.75},null,0,null,null,null,null,null,null,null,"Sys Ctr Config Mgr Svr Mgmt Lic Ent   Non-Specific All Languages"]
[null,{"$f":"VLOOKUP(O195,'OVS Price List'!A:C,2,0)","v":"J6A-00007"},"Sys Ctr Config Mgr Svr Mgmt Lic Std   ","Non-Specific",{"$f":"IF(ISERROR(B195),0,VLOOKUP(O195,'OVS Price List'!A:Q,16,0))","v":70.05},null,0,null,null,null,null,null,null,null,"Sys Ctr Config Mgr Svr Mgmt Lic Std   Non-Specific All Languages"]
[null,{"$f":"VLOOKUP(O196,'OVS Price List'!A:C,2,0)","v":"J4A-00243"},"Sys Ctr Config Mgr Svr wSQL   ","Non-Specific",{"$f":"IF(ISERROR(B196),0,VLOOKUP(O196,'OVS Price List'!A:Q,16,0))","v":591.59999999999991},null,0,null,null,null,null,null,null,null,"Sys Ctr Config Mgr Svr wSQL   Non-Specific All Languages"]
[null,{"$f":"VLOOKUP(O197,'OVS Price List'!A:C,2,0)","v":"TSC-00243"},"Sys Ctr Data Prtcn Mgr Clt Mgmt Lic Per OSE  ","Non-Specific",{"$f":"IF(ISERROR(B197),0,VLOOKUP(O197,'OVS Price List'!A:Q,16,0))","v":10.649999999999999},null,0,null,null,null,null,null,null,null,"Sys Ctr Data Prtcn Mgr Clt Mgmt Lic Per OSE  Non-Specific All Languages"]
[null,{"$f":"VLOOKUP(O198,'OVS Price List'!A:C,2,0)","v":"TSC-00760"},"Sys Ctr Data Prtcn Mgr Clt Mgmt Lic Per USER  ","Non-Specific",{"$f":"IF(ISERROR(B198),0,VLOOKUP(O198,'OVS Price List'!A:Q,16,0))","v":10.649999999999999},null,0,null,null,null,null,null,null,null,"Sys Ctr Data Prtcn Mgr Clt Mgmt Lic Per USER  Non-Specific All Languages"]
[null,{"$f":"VLOOKUP(O199,'OVS Price List'!A:C,2,0)","v":"CGA-00051"},"Sys Ctr Data Prtcn Mgr Svr ML Ent   ","Non-Specific",{"$f":"IF(ISERROR(B199),0,VLOOKUP(O199,'OVS Price List'!A:Q,16,0))","v":193.2},null,0,null,null,null,null,null,null,null,"Sys Ctr Data Prtcn Mgr Svr ML Ent   Non-Specific All Languages"]
[null,{"$f":"VLOOKUP(O200,'OVS Price List'!A:C,2,0)","v":"CVA-00032"},"Sys Ctr Data Prtcn Mgr Svr ML Std   ","Non-Specific",{"$f":"IF(ISERROR(B200),0,VLOOKUP(O200,'OVS Price List'!A:Q,16,0))","v":70.199999999999989},null,0,null,null,null,null,null,null,null,"Sys Ctr Data Prtcn Mgr Svr ML Std   Non-Specific All Languages"]
[null,{"$f":"VLOOKUP(O201,'OVS Price List'!A:C,2,0)","v":"UCH-02308"},"Sys Ctr Essentials   ","Non-Specific",{"$f":"IF(ISERROR(B201),0,VLOOKUP(O201,'OVS Price List'!A:Q,16,0))","v":44.55},null,0,null,null,null,null,null,null,null,"Sys Ctr Essentials   Non-Specific All Languages"]
[null,{"$f":"VLOOKUP(O202,'OVS Price List'!A:C,2,0)","v":"4PX-01516"},"Sys Ctr Essentials Clt Mgmt Lic  ","Non-Specific",{"$f":"IF(ISERROR(B202),0,VLOOKUP(O202,'OVS Price List'!A:Q,16,0))","v":7.05},null,0,null,null,null,null,null,null,null,"Sys Ctr Essentials Clt Mgmt Lic  Non-Specific All Languages"]
[null,{"$f":"VLOOKUP(O203,'OVS Price List'!A:C,2,0)","v":"DJA-00869"},"Sys Ctr Essentials Svr Mgmt Lic   ","Non-Specific",{"$f":"IF(ISERROR(B203),0,VLOOKUP(O203,'OVS Price List'!A:Q,16,0))","v":44.55},null,0,null,null,null,null,null,null,null,"Sys Ctr Essentials Svr Mgmt Lic   Non-Specific All Languages"]
[null,{"$f":"VLOOKUP(O204,'OVS Price List'!A:C,2,0)","v":"EEC-00736"},"Sys Ctr Essentials wSQL   ","Non-Specific",{"$f":"IF(ISERROR(B204),0,VLOOKUP(O204,'OVS Price List'!A:Q,16,0))","v":361.5},null,0,null,null,null,null,null,null,null,"Sys Ctr Essentials wSQL   Non-Specific All Languages"]
[null,{"$f":"VLOOKUP(O205,'OVS Price List'!A:C,2,0)","v":"T7F-00345"},"Sys Ctr EssentialsPlusSvrMgmtLicSte   ","Non-Specific",{"$f":"IF(ISERROR(B205),0,VLOOKUP(O205,'OVS Price List'!A:Q,16,0))","v":178.05},null,{"$f":"IF(F205<>0,E205*F205,0)","v":0},null,null,null,null,null,null,null,"Sys Ctr EssentialsPlusSvrMgmtLicSte   Non-Specific All Languages"]
[null,{"$f":"VLOOKUP(O206,'OVS Price List'!A:C,2,0)","v":"T9F-00361"},"Sys Ctr EssentialsPlusCltMgmtLicSte   ","Non-Specific",{"$f":"IF(ISERROR(B206),0,VLOOKUP(O206,'OVS Price List'!A:Q,16,0))","v":13.65},null,0,null,null,null,null,null,null,null,"Sys Ctr EssentialsPlusCltMgmtLicSte   Non-Specific All Languages"]
[null,{"$f":"VLOOKUP(O207,'OVS Price List'!A:C,2,0)","v":"WRA-00050"},"Sys Ctr Mobile Device Mgr CAL   ","Non-Specific",{"$f":"IF(ISERROR(B207),0,VLOOKUP(O207,'OVS Price List'!A:Q,16,0))","v":25.950000000000003},null,0,null,null,null,null,null,null,null,"Sys Ctr Mobile Device Mgr CAL   Non-Specific All Languages"]
[null,{"$f":"VLOOKUP(O208,'OVS Price List'!A:C,2,0)","v":"WQA-00300"},"Sys Ctr Mobile Device Mgr Svr   ","Non-Specific",{"$f":"IF(ISERROR(B208),0,VLOOKUP(O208,'OVS Price List'!A:Q,16,0))","v":973.19999999999993},null,0,null,null,null,null,null,null,null,"Sys Ctr Mobile Device Mgr Svr   Non-Specific All Languages"]
[null,{"$f":"VLOOKUP(O209,'OVS Price List'!A:C,2,0)","v":"WQA-00073"},"Sys Ctr Mobile Device Mgr Svr wSQL   ","Non-Specific",{"$f":"IF(ISERROR(B209),0,VLOOKUP(O209,'OVS Price List'!A:Q,16,0))","v":1376.55},null,0,null,null,null,null,null,null,null,"Sys Ctr Mobile Device Mgr Svr wSQL   Non-Specific All Languages"]
[null,{"$f":"VLOOKUP(O210,'OVS Price List'!A:C,2,0)","v":"MUY-00071"},"Sys Ctr Svr Mgmt Suite Ent   ","Non-Specific",{"$f":"IF(ISERROR(B210),0,VLOOKUP(O210,'OVS Price List'!A:Q,16,0))","v":468.45},null,0,null,null,null,null,null,null,null,"Sys Ctr Svr Mgmt Suite Ent   Non-Specific All Languages"]
[null,{"$f":"VLOOKUP(O211,'OVS Price List'!A:C,2,0)","v":"9TX-00727"},"Sys Ctr Ops Mgr Clt Mgmt Lic Per OSE  ","Non-Specific",{"$f":"IF(ISERROR(B211),0,VLOOKUP(O211,'OVS Price List'!A:Q,16,0))","v":10.8},null,0,null,null,null,null,null,null,null,"Sys Ctr Ops Mgr Clt Mgmt Lic Per OSE  Non-Specific All Languages"]
[null,{"$f":"VLOOKUP(O212,'OVS Price List'!A:C,2,0)","v":"9TX-00296"},"Sys Ctr Ops Mgr Clt Mgmt Lic Per USER  ","Non-Specific",{"$f":"IF(ISERROR(B212),0,VLOOKUP(O212,'OVS Price List'!A:Q,16,0))","v":10.8},null,0,null,null,null,null,null,null,null,"Sys Ctr Ops Mgr Clt Mgmt Lic Per USER  Non-Specific All Languages"]
[null,{"$f":"VLOOKUP(O213,'OVS Price List'!A:C,2,0)","v":"UAR-00766"},"Sys Ctr Ops Mgr Svr   ","Non-Specific",{"$f":"IF(ISERROR(B213),0,VLOOKUP(O213,'OVS Price List'!A:Q,16,0))","v":260.10000000000002},null,0,null,null,null,null,null,null,null,"Sys Ctr Ops Mgr Svr   Non-Specific All Languages"]
[null,{"$f":"VLOOKUP(O214,'OVS Price List'!A:C,2,0)","v":"UAS-00175"},"Sys Ctr Ops Mgr Svr Mgmt Lic Ent   ","Non-Specific",{"$f":"IF(ISERROR(B214),0,VLOOKUP(O214,'OVS Price List'!A:Q,16,0))","v":193.35000000000002},null,0,null,null,null,null,null,null,null,"Sys Ctr Ops Mgr Svr Mgmt Lic Ent   Non-Specific All Languages"]
[null,{"$f":"VLOOKUP(O215,'OVS Price List'!A:C,2,0)","v":"UAT-00414"},"Sys Ctr Ops Mgr Svr Mgmt Lic Std   ","Non-Specific",{"$f":"IF(ISERROR(B215),0,VLOOKUP(O215,'OVS Price List'!A:Q,16,0))","v":70.5},null,0,null,null,null,null,null,null,null,"Sys Ctr Ops Mgr Svr Mgmt Lic Std   Non-Specific All Languages"]
[null,{"$f":"VLOOKUP(O216,'OVS Price List'!A:C,2,0)","v":"EFC-00106"},"Sys Ctr Ops Mgr Svr wSQL   ","Non-Specific",{"$f":"IF(ISERROR(B216),0,VLOOKUP(O216,'OVS Price List'!A:Q,16,0))","v":593.25},null,0,null,null,null,null,null,null,null,"Sys Ctr Ops Mgr Svr wSQL   Non-Specific All Languages"]
[null,{"$f":"VLOOKUP(O217,'OVS Price List'!A:C,2,0)","v":"CJA-00324"},"Sys Ctr VMM Svr Mgmt Lic Ent   ","Non-Specific",{"$f":"IF(ISERROR(B217),0,VLOOKUP(O217,'OVS Price List'!A:Q,16,0))","v":389.4},null,0,null,null,null,null,null,null,null,"Sys Ctr VMM Svr Mgmt Lic Ent   Non-Specific All Languages"]
[null,{"$f":"VLOOKUP(O218,'OVS Price List'!A:C,2,0)","v":"SNA-00245"},"Sys Ctr VMM Wkgrp   ","Non-Specific",{"$f":"IF(ISERROR(B218),0,VLOOKUP(O218,'OVS Price List'!A:Q,16,0))","v":225.9},null,0,null,null,null,null,null,null,null,"Sys Ctr VMM Wkgrp   Non-Specific All Languages"]
[null,{"$f":"VLOOKUP(O219,'OVS Price List'!A:C,2,0)","v":"26C-00098"},"Sys Ctr VMM Clt Mgmt Lic Per OSE ","Non-Specific",{"$f":"IF(ISERROR(B219),0,VLOOKUP(O219,'OVS Price List'!A:Q,16,0))","v":11.55},null,0,null,null,null,null,null,null,null,"Sys Ctr VMM Clt Mgmt Lic Per OSE Non-Specific All Languages"]
[null,{"$f":"VLOOKUP(O220,'OVS Price List'!A:C,2,0)","v":"26C-00100"},"Sys Ctr VMM Clt Mgmt Lic ","Non-Specific",{"$f":"IF(ISERROR(B220),0,VLOOKUP(O220,'OVS Price List'!A:Q,16,0))","v":11.55},null,0,null,null,null,null,null,null,null,"Sys Ctr VMM Clt Mgmt Lic Non-Specific All Languages"]
[null,{"$f":"VLOOKUP(O221,'OVS Price List'!A:C,2,0)","v":"Q99-00042"},"Technet Plus Single User   ","Non-Specific",{"$f":"IF(ISERROR(B221),0,VLOOKUP(O221,'OVS Price List'!A:Q,16,0))","v":680.84999999999991},null,0,null,null,null,null,null,null,null,"Technet Plus Single User   Non-Specific All Languages"]
[null,{"$f":"VLOOKUP(O222,'OVS Price List'!A:C,2,0)","v":"H6D-00002"},"VDI Std Ste (Per Device; monthly)  ","Non-Specific",{"$f":"IF(ISERROR(B222),0,VLOOKUP(O222,'OVS Price List'!A:Q,16,0))","v":1.1375},null,{"$f":"IF(F222<>0,E222*F222*H222,0)","v":0},12," nr de luni pana la urmatoarea aniversare, cu care se va inmulti automat cantitatea",null,null,null,null,null,"VDI Std Ste (Per Device; monthly)  Non-Specific All Languages"]
[null,{"$f":"VLOOKUP(O223,'OVS Price List'!A:C,2,0)","v":"UYD-00010"},"VDI Std Ste wMDOP (Per Device; monthly)  ","Non-Specific",{"$f":"IF(ISERROR(B223),0,VLOOKUP(O223,'OVS Price List'!A:Q,16,0))","v":2},null,0,12," nr de luni pana la urmatoarea aniversare, cu care se va inmulti automat cantitatea",null,null,null,null,null,"VDI Std Ste wMDOP (Per Device; monthly)  Non-Specific All Languages"]
[null,{"$f":"VLOOKUP(O224,'OVS Price List'!A:C,2,0)","v":"H7D-00008"},"VDI Prem Ste (Per Device; monthly)  ","Non-Specific",{"$f":"IF(ISERROR(B224),0,VLOOKUP(O224,'OVS Price List'!A:Q,16,0))","v":4.1749999999999998},null,0,12," nr de luni pana la urmatoarea aniversare, cu care se va inmulti automat cantitatea",null,null,null,null,null,"VDI Prem Ste (Per Device; monthly)  Non-Specific All Languages"]
[null,{"$f":"VLOOKUP(O225,'OVS Price List'!A:C,2,0)","v":"UZD-00002"},"VDI Prem Ste wMDOP (Per Device; monthly)  ","Non-Specific",{"$f":"IF(ISERROR(B225),0,VLOOKUP(O225,'OVS Price List'!A:Q,16,0))","v":5.0375000000000005},null,0,12," nr de luni pana la urmatoarea aniversare, cu care se va inmulti automat cantitatea",null,null,null,null,null,"VDI Prem Ste wMDOP (Per Device; monthly)  Non-Specific All Languages"]
[null,{"$f":"VLOOKUP(O226,'OVS Price List'!A:C,2,0)","v":"SFA-00031"},"Virtual Earth: User/Add-on SL (100KTrnsctnAddon; monthly)  ","Non-Specific",{"$f":"IF(ISERROR(B226),0,VLOOKUP(O226,'OVS Price List'!A:Q,16,0))","v":305.23750000000001},null,{"$f":"IF(F226<>0,E226*F226*H226,0)","v":0},12," nr de luni pana la urmatoarea aniversare, cu care se va inmulti automat cantitatea",null,null,null,null,null,"Virtual Earth: User/Add-on SL (100KTrnsctnAddon; monthly)  Non-Specific All Languages"]
[null,{"$f":"VLOOKUP(O227,'OVS Price List'!A:C,2,0)","v":"SFA-00020"},"Virtual Earth: User/Add-on SL (1MlnTrnsctnAddon; monthly)  ","Non-Specific",{"$f":"IF(ISERROR(B227),0,VLOOKUP(O227,'OVS Price List'!A:Q,16,0))","v":3052.3374999999996},null,0,12," nr de luni pana la urmatoarea aniversare, cu care se va inmulti automat cantitatea",null,null,null,null,null,"Virtual Earth: User/Add-on SL (1MlnTrnsctnAddon; monthly)  Non-Specific All Languages"]
[null,{"$f":"VLOOKUP(O228,'OVS Price List'!A:C,2,0)","v":"SFA-00009"},"Virtual Earth: User/Add-on SL (Per User; monthly)  ","Non-Specific",{"$f":"IF(ISERROR(B228),0,VLOOKUP(O228,'OVS Price List'!A:Q,16,0))","v":2.2250000000000001},null,0,12," nr de luni pana la urmatoarea aniversare, cu care se va inmulti automat cantitatea",null,null,null,null,null,"Virtual Earth: User/Add-on SL (Per User; monthly)  Non-Specific All Languages"]
[null,{"$f":"VLOOKUP(O229,'OVS Price List'!A:C,2,0)","v":"SGA-00009"},"Virtual Earth: Pro (Services; monthly)  ","Non-Specific",{"$f":"IF(ISERROR(B229),0,VLOOKUP(O229,'OVS Price List'!A:Q,16,0))","v":281.73749999999995},null,0,12," nr de luni pana la urmatoarea aniversare, cu care se va inmulti automat cantitatea",null,null,null,null,null,"Virtual Earth: Pro (Services; monthly)  Non-Specific All Languages"]
[null,{"$f":"VLOOKUP(O230,'OVS Price List'!A:C,2,0)","v":"LLD-00002"},"Virtual Earth Server monthly","Non-Specific",{"$f":"IF(ISERROR(B230),0,VLOOKUP(O230,'OVS Price List'!A:Q,16,0))","v":2464.5249999999996},null,0,12," nr de luni pana la urmatoarea aniversare, cu care se va inmulti automat cantitatea",null,null,null,null,null,{"$f":"CONCATENATE(C230,\" \", D230,\" \",$IP$5)","v":"Virtual Earth Server monthly Non-Specific All Languages"}]
[null,{"$f":"VLOOKUP(O231,'OVS Price List'!A:C,2,0)","v":"LMD-00004"},"Virtual Earth Server CAL monthly","Non-Specific",{"$f":"IF(ISERROR(B231),0,VLOOKUP(O231,'OVS Price List'!A:Q,16,0))","v":9.4749999999999996},null,0,12," nr de luni pana la urmatoarea aniversare, cu care se va inmulti automat cantitatea",null,null,null,null,null,{"$f":"CONCATENATE(C231,\" \", D231,\" \",$IP$5)","v":"Virtual Earth Server CAL monthly Non-Specific All Languages"}]
[null,{"$f":"VLOOKUP(O232,'OVS Price List'!A:C,2,0)","v":"LND-00002"},"Virtual Earth Server wECP monthly","Non-Specific",{"$f":"IF(ISERROR(B232),0,VLOOKUP(O232,'OVS Price List'!A:Q,16,0))","v":2464.5249999999996},null,0,12," nr de luni pana la urmatoarea aniversare, cu care se va inmulti automat cantitatea",null,null,null,null,null,{"$f":"CONCATENATE(C232,\" \", D232,\" \",$IP$5)","v":"Virtual Earth Server wECP monthly Non-Specific All Languages"}]
[null,{"$f":"VLOOKUP(O233,'OVS Price List'!A:C,2,0)","v":"LPD-00004"},"Virtual Earth Server wECP CAL monthly","Non-Specific",{"$f":"IF(ISERROR(B233),0,VLOOKUP(O233,'OVS Price List'!A:Q,16,0))","v":23.700000000000003},null,0,12," nr de luni pana la urmatoarea aniversare, cu care se va inmulti automat cantitatea",null,null,null,null,null,{"$f":"CONCATENATE(C233,\" \", D233,\" \",$IP$5)","v":"Virtual Earth Server wECP CAL monthly Non-Specific All Languages"}]
[null,{"$f":"VLOOKUP(O234,'OVS Price List'!A:C,2,0)","v":"LQD-00002"},"Virtual Earth Desktop monthly","Non-Specific",{"$f":"IF(ISERROR(B234),0,VLOOKUP(O234,'OVS Price List'!A:Q,16,0))","v":497.65},null,0,12," nr de luni pana la urmatoarea aniversare, cu care se va inmulti automat cantitatea",null,null,null,null,null,{"$f":"CONCATENATE(C234,\" \", D234,\" \",$IP$5)","v":"Virtual Earth Desktop monthly Non-Specific All Languages"}]
[null,{"$f":"VLOOKUP(O235,'OVS Price List'!A:C,2,0)","v":"125-00250"},"Visual Studio Team Foundation Svr   ","Non-Specific",{"$f":"IF(ISERROR(B235),0,VLOOKUP(O235,'OVS Price List'!A:Q,16,0))","v":173.55},null,{"$f":"IF(F235<>0,E235*F235,0)","v":0},null,null,null,null,null,null,null,"Visual Studio Team Foundation Svr   Non-Specific All Languages"]
[null,{"$f":"VLOOKUP(O236,'OVS Price List'!A:C,2,0)","v":"126-00488"},"Visual Studio Team Fndation Svr CAL   ","Non-Specific",{"$f":"IF(ISERROR(B236),0,VLOOKUP(O236,'OVS Price List'!A:Q,16,0))","v":173.55},null,{"$f":"IF(F236<>0,E236*F236,0)","v":0},null,null,null,null,null,null,null,"Visual Studio Team Fndation Svr CAL   Non-Specific All Languages"]
[null,{"$f":"VLOOKUP(O237,'OVS Price List'!A:C,2,0)","v":"66B-00211"},"Visual Studio Team Fndn Svr Ext Con   ","Non-Specific",{"$f":"IF(ISERROR(B237),0,VLOOKUP(O237,'OVS Price List'!A:Q,16,0))","v":4359.3},null,{"$f":"IF(F237<>0,E237*F237,0)","v":0},null,null,null,null,null,null,null,"Visual Studio Team Fndn Svr Ext Con   Non-Specific All Languages"]
[null,{"$f":"VLOOKUP(O238,'OVS Price List'!A:C,2,0)","v":"7XD-00042"},"Visual Studio Vrtl UserPK   ","Non-Specific",{"$f":"IF(ISERROR(B238),0,VLOOKUP(O238,'OVS Price List'!A:Q,16,0))","v":1629},null,{"$f":"IF(F238<>0,E238*F238,0)","v":0},null,null,null,null,null,null,null,"Visual Studio Vrtl UserPK   Non-Specific All Languages"]
[null,{"$f":"VLOOKUP(O239,'OVS Price List'!A:C,2,0)","v":"HXC-00002"},"Web Antimalware for TMG MB (Per User; monthly)  ","Non-Specific",{"$f":"IF(ISERROR(B239),0,VLOOKUP(O239,'OVS Price List'!A:Q,16,0))","v":0.88749999999999996},null,{"$f":"IF(F239<>0,E239*F239*H239,0)","v":0},12," nr de luni pana la urmatoarea aniversare, cu care se va inmulti automat cantitatea",null,null,null,null,null,"Web Antimalware for TMG MB (Per User; monthly)  Non-Specific All Languages"]
[null,{"$f":"VLOOKUP(O240,'OVS Price List'!A:C,2,0)","v":"9WA-00434"},"Windows HPC Suite   ","Non-Specific",{"$f":"IF(ISERROR(B240),0,VLOOKUP(O240,'OVS Price List'!A:Q,16,0))","v":414.45},null,{"$f":"IF(F240<>0,E240*F240,0)","v":0},null,null,null,null,null,null,null,"Windows HPC Suite   Non-Specific All Languages"]
[null,{"$f":"VLOOKUP(O241,'OVS Price List'!A:C,2,0)","v":"AAB-00059"},"Windows HPC Svr OS   ","Non-Specific",{"$f":"IF(ISERROR(B241),0,VLOOKUP(O241,'OVS Price List'!A:Q,16,0))","v":212.85},null,0,null,null,null,null,null,null,null,"Windows HPC Svr OS   Non-Specific All Languages"]
[null,{"$f":"VLOOKUP(O242,'OVS Price List'!A:C,2,0)","v":"T98-01843"},"Windows Rights Mgmt Services CAL   ","Non-Specific",{"$f":"IF(ISERROR(B242),0,VLOOKUP(O242,'OVS Price List'!A:Q,16,0))","v":16.350000000000001},null,{"$f":"IF(F242<>0,E242*F242,0)","v":0},null,null,null,null,null,null,null,"Windows Rights Mgmt Services CAL   Non-Specific All Languages"]
[null,{"$f":"VLOOKUP(O243,'OVS Price List'!A:C,2,0)","v":"T99-00659"},"Windows Rights Mgt Svcs ExtnConn   ","Non-Specific",{"$f":"IF(ISERROR(B243),0,VLOOKUP(O243,'OVS Price List'!A:Q,16,0))","v":8162.8499999999995},null,0,null,null,null,null,null,null,null,"Windows Rights Mgt Svcs ExtnConn   Non-Specific All Languages"]
[null,{"$f":"VLOOKUP(O244,'OVS Price List'!A:C,2,0)","v":"T75-01136"},"Windows Small Bus Svr Prem   ","Non-Specific",{"$f":"IF(ISERROR(B244),0,VLOOKUP(O244,'OVS Price List'!A:Q,16,0))","v":743.40000000000009},null,0,null,null,null,null,null,null,null,"Windows Small Bus Svr Prem   Non-Specific All Languages"]
[null,{"$f":"VLOOKUP(O245,'OVS Price List'!A:C,2,0)","v":"T72-01298"},"Windows Small Bus Svr Std   ","Non-Specific",{"$f":"IF(ISERROR(B245),0,VLOOKUP(O245,'OVS Price List'!A:Q,16,0))","v":426.15000000000003},null,0,null,null,null,null,null,null,null,"Windows Small Bus Svr Std   Non-Specific All Languages"]
[null,{"$f":"VLOOKUP(O246,'OVS Price List'!A:C,2,0)","v":"P71-01088"},"Windows Server Datacenter 1 Proc Lic  ","Non-Specific",{"$f":"IF(ISERROR(B246),0,VLOOKUP(O246,'OVS Price List'!A:Q,16,0))","v":1076.8499999999999},null,0,null,null,null,null,null,null,null,"Windows Server Datacenter 1 Proc Lic  Non-Specific All Languages"]
[null,{"$f":"VLOOKUP(O247,'OVS Price List'!A:C,2,0)","v":"P72-01582"},"Windows Server Enterprise   ","Non-Specific",{"$f":"IF(ISERROR(B247),0,VLOOKUP(O247,'OVS Price List'!A:Q,16,0))","v":1055.6999999999998},null,0,null,null,null,null,null,null,null,"Windows Server Enterprise   Non-Specific All Languages"]
[null,{"$f":"VLOOKUP(O248,'OVS Price List'!A:C,2,0)","v":"R39-00739"},"Windows Svr ExtrnConn   ",{"$f":"IF(sysEligiblePCs<=249,\"Non-Specific\",\"C\")","v":"Non-Specific"},{"$f":"IF(ISERROR(B248),0,VLOOKUP(O248,'OVS Price List'!A:Q,16,0))","v":904.35},null,0,null,null,null,null,null,null,null,{"$f":"CONCATENATE(C248,D248,\" \",$IP$5)","v":"Windows Svr ExtrnConn   Non-Specific All Languages"}]
[null,{"$f":"VLOOKUP(O249,'OVS Price List'!A:C,2,0)","v":"MYC-00180"},"Win Svr for Win Essn Svr   ","Non-Specific",{"$f":"IF(ISERROR(B249),0,VLOOKUP(O249,'OVS Price List'!A:Q,16,0))","v":348.29999999999995},null,0,null,null,null,null,null,null,null,"Win Svr for Win Essn Svr   Non-Specific All Languages"]
[null,{"$f":"VLOOKUP(O250,'OVS Price List'!A:C,2,0)","v":"M2C-00163"},"Win Svr for Win Essn Svr CAL   ","Non-Specific",{"$f":"IF(ISERROR(B250),0,VLOOKUP(O250,'OVS Price List'!A:Q,16,0))","v":117.44999999999999},null,0,null,null,null,null,null,null,null,"Win Svr for Win Essn Svr CAL   Non-Specific All Languages"]
[null,{"$f":"VLOOKUP(O251,'OVS Price List'!A:C,2,0)","v":"LVA-00316"},"Windows Server Itanium 1 Proc Lic  ","Non-Specific",{"$f":"IF(ISERROR(B251),0,VLOOKUP(O251,'OVS Price List'!A:Q,16,0))","v":1076.8499999999999},null,0,null,null,null,null,null,null,null,"Windows Server Itanium 1 Proc Lic  Non-Specific All Languages"]
[null,{"$f":"VLOOKUP(O252,'OVS Price List'!A:C,2,0)","v":"P73-01608"},"Windows Server Standard   ","Non-Specific",{"$f":"IF(ISERROR(B252),0,VLOOKUP(O252,'OVS Price List'!A:Q,16,0))","v":324.90000000000003},null,0,null,null,null,null,null,null,null,"Windows Server Standard   Non-Specific All Languages"]
[null,{"$f":"VLOOKUP(O253,'OVS Price List'!A:C,2,0)","v":"6VC-00829"},"Windows Remote Desktop Services CAL ","Non-Specific",{"$f":"IF(ISERROR(B253),0,VLOOKUP(O253,'OVS Price List'!A:Q,16,0))","v":37.799999999999997},null,0,null,null,null,null,null,null,null,{"$f":"CONCATENATE(C253,\" \",D253,\" \",$IP$5)","v":"Windows Remote Desktop Services CAL  Non-Specific All Languages"}]
[null,{"$f":"VLOOKUP(O254,'OVS Price List'!A:C,2,0)","v":"6XC-00086"},"Windows Remote Desktop Services Ext Connector ","Non-Specific",{"$f":"IF(ISERROR(B254),0,VLOOKUP(O254,'OVS Price List'!A:Q,16,0))","v":3799.5},null,0,null,null,null,null,null,null,null,{"$f":"CONCATENATE(C254,\" \",D254,\" \",$IP$5)","v":"Windows Remote Desktop Services Ext Connector  Non-Specific All Languages"}]
[null,{"$f":"VLOOKUP(O255,'OVS Price List'!A:C,2,0)","v":"LWA-00703"},"Windows Web Server   ","Non-Specific",{"$f":"IF(ISERROR(B255),0,VLOOKUP(O255,'OVS Price List'!A:Q,16,0))","v":180.3},null,0,null,null,null,null,null,null,null,"Windows Web Server   Non-Specific All Languages"]
[null,null,null,null,null,"Total",{"$f":"SUM(G91:G255)","v":0}]
[]
[]
[]
[]
[]
[]
[]
[]
[]
[]
[]
[]
[]
[]
[]
[]
[]
[]
[]
[]
[]
[]
[]
[]
[]
[]
[]
[]
[]
[]
[]
[]
[]
[]
[null,null," "]
[]
[]
[]
[]
[]
[]
[]
[]
[]
[null,null," "]

{"sheet":"OVS Proposal Form ALL Languages","index":1,"n_rows":308,"n_cols":256,"rows_kept":308,"cut":false,"hidden":false,"merged":[[135,0,263,0],[2,2,2,7],[7,1,7,7],[16,3,16,9],[52,0,68,0],[71,0,80,0],[83,0,92,0],[98,0,132,0],[26,1,26,5],[133,0,134,0]]}
[null,null,null,null,null,null,null,null,null,null,null,null,null,null,null," ",null,null,null,null,null,null,null,null,null,null,null,null,null,null,null,null,null,null,null,null,null,null,null,null,null,null,null,null,null,null,null,null,null,null,null,null,null,null,null,null,null,null,null,null,null,null,null,null,null,null,null,null,null,null,null,null,null,null,null,null,null,null,null,null,null,null,null,null,null,null,null,null,null,null,null,null,null,null,null,null,null,null,null,null,null,null,null,null,null,null,null,null,null,null,null,null,null,null,null,null,null,null,null,null,null,null,null,null,null,null,null,null,null,null,null,null,null,null,null,null,null,null,null,null,null,null,null,null,null,null,null,null,null,null,null,null,null,null,null,null,null,null,null,null,null,null,null,null,null,null,null,null,null,null,null,null,null,null,null,null,null,null,null,null,null,null,null,null,null,null,null,null,null,null,null,null,null,null,null,null,null,null,null,null,null,null,null,null,null,null,null,null,null,null,null,null,null,null,null,null,null,null,null,null,null,null,null,null,null,null,null,null,null,null,null,null,null,null,null,null,null,null,null,null,null,null,null,null,null,null,null,null,null,null,null,null,null,null,null," "]
[]
[null,null,"Open Value Subscription - Reseller Proposal Form",null,null,null,null,null,null,null,null,null,null,null,null,null,null,null,null,null,null,null,null,null,null,null,null,null,null,null," ",null,null,null,null,null,null,null,null,null,null,null,null,null,null,null,null,null,null,null,null,null,null,null,null,null,null,null,null,null,null,null,null,null,null,null,null,null,null,null,null,null,null,null,null,null,null,null,null,null,null,null,null,null,null,null,null,null,null,null,null,null,null,null,null,null,null,null,null,null,null,null,null,null,null,null,null,null,null,null,null,null,null,null,null,null,null,null,null,null,null,null,null,null,null,null,null,null,null,null,null,null,null,null,null,null,null,null,null,null,null,null,null,null,null,null,null,null,null,null,null,null,null,null,null,null,null,null,null,null,null,null,null,null,null,null,null,null,null,null,null,null,null,null,null,null,null,null,null,null,null,null,null,null,null,null,null,null,null,null,null,null,null,null,null,null,null,null,null,null,null,null,null,null,null,null,null,null,null,null,null,null,null,null,null,null,null,null,null,null,null,null,null,null,null,null,null,null,null,null,null,null,null,null,null,null,null,null,null,null,null,null,null,null,null,null,null,null,null,0]
[null,null,null,null,null,"Ultima actualizare:","01-Septembrie-2010",null,null,null,null,null,null,null,null,null,null,null,null,null,null,null,null,null,null,null,null,null,null,null,null,null,null,null,null,null,null,null,null,null,null,null,null,null,null,null,null,null,null,null,null,null,null,null,null,null,null,null,null,null,null,null,null,null,null,null,null,null,null,null,null,null,null,null,null,null,null,null,null,null,null,null,null,null,null,null,null,null,null,null,null,null,null,null,null,null,null,null,null,null,null,null,null,null,null,null,null,null,null,null,null,null,null,null,null,null,null,null,null,null,null,null,null,null,null,null,null,null,null,null,null,null,null,null,null,null,null,null,null,null,null,null,null,null,null,null,null,null,null,null,null,null,null,null,null,null,null,null,null,null,null,null,null,null,null,null,null,null,null,null,null,null,null,null,null,null,null,null,null,null,null,null,null,null,null,null,null,null,null,null,null,null,null,null,null,null,null,null,null,null,null,null,null,null,null,null,null,null,null,null,null,null,null,null,null,null,null,null,null,null,null,null,null,null,null,null,null,null,null,null,null,null,null,null,null,null,null,null,null,null,null,null,null,null,null,null,null,null,null,"All Languages"]
[null,null,null,null,null,null,null,null,null,null,null,null,null,null,null,null,null,null,null,null,null,null,null,null,null,null,null,null,null,null,null,null,null,null,null,null,null,null,null,null,null,null,null,null,null,null,null,null,null,null,null,null,null,null,null,null,null,null,null,null,null,null,null,null,null,null,null,null,null,null,null,null,null,null,null,null,null,null,null,null,null,null,null,null,null,null,null,null,null,null,null,null,null,null,null,null,null,null,null,null,null,null,null,null,null,null,null,null,null,null,null,null,null,null,null,null,null,null,null,null,null,null,null,null,null,null,null,null,null,null,null,null,null,null,null,null,null,null,null,null,null,null,null,null,null,null,null,null,null,null,null,null,null,null,null,null,null,null,null,null,null,null,null,null,null,null,null,null,null,null,null,null,null,null,null,null,null,null,null,null,null,null,null,null,null,null,null,null,null,null,null,null,null,null,null,null,null,null,null,null,null,null,null,null,null,null,null,null,null,null,null,null,null,null,null,null,null,null,null,null,null,null,null,null,null,null,null,null,null,null,null,null,null,null,null,null,null,null,null,null,null,null,null,null,null,null,null,null,null,"All Languages"]
[]
[null,"Atentie: Pentru o functionare corecta, alegeti la deschiderea fisierului optiunea <<Enable Macros>>/ <<Enable Content>>."]
[null,"Daca aceasta optiune nu apare la deshiderea fisierului, alegeti nivelul Medium la Macro Security din meniul Tools/Options/Security"]
[null,"Se completeaza celulele verzi"]
[null,"Detaliile Beneficiarului",null,"Detaliile Resellerului"]
[null,"Nume Beneficiar:",null,"Nume Reseller:"]
[null,"Nume Contact Beneficiar:",null,"Nume Contact Reseller:"]
[null,"Adresa de email Beneficiar:",null,"Adresa de email Reseller:"]
[null,null,null,"Adresa postala Reseller:"]
[null,null,null,"Tel/Fax Reseller:"]
[]
[null,"Nr. Total de PC-uri eligibile:",50,"(Minim 5 PC-uri: Titular contract + eventuali afiliati)"]
[]
[null,"Achizitie de platforma sau de componente - alegeti una dintre cele 2 variante"]
[]
[null,"Platforma","                                include discount de platforma 5%",null,null,null,"Distribuirea platilor (EURO)"]
[null,null,null,null,null,null,"Plata anul 1",{"$f":"H70+lblAdditionalProductsTotal","v":15675},null,null,null,null,null,null," ",null," "]
[null,"Componente",null,null,null,null,"Plata anul 2",{"$f":"H82+lblAdditionalProductsTotal","v":15675},null,null,null,null,null,null," "]
[null,null,null,null,null,null,"Plata anul 3",{"$f":"H94+lblAdditionalProductsTotal","v":15675}]
[]
[null,"Varianta limba pentru platforma sau componente - ALL Languages",null," ",null,null,null,null,null,null,null,null,null,null,null,null," "]
[null,"Include dreptul de folosire a produselor componente sau platforma in toate variantele de limba suportate la acest moment de Microsoft, inclusiv Engleza."]
[null,"Daca doriti doar variantele ROMANA si Bulgara, va rugam folositi foaia precendenta \"OVS Proposal Form - ROMANIAN\""]
[null," "]
[]
[null,"Discountul UTD (Up To Date)  50% - se acorda in primul an pentru produsele detinute in versiuni curente (N si N-1)"]
[null,"Suma produselor Current + NonCurrent trebuie sa fie egala cu nr total de PC-uri eligibile"]
[null,"SKU","Descriere","Current/Non-Current","Nivel","Cantitate","Pret","Total"]
[null,{"$f":"VLOOKUP(O34,'OVS Price List'!A:C,2,0)","v":"W06-01594"},{"$f":"IF($IP$3=0,IF(D34=\"Current (UTD)\",\"Core CAL (Client Access License) Platform UTD\",\"Core CAL (Client Access License) Platform\"),IF(D34=\"Current (UTD)\",\"Core CAL (Client Access License) Component UTD\",\"Core CAL (Client Access License) Component\"))","v":"Core CAL (Client Access License) Platform UTD"},"Current (UTD)",{"$f":"IF(sysEligiblePCs<=249,\"Non-Specific\",\"C\")","v":"Non-Specific"},0,{"$f":"IF(ISERROR(B34),0,VLOOKUP(O34,'OVS Price List'!A:Q,16,0))","v":31.05},{"$f":"F34*G34","v":0},null,null,null,null,null,null,{"$f":"CONCATENATE(C34,\" \",D34,\" \",E34,\" \",$IP$4)","v":"Core CAL (Client Access License) Platform UTD Current (UTD) Non-Specific All Languages"}]
[null,{"$f":"VLOOKUP(O35,'OVS Price List'!A:C,2,0)","v":"W06-01504"},{"$f":"IF($IP$3=0,IF(D35=\"Current (UTD)\",\"Core CAL (Client Access License) Platform UTD\",\"Core CAL (Client Access License) Platform\"),IF(D35=\"Current (UTD)\",\"Core CAL (Client Access License) Component UTD\",\"Core CAL (Client Access License) Component\"))","v":"Core CAL (Client Access License) Platform"},"Non-Current","Non-Specific",50,{"$f":"IF(ISERROR(B35),0,VLOOKUP(O35,'OVS Price List'!A:Q,16,0))","v":62.1},{"$f":"F35*G35","v":3105},null,null,null,null,null,null,{"$f":"CONCATENATE(C35,\" \",D35,\" \",E35,\" \",$IP$4)","v":"Core CAL (Client Access License) Platform Non-Current Non-Specific All Languages"}]
[null,{"$f":"VLOOKUP(O36,'OVS Price List'!A:C,2,0)","v":"76A-00821"},{"$f":"IF($IP$3=0,IF(D36=\"Current (UTD)\",\"Enterprise CAL Platform UTD\",\"Enterprise CAL Platform\"),IF(D36=\"Current (UTD)\",\"Enterprise CAL Component UTD\",\"Enterprise CAL Component\"))","v":"Enterprise CAL Platform UTD"},"Current (UTD)","Non-Specific",0,{"$f":"IF(ISERROR(B36),0,VLOOKUP(O36,'OVS Price List'!A:Q,16,0))","v":82.8},0,null,null,null,null,null,null,"Enterprise CAL Platform UTD Current (UTD) Non-Specific All Languages"]
[null,{"$f":"VLOOKUP(O37,'OVS Price List'!A:C,2,0)","v":"76A-00495"},{"$f":"IF($IP$3=0,IF(D37=\"Current (UTD)\",\"Enterprise CAL Platform UTD\",\"Enterprise CAL Platform\"),IF(D37=\"Current (UTD)\",\"Enterprise CAL Component UTD\",\"Enterprise CAL Component\"))","v":"Enterprise CAL Platform"},"Non-Current","Non-Specific",0,{"$f":"IF(ISERROR(B37),0,VLOOKUP(O37,'OVS Price List'!A:Q,16,0))","v":165.6},0,null,null,null,null,null,null,"Enterprise CAL Platform Non-Current Non-Specific All Languages"]
[null,{"$f":"VLOOKUP(O38,'OVS Price List'!A:C,2,0)","v":"6UA-02457"},{"$f":"IF($IP$3=0,IF(D38=\"Current (UTD)\",\"Windows Small Bus CAL Ste Platform UTD\",\"Windows Small Bus CAL Ste Platform\"),IF(D38=\"Current (UTD)\",\"Windows Small Bus CAL Ste Component UTD\",\"Windows Small Bus CAL Ste Component\"))","v":"Windows Small Bus CAL Ste Platform UTD"},"Current (UTD)","Non-Specific",0,{"$f":"IF(ISERROR(B38),0,VLOOKUP(O38,'OVS Price List'!A:Q,16,0))","v":10.5},0,null,null,null,null,null,null,"Windows Small Bus CAL Ste Platform UTD Current (UTD) Non-Specific All Languages"]
[null,{"$f":"VLOOKUP(O39,'OVS Price List'!A:C,2,0)","v":"6UA-02363"},{"$f":"IF($IP$3=0,IF(D39=\"Current (UTD)\",\"Windows Small Bus CAL Ste Platform UTD\",\"Windows Small Bus CAL Ste Platform\"),IF(D39=\"Current (UTD)\",\"Windows Small Bus CAL Ste Component UTD\",\"Windows Small Bus CAL Ste Component\"))","v":"Windows Small Bus CAL Ste Platform"},"Non-Current","Non-Specific",0,{"$f":"IF(ISERROR(B39),0,VLOOKUP(O39,'OVS Price List'!A:Q,16,0))","v":21},0,null,null,null,null,null,null,"Windows Small Bus CAL Ste Platform Non-Current Non-Specific All Languages"]
[null,{"$f":"VLOOKUP(O40,'OVS Price List'!A:C,2,0)","v":"6VA-02635"},{"$f":"IF($IP$3=0,IF(D40=\"Current (UTD)\",\"Windows Small Bus Svr Prem CAL Ste Platform UTD\",\"Windows Small Bus Svr Prem CAL Ste Platform\"),IF(D40=\"Current (UTD)\",\"Windows Small Bus Svr Prem CAL Ste Component UTD\",\"Windows Small Bus Svr Prem CAL Ste Component\"))","v":"Windows Small Bus Svr Prem CAL Ste Platform UTD"},"Current (UTD)","Non-Specific",0,{"$f":"IF(ISERROR(B40),0,VLOOKUP(O40,'OVS Price List'!A:Q,16,0))","v":25.8},0,null,null,null,null,null,null,"Windows Small Bus Svr Prem CAL Ste Platform UTD Current (UTD) Non-Specific All Languages"]
[null,{"$f":"VLOOKUP(O41,'OVS Price List'!A:C,2,0)","v":"6VA-02553"},{"$f":"IF($IP$3=0,IF(D41=\"Current (UTD)\",\"Windows Small Bus Svr Prem CAL Ste Platform UTD\",\"Windows Small Bus Svr Prem CAL Ste Platform\"),IF(D41=\"Current (UTD)\",\"Windows Small Bus Svr Prem CAL Ste Component UTD\",\"Windows Small Bus Svr Prem CAL Ste Component\"))","v":"Windows Small Bus Svr Prem CAL Ste Platform"},"Non-Current","Non-Specific",0,{"$f":"IF(ISERROR(B41),0,VLOOKUP(O41,'OVS Price List'!A:Q,16,0))","v":51.6},0,null,null,null,null,null,null,"Windows Small Bus Svr Prem CAL Ste Platform Non-Current Non-Specific All Languages"]
[null,{"$f":"VLOOKUP(O42,'OVS Price List'!A:C,2,0)","v":"6YA-01764"},{"$f":"IF($IP$3=0,IF(D42=\"Current (UTD)\",\"Windows Essntl Bus CAL Ste Platform UTD\",\"Windows Essntl Bus CAL Ste Platform\"),IF(D42=\"Current (UTD)\",\"Windows Essntl Bus CAL Ste Component UTD\",\"Windows Essntl Bus CAL Ste Component\"))","v":"Windows Essntl Bus CAL Ste Platform"},"Non-Current","Non-Specific",0,{"$f":"IF(ISERROR(B42),0,VLOOKUP(O42,'OVS Price List'!A:Q,16,0))","v":25.2},0,null,null,null,null,null,null,"Windows Essntl Bus CAL Ste Platform Non-Current Non-Specific All Languages"]
[null,{"$f":"VLOOKUP(O43,'OVS Price List'!A:C,2,0)","v":"7AA-02045"},{"$f":"IF($IP$3=0,IF(D43=\"Current (UTD)\",\"Windows Essntl Bus Prem CAL Ste Platform UTD\",\"Windows Essntl Bus Prem CAL Ste Platform\"),IF(D43=\"Current (UTD)\",\"Windows Essntl Bus Prem CAL Ste UTD\",\"Windows Essntl Bus Prem CAL Ste Component\"))","v":"Windows Essntl Bus Prem CAL Ste Platform"},"Non-Current","Non-Specific",0,{"$f":"IF(ISERROR(B43),0,VLOOKUP(O43,'OVS Price List'!A:Q,16,0))","v":60.9},0,null,null,null,null,null,null,"Windows Essntl Bus Prem CAL Ste Platform Non-Current Non-Specific All Languages"]
[null,{"$f":"VLOOKUP(O44,'OVS Price List'!A:C,2,0)","v":"79P-02404"},{"$f":"IF($IP$3=0,IF(D44=\"Current (UTD)\",\"Office Professional Plus Platform UTD\",\"Office Professional Plus Platform\"),IF(D44=\"Current (UTD)\",\"Office Professional Plus Component UTD\",\"Office Professional Plus Component\"))","v":"Office Professional Plus Platform UTD"},"Current (UTD)","Non-Specific",0,{"$f":"IF(ISERROR(B44),0,VLOOKUP(O44,'OVS Price List'!A:Q,16,0))","v":91.875},0,null,null,null,null,null,null,"Office Professional Plus Platform UTD Current (UTD) Non-Specific All Languages"]
[null,{"$f":"VLOOKUP(O45,'OVS Price List'!A:C,2,0)","v":"79P-02338"},{"$f":"IF($IP$3=0,IF(D45=\"Current (UTD)\",\"Office Professional Plus Platform UTD\",\"Office Professional Plus Platform\"),IF(D45=\"Current (UTD)\",\"Office Professional Plus Component UTD\",\"Office Professional Plus Component\"))","v":"Office Professional Plus Platform"},"Non-Current","Non-Specific",50,{"$f":"IF(ISERROR(B45),0,VLOOKUP(O45,'OVS Price List'!A:Q,16,0))","v":183.75},9187.5,null,null,null,null,null,null,"Office Professional Plus Platform Non-Current Non-Specific All Languages"]
[null,{"$f":"VLOOKUP(O46,'OVS Price List'!A:C,2,0)","v":"FQC-02154"},{"$f":"IF($IP$3=0,IF(D46=\"Current (UTD)\",\"Win Pro Upgr Platform UTD\",\"Win Pro Upgr Platform\"),IF(D46=\"Current (UTD)\",\"Win Pro Upgr Component UTD\",\"Win Pro Upgr Component\"))","v":"Win Pro Upgr Platform UTD"},"Current (UTD)","Non-Specific",0,{"$f":"IF(ISERROR(B46),0,VLOOKUP(O46,'OVS Price List'!A:Q,16,0))","v":33.824999999999996},0,null,null,null,null,null,null,"Win Pro Upgr Platform UTD Current (UTD) Non-Specific All Languages"]
[null,{"$f":"VLOOKUP(O47,'OVS Price List'!A:C,2,0)","v":"FQC-02152"},{"$f":"IF($IP$3=0,IF(D47=\"Current (UTD)\",\"Win Pro Upgr Platform UTD\",\"Win Pro Upgr Platform\"),IF(D47=\"Current (UTD)\",\"Win Pro 7 Component UTD\",\"Win Pro Upgr Component\"))","v":"Win Pro Upgr Platform"},"Non-Current","Non-Specific",50,{"$f":"IF(ISERROR(B47),0,VLOOKUP(O47,'OVS Price List'!A:Q,16,0))","v":67.649999999999991},3382.4999999999995,null,null,null,null,null,null,"Win Pro Upgr Platform Non-Current Non-Specific All Languages"]
[null,{"$f":"VLOOKUP(O48,'OVS Price List'!A:C,2,0)","v":"FQC-02928"},{"$f":"IF($IP$3=0,IF(D48=\"Current (UTD)\",\"Win Pro Upgr w/MDOP Platform UTD\",\"Win Pro Upgr w/MDOP Platform\"),IF(D48=\"Current (UTD)\",\"Win Pro Upgr w/MDOP Component UTD\",\"Win Pro Upgr w/MDOP Component\"))","v":"Win Pro Upgr w/MDOP Platform UTD"},"Current (UTD)","Non-Specific",0,{"$f":"IF(ISERROR(B48),0,VLOOKUP(O48,'OVS Price List'!A:Q,16,0))","v":39.15},0,null,null,null,null,null,null,"Win Pro Upgr w/MDOP Platform UTD Current (UTD) Non-Specific All Languages"]
[null,{"$f":"VLOOKUP(O49,'OVS Price List'!A:C,2,0)","v":"FQC-02924"},{"$f":"IF($IP$3=0,IF(D49=\"Current (UTD)\",\"Win Pro Upgr w/MDOP Platform UTD\",\"Win Pro Upgr w/MDOP Platform\"),IF(D49=\"Current (UTD)\",\"Win Pro Upgr w/MDOP Component UTD\",\"Win Pro Upgr w/MDOP Component\"))","v":"Win Pro Upgr w/MDOP Platform"},"Non-Current","Non-Specific",0,{"$f":"IF(ISERROR(B49),0,VLOOKUP(O49,'OVS Price List'!A:Q,16,0))","v":78.3},0,null,null,null,null,null,null,"Win Pro Upgr w/MDOP Platform Non-Current Non-Specific All Languages"]
[null,null,null,null,null,null,"Total :",{"$f":"SUM(H34:H49)","v":15675}]
[null,"Detaliile achizitiei",null,null,null,null,null,null,null,null,null,null,null,null," "]
[null,"Produse platforma",null,null,null,null,null,null,null,null,null,null,null,null," "]
["Anul 1","SKU","Descriere","Current/Non-Current","Nivel","Cantitate","Pret","Total",null,null,null,null,null,null," "]
[null,{"$f":"B34","v":"W06-01594"},"Core CAL (Client Access License) Platform UTD","Current (UTD)","Non-Specific",0,31.05,{"$f":"F54*G54","v":0}]
[null,"W06-01504","Core CAL (Client Access License) Platform","Non-Current","Non-Specific",50,62.1,{"$f":"F55*G55","v":3105}]
[null,"76A-00821","Enterprise CAL Platform UTD","Current (UTD)","Non-Specific",0,82.8,0]
[null,"76A-00495","Enterprise CAL Platform","Non-Current","Non-Specific",0,165.6,0]
[null,"6UA-02457","Windows Small Bus CAL Ste Platform UTD","Current (UTD)","Non-Specific",0,10.5,0]
[null,"6UA-02363","Windows Small Bus CAL Ste Platform","Non-Current","Non-Specific",0,21,0]
[null,"6VA-02635","Windows Small Bus Svr Prem CAL Ste Platform UTD","Current (UTD)","Non-Specific",0,25.8,0]
[null,"6VA-02553","Windows Small Bus Svr Prem CAL Ste Platform","Non-Current","Non-Specific",0,51.6,0]
[null,"6YA-01764","Windows Essntl Bus CAL Ste Platform","Non-Current","Non-Specific",0,25.2,0]
[null,"7AA-02045","Windows Essntl Bus Prem CAL Ste Platform","Non-Current","Non-Specific",0,60.9,0]
[null,{"$f":"B44","v":"79P-02404"},"Office Professional Plus Platform UTD","Current (UTD)","Non-Specific",0,91.875,0]
[null,"79P-02338","Office Professional Plus Platform","Non-Current","Non-Specific",50,183.75,9187.5]
[null,"FQC-02154","Win Pro Upgr Platform UTD","Current (UTD)","Non-Specific",0,33.824999999999996,0]
[null,"FQC-02152","Win Pro Upgr Platform","Non-Current","Non-Specific",50,67.649999999999991,3382.4999999999995]
[null,"FQC-02928","Win Pro Upgr w/MDOP Platform UTD","Current (UTD)","Non-Specific",0,39.15,0]
[null,"FQC-02924","Win Pro Upgr w/MDOP Platform","Non-Current","Non-Specific",0,78.3,0]
[null,null,null,null,null,null,"Anul 1 Total",{"$f":"SUM(H54:H69)","v":15675}]
[]
["Anul 2","SKU","Descriere","Current/Non-Current","Nivel","Cantitate","Pret","Total"]
[null,{"$f":"B55","v":"W06-01504"},{"$f":"C55","v":"Core CAL (Client Access License) Platform"},"N/A",{"$f":"E55","v":"Non-Specific"},{"$f":"F54+F55","v":50},{"$f":"G55","v":62.1},{"$f":"F73*G73","v":3105}]
[null,{"$f":"B57","v":"76A-00495"},{"$f":"C57","v":"Enterprise CAL Platform"},"N/A",{"$f":"E57","v":"Non-Specific"},{"$f":"F56+F57","v":0},{"$f":"G57","v":165.6},{"$f":"F74*G74","v":0}]
[null,{"$f":"B59","v":"6UA-02363"},{"$f":"C59","v":"Windows Small Bus CAL Ste Platform"},"N/A",{"$f":"E59","v":"Non-Specific"},{"$f":"F58+F59","v":0},{"$f":"G59","v":21},0]
[null,{"$f":"B61","v":"6VA-02553"},"Windows Small Bus Svr Prem CAL Ste Platform","N/A",{"$f":"E61","v":"Non-Specific"},{"$f":"F60+F61","v":0},{"$f":"G61","v":51.6},0]
[null,"6YA-01764","Windows Essntl Bus CAL Ste Platform","N/A",{"$f":"E62","v":"Non-Specific"},{"$f":"F62","v":0},{"$f":"G62","v":25.2},{"$f":"F77*G77","v":0}]
[null,"7AA-02045","Windows Essntl Bus Prem CAL Ste Platform","N/A",{"$f":"E63","v":"Non-Specific"},{"$f":"F63","v":0},{"$f":"G63","v":60.9},{"$f":"F78*G78","v":0}]
[null,{"$f":"B65","v":"79P-02338"},{"$f":"C65","v":"Office Professional Plus Platform"},"N/A",{"$f":"E65","v":"Non-Specific"},{"$f":"F64+F65","v":50},{"$f":"G65","v":183.75},{"$f":"F79*G79","v":9187.5}]
[null,{"$f":"B67","v":"FQC-02152"},{"$f":"C67","v":"Win Pro Upgr Platform"},"N/A",{"$f":"E67","v":"Non-Specific"},{"$f":"F66+F67","v":50},{"$f":"G67","v":67.649999999999991},3382.4999999999995]
[null,{"$f":"B69","v":"FQC-02924"},{"$f":"C69","v":"Win Pro Upgr w/MDOP Platform"},"N/A",{"$f":"E69","v":"Non-Specific"},{"$f":"F68+F69","v":0},{"$f":"G69","v":78.3},0]
[null,null,null,null,null,null,"Anul 2 Total",{"$f":"SUM(H73:H81)","v":15675}]
[]
["Anul 3","SKU","Descriere","Current/Non-Current","Nivel","Cantitate","Pret","Total"]
[null,{"$f":"B73","v":"W06-01504"},"Core CAL (Client Access License) Platform","N/A","Non-Specific",50,62.1,3105]
[null,"76A-00495","Enterprise CAL Platform","N/A","Non-Specific",0,165.6,0]
[null,"6UA-02363","Windows Small Bus CAL Ste Platform","N/A","Non-Specific",0,21,0]
[null,"6VA-02553","Windows Small Bus Svr Prem CAL Ste Platform","N/A","Non-Specific",0,51.6,0]
[null,"6YA-01764","Windows Essntl Bus CAL Ste Platform","N/A","Non-Specific",0,25.2,0]
[null,"7AA-02045","Windows Essntl Bus Prem CAL Ste Platform","N/A","Non-Specific",0,60.9,0]
[null,"79P-02338","Office Professional Plus Platform","N/A","Non-Specific",50,183.75,9187.5]
[null,"FQC-02152","Win Pro Upgr Platform","N/A","Non-Specific",50,67.649999999999991,3382.4999999999995]
[null,"FQC-02924","Win Pro Upgr w/MDOP Platform","N/A","Non-Specific",0,78.3,0]
[null,null,null,null,null,null,"Anul 3 Total",{"$f":"SUM(H85:H93)","v":15675}]
[]
[]
[null,"Produse aditionale - Toate produsele aditionale au varianta de licenta si limba: ALL Languages"]
[null,"Produse aditionale neincluse in comanda initiala a contractului se pot comanda ulterior la preturile in vigoare in luna de comanda, preturi ce pot fi diferite fata de cele de mai jos"]
["Aplicatii","SKU","Descriere","Nivel","Pret","Cantitate","Total","Nr useri/ nr srvs","Obs"]
[null,{"$f":"VLOOKUP(O100,'OVS Price List'!A:C,2,0)","v":"077-03627"},"Access   ",{"$f":"IF(sysEligiblePCs<=249,\"Non-Specific\",\"C\")","v":"Non-Specific"},{"$f":"IF(ISERROR(B100),0,VLOOKUP(O100,'OVS Price List'!A:Q,16,0))","v":97.5},null,{"$f":"IF(F100<>0,E100*F100,0)","v":0},null,null,null,null,null,null,null,{"$f":"CONCATENATE(C100,D100,\" \",$IP$5)","v":"Access   Non-Specific All Languages"}]
[null,{"$f":"VLOOKUP(O101,'OVS Price List'!A:C,2,0)","v":"689-00741"},"AutoRoute Euro   ","Non-Specific",{"$f":"IF(ISERROR(B101),0,VLOOKUP(O101,'OVS Price List'!A:Q,16,0))","v":16.05},null,{"$f":"IF(F101<>0,E101*F101,0)","v":0},null,null,null,null,null,null,null,{"$f":"CONCATENATE(C101,D101,\" \",$IP$5)","v":"AutoRoute Euro   Non-Specific All Languages"}]
[null,{"$f":"VLOOKUP(O102,'OVS Price List'!A:C,2,0)","v":"Q56-00264"},"Entourage   ","Non-Specific",{"$f":"IF(ISERROR(B102),0,VLOOKUP(O102,'OVS Price List'!A:Q,16,0))","v":35.4},null,{"$f":"IF(F102<>0,E102*F102,0)","v":0},null,null,null,null,null,null,null,"Entourage   Non-Specific All Languages"]
[null,{"$f":"VLOOKUP(O103,'OVS Price List'!A:C,2,0)","v":"065-04766"},"Excel   ","Non-Specific",{"$f":"IF(ISERROR(B103),0,VLOOKUP(O103,'OVS Price List'!A:Q,16,0))","v":95.25},null,0,null,null,null,null,null,null,null,"Excel   Non-Specific All Languages"]
[null,{"$f":"VLOOKUP(O104,'OVS Price List'!A:C,2,0)","v":"D46-00525"},"Excel Mac   ","Non-Specific",{"$f":"IF(ISERROR(B104),0,VLOOKUP(O104,'OVS Price List'!A:Q,16,0))","v":109.94999999999999},null,0,null,null,null,null,null,null,null,"Excel Mac   Non-Specific All Languages"]
[null,{"$f":"VLOOKUP(O105,'OVS Price List'!A:C,2,0)","v":"NKF-00397"},"Expression Studio Ultimate   ","Non-Specific",{"$f":"IF(ISERROR(B105),0,VLOOKUP(O105,'OVS Price List'!A:Q,16,0))","v":246.14999999999998},null,0,null,null,null,null,null,null,null,"Expression Studio Ultimate   Non-Specific All Languages"]
[null,{"$f":"VLOOKUP(O106,'OVS Price List'!A:C,2,0)","v":"NHF-00171"},"Expression Studio Web Professional   ","Non-Specific",{"$f":"IF(ISERROR(B106),0,VLOOKUP(O106,'OVS Price List'!A:Q,16,0))","v":61.2},null,0,null,null,null,null,null,null,null,"Expression Studio Web Professional   Non-Specific All Languages"]
[null,{"$f":"VLOOKUP(O107,'OVS Price List'!A:C,2,0)","v":"47F-00109"},"Expression Encoder Pro   ","Non-Specific",{"$f":"IF(ISERROR(B107),0,VLOOKUP(O107,'OVS Price List'!A:Q,16,0))","v":24.6},null,{"$f":"IF(F107<>0,E107*F107,0)","v":0},null,null,null,null,null,null,null,{"$f":"CONCATENATE(C107,D107,\" \",$IP$5)","v":"Expression Encoder Pro   Non-Specific All Languages"}]
[null,{"$f":"VLOOKUP(O108,'OVS Price List'!A:C,2,0)","v":"S27-01198"},"InfoPath   ","Non-Specific",{"$f":"IF(ISERROR(B108),0,VLOOKUP(O108,'OVS Price List'!A:Q,16,0))","v":91.5},null,0,null,null,null,null,null,null,null,"InfoPath   Non-Specific All Languages"]
[null,{"$f":"VLOOKUP(O109,'OVS Price List'!A:C,2,0)","v":"B21-00756"},"MapPoint   ","Non-Specific",{"$f":"IF(ISERROR(B109),0,VLOOKUP(O109,'OVS Price List'!A:Q,16,0))","v":122.69999999999999},null,0,null,null,null,null,null,null,null,"MapPoint   Non-Specific All Languages"]
[null,{"$f":"VLOOKUP(O110,'OVS Price List'!A:C,2,0)","v":"ZS3-00250"},"MapPoint Fleet   ","Non-Specific",{"$f":"IF(ISERROR(B110),0,VLOOKUP(O110,'OVS Price List'!A:Q,16,0))","v":603.15},null,0,null,null,null,null,null,null,null,"MapPoint Fleet   Non-Specific All Languages"]
[null,{"$f":"VLOOKUP(O111,'OVS Price List'!A:C,2,0)","v":"G71-03832"},"MSDN OS   ","Non-Specific",{"$f":"IF(ISERROR(B111),0,VLOOKUP(O111,'OVS Price List'!A:Q,16,0))","v":530.1},null,0,null,null,null,null,null,null,null,"MSDN OS   Non-Specific All Languages"]
[null,{"$f":"VLOOKUP(O112,'OVS Price List'!A:C,2,0)","v":"B6I-00342"},"Office Communicator   ","Non-Specific",{"$f":"IF(ISERROR(B112),0,VLOOKUP(O112,'OVS Price List'!A:Q,16,0))","v":16.05},null,0,null,null,null,null,null,null,null,"Office Communicator   Non-Specific All Languages"]
[null,{"$f":"VLOOKUP(O113,'OVS Price List'!A:C,2,0)","v":"ZUD-00348"},"SharePoint Workspace   ","Non-Specific",{"$f":"IF(ISERROR(B113),0,VLOOKUP(O113,'OVS Price List'!A:Q,16,0))","v":66.900000000000006},null,0,null,null,null,null,null,null,null,"SharePoint Workspace   Non-Specific All Languages"]
[null,{"$f":"VLOOKUP(O114,'OVS Price List'!A:C,2,0)","v":"731-01323"},"Office Mac   ","Non-Specific",{"$f":"IF(ISERROR(B114),0,VLOOKUP(O114,'OVS Price List'!A:Q,16,0))","v":193.35000000000002},null,0,null,null,null,null,null,null,null,"Office Mac   Non-Specific All Languages"]
[null,{"$f":"VLOOKUP(O115,'OVS Price List'!A:C,2,0)","v":"021-09106"},"Office Standard   ","Non-Specific",{"$f":"IF(ISERROR(B115),0,VLOOKUP(O115,'OVS Price List'!A:Q,16,0))","v":193.35000000000002},null,0,null,null,null,null,null,null,null,"Office Standard   Non-Specific All Languages"]
[null,{"$f":"VLOOKUP(O116,'OVS Price List'!A:C,2,0)","v":"S26-01776"},"OneNote   ","Non-Specific",{"$f":"IF(ISERROR(B116),0,VLOOKUP(O116,'OVS Price List'!A:Q,16,0))","v":36.450000000000003},null,0,null,null,null,null,null,null,null,"OneNote   Non-Specific All Languages"]
[null,{"$f":"VLOOKUP(O117,'OVS Price List'!A:C,2,0)","v":"543-02834"},"Outlook   ","Non-Specific",{"$f":"IF(ISERROR(B117),0,VLOOKUP(O117,'OVS Price List'!A:Q,16,0))","v":40.949999999999996},null,0,null,null,null,null,null,null,null,"Outlook   Non-Specific All Languages"]
[null,{"$f":"VLOOKUP(O118,'OVS Price List'!A:C,2,0)","v":"164-03900"},"Publisher   ","Non-Specific",{"$f":"IF(ISERROR(B118),0,VLOOKUP(O118,'OVS Price List'!A:Q,16,0))","v":67.8},null,0,null,null,null,null,null,null,null,"Publisher   Non-Specific All Languages"]
[null,{"$f":"VLOOKUP(O119,'OVS Price List'!A:C,2,0)","v":"076-03609"},"Project   ","Non-Specific",{"$f":"IF(ISERROR(B119),0,VLOOKUP(O119,'OVS Price List'!A:Q,16,0))","v":278.55},null,0,null,null,null,null,null,null,null,"Project   Non-Specific All Languages"]
[null,{"$f":"VLOOKUP(O120,'OVS Price List'!A:C,2,0)","v":"H30-01671"},"Project Professional   ","Non-Specific",{"$f":"IF(ISERROR(B120),0,VLOOKUP(O120,'OVS Price List'!A:Q,16,0))","v":464.4},null,0,null,null,null,null,null,null,null,"Project Professional   Non-Specific All Languages"]
[null,{"$f":"VLOOKUP(O121,'OVS Price List'!A:C,2,0)","v":"079-02674"},"PowerPoint   ","Non-Specific",{"$f":"IF(ISERROR(B121),0,VLOOKUP(O121,'OVS Price List'!A:Q,16,0))","v":95.25},null,0,null,null,null,null,null,null,null,"PowerPoint   Non-Specific All Languages"]
[null,{"$f":"VLOOKUP(O122,'OVS Price List'!A:C,2,0)","v":"D47-00347"},"PowerPoint Mac   ","Non-Specific",{"$f":"IF(ISERROR(B122),0,VLOOKUP(O122,'OVS Price List'!A:Q,16,0))","v":109.94999999999999},null,0,null,null,null,null,null,null,null,"PowerPoint Mac   Non-Specific All Languages"]
[null,{"$f":"VLOOKUP(O123,'OVS Price List'!A:C,2,0)","v":"JT9-00044"},"TechNet Plus Direct   ","Non-Specific",{"$f":"IF(ISERROR(B123),0,VLOOKUP(O123,'OVS Price List'!A:Q,16,0))","v":309.60000000000002},null,0,null,null,null,null,null,null,null,"TechNet Plus Direct   Non-Specific All Languages"]
[null,{"$f":"VLOOKUP(O124,'OVS Price List'!A:C,2,0)","v":"D87-02619"},"Visio Professional   ","Non-Specific",{"$f":"IF(ISERROR(B124),0,VLOOKUP(O124,'OVS Price List'!A:Q,16,0))","v":238.35000000000002},null,0,null,null,null,null,null,null,null,"Visio Professional   Non-Specific All Languages"]
[null,{"$f":"VLOOKUP(O125,'OVS Price List'!A:C,2,0)","v":"D86-02606"},"Visio Standard   ","Non-Specific",{"$f":"IF(ISERROR(B125),0,VLOOKUP(O125,'OVS Price List'!A:Q,16,0))","v":107.85},null,0,null,null,null,null,null,null,null,"Visio Standard   Non-Specific All Languages"]
[null,{"$f":"VLOOKUP(O126,'OVS Price List'!A:C,2,0)","v":"77D-00053"},"Visual Studio Pro w/MSDN   ","Non-Specific",{"$f":"IF(ISERROR(B126),0,VLOOKUP(O126,'OVS Price List'!A:Q,16,0))","v":580.34999999999991},null,0,null,null,null,null,null,null,null,"Visual Studio Pro w/MSDN   Non-Specific All Languages"]
[null,{"$f":"VLOOKUP(O127,'OVS Price List'!A:C,2,0)","v":"6KD-00053"},"Visual Studio Pro w/MSDN Emb   ","Non-Specific",{"$f":"IF(ISERROR(B127),0,VLOOKUP(O127,'OVS Price List'!A:Q,16,0))","v":580.34999999999991},null,0,null,null,null,null,null,null,null,"Visual Studio Pro w/MSDN Emb   Non-Specific All Languages"]
[null,{"$f":"VLOOKUP(O128,'OVS Price List'!A:C,2,0)","v":"9ED-00079"},"Visual Studio Prem w/MSDN   ","Non-Specific",{"$f":"IF(ISERROR(B128),0,VLOOKUP(O128,'OVS Price List'!A:Q,16,0))","v":2330.6999999999998},null,0,null,null,null,null,null,null,null,"Visual Studio Prem w/MSDN   Non-Specific All Languages"]
[null,{"$f":"VLOOKUP(O129,'OVS Price List'!A:C,2,0)","v":"9JD-00097"},"Visual Studio Ult w/MSDN   ","Non-Specific",{"$f":"IF(ISERROR(B129),0,VLOOKUP(O129,'OVS Price List'!A:Q,16,0))","v":5083.95},null,0,null,null,null,null,null,null,null,"Visual Studio Ult w/MSDN   Non-Specific All Languages"]
[null,{"$f":"VLOOKUP(O130,'OVS Price List'!A:C,2,0)","v":"L5D-00104"},"Visual Studio Test Pro w/MSDN   ","Non-Specific",{"$f":"IF(ISERROR(B130),0,VLOOKUP(O130,'OVS Price List'!A:Q,16,0))","v":939.15000000000009},null,0,null,null,null,null,null,null,null,"Visual Studio Test Pro w/MSDN   Non-Specific All Languages"]
[null,{"$f":"VLOOKUP(O131,'OVS Price List'!A:C,2,0)","v":"KKF-00298"},"Visual Studio Team Explrer Everywhr   ","Non-Specific",{"$f":"IF(ISERROR(B131),0,VLOOKUP(O131,'OVS Price List'!A:Q,16,0))","v":123.3},null,0,null,null,null,null,null,null,null,"Visual Studio Team Explrer Everywhr   Non-Specific All Languages"]
[null,{"$f":"VLOOKUP(O132,'OVS Price List'!A:C,2,0)","v":"059-05310"},"Word   ","Non-Specific",{"$f":"IF(ISERROR(B132),0,VLOOKUP(O132,'OVS Price List'!A:Q,16,0))","v":95.25},null,0,null,null,null,null,null,null,null,"Word   Non-Specific All Languages"]
[null,{"$f":"VLOOKUP(O133,'OVS Price List'!A:C,2,0)","v":"D48-00675"},"Word Mac   ","Non-Specific",{"$f":"IF(ISERROR(B133),0,VLOOKUP(O133,'OVS Price List'!A:Q,16,0))","v":109.94999999999999},null,0,null,null,null,null,null,null,null,"Word Mac   Non-Specific All Languages"]
["Sys",{"$f":"VLOOKUP(O134,'OVS Price List'!A:C,2,0)","v":"WSB-00074"},"Desktop Optimization Pack for SA (Per Device; monthly) ","Non-Specific",{"$f":"IF(ISERROR(B134),0,VLOOKUP(O134,'OVS Price List'!A:Q,16,0))","v":1.0125000000000002},null,{"$f":"IF(F134<>0,E134*F134*H134,0)","v":0},12," nr de luni pana la urmatoarea aniversare, cu care se va inmulti automat cantitatea",null,null,null,null,null,"Desktop Optimization Pack for SA (Per Device; monthly) Non-Specific All Languages"]
[null,{"$f":"VLOOKUP(O135,'OVS Price List'!A:C,2,0)","v":"4ZF-00002"},"Virtual Desktop Access (Per Device; monthly)  ","Non-Specific",{"$f":"IF(ISERROR(B135),0,VLOOKUP(O135,'OVS Price List'!A:Q,16,0))","v":9.6},null,{"$f":"IF(F135<>0,E135*F135*H135,0)","v":0},12," nr de luni pana la urmatoarea aniversare, cu care se va inmulti automat cantitatea",null,null,null,null,null,"Virtual Desktop Access (Per Device; monthly)  Non-Specific All Languages"]
["Servere",{"$f":"VLOOKUP(O136,'OVS Price List'!A:C,2,0)","v":"73F-00020"},"Antigen Enterprise Manager (Services; monthly)  ","Non-Specific",{"$f":"IF(ISERROR(B136),0,VLOOKUP(O136,'OVS Price List'!A:Q,16,0))","v":9.2750000000000004},null,{"$f":"IF(F136<>0,E136*F136*H136,0)","v":0},12," nr de luni pana la urmatoarea aniversare, cu care se va inmulti automat cantitatea",null,null,null,null,null,"Antigen Enterprise Manager (Services; monthly)  Non-Specific All Languages"]
[null,{"$f":"VLOOKUP(O137,'OVS Price List'!A:C,2,0)","v":"XRA-00107"},"BizTalk Adapter Pack 1 Proc Lic  ","Non-Specific",{"$f":"IF(ISERROR(B137),0,VLOOKUP(O137,'OVS Price List'!A:Q,16,0))","v":2663.55},null,0,null,null,null,null,null,null,null,"BizTalk Adapter Pack 1 Proc Lic  Non-Specific All Languages"]
[null,{"$f":"VLOOKUP(O138,'OVS Price List'!A:C,2,0)","v":"HJA-00352"},"BizTalk Server Branch 1 Proc Lic  ","Non-Specific",{"$f":"IF(ISERROR(B138),0,VLOOKUP(O138,'OVS Price List'!A:Q,16,0))","v":814.5},null,0,null,null,null,null,null,null,null,"BizTalk Server Branch 1 Proc Lic  Non-Specific All Languages"]
[null,{"$f":"VLOOKUP(O139,'OVS Price List'!A:C,2,0)","v":"R04-00558"},"BizTalk Server Developer   ","Non-Specific",{"$f":"IF(ISERROR(B139),0,VLOOKUP(O139,'OVS Price List'!A:Q,16,0))","v":225.75},null,0,null,null,null,null,null,null,null,"BizTalk Server Developer   Non-Specific All Languages"]
[null,{"$f":"VLOOKUP(O140,'OVS Price List'!A:C,2,0)","v":"F52-01292"},"BizTalk Server Enterprise 1 Proc Lic  ","Non-Specific",{"$f":"IF(ISERROR(B140),0,VLOOKUP(O140,'OVS Price List'!A:Q,16,0))","v":15847.2},null,0,null,null,null,null,null,null,null,"BizTalk Server Enterprise 1 Proc Lic  Non-Specific All Languages"]
[null,{"$f":"VLOOKUP(O141,'OVS Price List'!A:C,2,0)","v":"D75-00851"},"BizTalk Server Standard 1 Proc Lic  ","Non-Specific",{"$f":"IF(ISERROR(B141),0,VLOOKUP(O141,'OVS Price List'!A:Q,16,0))","v":3848.25},null,0,null,null,null,null,null,null,null,"BizTalk Server Standard 1 Proc Lic  Non-Specific All Languages"]
[null,{"$f":"VLOOKUP(O142,'OVS Price List'!A:C,2,0)","v":"DHD-00059"},"BizTalk Svr Ent RFID 1 Proc Lic ",{"$f":"IF(sysEligiblePCs<=249,\"Non-Specific\",\"C\")","v":"Non-Specific"},{"$f":"IF(ISERROR(B142),0,VLOOKUP(O142,'OVS Price List'!A:Q,16,0))","v":2253.3000000000002},null,0,null,null,null,null,null,null,null,"BizTalk Svr Ent RFID 1 Proc Lic Non-Specific All Languages"]
[null,{"$f":"VLOOKUP(O143,'OVS Price List'!A:C,2,0)","v":"G20-00360"},"Commerce Server Enterprise 1 Proc Lic  ","Non-Specific",{"$f":"IF(ISERROR(B143),0,VLOOKUP(O143,'OVS Price List'!A:Q,16,0))","v":9055.0499999999993},null,0,null,null,null,null,null,null,null,"Commerce Server Enterprise 1 Proc Lic  Non-Specific All Languages"]
[null,{"$f":"VLOOKUP(O144,'OVS Price List'!A:C,2,0)","v":"532-01151"},"Commerce Server Standard 1 Proc Lic  ","Non-Specific",{"$f":"IF(ISERROR(B144),0,VLOOKUP(O144,'OVS Price List'!A:Q,16,0))","v":3168.75},null,0,null,null,null,null,null,null,null,"Commerce Server Standard 1 Proc Lic  Non-Specific All Languages"]
[null,{"$f":"VLOOKUP(O145,'OVS Price List'!A:C,2,0)","v":"JS6-00187"},"Duet for MS Office and SAP CAL   ","Non-Specific",{"$f":"IF(ISERROR(B145),0,VLOOKUP(O145,'OVS Price List'!A:Q,16,0))","v":50.7},null,0,null,null,null,null,null,null,null,"Duet for MS Office and SAP CAL   Non-Specific All Languages"]
[null,{"$f":"VLOOKUP(O146,'OVS Price List'!A:C,2,0)","v":"JS5-00094"},"Duet for MS Office SAP Svr   ",{"$f":"IF(sysEligiblePCs<=249,\"Non-Specific\",\"C\")","v":"Non-Specific"},{"$f":"IF(ISERROR(B146),0,VLOOKUP(O146,'OVS Price List'!A:Q,16,0))","v":50.7},null,0,null,null,null,null,null,null,null,{"$f":"CONCATENATE(C146,D146,\" \",$IP$5)","v":"Duet for MS Office SAP Svr   Non-Specific All Languages"}]
[null,{"$f":"VLOOKUP(O147,'OVS Price List'!A:C,2,0)","v":"QYA-00046"},"Dynamics CRM Full Use Add CAL   ","Non-Specific",{"$f":"IF(ISERROR(B147),0,VLOOKUP(O147,'OVS Price List'!A:Q,16,0))","v":220.79999999999998},null,0,null,null,null,null,null,null,null,"Dynamics CRM Full Use Add CAL   Non-Specific All Languages"]
[null,{"$f":"VLOOKUP(O148,'OVS Price List'!A:C,2,0)","v":"QHA-00007"},"Dynamics CRM FU Add Extrnl Con   ","Non-Specific",{"$f":"IF(ISERROR(B148),0,VLOOKUP(O148,'OVS Price List'!A:Q,16,0))","v":946.5},null,0,null,null,null,null,null,null,null,"Dynamics CRM FU Add Extrnl Con   Non-Specific All Languages"]
[null,{"$f":"VLOOKUP(O149,'OVS Price List'!A:C,2,0)","v":"ZFA-00409"},"Dynamics CRM CAL   ","Non-Specific",{"$f":"IF(ISERROR(B149),0,VLOOKUP(O149,'OVS Price List'!A:Q,16,0))","v":314.85000000000002},null,0,null,null,null,null,null,null,null,"Dynamics CRM CAL   Non-Specific All Languages"]
[null,{"$f":"VLOOKUP(O150,'OVS Price List'!A:C,2,0)","v":"QJA-00839"},"Dynamics CRM Enterprise Svr   ","Non-Specific",{"$f":"IF(ISERROR(B150),0,VLOOKUP(O150,'OVS Price List'!A:Q,16,0))","v":1577.4},null,0,null,null,null,null,null,null,null,"Dynamics CRM Enterprise Svr   Non-Specific All Languages"]
[null,{"$f":"VLOOKUP(O151,'OVS Price List'!A:C,2,0)","v":"ZGA-00228"},"Dynamics CRM External Connector   ","Non-Specific",{"$f":"IF(ISERROR(B151),0,VLOOKUP(O151,'OVS Price List'!A:Q,16,0))","v":1577.4},null,{"$f":"IF(F151<>0,E151*F151,0)","v":0},null,null,null,null,null,null,null,"Dynamics CRM External Connector   Non-Specific All Languages"]
[null,{"$f":"VLOOKUP(O152,'OVS Price List'!A:C,2,0)","v":"QZA-00254"},"Dynamics CRM Limited CAL   ","Non-Specific",{"$f":"IF(ISERROR(B152),0,VLOOKUP(O152,'OVS Price List'!A:Q,16,0))","v":94.5},null,0,null,null,null,null,null,null,null,"Dynamics CRM Limited CAL   Non-Specific All Languages"]
[null,{"$f":"VLOOKUP(O153,'OVS Price List'!A:C,2,0)","v":"Q5A-00007"},"Dynamics CRM Ltd Extrnl Con   ","Non-Specific",{"$f":"IF(ISERROR(B153),0,VLOOKUP(O153,'OVS Price List'!A:Q,16,0))","v":630.90000000000009},null,0,null,null,null,null,null,null,null,"Dynamics CRM Ltd Extrnl Con   Non-Specific All Languages"]
[null,{"$f":"VLOOKUP(O154,'OVS Price List'!A:C,2,0)","v":"QCA-01050"},"Dynamics CRM Professional Svr 5 Clts   ","Non-Specific",{"$f":"IF(ISERROR(B154),0,VLOOKUP(O154,'OVS Price List'!A:Q,16,0))","v":2205.9},null,0,null,null,null,null,null,null,null,"Dynamics CRM Professional Svr 5 Clts   Non-Specific All Languages"]
[null,{"$f":"VLOOKUP(O155,'OVS Price List'!A:C,2,0)","v":"QCA-00729"},"Dynamics CRM Professional Svr","Non-Specific",{"$f":"IF(ISERROR(B155),0,VLOOKUP(O155,'OVS Price List'!A:Q,16,0))","v":630.90000000000009},0,0,null,null,null,null,null,null,null,"Dynamics CRM Professional SvrNon-Specific All Languages"]
[null,{"$f":"VLOOKUP(O156,'OVS Price List'!A:C,2,0)","v":"QAA-00083"},"Dynamics CRM Workgroup Svr   ","Non-Specific",{"$f":"IF(ISERROR(B156),0,VLOOKUP(O156,'OVS Price List'!A:Q,16,0))","v":788.55000000000007},null,0,null,null,null,null,null,null,null,"Dynamics CRM Workgroup Svr   Non-Specific All Languages"]
[null,{"$f":"VLOOKUP(O157,'OVS Price List'!A:C,2,0)","v":"PGI-00144"},"Exchange Enterprise CAL w Svc   ","Non-Specific",{"$f":"IF(ISERROR(B157),0,VLOOKUP(O157,'OVS Price List'!A:Q,16,0))","v":33.6},null,0,null,null,null,null,null,null,null,"Exchange Enterprise CAL w Svc   Non-Specific All Languages"]
[null,{"$f":"VLOOKUP(O158,'OVS Price List'!A:C,2,0)","v":"74P-00007"},"MS Exchange Hosted Archive (monthly)  ","Non-Specific",{"$f":"IF(ISERROR(B158),0,VLOOKUP(O158,'OVS Price List'!A:Q,16,0))","v":5.0124999999999993},null,{"$f":"IF(F158<>0,E158*F158*H158,0)","v":0},12," nr de luni pana la urmatoarea aniversare, cu care se va inmulti automat cantitatea",null,null,null,null,null,"MS Exchange Hosted Archive (monthly)  Non-Specific All Languages"]
[null,{"$f":"VLOOKUP(O159,'OVS Price List'!A:C,2,0)","v":"74G-00007"},"MS Exchange Hosted Encryption (monthly)  ","Non-Specific",{"$f":"IF(ISERROR(B159),0,VLOOKUP(O159,'OVS Price List'!A:Q,16,0))","v":2.1375000000000002},null,{"$f":"IF(F159<>0,E159*F159*H159,0)","v":0},12," nr de luni pana la urmatoarea aniversare, cu care se va inmulti automat cantitatea",null,null,null,null,null,"MS Exchange Hosted Encryption (monthly)  Non-Specific All Languages"]
[null,{"$f":"VLOOKUP(O160,'OVS Price List'!A:C,2,0)","v":"395-03516"},"Exchange Server - Enterprise   ","Non-Specific",{"$f":"IF(ISERROR(B160),0,VLOOKUP(O160,'OVS Price List'!A:Q,16,0))","v":1814.25},null,{"$f":"IF(F160<>0,E160*F160,0)","v":0},null,null,null,null,null,null,null,"Exchange Server - Enterprise   Non-Specific All Languages"]
[null,{"$f":"VLOOKUP(O161,'OVS Price List'!A:C,2,0)","v":"394-00837"},"Exchange Svr ExtrnConn   ","Non-Specific",{"$f":"IF(ISERROR(B161),0,VLOOKUP(O161,'OVS Price List'!A:Q,16,0))","v":22639.050000000003},null,0,null,null,null,null,null,null,null,"Exchange Svr ExtrnConn   Non-Specific All Languages"]
[null,{"$f":"VLOOKUP(O162,'OVS Price List'!A:C,2,0)","v":"312-03195"},"Exchange Server - Standard   ","Non-Specific",{"$f":"IF(ISERROR(B162),0,VLOOKUP(O162,'OVS Price List'!A:Q,16,0))","v":316.95},null,0,null,null,null,null,null,null,null,"Exchange Server - Standard   Non-Specific All Languages"]
[null,{"$f":"VLOOKUP(O163,'OVS Price List'!A:C,2,0)","v":"UFB-00063"},"Forefront Client Security (Per User; monthly)  ","Non-Specific",{"$f":"IF(ISERROR(B163),0,VLOOKUP(O163,'OVS Price List'!A:Q,16,0))","v":1.2},null,{"$f":"IF(F163<>0,E163*F163*H163,0)","v":0},12," nr de luni pana la urmatoarea aniversare, cu care se va inmulti automat cantitatea",null,null,null,null,null,"Forefront Client Security (Per User; monthly)  Non-Specific All Languages"]
[null,{"$f":"VLOOKUP(O164,'OVS Price List'!A:C,2,0)","v":"FTZ-00050"},"Forefront Client Sec Mgt Cnsl (monthly)  ","Non-Specific",{"$f":"IF(ISERROR(B164),0,VLOOKUP(O164,'OVS Price List'!A:Q,16,0))","v":9.2874999999999996},null,0,12," nr de luni pana la urmatoarea aniversare, cu care se va inmulti automat cantitatea",null,null,null,null,null,"Forefront Client Sec Mgt Cnsl (monthly)  Non-Specific All Languages"]
[null,{"$f":"VLOOKUP(O165,'OVS Price List'!A:C,2,0)","v":"FTZ-00017"},"Forefront Client Sec Mgt Cnsl (wSQL; monthly)  ","Non-Specific",{"$f":"IF(ISERROR(B165),0,VLOOKUP(O165,'OVS Price List'!A:Q,16,0))","v":233.9375},null,0,12," nr de luni pana la urmatoarea aniversare, cu care se va inmulti automat cantitatea",null,null,null,null,null,"Forefront Client Sec Mgt Cnsl (wSQL; monthly)  Non-Specific All Languages"]
[null,{"$f":"VLOOKUP(O166,'OVS Price List'!A:C,2,0)","v":"5KD-00002"},"Forefront Protection Exchange Svr Ext Conn (monthly)  ","Non-Specific",{"$f":"IF(ISERROR(B166),0,VLOOKUP(O166,'OVS Price List'!A:Q,16,0))","v":1579.8},null,0,12," nr de luni pana la urmatoarea aniversare, cu care se va inmulti automat cantitatea",null,null,null,null,null,"Forefront Protection Exchange Svr Ext Conn (monthly)  Non-Specific All Languages"]
[null,{"$f":"VLOOKUP(O167,'OVS Price List'!A:C,2,0)","v":"5FD-00038"},"Forefront Protection Exchange Svr (Per User; monthly)  ","Non-Specific",{"$f":"IF(ISERROR(B167),0,VLOOKUP(O167,'OVS Price List'!A:Q,16,0))","v":1.4000000000000001},null,0,12," nr de luni pana la urmatoarea aniversare, cu care se va inmulti automat cantitatea",null,null,null,null,null,"Forefront Protection Exchange Svr (Per User; monthly)  Non-Specific All Languages"]
[null,{"$f":"VLOOKUP(O168,'OVS Price List'!A:C,2,0)","v":"74H-00145"},"Forefront Online Protection for Exchange (monthly) PROMO ","Non-Specific",{"$f":"IF(ISERROR(B168),0,VLOOKUP(O168,'OVS Price List'!A:Q,16,0))","v":1.4000000000000001},null,0,12," nr de luni pana la urmatoarea aniversare, cu care se va inmulti automat cantitatea",null,null,null,null,null,"Forefront Online Protection for Exchange (monthly) PROMO Non-Specific All Languages"]
[null,{"$f":"VLOOKUP(O169,'OVS Price List'!A:C,2,0)","v":"PFF-00047"},"Forefront Sec SharePoint (IntrntSitesAdd-on; monthly)  ","Non-Specific",{"$f":"IF(ISERROR(B169),0,VLOOKUP(O169,'OVS Price List'!A:Q,16,0))","v":1639.35},null,0,12," nr de luni pana la urmatoarea aniversare, cu care se va inmulti automat cantitatea",null,null,null,null,null,"Forefront Sec SharePoint (IntrntSitesAdd-on; monthly)  Non-Specific All Languages"]
[null,{"$f":"VLOOKUP(O170,'OVS Price List'!A:C,2,0)","v":"PFF-00068"},"Forefront Sec SharePoint (Per User; monthly)  ","Non-Specific",{"$f":"IF(ISERROR(B170),0,VLOOKUP(O170,'OVS Price List'!A:Q,16,0))","v":0.65},null,0,12," nr de luni pana la urmatoarea aniversare, cu care se va inmulti automat cantitatea",null,null,null,null,null,"Forefront Sec SharePoint (Per User; monthly)  Non-Specific All Languages"]
[null,{"$f":"VLOOKUP(O171,'OVS Price List'!A:C,2,0)","v":"9SE-00042"},"Forefront Sec Suite (Per User; monthly)  ","Non-Specific",{"$f":"IF(ISERROR(B171),0,VLOOKUP(O171,'OVS Price List'!A:Q,16,0))","v":5.0625},null,0,12," nr de luni pana la urmatoarea aniversare, cu care se va inmulti automat cantitatea",null,null,null,null,null,"Forefront Sec Suite (Per User; monthly)  Non-Specific All Languages"]
[null,{"$f":"VLOOKUP(O172,'OVS Price List'!A:C,2,0)","v":"HTC-00052"},"Forefront Sec Off Comm Svr (Per User; monthly) ","Non-Specific",{"$f":"IF(ISERROR(B172),0,VLOOKUP(O172,'OVS Price List'!A:Q,16,0))","v":0.65},null,0,12," nr de luni pana la urmatoarea aniversare, cu care se va inmulti automat cantitatea",null,null,null,null,null,"Forefront Sec Off Comm Svr (Per User; monthly) Non-Specific All Languages"]
[null,{"$f":"VLOOKUP(O173,'OVS Price List'!A:C,2,0)","v":"HTC-00090"},"Forefront Sec Off Comm Svr ExtConnector AddOn (Services; monthly)  ","Non-Specific",{"$f":"IF(ISERROR(B173),0,VLOOKUP(O173,'OVS Price List'!A:Q,16,0))","v":1639.35},null,{"$f":"IF(F173<>0,E173*F173*H173,0)","v":0},12," nr de luni pana la urmatoarea aniversare, cu care se va inmulti automat cantitatea",null,null,null,null,null,"Forefront Sec Off Comm Svr ExtConnector AddOn (Services; monthly)  Non-Specific All Languages"]
[null,{"$f":"VLOOKUP(O174,'OVS Price List'!A:C,2,0)","v":"4VD-00074"},"Forefront TMG Enterprise   ","Non-Specific",{"$f":"IF(ISERROR(B174),0,VLOOKUP(O174,'OVS Price List'!A:Q,16,0))","v":2580.4500000000003},null,0,null,null,null,null,null,null,null,"Forefront TMG Enterprise   Non-Specific All Languages"]
[null,{"$f":"VLOOKUP(O175,'OVS Price List'!A:C,2,0)","v":"4WD-00098"},"Forefront TMG Standard   ","Non-Specific",{"$f":"IF(ISERROR(B175),0,VLOOKUP(O175,'OVS Price List'!A:Q,16,0))","v":586.95000000000005},null,0,null,null,null,null,null,null,null,"Forefront TMG Standard   Non-Specific All Languages"]
[null,{"$f":"VLOOKUP(O176,'OVS Price List'!A:C,2,0)","v":"5TD-00002"},"Forefront TMG Web Protection Service (Per User; monthly)  ","Non-Specific",{"$f":"IF(ISERROR(B176),0,VLOOKUP(O176,'OVS Price List'!A:Q,16,0))","v":1.1125},null,{"$f":"IF(F176<>0,E176*F176*H176,0)","v":0},12," nr de luni pana la urmatoarea aniversare, cu care se va inmulti automat cantitatea",null,null,null,null,null,"Forefront TMG Web Protection Service (Per User; monthly)  Non-Specific All Languages"]
[null,{"$f":"VLOOKUP(O177,'OVS Price List'!A:C,2,0)","v":"9TA-00586"},"HPC Enterprise   ","Non-Specific",{"$f":"IF(ISERROR(B177),0,VLOOKUP(O177,'OVS Price List'!A:Q,16,0))","v":201.6},null,0,null,null,null,null,null,null,null,{"$f":"CONCATENATE(C177,D177,\" \",$IP$5)","v":"HPC Enterprise   Non-Specific All Languages"}]
[null,{"$f":"VLOOKUP(O178,'OVS Price List'!A:C,2,0)","v":"9TA-00419"},"HPC for Workstation   ","Non-Specific",{"$f":"IF(ISERROR(B178),0,VLOOKUP(O178,'OVS Price List'!A:Q,16,0))","v":52.05},null,{"$f":"IF(F178<>0,E178*F178,0)","v":0},null,null,null,null,null,null,null,{"$f":"CONCATENATE(C178,D178,\" \",$IP$5)","v":"HPC for Workstation   Non-Specific All Languages"}]
[null,{"$f":"VLOOKUP(O179,'OVS Price List'!A:C,2,0)","v":"KPA-00384"},"Office Comm Server Ent   ","Non-Specific",{"$f":"IF(ISERROR(B179),0,VLOOKUP(O179,'OVS Price List'!A:Q,16,0))","v":1814.25},null,0,null,null,null,null,null,null,null,"Office Comm Server Ent   Non-Specific All Languages"]
[null,{"$f":"VLOOKUP(O180,'OVS Price List'!A:C,2,0)","v":"KMA-00625"},"Office Comm Server Ent CAL   ","Non-Specific",{"$f":"IF(ISERROR(B180),0,VLOOKUP(O180,'OVS Price List'!A:Q,16,0))","v":63},null,0,null,null,null,null,null,null,null,"Office Comm Server Ent CAL   Non-Specific All Languages"]
[null,{"$f":"VLOOKUP(O181,'OVS Price List'!A:C,2,0)","v":"KSA-00050"},"Office Comm Server Ext Conn-Ent   ","Non-Specific",{"$f":"IF(ISERROR(B181),0,VLOOKUP(O181,'OVS Price List'!A:Q,16,0))","v":905.25},null,0,null,null,null,null,null,null,null,"Office Comm Server Ext Conn-Ent   Non-Specific All Languages"]
[null,{"$f":"VLOOKUP(O182,'OVS Price List'!A:C,2,0)","v":"KTA-00033"},"Office Comm Server Ext Conn-Std   ","Non-Specific",{"$f":"IF(ISERROR(B182),0,VLOOKUP(O182,'OVS Price List'!A:Q,16,0))","v":905.25},null,0,null,null,null,null,null,null,null,"Office Comm Server Ext Conn-Std   Non-Specific All Languages"]
[null,{"$f":"VLOOKUP(O183,'OVS Price List'!A:C,2,0)","v":"KNA-00389"},"Office Comm Server Std   ","Non-Specific",{"$f":"IF(ISERROR(B183),0,VLOOKUP(O183,'OVS Price List'!A:Q,16,0))","v":316.95},null,0,null,null,null,null,null,null,null,"Office Comm Server Std   Non-Specific All Languages"]
[null,{"$f":"VLOOKUP(O184,'OVS Price List'!A:C,2,0)","v":"KLA-00465"},"Office Comm Server Std CAL   ","Non-Specific",{"$f":"IF(ISERROR(B184),0,VLOOKUP(O184,'OVS Price List'!A:Q,16,0))","v":13.95},null,0,null,null,null,null,null,null,null,"Office Comm Server Std CAL   Non-Specific All Languages"]
[null,{"$f":"VLOOKUP(O185,'OVS Price List'!A:C,2,0)","v":"YYB-00014"},"Groove Server   ","Non-Specific",{"$f":"IF(ISERROR(B185),0,VLOOKUP(O185,'OVS Price List'!A:Q,16,0))","v":2206.35},null,{"$f":"IF(F185<>0,E185*F185,0)","v":0},null,null,null,null,null,null,null,"Groove Server   Non-Specific All Languages"]
[null,{"$f":"VLOOKUP(O186,'OVS Price List'!A:C,2,0)","v":"A9S-00031"},"Office LCS Connect to Public IM (Per User; monthly)  ","Non-Specific",{"$f":"IF(ISERROR(B186),0,VLOOKUP(O186,'OVS Price List'!A:Q,16,0))","v":0.32500000000000001},null,{"$f":"IF(F186<>0,E186*F186*H186,0)","v":0},12," nr de luni pana la urmatoarea aniversare, cu care se va inmulti automat cantitatea",null,null,null,null,null,"Office LCS Connect to Public IM (Per User; monthly)  Non-Specific All Languages"]
[null,{"$f":"VLOOKUP(O187,'OVS Price List'!A:C,2,0)","v":"BU8-00044"},"Office Live Mtg Professional (Per User; monthly)  ","Non-Specific",{"$f":"IF(ISERROR(B187),0,VLOOKUP(O187,'OVS Price List'!A:Q,16,0))","v":13.625},null,{"$f":"IF(F187<>0,E187*F187*H187,0)","v":0},12," nr de luni pana la urmatoarea aniversare, cu care se va inmulti automat cantitatea",null,null,null,null,null,"Office Live Mtg Professional (Per User; monthly)  Non-Specific All Languages"]
[null,{"$f":"VLOOKUP(O188,'OVS Price List'!A:C,2,0)","v":"BT1-00021"},"Office Live Mtg Standard (Per User; monthly)  ","Non-Specific",{"$f":"IF(ISERROR(B188),0,VLOOKUP(O188,'OVS Price List'!A:Q,16,0))","v":4.0500000000000007},null,{"$f":"IF(F188<>0,E188*F188*H188,0)","v":0},12," nr de luni pana la urmatoarea aniversare, cu care se va inmulti automat cantitatea",null,null,null,null,null,"Office Live Mtg Standard (Per User; monthly)  Non-Specific All Languages"]
[null,{"$f":"VLOOKUP(O189,'OVS Price List'!A:C,2,0)","v":"H04-01506"},"Office SharePoint Server   ","Non-Specific",{"$f":"IF(ISERROR(B189),0,VLOOKUP(O189,'OVS Price List'!A:Q,16,0))","v":2206.35},null,0,null,null,null,null,null,null,null,"Office SharePoint Server   Non-Specific All Languages"]
[null,{"$f":"VLOOKUP(O190,'OVS Price List'!A:C,2,0)","v":"H22-01460"},"Project Server   ","Non-Specific",{"$f":"IF(ISERROR(B190),0,VLOOKUP(O190,'OVS Price List'!A:Q,16,0))","v":2206.35},null,0,null,null,null,null,null,null,null,"Project Server   Non-Specific All Languages"]
[null,{"$f":"VLOOKUP(O191,'OVS Price List'!A:C,2,0)","v":"H21-02129"},"Project Server CAL   ","Non-Specific",{"$f":"IF(ISERROR(B191),0,VLOOKUP(O191,'OVS Price List'!A:Q,16,0))","v":72},null,0,null,null,null,null,null,null,null,"Project Server CAL   Non-Specific All Languages"]
[null,{"$f":"VLOOKUP(O192,'OVS Price List'!A:C,2,0)","v":"76N-01514"},"SharePoint Enterprise CAL   ","Non-Specific",{"$f":"IF(ISERROR(B192),0,VLOOKUP(O192,'OVS Price List'!A:Q,16,0))","v":37.049999999999997},null,0,null,null,null,null,null,null,null,"SharePoint Enterprise CAL   Non-Specific All Languages"]
[null,{"$f":"VLOOKUP(O193,'OVS Price List'!A:C,2,0)","v":"CLF-00086"},"SharePoint Internet Std   ","Non-Specific",{"$f":"IF(ISERROR(B193),0,VLOOKUP(O193,'OVS Price List'!A:Q,16,0))","v":5281.7999999999993},null,0,null,null,null,null,null,null,null,"SharePoint Internet Std   Non-Specific All Languages"]
[null,{"$f":"VLOOKUP(O194,'OVS Price List'!A:C,2,0)","v":"CKF-00086"},"SharePoint Internet Ent   ","Non-Specific",{"$f":"IF(ISERROR(B194),0,VLOOKUP(O194,'OVS Price List'!A:Q,16,0))","v":18538.800000000003},null,0,null,null,null,null,null,null,null,"SharePoint Internet Ent   Non-Specific All Languages"]
[null,{"$f":"VLOOKUP(O195,'OVS Price List'!A:C,2,0)","v":"359-01631"},"SQL CAL   ",{"$f":"IF(sysEligiblePCs<=249,\"Non-Specific\",\"C\")","v":"Non-Specific"},{"$f":"IF(ISERROR(B195),0,VLOOKUP(O195,'OVS Price List'!A:Q,16,0))","v":73.349999999999994},null,0,null,null,null,null,null,null,null,{"$f":"CONCATENATE(C195,D195,\" \",$IP$5)","v":"SQL CAL   Non-Specific All Languages"}]
[null,{"$f":"VLOOKUP(O196,'OVS Price List'!A:C,2,0)","v":"810-04921"},"SQL Server Enterprise Edition   ","Non-Specific",{"$f":"IF(ISERROR(B196),0,VLOOKUP(O196,'OVS Price List'!A:Q,16,0))","v":3847.9500000000003},null,0,null,null,null,null,null,null,null,"SQL Server Enterprise Edition   Non-Specific All Languages"]
[null,{"$f":"VLOOKUP(O197,'OVS Price List'!A:C,2,0)","v":"810-03110"},"SQL Server Enterprise Edition 1 Proc Lic  ","Non-Specific",{"$f":"IF(ISERROR(B197),0,VLOOKUP(O197,'OVS Price List'!A:Q,16,0))","v":12314.7},null,0,null,null,null,null,null,null,null,"SQL Server Enterprise Edition 1 Proc Lic  Non-Specific All Languages"]
[null,{"$f":"VLOOKUP(O198,'OVS Price List'!A:C,2,0)","v":"228-04735"},"SQL Server Standard Edition   ","Non-Specific",{"$f":"IF(ISERROR(B198),0,VLOOKUP(O198,'OVS Price List'!A:Q,16,0))","v":401.85},null,0,null,null,null,null,null,null,null,"SQL Server Standard Edition   Non-Specific All Languages"]
[null,{"$f":"VLOOKUP(O199,'OVS Price List'!A:C,2,0)","v":"228-05175"},"SQL Server Standard Edition 1 Proc Lic  ","Non-Specific",{"$f":"IF(ISERROR(B199),0,VLOOKUP(O199,'OVS Price List'!A:Q,16,0))","v":3211.65},null,0,null,null,null,null,null,null,null,"SQL Server Standard Edition 1 Proc Lic  Non-Specific All Languages"]
[null,{"$f":"VLOOKUP(O200,'OVS Price List'!A:C,2,0)","v":"TFA-00087"},"SQL Server Web Edition 1 Proc Lic  ","Non-Specific",{"$f":"IF(ISERROR(B200),0,VLOOKUP(O200,'OVS Price List'!A:Q,16,0))","v":1567.5},null,0,null,null,null,null,null,null,null,"SQL Server Web Edition 1 Proc Lic  Non-Specific All Languages"]
[null,{"$f":"VLOOKUP(O201,'OVS Price List'!A:C,2,0)","v":"P6R-00138"},"Search Server   ","Non-Specific",{"$f":"IF(ISERROR(B201),0,VLOOKUP(O201,'OVS Price List'!A:Q,16,0))","v":7148.7},null,0,null,null,null,null,null,null,null,"Search Server   Non-Specific All Languages"]
[null,{"$f":"VLOOKUP(O202,'OVS Price List'!A:C,2,0)","v":"J3A-00250"},"Sys Ctr Config Mgr Svr   ","Non-Specific",{"$f":"IF(ISERROR(B202),0,VLOOKUP(O202,'OVS Price List'!A:Q,16,0))","v":259.34999999999997},null,0,null,null,null,null,null,null,null,"Sys Ctr Config Mgr Svr   Non-Specific All Languages"]
[null,{"$f":"VLOOKUP(O203,'OVS Price List'!A:C,2,0)","v":"J7A-00245"},"Sys Ctr Config Mgr Svr Mgmt Lic Ent   ","Non-Specific",{"$f":"IF(ISERROR(B203),0,VLOOKUP(O203,'OVS Price List'!A:Q,16,0))","v":192.75},null,0,null,null,null,null,null,null,null,"Sys Ctr Config Mgr Svr Mgmt Lic Ent   Non-Specific All Languages"]
[null,{"$f":"VLOOKUP(O204,'OVS Price List'!A:C,2,0)","v":"J6A-00007"},"Sys Ctr Config Mgr Svr Mgmt Lic Std   ","Non-Specific",{"$f":"IF(ISERROR(B204),0,VLOOKUP(O204,'OVS Price List'!A:Q,16,0))","v":70.05},null,0,null,null,null,null,null,null,null,"Sys Ctr Config Mgr Svr Mgmt Lic Std   Non-Specific All Languages"]
[null,{"$f":"VLOOKUP(O205,'OVS Price List'!A:C,2,0)","v":"J4A-00243"},"Sys Ctr Config Mgr Svr wSQL   ","Non-Specific",{"$f":"IF(ISERROR(B205),0,VLOOKUP(O205,'OVS Price List'!A:Q,16,0))","v":591.59999999999991},null,0,null,null,null,null,null,null,null,"Sys Ctr Config Mgr Svr wSQL   Non-Specific All Languages"]
[null,{"$f":"VLOOKUP(O206,'OVS Price List'!A:C,2,0)","v":"TSC-00243"},"Sys Ctr Data Prtcn Mgr Clt Mgmt Lic Per OSE  ","Non-Specific",{"$f":"IF(ISERROR(B206),0,VLOOKUP(O206,'OVS Price List'!A:Q,16,0))","v":10.649999999999999},null,{"$f":"IF(F206<>0,E206*F206,0)","v":0},null,null,null,null,null,null,null,"Sys Ctr Data Prtcn Mgr Clt Mgmt Lic Per OSE  Non-Specific All Languages"]
[null,{"$f":"VLOOKUP(O207,'OVS Price List'!A:C,2,0)","v":"TSC-00760"},"Sys Ctr Data Prtcn Mgr Clt Mgmt Lic Per USER  ","Non-Specific",{"$f":"IF(ISERROR(B207),0,VLOOKUP(O207,'OVS Price List'!A:Q,16,0))","v":10.649999999999999},null,{"$f":"IF(F207<>0,E207*F207,0)","v":0},null,null,null,null,null,null,null,"Sys Ctr Data Prtcn Mgr Clt Mgmt Lic Per USER  Non-Specific All Languages"]
[null,{"$f":"VLOOKUP(O208,'OVS Price List'!A:C,2,0)","v":"CGA-00051"},"Sys Ctr Data Prtcn Mgr Svr ML Ent   ","Non-Specific",{"$f":"IF(ISERROR(B208),0,VLOOKUP(O208,'OVS Price List'!A:Q,16,0))","v":193.2},null,0,null,null,null,null,null,null,null,"Sys Ctr Data Prtcn Mgr Svr ML Ent   Non-Specific All Languages"]
[null,{"$f":"VLOOKUP(O209,'OVS Price List'!A:C,2,0)","v":"CVA-00032"},"Sys Ctr Data Prtcn Mgr Svr ML Std   ","Non-Specific",{"$f":"IF(ISERROR(B209),0,VLOOKUP(O209,'OVS Price List'!A:Q,16,0))","v":70.199999999999989},null,0,null,null,null,null,null,null,null,"Sys Ctr Data Prtcn Mgr Svr ML Std   Non-Specific All Languages"]
[null,{"$f":"VLOOKUP(O210,'OVS Price List'!A:C,2,0)","v":"UCH-02308"},"Sys Ctr Essentials   ","Non-Specific",{"$f":"IF(ISERROR(B210),0,VLOOKUP(O210,'OVS Price List'!A:Q,16,0))","v":44.55},null,0,null,null,null,null,null,null,null,"Sys Ctr Essentials   Non-Specific All Languages"]
[null,{"$f":"VLOOKUP(O211,'OVS Price List'!A:C,2,0)","v":"4PX-01516"},"Sys Ctr Essentials Clt Mgmt Lic  ","Non-Specific",{"$f":"IF(ISERROR(B211),0,VLOOKUP(O211,'OVS Price List'!A:Q,16,0))","v":7.05},null,0,null,null,null,null,null,null,null,"Sys Ctr Essentials Clt Mgmt Lic  Non-Specific All Languages"]
[null,{"$f":"VLOOKUP(O212,'OVS Price List'!A:C,2,0)","v":"DJA-00869"},"Sys Ctr Essentials Svr Mgmt Lic   ","Non-Specific",{"$f":"IF(ISERROR(B212),0,VLOOKUP(O212,'OVS Price List'!A:Q,16,0))","v":44.55},null,0,null,null,null,null,null,null,null,"Sys Ctr Essentials Svr Mgmt Lic   Non-Specific All Languages"]
[null,{"$f":"VLOOKUP(O213,'OVS Price List'!A:C,2,0)","v":"EEC-00736"},"Sys Ctr Essentials wSQL   ","Non-Specific",{"$f":"IF(ISERROR(B213),0,VLOOKUP(O213,'OVS Price List'!A:Q,16,0))","v":361.5},null,0,null,null,null,null,null,null,null,"Sys Ctr Essentials wSQL   Non-Specific All Languages"]
[null,{"$f":"VLOOKUP(O214,'OVS Price List'!A:C,2,0)","v":"T7F-00345"},"Sys Ctr EssentialsPlusSvrMgmtLicSte   ","Non-Specific",{"$f":"IF(ISERROR(B214),0,VLOOKUP(O214,'OVS Price List'!A:Q,16,0))","v":178.05},null,{"$f":"IF(F214<>0,E214*F214,0)","v":0},null,null,null,null,null,null,null,"Sys Ctr EssentialsPlusSvrMgmtLicSte   Non-Specific All Languages"]
[null,{"$f":"VLOOKUP(O215,'OVS Price List'!A:C,2,0)","v":"T9F-00361"},"Sys Ctr EssentialsPlusCltMgmtLicSte   ","Non-Specific",{"$f":"IF(ISERROR(B215),0,VLOOKUP(O215,'OVS Price List'!A:Q,16,0))","v":13.65},null,{"$f":"IF(F215<>0,E215*F215,0)","v":0},null,null,null,null,null,null,null,"Sys Ctr EssentialsPlusCltMgmtLicSte   Non-Specific All Languages"]
[null,{"$f":"VLOOKUP(O216,'OVS Price List'!A:C,2,0)","v":"WRA-00050"},"Sys Ctr Mobile Device Mgr CAL   ","Non-Specific",{"$f":"IF(ISERROR(B216),0,VLOOKUP(O216,'OVS Price List'!A:Q,16,0))","v":25.950000000000003},null,0,null,null,null,null,null,null,null,"Sys Ctr Mobile Device Mgr CAL   Non-Specific All Languages"]
[null,{"$f":"VLOOKUP(O217,'OVS Price List'!A:C,2,0)","v":"WQA-00300"},"Sys Ctr Mobile Device Mgr Svr   ","Non-Specific",{"$f":"IF(ISERROR(B217),0,VLOOKUP(O217,'OVS Price List'!A:Q,16,0))","v":973.19999999999993},null,0,null,null,null,null,null,null,null,"Sys Ctr Mobile Device Mgr Svr   Non-Specific All Languages"]
[null,{"$f":"VLOOKUP(O218,'OVS Price List'!A:C,2,0)","v":"WQA-00073"},"Sys Ctr Mobile Device Mgr Svr wSQL   ","Non-Specific",{"$f":"IF(ISERROR(B218),0,VLOOKUP(O218,'OVS Price List'!A:Q,16,0))","v":1376.55},null,0,null,null,null,null,null,null,null,"Sys Ctr Mobile Device Mgr Svr wSQL   Non-Specific All Languages"]
[null,{"$f":"VLOOKUP(O219,'OVS Price List'!A:C,2,0)","v":"MUY-00071"},"Sys Ctr Svr Mgmt Suite Ent   ","Non-Specific",{"$f":"IF(ISERROR(B219),0,VLOOKUP(O219,'OVS Price List'!A:Q,16,0))","v":468.45},null,0,null,null,null,null,null,null,null,"Sys Ctr Svr Mgmt Suite Ent   Non-Specific All Languages"]
[null,{"$f":"VLOOKUP(O220,'OVS Price List'!A:C,2,0)","v":"9TX-00727"},"Sys Ctr Ops Mgr Clt Mgmt Lic Per OSE  ","Non-Specific",{"$f":"IF(ISERROR(B220),0,VLOOKUP(O220,'OVS Price List'!A:Q,16,0))","v":10.8},null,0,null,null,null,null,null,null,null,"Sys Ctr Ops Mgr Clt Mgmt Lic Per OSE  Non-Specific All Languages"]
[null,{"$f":"VLOOKUP(O221,'OVS Price List'!A:C,2,0)","v":"9TX-00296"},"Sys Ctr Ops Mgr Clt Mgmt Lic Per USER  ","Non-Specific",{"$f":"IF(ISERROR(B221),0,VLOOKUP(O221,'OVS Price List'!A:Q,16,0))","v":10.8},null,0,null,null,null,null,null,null,null,"Sys Ctr Ops Mgr Clt Mgmt Lic Per USER  Non-Specific All Languages"]
[null,{"$f":"VLOOKUP(O222,'OVS Price List'!A:C,2,0)","v":"UAR-00766"},"Sys Ctr Ops Mgr Svr   ","Non-Specific",{"$f":"IF(ISERROR(B222),0,VLOOKUP(O222,'OVS Price List'!A:Q,16,0))","v":260.10000000000002},null,0,null,null,null,null,null,null,null,"Sys Ctr Ops Mgr Svr   Non-Specific All Languages"]
[null,{"$f":"VLOOKUP(O223,'OVS Price List'!A:C,2,0)","v":"UAS-00175"},"Sys Ctr Ops Mgr Svr Mgmt Lic Ent   ","Non-Specific",{"$f":"IF(ISERROR(B223),0,VLOOKUP(O223,'OVS Price List'!A:Q,16,0))","v":193.35000000000002},null,0,null,null,null,null,null,null,null,"Sys Ctr Ops Mgr Svr Mgmt Lic Ent   Non-Specific All Languages"]
[null,{"$f":"VLOOKUP(O224,'OVS Price List'!A:C,2,0)","v":"UAT-00414"},"Sys Ctr Ops Mgr Svr Mgmt Lic Std   ","Non-Specific",{"$f":"IF(ISERROR(B224),0,VLOOKUP(O224,'OVS Price List'!A:Q,16,0))","v":70.5},null,0,null,null,null,null,null,null,null,"Sys Ctr Ops Mgr Svr Mgmt Lic Std   Non-Specific All Languages"]
[null,{"$f":"VLOOKUP(O225,'OVS Price List'!A:C,2,0)","v":"EFC-00106"},"Sys Ctr Ops Mgr Svr wSQL   ","Non-Specific",{"$f":"IF(ISERROR(B225),0,VLOOKUP(O225,'OVS Price List'!A:Q,16,0))","v":593.25},null,0,null,null,null,null,null,null,null,"Sys Ctr Ops Mgr Svr wSQL   Non-Specific All Languages"]
[null,{"$f":"VLOOKUP(O226,'OVS Price List'!A:C,2,0)","v":"CJA-00324"},"Sys Ctr VMM Svr Mgmt Lic Ent   ","Non-Specific",{"$f":"IF(ISERROR(B226),0,VLOOKUP(O226,'OVS Price List'!A:Q,16,0))","v":389.4},null,0,null,null,null,null,null,null,null,"Sys Ctr VMM Svr Mgmt Lic Ent   Non-Specific All Languages"]
[null,{"$f":"VLOOKUP(O227,'OVS Price List'!A:C,2,0)","v":"SNA-00245"},"Sys Ctr VMM Wkgrp   ","Non-Specific",{"$f":"IF(ISERROR(B227),0,VLOOKUP(O227,'OVS Price List'!A:Q,16,0))","v":225.9},null,0,null,null,null,null,null,null,null,"Sys Ctr VMM Wkgrp   Non-Specific All Languages"]
[null,{"$f":"VLOOKUP(O228,'OVS Price List'!A:C,2,0)","v":"26C-00098"},"Sys Ctr VMM Clt Mgmt Lic Per OSE ","Non-Specific",{"$f":"IF(ISERROR(B228),0,VLOOKUP(O228,'OVS Price List'!A:Q,16,0))","v":11.55},null,0,null,null,null,null,null,null,null,"Sys Ctr VMM Clt Mgmt Lic Per OSE Non-Specific All Languages"]
[null,{"$f":"VLOOKUP(O229,'OVS Price List'!A:C,2,0)","v":"26C-00100"},"Sys Ctr VMM Clt Mgmt Lic ","Non-Specific",{"$f":"IF(ISERROR(B229),0,VLOOKUP(O229,'OVS Price List'!A:Q,16,0))","v":11.55},null,0,null,null,null,null,null,null,null,"Sys Ctr VMM Clt Mgmt Lic Non-Specific All Languages"]
[null,{"$f":"VLOOKUP(O230,'OVS Price List'!A:C,2,0)","v":"Q99-00042"},"Technet Plus Single User   ","Non-Specific",{"$f":"IF(ISERROR(B230),0,VLOOKUP(O230,'OVS Price List'!A:Q,16,0))","v":680.84999999999991},null,0,null,null,null,null,null,null,null,"Technet Plus Single User   Non-Specific All Languages"]
[null,{"$f":"VLOOKUP(O231,'OVS Price List'!A:C,2,0)","v":"H6D-00002"},"VDI Std Ste (Per Device; monthly)  ","Non-Specific",{"$f":"IF(ISERROR(B231),0,VLOOKUP(O231,'OVS Price List'!A:Q,16,0))","v":1.1375},null,{"$f":"IF(F231<>0,E231*F231*H231,0)","v":0},12," nr de luni pana la urmatoarea aniversare, cu care se va inmulti automat cantitatea",null,null,null,null,null,"VDI Std Ste (Per Device; monthly)  Non-Specific All Languages"]
[null,{"$f":"VLOOKUP(O232,'OVS Price List'!A:C,2,0)","v":"UYD-00010"},"VDI Std Ste wMDOP (Per Device; monthly)  ","Non-Specific",{"$f":"IF(ISERROR(B232),0,VLOOKUP(O232,'OVS Price List'!A:Q,16,0))","v":2},null,0,12," nr de luni pana la urmatoarea aniversare, cu care se va inmulti automat cantitatea",null,null,null,null,null,"VDI Std Ste wMDOP (Per Device; monthly)  Non-Specific All Languages"]
[null,{"$f":"VLOOKUP(O233,'OVS Price List'!A:C,2,0)","v":"H7D-00008"},"VDI Prem Ste (Per Device; monthly)  ","Non-Specific",{"$f":"IF(ISERROR(B233),0,VLOOKUP(O233,'OVS Price List'!A:Q,16,0))","v":4.1749999999999998},null,0,12," nr de luni pana la urmatoarea aniversare, cu care se va inmulti automat cantitatea",null,null,null,null,null,"VDI Prem Ste (Per Device; monthly)  Non-Specific All Languages"]
[null,{"$f":"VLOOKUP(O234,'OVS Price List'!A:C,2,0)","v":"UZD-00002"},"VDI Prem Ste wMDOP (Per Device; monthly)  ","Non-Specific",{"$f":"IF(ISERROR(B234),0,VLOOKUP(O234,'OVS Price List'!A:Q,16,0))","v":5.0375000000000005},null,0,12," nr de luni pana la urmatoarea aniversare, cu care se va inmulti automat cantitatea",null,null,null,null,null,"VDI Prem Ste wMDOP (Per Device; monthly)  Non-Specific All Languages"]
[null,{"$f":"VLOOKUP(O235,'OVS Price List'!A:C,2,0)","v":"SFA-00031"},"Virtual Earth: User/Add-on SL (100KTrnsctnAddon; monthly)  ","Non-Specific",{"$f":"IF(ISERROR(B235),0,VLOOKUP(O235,'OVS Price List'!A:Q,16,0))","v":305.23750000000001},null,{"$f":"IF(F235<>0,E235*F235*H235,0)","v":0},12," nr de luni pana la urmatoarea aniversare, cu care se va inmulti automat cantitatea",null,null,null,null,null,"Virtual Earth: User/Add-on SL (100KTrnsctnAddon; monthly)  Non-Specific All Languages"]
[null,{"$f":"VLOOKUP(O236,'OVS Price List'!A:C,2,0)","v":"SFA-00020"},"Virtual Earth: User/Add-on SL (1MlnTrnsctnAddon; monthly)  ","Non-Specific",{"$f":"IF(ISERROR(B236),0,VLOOKUP(O236,'OVS Price List'!A:Q,16,0))","v":3052.3374999999996},null,0,12," nr de luni pana la urmatoarea aniversare, cu care se va inmulti automat cantitatea",null,null,null,null,null,"Virtual Earth: User/Add-on SL (1MlnTrnsctnAddon; monthly)  Non-Specific All Languages"]
[null,{"$f":"VLOOKUP(O237,'OVS Price List'!A:C,2,0)","v":"SFA-00009"},"Virtual Earth: User/Add-on SL (Per User; monthly)  ","Non-Specific",{"$f":"IF(ISERROR(B237),0,VLOOKUP(O237,'OVS Price List'!A:Q,16,0))","v":2.2250000000000001},null,0,12," nr de luni pana la urmatoarea aniversare, cu care se va inmulti automat cantitatea",null,null,null,null,null,"Virtual Earth: User/Add-on SL (Per User; monthly)  Non-Specific All Languages"]
[null,{"$f":"VLOOKUP(O238,'OVS Price List'!A:C,2,0)","v":"SGA-00009"},"Virtual Earth: Pro (Services; monthly)  ","Non-Specific",{"$f":"IF(ISERROR(B238),0,VLOOKUP(O238,'OVS Price List'!A:Q,16,0))","v":281.73749999999995},null,0,12," nr de luni pana la urmatoarea aniversare, cu care se va inmulti automat cantitatea",null,null,null,null,null,"Virtual Earth: Pro (Services; monthly)  Non-Specific All Languages"]
[null,{"$f":"VLOOKUP(O239,'OVS Price List'!A:C,2,0)","v":"LLD-00002"},"Virtual Earth Server monthly",{"$f":"IF(sysEligiblePCs<=249,\"Non-Specific\",\"C\")","v":"Non-Specific"},{"$f":"IF(ISERROR(B239),0,VLOOKUP(O239,'OVS Price List'!A:Q,16,0))","v":2464.5249999999996},null,0,12," nr de luni pana la urmatoarea aniversare, cu care se va inmulti automat cantitatea",null,null,null,null,null,{"$f":"CONCATENATE(C239,\" \",D239,\" \",$IP$5)","v":"Virtual Earth Server monthly Non-Specific All Languages"}]
[null,{"$f":"VLOOKUP(O240,'OVS Price List'!A:C,2,0)","v":"LMD-00004"},"Virtual Earth Server CAL monthly",{"$f":"IF(sysEligiblePCs<=249,\"Non-Specific\",\"C\")","v":"Non-Specific"},{"$f":"IF(ISERROR(B240),0,VLOOKUP(O240,'OVS Price List'!A:Q,16,0))","v":9.4749999999999996},null,0,12," nr de luni pana la urmatoarea aniversare, cu care se va inmulti automat cantitatea",null,null,null,null,null,{"$f":"CONCATENATE(C240,\" \",D240,\" \",$IP$5)","v":"Virtual Earth Server CAL monthly Non-Specific All Languages"}]
[null,{"$f":"VLOOKUP(O241,'OVS Price List'!A:C,2,0)","v":"LND-00002"},"Virtual Earth Server wECP monthly",{"$f":"IF(sysEligiblePCs<=249,\"Non-Specific\",\"C\")","v":"Non-Specific"},{"$f":"IF(ISERROR(B241),0,VLOOKUP(O241,'OVS Price List'!A:Q,16,0))","v":2464.5249999999996},null,0,12," nr de luni pana la urmatoarea aniversare, cu care se va inmulti automat cantitatea",null,null,null,null,null,{"$f":"CONCATENATE(C241,\" \",D241,\" \",$IP$5)","v":"Virtual Earth Server wECP monthly Non-Specific All Languages"}]
[null,{"$f":"VLOOKUP(O242,'OVS Price List'!A:C,2,0)","v":"LPD-00004"},"Virtual Earth Server wECP CAL monthly",{"$f":"IF(sysEligiblePCs<=249,\"Non-Specific\",\"C\")","v":"Non-Specific"},{"$f":"IF(ISERROR(B242),0,VLOOKUP(O242,'OVS Price List'!A:Q,16,0))","v":23.700000000000003},null,0,12," nr de luni pana la urmatoarea aniversare, cu care se va inmulti automat cantitatea",null,null,null,null,null,{"$f":"CONCATENATE(C242,\" \",D242,\" \",$IP$5)","v":"Virtual Earth Server wECP CAL monthly Non-Specific All Languages"}]
[null,{"$f":"VLOOKUP(O243,'OVS Price List'!A:C,2,0)","v":"LQD-00002"},"Virtual Earth Desktop monthly",{"$f":"IF(sysEligiblePCs<=249,\"Non-Specific\",\"C\")","v":"Non-Specific"},{"$f":"IF(ISERROR(B243),0,VLOOKUP(O243,'OVS Price List'!A:Q,16,0))","v":497.65},null,0,12," nr de luni pana la urmatoarea aniversare, cu care se va inmulti automat cantitatea",null,null,null,null,null,{"$f":"CONCATENATE(C243,\" \",D243,\" \",$IP$5)","v":"Virtual Earth Desktop monthly Non-Specific All Languages"}]
[null,{"$f":"VLOOKUP(O244,'OVS Price List'!A:C,2,0)","v":"125-00250"},"Visual Studio Team Foundation Svr   ","Non-Specific",{"$f":"IF(ISERROR(B244),0,VLOOKUP(O244,'OVS Price List'!A:Q,16,0))","v":173.55},null,{"$f":"IF(F244<>0,E244*F244,0)","v":0},null,null,null,null,null,null,null,"Visual Studio Team Foundation Svr   Non-Specific All Languages"]
[null,{"$f":"VLOOKUP(O245,'OVS Price List'!A:C,2,0)","v":"126-00488"},"Visual Studio Team Fndation Svr CAL   ","Non-Specific",{"$f":"IF(ISERROR(B245),0,VLOOKUP(O245,'OVS Price List'!A:Q,16,0))","v":173.55},null,{"$f":"IF(F245<>0,E245*F245,0)","v":0},null,null,null,null,null,null,null,"Visual Studio Team Fndation Svr CAL   Non-Specific All Languages"]
[null,{"$f":"VLOOKUP(O246,'OVS Price List'!A:C,2,0)","v":"66B-00211"},"Visual Studio Team Fndn Svr Ext Con   ","Non-Specific",{"$f":"IF(ISERROR(B246),0,VLOOKUP(O246,'OVS Price List'!A:Q,16,0))","v":4359.3},null,{"$f":"IF(F246<>0,E246*F246,0)","v":0},null,null,null,null,null,null,null,"Visual Studio Team Fndn Svr Ext Con   Non-Specific All Languages"]
[null,{"$f":"VLOOKUP(O247,'OVS Price List'!A:C,2,0)","v":"7XD-00042"},"Visual Studio Vrtl UserPK   ","Non-Specific",{"$f":"IF(ISERROR(B247),0,VLOOKUP(O247,'OVS Price List'!A:Q,16,0))","v":1629},null,{"$f":"IF(F247<>0,E247*F247,0)","v":0},null,null,null,null,null,null,null,"Visual Studio Vrtl UserPK   Non-Specific All Languages"]
[null,{"$f":"VLOOKUP(O248,'OVS Price List'!A:C,2,0)","v":"HXC-00002"},"Web Antimalware for TMG MB (Per User; monthly)  ","Non-Specific",{"$f":"IF(ISERROR(B248),0,VLOOKUP(O248,'OVS Price List'!A:Q,16,0))","v":0.88749999999999996},null,{"$f":"IF(F248<>0,E248*F248*H248,0)","v":0},12," nr de luni pana la urmatoarea aniversare, cu care se va inmulti automat cantitatea",null,null,null,null,null,"Web Antimalware for TMG MB (Per User; monthly)  Non-Specific All Languages"]
[null,{"$f":"VLOOKUP(O249,'OVS Price List'!A:C,2,0)","v":"9WA-00434"},"Windows HPC Suite   ","Non-Specific",{"$f":"IF(ISERROR(B249),0,VLOOKUP(O249,'OVS Price List'!A:Q,16,0))","v":414.45},null,{"$f":"IF(F249<>0,E249*F249,0)","v":0},null,null,null,null,null,null,null,"Windows HPC Suite   Non-Specific All Languages"]
[null,{"$f":"VLOOKUP(O250,'OVS Price List'!A:C,2,0)","v":"AAB-00059"},"Windows HPC Svr OS   ","Non-Specific",{"$f":"IF(ISERROR(B250),0,VLOOKUP(O250,'OVS Price List'!A:Q,16,0))","v":212.85},null,0,null,null,null,null,null,null,null,"Windows HPC Svr OS   Non-Specific All Languages"]
[null,{"$f":"VLOOKUP(O251,'OVS Price List'!A:C,2,0)","v":"T98-01843"},"Windows Rights Mgmt Services CAL   ","Non-Specific",{"$f":"IF(ISERROR(B251),0,VLOOKUP(O251,'OVS Price List'!A:Q,16,0))","v":16.350000000000001},null,0,null,null,null,null,null,null,null,"Windows Rights Mgmt Services CAL   Non-Specific All Languages"]
[null,{"$f":"VLOOKUP(O252,'OVS Price List'!A:C,2,0)","v":"T99-00659"},"Windows Rights Mgt Svcs ExtnConn   ","Non-Specific",{"$f":"IF(ISERROR(B252),0,VLOOKUP(O252,'OVS Price List'!A:Q,16,0))","v":8162.8499999999995},null,{"$f":"IF(F252<>0,E252*F252,0)","v":0},null,null,null,null,null,null,null,"Windows Rights Mgt Svcs ExtnConn   Non-Specific All Languages"]
[null,{"$f":"VLOOKUP(O253,'OVS Price List'!A:C,2,0)","v":"T75-01136"},"Windows Small Bus Svr Prem   ","Non-Specific",{"$f":"IF(ISERROR(B253),0,VLOOKUP(O253,'OVS Price List'!A:Q,16,0))","v":743.40000000000009},null,0,null,null,null,null,null,null,null,"Windows Small Bus Svr Prem   Non-Specific All Languages"]
[null,{"$f":"VLOOKUP(O254,'OVS Price List'!A:C,2,0)","v":"T72-01298"},"Windows Small Bus Svr Std   ","Non-Specific",{"$f":"IF(ISERROR(B254),0,VLOOKUP(O254,'OVS Price List'!A:Q,16,0))","v":426.15000000000003},null,0,null,null,null,null,null,null,null,"Windows Small Bus Svr Std   Non-Specific All Languages"]
[null,{"$f":"VLOOKUP(O255,'OVS Price List'!A:C,2,0)","v":"P71-01088"},"Windows Server Datacenter 1 Proc Lic  ","Non-Specific",{"$f":"IF(ISERROR(B255),0,VLOOKUP(O255,'OVS Price List'!A:Q,16,0))","v":1076.8499999999999},null,0,null,null,null,null,null,null,null,"Windows Server Datacenter 1 Proc Lic  Non-Specific All Languages"]
[null,{"$f":"VLOOKUP(O256,'OVS Price List'!A:C,2,0)","v":"P72-01582"},"Windows Server Enterprise   ","Non-Specific",{"$f":"IF(ISERROR(B256),0,VLOOKUP(O256,'OVS Price List'!A:Q,16,0))","v":1055.6999999999998},null,0,null,null,null,null,null,null,null,"Windows Server Enterprise   Non-Specific All Languages"]
[null,{"$f":"VLOOKUP(O257,'OVS Price List'!A:C,2,0)","v":"R39-00739"},"Windows Svr ExtrnConn   ",{"$f":"IF(sysEligiblePCs<=249,\"Non-Specific\",\"C\")","v":"Non-Specific"},{"$f":"IF(ISERROR(B257),0,VLOOKUP(O257,'OVS Price List'!A:Q,16,0))","v":904.35},null,0,null,null,null,null,null,null,null,{"$f":"CONCATENATE(C257,D257,\" \",$IP$5)","v":"Windows Svr ExtrnConn   Non-Specific All Languages"}]
[null,{"$f":"VLOOKUP(O258,'OVS Price List'!A:C,2,0)","v":"MYC-00180"},"Win Svr for Win Essn Svr   ","Non-Specific",{"$f":"IF(ISERROR(B258),0,VLOOKUP(O258,'OVS Price List'!A:Q,16,0))","v":348.29999999999995},null,0,null,null,null,null,null,null,null,"Win Svr for Win Essn Svr   Non-Specific All Languages"]
[null,{"$f":"VLOOKUP(O259,'OVS Price List'!A:C,2,0)","v":"M2C-00163"},"Win Svr for Win Essn Svr CAL   ","Non-Specific",{"$f":"IF(ISERROR(B259),0,VLOOKUP(O259,'OVS Price List'!A:Q,16,0))","v":117.44999999999999},null,0,null,null,null,null,null,null,null,"Win Svr for Win Essn Svr CAL   Non-Specific All Languages"]
[null,{"$f":"VLOOKUP(O260,'OVS Price List'!A:C,2,0)","v":"LVA-00316"},"Windows Server Itanium 1 Proc Lic  ","Non-Specific",{"$f":"IF(ISERROR(B260),0,VLOOKUP(O260,'OVS Price List'!A:Q,16,0))","v":1076.8499999999999},null,{"$f":"IF(F260<>0,E260*F260,0)","v":0},null,null,null,null,null,null,null,"Windows Server Itanium 1 Proc Lic  Non-Specific All Languages"]
[null,{"$f":"VLOOKUP(O261,'OVS Price List'!A:C,2,0)","v":"P73-01608"},"Windows Server Standard   ","Non-Specific",{"$f":"IF(ISERROR(B261),0,VLOOKUP(O261,'OVS Price List'!A:Q,16,0))","v":324.90000000000003},null,0,null,null,null,null,null,null,null,"Windows Server Standard   Non-Specific All Languages"]
[null,{"$f":"VLOOKUP(O262,'OVS Price List'!A:C,2,0)","v":"6VC-00829"},"Windows Remote Desktop Services CAL ","Non-Specific",{"$f":"IF(ISERROR(B262),0,VLOOKUP(O262,'OVS Price List'!A:Q,16,0))","v":37.799999999999997},null,0,null,null,null,null,null,null,null,{"$f":"CONCATENATE(C262,\" \",D262,\" \",$IP$5)","v":"Windows Remote Desktop Services CAL  Non-Specific All Languages"}]
[null,{"$f":"VLOOKUP(O263,'OVS Price List'!A:C,2,0)","v":"6XC-00086"},"Windows Remote Desktop Services Ext Connector ","Non-Specific",{"$f":"IF(ISERROR(B263),0,VLOOKUP(O263,'OVS Price List'!A:Q,16,0))","v":3799.5},null,0,null,null,null,null,null,null,null,{"$f":"CONCATENATE(C263,\" \",D263,\" \",$IP$5)","v":"Windows Remote Desktop Services Ext Connector  Non-Specific All Languages"}]
[null,{"$f":"VLOOKUP(O264,'OVS Price List'!A:C,2,0)","v":"LWA-00703"},"Windows Web Server   ","Non-Specific",{"$f":"IF(ISERROR(B264),0,VLOOKUP(O264,'OVS Price List'!A:Q,16,0))","v":180.3},null,0,null,null,null,null,null,null,null,"Windows Web Server   Non-Specific All Languages"]
[null,null,null,null,null,"Total",{"$f":"SUM(G100:G264)","v":0}]
[]
[]
[]
[]
[]
[]
[]
[]
[]
[]
[]
[]
[]
[]
[]
[]
[]
[]
[]
[]
[]
[]
[]
[]
[]
[]
[]
[]
[]
[]
[]
[]
[null,null," "]
[]
[]
[]
[]
[]
[]
[]
[]
[]
[null,null," "]

{"sheet":"OVS Price List","index":2,"n_rows":590,"n_cols":17,"rows_kept":590,"cut":false,"hidden":false,"merged":[[107,1,107,15],[197,1,197,2]]}
[7.5,"Part Number","Description Name","Offering","Level","Purchase Unit","Pool","Current/ Non-Current","Componente/ Platforma","Product Family","Version","Operating System","Language","Product Type","Prior NP USD","End User Estimated Price (EURO)","Labels"]
[null,"W06-00801","CoreCAL ALNG LicSAPk OLV C 1Yr Ent DvcCAL","Enterprise","C","1 Year(s)","Servers","Non-Current","Component","Core CAL (Client Access License)","Non-specific","Non-specific","All Languages",null,null,63,{"$f":"CONCATENATE(J2,\" \",I2,\" \",H2,\" \",E2,\" \",M2)","v":"Core CAL (Client Access License) Component Non-Current C All Languages"}]
["Core CAL (Client Access License) Component Non-Current C All Languages","W06-00865","CoreCAL ALNG LicSAPk OLV C 1Yr Ent UsrCAL","Enterprise","C","1 Year(s)","Servers","Non-Current","Component","Core CAL (Client Access License)","Non-specific","Non-specific","All Languages",null,null,63,"Core CAL (Client Access License) Component Non-Current C All Languages"]
[null,"W06-01501","CoreCAL ALNG LicSAPk OLV C 1Yr Pltfrm DvcCAL","Platform Offering","C","1 Year(s)","Servers","Non-Current","Platform","Core CAL (Client Access License)","Non-specific","Non-specific","All Languages",null,null,59.699999999999996,"Core CAL (Client Access License) Platform Non-Current C All Languages"]
["Core CAL (Client Access License) Platform Non-Current C All Languages","W06-01503","CoreCAL ALNG LicSAPk OLV C 1Yr Pltfrm UsrCAL","Platform Offering","C","1 Year(s)","Servers","Non-Current","Platform","Core CAL (Client Access License)","Non-specific","Non-specific","All Languages",null,null,59.699999999999996,"Core CAL (Client Access License) Platform Non-Current C All Languages"]
[null,"W06-00793","CoreCAL ALNG LicSAPk OLV NL 1Yr Ent DvcCAL","Enterprise","Non-Specific","1 Year(s)","Servers","Non-Current","Component","Core CAL (Client Access License)","Non-specific","Non-specific","All Languages",null,null,65.400000000000006,"Core CAL (Client Access License) Component Non-Current Non-Specific All Languages"]
["Core CAL (Client Access License) Component Non-Current Non-Specific All Languages","W06-00857","CoreCAL ALNG LicSAPk OLV NL 1Yr Ent UsrCAL","Enterprise","Non-Specific","1 Year(s)","Servers","Non-Current","Component","Core CAL (Client Access License)","Non-specific","Non-specific","All Languages",null,null,65.400000000000006,"Core CAL (Client Access License) Component Non-Current Non-Specific All Languages"]
[null,"W06-01502","CoreCAL ALNG LicSAPk OLV NL 1Yr Pltfrm DvcCAL","Platform Offering","Non-Specific","1 Year(s)","Servers","Non-Current","Platform","Core CAL (Client Access License)","Non-specific","Non-specific","All Languages",null,null,62.1,"Core CAL (Client Access License) Platform Non-Current Non-Specific All Languages"]
["Core CAL (Client Access License) Platform Non-Current Non-Specific All Languages","W06-01504","CoreCAL ALNG LicSAPk OLV NL 1Yr Pltfrm UsrCAL","Platform Offering","Non-Specific","1 Year(s)","Servers","Non-Current","Platform","Core CAL (Client Access License)","Non-specific","Non-specific","All Languages",null,null,62.1,"Core CAL (Client Access License) Platform Non-Current Non-Specific All Languages"]
[null,"W06-01231","CoreCAL RAB LicSAPk OLV C 1Yr Ent DvcCAL","Enterprise","C","1 Year(s)","Servers","Non-Current","Component","Core CAL (Client Access License)","Non-specific","Non-specific","RAB",null,null,63,"Core CAL (Client Access License) Component Non-Current C RAB"]
["Core CAL (Client Access License) Component Non-Current C RAB","W06-01233","CoreCAL RAB LicSAPk OLV C 1Yr Ent UsrCAL","Enterprise","C","1 Year(s)","Servers","Non-Current","Component","Core CAL (Client Access License)","Non-specific","Non-specific","RAB",null,null,63,"Core CAL (Client Access License) Component Non-Current C RAB"]
[null,"W06-01505","CoreCAL RAB LicSAPk OLV C 1Yr Pltfrm DvcCAL","Platform Offering","C","1 Year(s)","Servers","Non-Current","Platform","Core CAL (Client Access License)","Non-specific","Non-specific","RAB",null,null,59.699999999999996,"Core CAL (Client Access License) Platform Non-Current C RAB"]
["Core CAL (Client Access License) Platform Non-Current C RAB","W06-01507","CoreCAL RAB LicSAPk OLV C 1Yr Pltfrm UsrCAL","Platform Offering","C","1 Year(s)","Servers","Non-Current","Platform","Core CAL (Client Access License)","Non-specific","Non-specific","RAB",null,null,59.699999999999996,"Core CAL (Client Access License) Platform Non-Current C RAB"]
[null,"W06-01232","CoreCAL RAB LicSAPk OLV NL 1Yr Ent DvcCAL","Enterprise","Non-Specific","1 Year(s)","Servers","Non-Current","Component","Core CAL (Client Access License)","Non-specific","Non-specific","RAB",null,null,65.400000000000006,{"$f":"CONCATENATE(J14,\" \",I14,\" \",H14,\" \",E14,\" \",M14)","v":"Core CAL (Client Access License) Component Non-Current Non-Specific RAB"}]
["Core CAL (Client Access License) Component Non-Current Non-Specific RAB","W06-01234","CoreCAL RAB LicSAPk OLV NL 1Yr Ent UsrCAL","Enterprise","Non-Specific","1 Year(s)","Servers","Non-Current","Component","Core CAL (Client Access License)","Non-specific","Non-specific","RAB",null,null,65.400000000000006,"Core CAL (Client Access License) Component Non-Current Non-Specific RAB"]
[null,"W06-01506","CoreCAL RAB LicSAPk OLV NL 1Yr Pltfrm DvcCAL","Platform Offering","Non-Specific","1 Year(s)","Servers","Non-Current","Platform","Core CAL (Client Access License)","Non-specific","Non-specific","RAB",null,null,62.1,"Core CAL (Client Access License) Platform Non-Current Non-Specific RAB"]
["Core CAL (Client Access License) Platform Non-Current Non-Specific RAB","W06-01508","CoreCAL RAB LicSAPk OLV NL 1Yr Pltfrm UsrCAL","Platform Offering","Non-Specific","1 Year(s)","Servers","Non-Current","Platform","Core CAL (Client Access License)","Non-specific","Non-specific","RAB",null,null,62.1,"Core CAL (Client Access License) Platform Non-Current Non-Specific RAB"]
[" ","WSB-00112","DsktpOptmztnPkforSA ALNG SubsVL OLV NL 1Mth Ent PerDvc forWinSA","Enterprise","Non-Specific","1 Month(s)","Systems","Non-Current","Component","Desktop Optimization Pack for SA","Non-specific","Non-specific","All Languages",null,null,0.96250000000000002,"Desktop Optimization Pack for SA Component Non-Current Non-Specific All Languages"]
[null,"76A-00324","EntCAL ALNG LicSAPk OLV C 1Yr Ent DvcCAL wSrvcs","Enterprise","C","1 Year(s)","Servers","Non-Current","Component","Enterprise CAL","Non-specific","Non-specific","All Languages",null,null,159.9,"Enterprise CAL Component Non-Current C All Languages"]
["Enterprise CAL Component Non-Current C All Languages","76A-00326","EntCAL ALNG LicSAPk OLV C 1Yr Ent UsrCAL wSrvcs","Enterprise","C","1 Year(s)","Servers","Non-Current","Component","Enterprise CAL","Non-specific","Non-specific","All Languages",null,null,159.9,"Enterprise CAL Component Non-Current C All Languages"]
[null,"76A-00492","EntCAL ALNG LicSAPk OLV C 1Yr Pltfrm DvcCAL wSrvcs","Platform Offering","C","1 Year(s)","Servers","Non-Current","Platform","Enterprise CAL","Non-specific","Non-specific","All Languages",null,null,151.94999999999999,"Enterprise CAL Platform Non-Current C All Languages"]
["Enterprise CAL Platform Non-Current C All Languages","76A-00494","EntCAL ALNG LicSAPk OLV C 1Yr Pltfrm UsrCAL wSrvcs","Platform Offering","C","1 Year(s)","Servers","Non-Current","Platform","Enterprise CAL","Non-specific","Non-specific","All Languages",null,null,151.94999999999999,"Enterprise CAL Platform Non-Current C All Languages"]
[null,"76A-00325","EntCAL ALNG LicSAPk OLV NL 1Yr Ent DvcCAL wSrvcs","Enterprise","Non-Specific","1 Year(s)","Servers","Non-Current","Component","Enterprise CAL","Non-specific","Non-specific","All Languages",null,null,174.3,"Enterprise CAL Component Non-Current Non-Specific All Languages"]
["Enterprise CAL Component Non-Current Non-Specific All Languages","76A-00327","EntCAL ALNG LicSAPk OLV NL 1Yr Ent UsrCAL wSrvcs","Enterprise","Non-Specific","1 Year(s)","Servers","Non-Current","Component","Enterprise CAL","Non-specific","Non-specific","All Languages",null,null,174.3,"Enterprise CAL Component Non-Current Non-Specific All Languages"]
[null,"76A-00493","EntCAL ALNG LicSAPk OLV NL 1Yr Pltfrm DvcCAL wSrvcs","Platform Offering","Non-Specific","1 Year(s)","Servers","Non-Current","Platform","Enterprise CAL","Non-specific","Non-specific","All Languages",null,null,165.6,"Enterprise CAL Platform Non-Current Non-Specific All Languages"]
["Enterprise CAL Platform Non-Current Non-Specific All Languages","76A-00495","EntCAL ALNG LicSAPk OLV NL 1Yr Pltfrm UsrCAL wSrvcs","Platform Offering","Non-Specific","1 Year(s)","Servers","Non-Current","Platform","Enterprise CAL","Non-specific","Non-specific","All Languages",null,null,165.6,"Enterprise CAL Platform Non-Current Non-Specific All Languages"]
[null,"76A-00328","EntCAL RAB LicSAPk OLV C 1Yr Ent DvcCAL wSrvcs","Enterprise","C","1 Year(s)","Servers","Non-Current","Component","Enterprise CAL","Non-specific","Non-specific","RAB",null,null,159.9,"Enterprise CAL Component Non-Current C RAB"]
["Enterprise CAL Component Non-Current C RAB","76A-00330","EntCAL RAB LicSAPk OLV C 1Yr Ent UsrCAL wSrvcs","Enterprise","C","1 Year(s)","Servers","Non-Current","Component","Enterprise CAL","Non-specific","Non-specific","RAB",null,null,159.9,"Enterprise CAL Component Non-Current C RAB"]
[null,"76A-00496","EntCAL RAB LicSAPk OLV C 1Yr Pltfrm DvcCAL wSrvcs","Platform Offering","C","1 Year(s)","Servers","Non-Current","Platform","Enterprise CAL","Non-specific","Non-specific","RAB",null,null,151.94999999999999,"Enterprise CAL Platform Non-Current C RAB"]
["Enterprise CAL Platform Non-Current C RAB","76A-00498","EntCAL RAB LicSAPk OLV C 1Yr Pltfrm UsrCAL wSrvcs","Platform Offering","C","1 Year(s)","Servers","Non-Current","Platform","Enterprise CAL","Non-specific","Non-specific","RAB",null,null,151.94999999999999,"Enterprise CAL Platform Non-Current C RAB"]
[null,"76A-00329","EntCAL RAB LicSAPk OLV NL 1Yr Ent DvcCAL wSrvcs","Enterprise","Non-Specific","1 Year(s)","Servers","Non-Current","Component","Enterprise CAL","Non-specific","Non-specific","RAB",null,null,174.3,"Enterprise CAL Component Non-Current Non-Specific RAB"]
["Enterprise CAL Component Non-Current Non-Specific RAB","76A-00331","EntCAL RAB LicSAPk OLV NL 1Yr Ent UsrCAL wSrvcs","Enterprise","Non-Specific","1 Year(s)","Servers","Non-Current","Component","Enterprise CAL","Non-specific","Non-specific","RAB",null,null,174.3,"Enterprise CAL Component Non-Current Non-Specific RAB"]
[null,"76A-00497","EntCAL RAB LicSAPk OLV NL 1Yr Pltfrm DvcCAL wSrvcs","Platform Offering","Non-Specific","1 Year(s)","Servers","Non-Current","Platform","Enterprise CAL","Non-specific","Non-specific","RAB",null,null,165.6,"Enterprise CAL Platform Non-Current Non-Specific RAB"]
["Enterprise CAL Platform Non-Current Non-Specific RAB","76A-00499","EntCAL RAB LicSAPk OLV NL 1Yr Pltfrm UsrCAL wSrvcs","Platform Offering","Non-Specific","1 Year(s)","Servers","Non-Current","Platform","Enterprise CAL","Non-specific","Non-specific","RAB",null,null,165.6,"Enterprise CAL Platform Non-Current Non-Specific RAB"]
["Office Professional Plus Component Non-Current C All Languages","269-09656","OfficeProPlus ALNG LicSAPk OLV C 1Yr Ent","Enterprise","C","1 Year(s)","Applications","Non-Current","Component","Office Professional Plus","Non-specific","Non-specific","All Languages",null,null,186.14999999999998,"Office Professional Plus Component Non-Current C All Languages"]
["Office Professional Plus Platform Non-Current C All Languages","79P-02337","OfficeProPlus ALNG LicSAPk OLV C 1Yr Pltfrm","Platform Offering","C","1 Year(s)","Applications","Non-Current","Platform","Office Professional Plus","Non-specific","Non-specific","All Languages",null,null,176.85,"Office Professional Plus Platform Non-Current C All Languages"]
["Office Professional Plus Component Non-Current Non-Specific All Languages","269-09648","OfficeProPlus ALNG LicSAPk OLV NL 1Yr Ent","Enterprise","Non-Specific","1 Year(s)","Applications","Non-Current","Component","Office Professional Plus","Non-specific","Non-specific","All Languages",null,null,193.35000000000002,"Office Professional Plus Component Non-Current Non-Specific All Languages"]
["Office Professional Plus Platform Non-Current Non-Specific All Languages","79P-02338","OfficeProPlus ALNG LicSAPk OLV NL 1Yr Pltfrm","Platform Offering","Non-Specific","1 Year(s)","Applications","Non-Current","Platform","Office Professional Plus","Non-specific","Non-specific","All Languages",null,null,183.75,"Office Professional Plus Platform Non-Current Non-Specific All Languages"]
["Office Professional Plus Component Non-Current C RAB","79P-01865","OfficeProPlus RAB LicSAPk OLV C 1Yr Ent","Enterprise","C","1 Year(s)","Applications","Non-Current","Component","Office Professional Plus","Non-specific","Non-specific","RAB",null,null,156.30000000000001,"Office Professional Plus Component Non-Current C RAB"]
["Office Professional Plus Platform Non-Current C RAB","79P-02339","OfficeProPlus RAB LicSAPk OLV C 1Yr Pltfrm","Platform Offering","C","1 Year(s)","Applications","Non-Current","Platform","Office Professional Plus","Non-specific","Non-specific","RAB",null,null,148.5,"Office Professional Plus Platform Non-Current C RAB"]
["Office Professional Plus Component Non-Current Non-Specific RAB","79P-01866","OfficeProPlus RAB LicSAPk OLV NL 1Yr Ent","Enterprise","Non-Specific","1 Year(s)","Applications","Non-Current","Component","Office Professional Plus","Non-specific","Non-specific","RAB",null,null,162.45000000000002,"Office Professional Plus Component Non-Current Non-Specific RAB"]
["Office Professional Plus Platform Non-Current Non-Specific RAB","79P-02340","OfficeProPlus RAB LicSAPk OLV NL 1Yr Pltfrm","Platform Offering","Non-Specific","1 Year(s)","Applications","Non-Current","Platform","Office Professional Plus","Non-specific","Non-specific","RAB",null,null,154.35,"Office Professional Plus Platform Non-Current Non-Specific RAB"]
[null,"6YA-01741","WinEssntlBsnssCALSte ALNG LicSAPk OLV C 1Yr Ent DvcCAL","Enterprise","C","1 Year(s)","Servers","Non-Current","Component","Windows Essntl Bus CAL Ste","Non-specific","Non-specific","All Languages",null,null,25.5,"Windows Essntl Bus CAL Ste Component Non-Current C All Languages"]
["Windows Essntl Bus CAL Ste Component Non-Current C All Languages","6YA-01743","WinEssntlBsnssCALSte ALNG LicSAPk OLV C 1Yr Ent UsrCAL","Enterprise","C","1 Year(s)","Servers","Non-Current","Component","Windows Essntl Bus CAL Ste","Non-specific","Non-specific","All Languages",null,null,25.5,"Windows Essntl Bus CAL Ste Component Non-Current C All Languages"]
[null,"6YA-01761","WinEssntlBsnssCALSte ALNG LicSAPk OLV C 1Yr Pltfrm DvcCAL","Platform Offering","C","1 Year(s)","Servers","Non-Current","Platform","Windows Essntl Bus CAL Ste","Non-specific","Non-specific","All Languages",null,null,24.3,"Windows Essntl Bus CAL Ste Platform Non-Current C All Languages"]
["Windows Essntl Bus CAL Ste Platform Non-Current C All Languages","6YA-01763","WinEssntlBsnssCALSte ALNG LicSAPk OLV C 1Yr Pltfrm UsrCAL","Platform Offering","C","1 Year(s)","Servers","Non-Current","Platform","Windows Essntl Bus CAL Ste","Non-specific","Non-specific","All Languages",null,null,24.3,"Windows Essntl Bus CAL Ste Platform Non-Current C All Languages"]
[null,"6YA-01742","WinEssntlBsnssCALSte ALNG LicSAPk OLV NL 1Yr Ent DvcCAL","Enterprise","Non-Specific","1 Year(s)","Servers","Non-Current","Component","Windows Essntl Bus CAL Ste","Non-specific","Non-specific","All Languages",null,null,26.549999999999997,"Windows Essntl Bus CAL Ste Component Non-Current Non-Specific All Languages"]
["Windows Essntl Bus CAL Ste Component Non-Current Non-Specific All Languages","6YA-01744","WinEssntlBsnssCALSte ALNG LicSAPk OLV NL 1Yr Ent UsrCAL","Enterprise","Non-Specific","1 Year(s)","Servers","Non-Current","Component","Windows Essntl Bus CAL Ste","Non-specific","Non-specific","All Languages",null,null,26.549999999999997,"Windows Essntl Bus CAL Ste Component Non-Current Non-Specific All Languages"]
[null,"6YA-01762","WinEssntlBsnssCALSte ALNG LicSAPk OLV NL 1Yr Pltfrm DvcCAL","Platform Offering","Non-Specific","1 Year(s)","Servers","Non-Current","Platform","Windows Essntl Bus CAL Ste","Non-specific","Non-specific","All Languages",null,null,25.2,"Windows Essntl Bus CAL Ste Platform Non-Current Non-Specific All Languages"]
["Windows Essntl Bus CAL Ste Platform Non-Current Non-Specific All Languages","6YA-01764","WinEssntlBsnssCALSte ALNG LicSAPk OLV NL 1Yr Pltfrm UsrCAL","Platform Offering","Non-Specific","1 Year(s)","Servers","Non-Current","Platform","Windows Essntl Bus CAL Ste","Non-specific","Non-specific","All Languages",null,null,25.2,"Windows Essntl Bus CAL Ste Platform Non-Current Non-Specific All Languages"]
[null,"7AA-02010","WinEssntlBsnssPremCALSte ALNG LicSAPk OLV C 1Yr Ent DvcCAL","Enterprise","C","1 Year(s)","Servers","Non-Current","Component","Windows Essntl Bus Prem CAL Ste","Non-specific","Non-specific","All Languages",null,null,61.65,"Windows Essntl Bus Prem CAL Ste Component Non-Current C All Languages"]
["Windows Essntl Bus Prem CAL Ste Component Non-Current C All Languages","7AA-02012","WinEssntlBsnssPremCALSte ALNG LicSAPk OLV C 1Yr Ent UsrCAL","Enterprise","C","1 Year(s)","Servers","Non-Current","Component","Windows Essntl Bus Prem CAL Ste","Non-specific","Non-specific","All Languages",null,null,61.65,"Windows Essntl Bus Prem CAL Ste Component Non-Current C All Languages"]
[null,"7AA-02042","WinEssntlBsnssPremCALSte ALNG LicSAPk OLV C 1Yr Pltfrm DvcCAL","Platform Offering","C","1 Year(s)","Servers","Non-Current","Platform","Windows Essntl Bus Prem CAL Ste","Non-specific","Non-specific","All Languages",null,null,58.5,"Windows Essntl Bus Prem CAL Ste Platform Non-Current C All Languages"]
["Windows Essntl Bus Prem CAL Ste Platform Non-Current C All Languages","7AA-02044","WinEssntlBsnssPremCALSte ALNG LicSAPk OLV C 1Yr Pltfrm UsrCAL","Platform Offering","C","1 Year(s)","Servers","Non-Current","Platform","Windows Essntl Bus Prem CAL Ste","Non-specific","Non-specific","All Languages",null,null,58.5,"Windows Essntl Bus Prem CAL Ste Platform Non-Current C All Languages"]
[null,"7AA-02011","WinEssntlBsnssPremCALSte ALNG LicSAPk OLV NL 1Yr Ent DvcCAL","Enterprise","Non-Specific","1 Year(s)","Servers","Non-Current","Component","Windows Essntl Bus Prem CAL Ste","Non-specific","Non-specific","All Languages",null,null,64.05,"Windows Essntl Bus Prem CAL Ste Component Non-Current Non-Specific All Languages"]
["Windows Essntl Bus Prem CAL Ste Component Non-Current Non-Specific All Languages","7AA-02013","WinEssntlBsnssPremCALSte ALNG LicSAPk OLV NL 1Yr Ent UsrCAL","Enterprise","Non-Specific","1 Year(s)","Servers","Non-Current","Component","Windows Essntl Bus Prem CAL Ste","Non-specific","Non-specific","All Languages",null,null,64.05,"Windows Essntl Bus Prem CAL Ste Component Non-Current Non-Specific All Languages"]
[null,"7AA-02043","WinEssntlBsnssPremCALSte ALNG LicSAPk OLV NL 1Yr Pltfrm DvcCAL","Platform Offering","Non-Specific","1 Year(s)","Servers","Non-Current","Platform","Windows Essntl Bus Prem CAL Ste","Non-specific","Non-specific","All Languages",null,null,60.9,"Windows Essntl Bus Prem CAL Ste Platform Non-Current Non-Specific All Languages"]
["Windows Essntl Bus Prem CAL Ste Platform Non-Current Non-Specific All Languages","7AA-02045","WinEssntlBsnssPremCALSte ALNG LicSAPk OLV NL 1Yr Pltfrm UsrCAL","Platform Offering","Non-Specific","1 Year(s)","Servers","Non-Current","Platform","Windows Essntl Bus Prem CAL Ste","Non-specific","Non-specific","All Languages",null,null,60.9,"Windows Essntl Bus Prem CAL Ste Platform Non-Current Non-Specific All Languages"]
[null,"6UA-01531","WinSBCALSte ALNG LicSAPk OLV C 1Yr Ent DvcCAL","Enterprise","C","1 Year(s)","Servers","Non-Current","Component","Windows Small Bus CAL Ste","Non-specific","Non-specific","All Languages",null,null,21.150000000000002,"Windows Small Bus CAL Ste Component Non-Current C All Languages"]
["Windows Small Bus CAL Ste Component Non-Current C All Languages","6UA-01533","WinSBCALSte ALNG LicSAPk OLV C 1Yr Ent UsrCAL","Enterprise","C","1 Year(s)","Servers","Non-Current","Component","Windows Small Bus CAL Ste","Non-specific","Non-specific","All Languages",null,null,21.150000000000002,"Windows Small Bus CAL Ste Component Non-Current C All Languages"]
[null,"6UA-02360","WinSBCALSte ALNG LicSAPk OLV C 1Yr Pltfrm DvcCAL","Platform Offering","C","1 Year(s)","Servers","Non-Current","Platform","Windows Small Bus CAL Ste","Non-specific","Non-specific","All Languages",null,null,20.25,"Windows Small Bus CAL Ste Platform Non-Current C All Languages"]
["Windows Small Bus CAL Ste Platform Non-Current C All Languages","6UA-02362","WinSBCALSte ALNG LicSAPk OLV C 1Yr Pltfrm UsrCAL","Platform Offering","C","1 Year(s)","Servers","Non-Current","Platform","Windows Small Bus CAL Ste","Non-specific","Non-specific","All Languages",null,null,20.25,"Windows Small Bus CAL Ste Platform Non-Current C All Languages"]
[null,"6UA-01532","WinSBCALSte ALNG LicSAPk OLV NL 1Yr Ent DvcCAL","Enterprise","Non-Specific","1 Year(s)","Servers","Non-Current","Component","Windows Small Bus CAL Ste","Non-specific","Non-specific","All Languages",null,null,22.05,"Windows Small Bus CAL Ste Component Non-Current Non-Specific All Languages"]
["Windows Small Bus CAL Ste Component Non-Current Non-Specific All Languages","6UA-01534","WinSBCALSte ALNG LicSAPk OLV NL 1Yr Ent UsrCAL","Enterprise","Non-Specific","1 Year(s)","Servers","Non-Current","Component","Windows Small Bus CAL Ste","Non-specific","Non-specific","All Languages",null,null,22.05,"Windows Small Bus CAL Ste Component Non-Current Non-Specific All Languages"]
[null,"6UA-02361","WinSBCALSte ALNG LicSAPk OLV NL 1Yr Pltfrm DvcCAL","Platform Offering","Non-Specific","1 Year(s)","Servers","Non-Current","Platform","Windows Small Bus CAL Ste","Non-specific","Non-specific","All Languages",null,null,21,"Windows Small Bus CAL Ste Platform Non-Current Non-Specific All Languages"]
["Windows Small Bus CAL Ste Platform Non-Current Non-Specific All Languages","6UA-02363","WinSBCALSte ALNG LicSAPk OLV NL 1Yr Pltfrm UsrCAL","Platform Offering","Non-Specific","1 Year(s)","Servers","Non-Current","Platform","Windows Small Bus CAL Ste","Non-specific","Non-specific","All Languages",null,null,21,"Windows Small Bus CAL Ste Platform Non-Current Non-Specific All Languages"]
[null,"6UA-01711","WinSBCALSte RAB LicSAPk OLV C 1Yr Ent DvcCAL","Enterprise","C","1 Year(s)","Servers","Non-Current","Component","Windows Small Bus CAL Ste","Non-specific","Non-specific","RAB",null,null,21.150000000000002,"Windows Small Bus CAL Ste Component Non-Current C RAB"]
["Windows Small Bus CAL Ste Component Non-Current C RAB","6UA-01713","WinSBCALSte RAB LicSAPk OLV C 1Yr Ent UsrCAL","Enterprise","C","1 Year(s)","Servers","Non-Current","Component","Windows Small Bus CAL Ste","Non-specific","Non-specific","RAB",null,null,21.150000000000002,"Windows Small Bus CAL Ste Component Non-Current C RAB"]
[null,"6UA-02364","WinSBCALSte RAB LicSAPk OLV C 1Yr Pltfrm DvcCAL","Platform Offering","C","1 Year(s)","Servers","Non-Current","Platform","Windows Small Bus CAL Ste","Non-specific","Non-specific","RAB",null,null,20.25,"Windows Small Bus CAL Ste Platform Non-Current C RAB"]
["Windows Small Bus CAL Ste Platform Non-Current C RAB","6UA-02366","WinSBCALSte RAB LicSAPk OLV C 1Yr Pltfrm UsrCAL","Platform Offering","C","1 Year(s)","Servers","Non-Current","Platform","Windows Small Bus CAL Ste","Non-specific","Non-specific","RAB",null,null,20.25,"Windows Small Bus CAL Ste Platform Non-Current C RAB"]
[null,"6UA-01712","WinSBCALSte RAB LicSAPk OLV NL 1Yr Ent DvcCAL","Enterprise","Non-Specific","1 Year(s)","Servers","Non-Current","Component","Windows Small Bus CAL Ste","Non-specific","Non-specific","RAB",null,null,22.05,"Windows Small Bus CAL Ste Component Non-Current Non-Specific RAB"]
["Windows Small Bus CAL Ste Component Non-Current Non-Specific RAB","6UA-01714","WinSBCALSte RAB LicSAPk OLV NL 1Yr Ent UsrCAL","Enterprise","Non-Specific","1 Year(s)","Servers","Non-Current","Component","Windows Small Bus CAL Ste","Non-specific","Non-specific","RAB",null,null,22.05,"Windows Small Bus CAL Ste Component Non-Current Non-Specific RAB"]
[null,"6UA-02365","WinSBCALSte RAB LicSAPk OLV NL 1Yr Pltfrm DvcCAL","Platform Offering","Non-Specific","1 Year(s)","Servers","Non-Current","Platform","Windows Small Bus CAL Ste","Non-specific","Non-specific","RAB",null,null,21,"Windows Small Bus CAL Ste Platform Non-Current Non-Specific RAB"]
["Windows Small Bus CAL Ste Platform Non-Current Non-Specific RAB","6UA-02367","WinSBCALSte RAB LicSAPk OLV NL 1Yr Pltfrm UsrCAL","Platform Offering","Non-Specific","1 Year(s)","Servers","Non-Current","Platform","Windows Small Bus CAL Ste","Non-specific","Non-specific","RAB",null,null,21,"Windows Small Bus CAL Ste Platform Non-Current Non-Specific RAB"]
[null,"6VA-00987","WinSBSvrPremCALSte ALNG LicSAPk OLV C 1Yr Ent DvcCAL","Enterprise","C","1 Year(s)","Servers","Non-Current","Component","Windows Small Bus Svr Prem CAL Ste","Non-specific","Non-specific","All Languages",null,null,52.199999999999996,"Windows Small Bus Svr Prem CAL Ste Component Non-Current C All Languages"]
["Windows Small Bus Svr Prem CAL Ste Component Non-Current C All Languages","6VA-00989","WinSBSvrPremCALSte ALNG LicSAPk OLV C 1Yr Ent UsrCAL","Enterprise","C","1 Year(s)","Servers","Non-Current","Component","Windows Small Bus Svr Prem CAL Ste","Non-specific","Non-specific","All Languages",null,null,52.199999999999996,"Windows Small Bus Svr Prem CAL Ste Component Non-Current C All Languages"]
[null,"6VA-02550","WinSBSvrPremCALSte ALNG LicSAPk OLV C 1Yr Pltfrm DvcCAL","Platform Offering","C","1 Year(s)","Servers","Non-Current","Platform","Windows Small Bus Svr Prem CAL Ste","Non-specific","Non-specific","All Languages",null,null,49.65,"Windows Small Bus Svr Prem CAL Ste Platform Non-Current C All Languages"]
["Windows Small Bus Svr Prem CAL Ste Platform Non-Current C All Languages","6VA-02552","WinSBSvrPremCALSte ALNG LicSAPk OLV C 1Yr Pltfrm UsrCAL","Platform Offering","C","1 Year(s)","Servers","Non-Current","Platform","Windows Small Bus Svr Prem CAL Ste","Non-specific","Non-specific","All Languages",null,null,49.65,"Windows Small Bus Svr Prem CAL Ste Platform Non-Current C All Languages"]
[null,"6VA-00988","WinSBSvrPremCALSte ALNG LicSAPk OLV NL 1Yr Ent DvcCAL","Enterprise","Non-Specific","1 Year(s)","Servers","Non-Current","Component","Windows Small Bus Svr Prem CAL Ste","Non-specific","Non-specific","All Languages",null,null,54.3,"Windows Small Bus Svr Prem CAL Ste Component Non-Current Non-Specific All Languages"]
["Windows Small Bus Svr Prem CAL Ste Component Non-Current Non-Specific All Languages","6VA-00990","WinSBSvrPremCALSte ALNG LicSAPk OLV NL 1Yr Ent UsrCAL","Enterprise","Non-Specific","1 Year(s)","Servers","Non-Current","Component","Windows Small Bus Svr Prem CAL Ste","Non-specific","Non-specific","All Languages",null,null,54.3,"Windows Small Bus Svr Prem CAL Ste Component Non-Current Non-Specific All Languages"]
[null,"6VA-02551","WinSBSvrPremCALSte ALNG LicSAPk OLV NL 1Yr Pltfrm DvcCAL","Platform Offering","Non-Specific","1 Year(s)","Servers","Non-Current","Platform","Windows Small Bus Svr Prem CAL Ste","Non-specific","Non-specific","All Languages",null,null,51.6,"Windows Small Bus Svr Prem CAL Ste Platform Non-Current Non-Specific All Languages"]
["Windows Small Bus Svr Prem CAL Ste Platform Non-Current Non-Specific All Languages","6VA-02553","WinSBSvrPremCALSte ALNG LicSAPk OLV NL 1Yr Pltfrm UsrCAL","Platform Offering","Non-Specific","1 Year(s)","Servers","Non-Current","Platform","Windows Small Bus Svr Prem CAL Ste","Non-specific","Non-specific","All Languages",null,null,51.6,"Windows Small Bus Svr Prem CAL Ste Platform Non-Current Non-Specific All Languages"]
[null,"6VA-01167","WinSBSvrPremCALSte RAB LicSAPk OLV C 1Yr Ent DvcCAL","Enterprise","C","1 Year(s)","Servers","Non-Current","Component","Windows Small Bus Svr Prem CAL Ste","Non-specific","Non-specific","RAB",null,null,52.199999999999996,"Windows Small Bus Svr Prem CAL Ste Component Non-Current C RAB"]
["Windows Small Bus Svr Prem CAL Ste Component Non-Current C RAB","6VA-01169","WinSBSvrPremCALSte RAB LicSAPk OLV C 1Yr Ent UsrCAL","Enterprise","C","1 Year(s)","Servers","Non-Current","Component","Windows Small Bus Svr Prem CAL Ste","Non-specific","Non-specific","RAB",null,null,52.199999999999996,"Windows Small Bus Svr Prem CAL Ste Component Non-Current C RAB"]
[null,"6VA-02554","WinSBSvrPremCALSte RAB LicSAPk OLV C 1Yr Pltfrm DvcCAL","Platform Offering","C","1 Year(s)","Servers","Non-Current","Platform","Windows Small Bus Svr Prem CAL Ste","Non-specific","Non-specific","RAB",null,null,49.65,"Windows Small Bus Svr Prem CAL Ste Platform Non-Current C RAB"]
["Windows Small Bus Svr Prem CAL Ste Platform Non-Current C RAB","6VA-02556","WinSBSvrPremCALSte RAB LicSAPk OLV C 1Yr Pltfrm UsrCAL","Platform Offering","C","1 Year(s)","Servers","Non-Current","Platform","Windows Small Bus Svr Prem CAL Ste","Non-specific","Non-specific","RAB",null,null,49.65,"Windows Small Bus Svr Prem CAL Ste Platform Non-Current C RAB"]
[null,"6VA-01168","WinSBSvrPremCALSte RAB LicSAPk OLV NL 1Yr Ent DvcCAL","Enterprise","Non-Specific","1 Year(s)","Servers","Non-Current","Component","Windows Small Bus Svr Prem CAL Ste","Non-specific","Non-specific","RAB",null,null,54.3,"Windows Small Bus Svr Prem CAL Ste Component Non-Current Non-Specific RAB"]
["Windows Small Bus Svr Prem CAL Ste Component Non-Current Non-Specific RAB","6VA-01170","WinSBSvrPremCALSte RAB LicSAPk OLV NL 1Yr Ent UsrCAL","Enterprise","Non-Specific","1 Year(s)","Servers","Non-Current","Component","Windows Small Bus Svr Prem CAL Ste","Non-specific","Non-specific","RAB",null,null,54.3,"Windows Small Bus Svr Prem CAL Ste Component Non-Current Non-Specific RAB"]
[null,"6VA-02555","WinSBSvrPremCALSte RAB LicSAPk OLV NL 1Yr Pltfrm DvcCAL","Platform Offering","Non-Specific","1 Year(s)","Servers","Non-Current","Platform","Windows Small Bus Svr Prem CAL Ste","Non-specific","Non-specific","RAB",null,null,51.6,"Windows Small Bus Svr Prem CAL Ste Platform Non-Current Non-Specific RAB"]
["Windows Small Bus Svr Prem CAL Ste Platform Non-Current Non-Specific RAB","6VA-02557","WinSBSvrPremCALSte RAB LicSAPk OLV NL 1Yr Pltfrm UsrCAL","Platform Offering","Non-Specific","1 Year(s)","Servers","Non-Current","Platform","Windows Small Bus Svr Prem CAL Ste","Non-specific","Non-specific","RAB",null,null,51.6,"Windows Small Bus Svr Prem CAL Ste Platform Non-Current Non-Specific RAB"]
["Win Pro Upgr w/MDOP Component Non-Current C All Languages","FQC-02903","WinPro ALNG UpgrdSAPk OLV C 1Y Ent wMDOP","Enterprise","C","1 Year(s)","Systems","Non-Current","Upgr w/MDOP Component","Win Pro","Non-specific","Non-specific","All Languages",null,null,79.349999999999994,"Win Pro Upgr w/MDOP Component Non-Current C All Languages"]
["Win Pro Upgr w/MDOP Component Non-Current Non-Specific All Languages","FQC-02904","WinPro ALNG UpgrdSAPk OLV NL 1Y Ent wMDOP","Enterprise","Non-Specific","1 Year(s)","Systems","Non-Current","Upgr w/MDOP Component","Win Pro","Non-specific","Non-specific","All Languages",null,null,82.35,{"$f":"CONCATENATE(J92,\" \",I92,\" \",H92,\" \",E92,\" \",M92)","v":"Win Pro Upgr w/MDOP Component Non-Current Non-Specific All Languages"}]
["Win Pro Upgr w/MDOP Component Non-Current C RAB","FQC-02905","WinPro RAB UpgrdSAPk OLV C 1Y Ent wMDOP","Enterprise","C","1 Year(s)","Systems","Non-Current","Upgr w/MDOP Component","Win Pro","Non-specific","Non-specific","RAB",null,null,79.349999999999994,"Win Pro Upgr w/MDOP Component Non-Current C RAB"]
["Win Pro Upgr w/MDOP Component Non-Current Non-Specific RAB","FQC-02906","WinPro RAB UpgrdSAPk OLV NL 1Y Ent wMDOP","Enterprise","Non-Specific","1 Year(s)","Systems","Non-Current","Upgr w/MDOP Component","Win Pro","Non-specific","Non-specific","RAB",null,null,82.35,"Win Pro Upgr w/MDOP Component Non-Current Non-Specific RAB"]
["Win Pro Upgr w/MDOP Platform Non-Current C All Languages","FQC-02923","WinPro ALNG UpgrdSAPk OLV C 1Y Pltfrm wMDOP","Platform Offering","C","1 Year(s)","Systems","Non-Current","Upgr w/MDOP Platform","Win Pro","Non-specific","Non-specific","All Languages",null,null,75.3,"Win Pro Upgr w/MDOP Platform Non-Current C All Languages"]
["Win Pro Upgr w/MDOP Platform Non-Current Non-Specific All Languages","FQC-02924","WinPro ALNG UpgrdSAPk OLV NL 1Y Pltfrm wMDOP","Platform Offering","Non-Specific","1 Year(s)","Systems","Non-Current","Upgr w/MDOP Platform","Win Pro","Non-specific","Non-specific","All Languages",null,null,78.3,"Win Pro Upgr w/MDOP Platform Non-Current Non-Specific All Languages"]
["Win Pro Upgr w/MDOP Platform Non-Current C RAB","FQC-02925","WinPro RAB UpgrdSAPk OLV C 1Y Pltfrm wMDOP","Platform Offering","C","1 Year(s)","Systems","Non-Current","Upgr w/MDOP Platform","Win Pro","Non-specific","Non-specific","RAB",null,null,75.3,"Win Pro Upgr w/MDOP Platform Non-Current C RAB"]
["Win Pro Upgr w/MDOP Platform Non-Current Non-Specific RAB","FQC-02926","WinPro RAB UpgrdSAPk OLV NL 1Y Pltfrm wMDOP","Platform Offering","Non-Specific","1 Year(s)","Systems","Non-Current","Upgr w/MDOP Platform","Win Pro","Non-specific","Non-specific","RAB",null,null,78.3,"Win Pro Upgr w/MDOP Platform Non-Current Non-Specific RAB"]
["Win Pro Upgr Component Non-Current C All Languages","FQC-02141","WinPro ALNG UpgrdSAPk OLV C 1Y Ent","Enterprise","C","1 Year(s)","Systems","Non-Current","Upgr Component","Win Pro","Non-specific","Non-specific","All Languages",null,null,68.550000000000011,"Win Pro Upgr Component Non-Current C All Languages"]
["Win Pro Upgr Component Non-Current Non-Specific All Languages","FQC-02142","WinPro ALNG UpgrdSAPk OLV NL 1Y Ent","Enterprise","Non-Specific","1 Year(s)","Systems","Non-Current","Upgr Component","Win Pro","Non-specific","Non-specific","All Languages",null,null,71.100000000000009,"Win Pro Upgr Component Non-Current Non-Specific All Languages"]
["Win Pro Upgr Component Non-Current C RAB","FQC-02734","WinPro RAB UpgrdSAPk OLV C 1Y Ent","Enterprise","C","1 Year(s)","Systems","Non-Current","Upgr Component","Win Pro","Non-specific","Non-specific","RAB",null,null,68.550000000000011,"Win Pro Upgr Component Non-Current C RAB"]
["Win Pro Upgr Component Non-Current Non-Specific RAB","FQC-02735","WinPro RAB UpgrdSAPk OLV NL 1Y Ent","Enterprise","Non-Specific","1 Year(s)","Systems","Non-Current","Upgr Component","Win Pro","Non-specific","Non-specific","RAB",null,null,71.100000000000009,"Win Pro Upgr Component Non-Current Non-Specific RAB"]
["Win Pro Upgr Platform Non-Current C All Languages","FQC-02151","WinPro ALNG UpgrdSAPk OLV C 1Y Pltfrm","Platform Offering","C","1 Year(s)","Systems","Non-Current","Upgr Platform","Win Pro","Non-specific","Non-specific","All Languages",null,null,65.099999999999994,{"$f":"CONCATENATE(J103,\" \",I103,\" \",H103,\" \",E103,\" \",M103)","v":"Win Pro Upgr Platform Non-Current C All Languages"}]
["Win Pro Upgr Platform Non-Current Non-Specific All Languages","FQC-02152","WinPro ALNG UpgrdSAPk OLV NL 1Y Pltfrm","Platform Offering","Non-Specific","1 Year(s)","Systems","Non-Current","Upgr Platform","Win Pro","Non-specific","Non-specific","All Languages",null,null,67.649999999999991,"Win Pro Upgr Platform Non-Current Non-Specific All Languages"]
["Win Pro Upgr Platform Non-Current C RAB","FQC-02744","WinPro RAB UpgrdSAPk OLV C 1Y Pltfrm","Platform Offering","C","1 Year(s)","Systems","Non-Current","Upgr Platform","Win Pro","Non-specific","Non-specific","RAB",null,null,65.099999999999994,"Win Pro Upgr Platform Non-Current C RAB"]
["Win Pro Upgr Platform Non-Current Non-Specific RAB","FQC-02745","WinPro RAB UpgrdSAPk OLV NL 1Y Pltfrm","Platform Offering","Non-Specific","1 Year(s)","Systems","Non-Current","Upgr Platform","Win Pro","Non-specific","Non-specific","RAB",null,null,67.649999999999991,"Win Pro Upgr Platform Non-Current Non-Specific RAB"]
[]
[null,"Discountul UTD se ofera clientilor care detin produse in versiuni anterioare  (N, N-1) - vezi sectiunea Specificatii pentru detalii"]
[null,"W06-01591","CoreCAL ALNG LicSAPk OLV C 1Yr PltfrmUTD DvcCAL","Platform Up-to-date","C","1 Year(s)","Servers","Current (UTD)",{"$f":"IF(D109=\"Up To Date\",\"Component UTD\",\"Platform UTD\")","v":"Platform UTD"},"Core CAL (Client Access License)","Non-specific","Non-specific","All Languages",null,null,29.849999999999998,{"$f":"CONCATENATE(J109,\" \",I109,\" \",H109,\" \",E109,\" \",M109)","v":"Core CAL (Client Access License) Platform UTD Current (UTD) C All Languages"}]
["Core CAL (Client Access License) Platform UTD Current (UTD) C All Languages","W06-01593","CoreCAL ALNG LicSAPk OLV C 1Yr PltfrmUTD UsrCAL","Platform Up-to-date","C","1 Year(s)","Servers","Current (UTD)",{"$f":"IF(D110=\"Up To Date\",\"Component UTD\",\"Platform UTD\")","v":"Platform UTD"},"Core CAL (Client Access License)","Non-specific","Non-specific","All Languages",null,null,29.849999999999998,"Core CAL (Client Access License) Platform UTD Current (UTD) C All Languages"]
[null,"W06-01027","CoreCAL ALNG LicSAPk OLV C 1Yr UTD DvcCAL","Up To Date","C","1 Year(s)","Servers","Current (UTD)","Component UTD","Core CAL (Client Access License)","Non-specific","Non-specific","All Languages",null,null,31.5,"Core CAL (Client Access License) Component UTD Current (UTD) C All Languages"]
["Core CAL (Client Access License) Component UTD Current (UTD) C All Languages","W06-01028","CoreCAL ALNG LicSAPk OLV C 1Yr UTD UsrCAL","Up To Date","C","1 Year(s)","Servers","Current (UTD)","Component UTD","Core CAL (Client Access License)","Non-specific","Non-specific","All Languages",null,null,31.5,"Core CAL (Client Access License) Component UTD Current (UTD) C All Languages"]
[null,"W06-01592","CoreCAL ALNG LicSAPk OLV NL 1Yr PltfrmUTD DvcCAL","Platform Up-to-date","Non-Specific","1 Year(s)","Servers","Current (UTD)","Platform UTD","Core CAL (Client Access License)","Non-specific","Non-specific","All Languages",null,null,31.05,"Core CAL (Client Access License) Platform UTD Current (UTD) Non-Specific All Languages"]
["Core CAL (Client Access License) Platform UTD Current (UTD) Non-Specific All Languages","W06-01594","CoreCAL ALNG LicSAPk OLV NL 1Yr PltfrmUTD UsrCAL","Platform Up-to-date","Non-Specific","1 Year(s)","Servers","Current (UTD)","Platform UTD","Core CAL (Client Access License)","Non-specific","Non-specific","All Languages",null,null,31.05,"Core CAL (Client Access License) Platform UTD Current (UTD) Non-Specific All Languages"]
[null,"W06-00794","CoreCAL ALNG LicSAPk OLV NL 1Yr UTD DvcCAL","Up To Date","Non-Specific","1 Year(s)","Servers","Current (UTD)","Component UTD","Core CAL (Client Access License)","Non-specific","Non-specific","All Languages",null,null,32.700000000000003,"Core CAL (Client Access License) Component UTD Current (UTD) Non-Specific All Languages"]
["Core CAL (Client Access License) Component UTD Current (UTD) Non-Specific All Languages","W06-00858","CoreCAL ALNG LicSAPk OLV NL 1Yr UTD UsrCAL","Up To Date","Non-Specific","1 Year(s)","Servers","Current (UTD)","Component UTD","Core CAL (Client Access License)","Non-specific","Non-specific","All Languages",null,null,32.700000000000003,"Core CAL (Client Access License) Component UTD Current (UTD) Non-Specific All Languages"]
[null,"W06-01595","CoreCAL RAB LicSAPk OLV C 1Yr PltfrmUTD DvcCAL","Platform Up-to-date","C","1 Year(s)","Servers","Current (UTD)","Platform UTD","Core CAL (Client Access License)","Non-specific","Non-specific","RAB",null,null,29.849999999999998,"Core CAL (Client Access License) Platform UTD Current (UTD) C RAB"]
["Core CAL (Client Access License) Platform UTD Current (UTD) C RAB","W06-01597","CoreCAL RAB LicSAPk OLV C 1Yr PltfrmUTD UsrCAL","Platform Up-to-date","C","1 Year(s)","Servers","Current (UTD)","Platform UTD","Core CAL (Client Access License)","Non-specific","Non-specific","RAB",null,null,29.849999999999998,"Core CAL (Client Access License) Platform UTD Current (UTD) C RAB"]
[null,"W06-01187","CoreCAL RAB LicSAPk OLV C 1Yr UTD DvcCAL","Up To Date","C","1 Year(s)","Servers","Current (UTD)","Component UTD","Core CAL (Client Access License)","Non-specific","Non-specific","RAB",null,null,31.5,"Core CAL (Client Access License) Component UTD Current (UTD) C RAB"]
["Core CAL (Client Access License) Component UTD Current (UTD) C RAB","W06-01188","CoreCAL RAB LicSAPk OLV C 1Yr UTD UsrCAL","Up To Date","C","1 Year(s)","Servers","Current (UTD)","Component UTD","Core CAL (Client Access License)","Non-specific","Non-specific","RAB",null,null,31.5,"Core CAL (Client Access License) Component UTD Current (UTD) C RAB"]
[null,"W06-01596","CoreCAL RAB LicSAPk OLV NL 1Yr PltfrmUTD DvcCAL","Platform Up-to-date","Non-Specific","1 Year(s)","Servers","Current (UTD)","Platform UTD","Core CAL (Client Access License)","Non-specific","Non-specific","RAB",null,null,31.05,"Core CAL (Client Access License) Platform UTD Current (UTD) Non-Specific RAB"]
["Core CAL (Client Access License) Platform UTD Current (UTD) Non-Specific RAB","W06-01598","CoreCAL RAB LicSAPk OLV NL 1Yr PltfrmUTD UsrCAL","Platform Up-to-date","Non-Specific","1 Year(s)","Servers","Current (UTD)","Platform UTD","Core CAL (Client Access License)","Non-specific","Non-specific","RAB",null,null,31.05,"Core CAL (Client Access License) Platform UTD Current (UTD) Non-Specific RAB"]
[null,"W06-01235","CoreCAL RAB LicSAPk OLV NL 1Yr UTD DvcCAL","Up To Date","Non-Specific","1 Year(s)","Servers","Current (UTD)","Component UTD","Core CAL (Client Access License)","Non-specific","Non-specific","RAB",null,null,32.700000000000003,"Core CAL (Client Access License) Component UTD Current (UTD) Non-Specific RAB"]
["Core CAL (Client Access License) Component UTD Current (UTD) Non-Specific RAB","W06-01236","CoreCAL RAB LicSAPk OLV NL 1Yr UTD UsrCAL","Up To Date","Non-Specific","1 Year(s)","Servers","Current (UTD)","Component UTD","Core CAL (Client Access License)","Non-specific","Non-specific","RAB",null,null,32.700000000000003,"Core CAL (Client Access License) Component UTD Current (UTD) Non-Specific RAB"]
[null,"76A-00818","EntCAL ALNG LicSAPk OLV C 1Yr PltfrmUTD DvcCAL wSrvcs","Platform Up-to-date","C","1 Year(s)","Servers","Current (UTD)","Platform UTD","Enterprise CAL","Non-specific","Non-specific","All Languages",null,null,75.974999999999994,"Enterprise CAL Platform UTD Current (UTD) C All Languages"]
["Enterprise CAL Platform UTD Current (UTD) C All Languages","76A-00820","EntCAL ALNG LicSAPk OLV C 1Yr PltfrmUTD UsrCAL wSrvcs","Platform Up-to-date","C","1 Year(s)","Servers","Current (UTD)","Platform UTD","Enterprise CAL","Non-specific","Non-specific","All Languages",null,null,75.974999999999994,"Enterprise CAL Platform UTD Current (UTD) C All Languages"]
[null,"76A-00830","EntCAL ALNG LicSAPk OLV C 1Yr UTD DvcCAL wSrvcs","Up To Date","C","1 Year(s)","Servers","Current (UTD)","Component UTD","Enterprise CAL","Non-specific","Non-specific","All Languages",null,null,79.95,"Enterprise CAL Component UTD Current (UTD) C All Languages"]
["Enterprise CAL Component UTD Current (UTD) C All Languages","76A-00832","EntCAL ALNG LicSAPk OLV C 1Yr UTD UsrCAL wSrvcs","Up To Date","C","1 Year(s)","Servers","Current (UTD)","Component UTD","Enterprise CAL","Non-specific","Non-specific","All Languages",null,null,79.95,"Enterprise CAL Component UTD Current (UTD) C All Languages"]
[null,"76A-00819","EntCAL ALNG LicSAPk OLV NL 1Yr PltfrmUTD DvcCAL wSrvcs","Platform Up-to-date","Non-Specific","1 Year(s)","Servers","Current (UTD)","Platform UTD","Enterprise CAL","Non-specific","Non-specific","All Languages",null,null,82.8,"Enterprise CAL Platform UTD Current (UTD) Non-Specific All Languages"]
["Enterprise CAL Platform UTD Current (UTD) Non-Specific All Languages","76A-00821","EntCAL ALNG LicSAPk OLV NL 1Yr PltfrmUTD UsrCAL wSrvcs","Platform Up-to-date","Non-Specific","1 Year(s)","Servers","Current (UTD)","Platform UTD","Enterprise CAL","Non-specific","Non-specific","All Languages",null,null,82.8,"Enterprise CAL Platform UTD Current (UTD) Non-Specific All Languages"]
[null,"76A-00831","EntCAL ALNG LicSAPk OLV NL 1Yr UTD DvcCAL wSrvcs","Up To Date","Non-Specific","1 Year(s)","Servers","Current (UTD)","Component UTD","Enterprise CAL","Non-specific","Non-specific","All Languages",null,null,87.15,"Enterprise CAL Component UTD Current (UTD) Non-Specific All Languages"]
["Enterprise CAL Component UTD Current (UTD) Non-Specific All Languages","76A-00833","EntCAL ALNG LicSAPk OLV NL 1Yr UTD UsrCAL wSrvcs","Up To Date","Non-Specific","1 Year(s)","Servers","Current (UTD)","Component UTD","Enterprise CAL","Non-specific","Non-specific","All Languages",null,null,87.15,"Enterprise CAL Component UTD Current (UTD) Non-Specific All Languages"]
[null,"76A-00822","EntCAL RAB LicSAPk OLV C 1Yr PltfrmUTD DvcCAL wSrvcs","Platform Up-to-date","C","1 Year(s)","Servers","Current (UTD)","Platform UTD","Enterprise CAL","Non-specific","Non-specific","RAB",null,null,75.974999999999994,"Enterprise CAL Platform UTD Current (UTD) C RAB"]
["Enterprise CAL Platform UTD Current (UTD) C RAB","76A-00824","EntCAL RAB LicSAPk OLV C 1Yr PltfrmUTD UsrCAL wSrvcs","Platform Up-to-date","C","1 Year(s)","Servers","Current (UTD)","Platform UTD","Enterprise CAL","Non-specific","Non-specific","RAB",null,null,75.974999999999994,"Enterprise CAL Platform UTD Current (UTD) C RAB"]
[null,"76A-00834","EntCAL RAB LicSAPk OLV C 1Yr UTD DvcCAL wSrvcs","Up To Date","C","1 Year(s)","Servers","Current (UTD)","Component UTD","Enterprise CAL","Non-specific","Non-specific","RAB",null,null,79.95,"Enterprise CAL Component UTD Current (UTD) C RAB"]
["Enterprise CAL Component UTD Current (UTD) C RAB","76A-00836","EntCAL RAB LicSAPk OLV C 1Yr UTD UsrCAL wSrvcs","Up To Date","C","1 Year(s)","Servers","Current (UTD)","Component UTD","Enterprise CAL","Non-specific","Non-specific","RAB",null,null,79.95,"Enterprise CAL Component UTD Current (UTD) C RAB"]
[null,"76A-00823","EntCAL RAB LicSAPk OLV NL 1Yr PltfrmUTD DvcCAL wSrvcs","Platform Up-to-date","Non-Specific","1 Year(s)","Servers","Current (UTD)","Platform UTD","Enterprise CAL","Non-specific","Non-specific","RAB",null,null,82.8,"Enterprise CAL Platform UTD Current (UTD) Non-Specific RAB"]
["Enterprise CAL Platform UTD Current (UTD) Non-Specific RAB","76A-00825","EntCAL RAB LicSAPk OLV NL 1Yr PltfrmUTD UsrCAL wSrvcs","Platform Up-to-date","Non-Specific","1 Year(s)","Servers","Current (UTD)","Platform UTD","Enterprise CAL","Non-specific","Non-specific","RAB",null,null,82.8,"Enterprise CAL Platform UTD Current (UTD) Non-Specific RAB"]
[null,"76A-00835","EntCAL RAB LicSAPk OLV NL 1Yr UTD DvcCAL wSrvcs","Up To Date","Non-Specific","1 Year(s)","Servers","Current (UTD)","Component UTD","Enterprise CAL","Non-specific","Non-specific","RAB",null,null,87.15,"Enterprise CAL Component UTD Current (UTD) Non-Specific RAB"]
["Enterprise CAL Component UTD Current (UTD) Non-Specific RAB","76A-00837","EntCAL RAB LicSAPk OLV NL 1Yr UTD UsrCAL wSrvcs","Up To Date","Non-Specific","1 Year(s)","Servers","Current (UTD)","Component UTD","Enterprise CAL","Non-specific","Non-specific","RAB",null,null,87.15,"Enterprise CAL Component UTD Current (UTD) Non-Specific RAB"]
["Office Professional Plus Platform UTD Current (UTD) C All Languages","79P-02403","OfficeProPlus ALNG LicSAPk OLV C 1Yr PltfrmUTD","Platform Up-to-date","C","1 Year(s)","Applications","Current (UTD)","Platform UTD","Office Professional Plus","Non-specific","Non-specific","All Languages",null,null,88.424999999999997,"Office Professional Plus Platform UTD Current (UTD) C All Languages"]
["Office Professional Plus Component UTD Current (UTD) C All Languages","269-10041","OfficeProPlus ALNG LicSAPk OLV C 1Yr UTD","Up To Date","C","1 Year(s)","Applications","Current (UTD)","Component UTD","Office Professional Plus","Non-specific","Non-specific","All Languages",null,null,93.074999999999989,"Office Professional Plus Component UTD Current (UTD) C All Languages"]
["Office Professional Plus Platform UTD Current (UTD) Non-Specific All Languages","79P-02404","OfficeProPlus ALNG LicSAPk OLV NL 1Yr PltfrmUTD","Platform Up-to-date","Non-Specific","1 Year(s)","Applications","Current (UTD)","Platform UTD","Office Professional Plus","Non-specific","Non-specific","All Languages",null,null,91.875,"Office Professional Plus Platform UTD Current (UTD) Non-Specific All Languages"]
["Office Professional Plus Component UTD Current (UTD) Non-Specific All Languages","269-09649","OfficeProPlus ALNG LicSAPk OLV NL 1Yr UTD","Up To Date","Non-Specific","1 Year(s)","Applications","Current (UTD)","Component UTD","Office Professional Plus","Non-specific","Non-specific","All Languages",null,null,96.675000000000011,"Office Professional Plus Component UTD Current (UTD) Non-Specific All Languages"]
["Office Professional Plus Platform UTD Current (UTD) C RAB","79P-02405","OfficeProPlus RAB LicSAPk OLV C 1Yr PltfrmUTD","Platform Up-to-date","C","1 Year(s)","Applications","Current (UTD)","Platform UTD","Office Professional Plus","Non-specific","Non-specific","RAB",null,null,74.25,"Office Professional Plus Platform UTD Current (UTD) C RAB"]
["Office Professional Plus Component UTD Current (UTD) C RAB","79P-01873","OfficeProPlus RAB LicSAPk OLV C 1Yr UTD","Up To Date","C","1 Year(s)","Applications","Current (UTD)","Component UTD","Office Professional Plus","Non-specific","Non-specific","RAB",null,null,78.150000000000006,"Office Professional Plus Component UTD Current (UTD) C RAB"]
["Office Professional Plus Platform UTD Current (UTD) Non-Specific RAB","79P-02406","OfficeProPlus RAB LicSAPk OLV NL 1Yr PltfrmUTD","Platform Up-to-date","Non-Specific","1 Year(s)","Applications","Current (UTD)","Platform UTD","Office Professional Plus","Non-specific","Non-specific","RAB",null,null,77.174999999999997,"Office Professional Plus Platform UTD Current (UTD) Non-Specific RAB"]
["Office Professional Plus Component UTD Current (UTD) Non-Specific RAB","79P-01874","OfficeProPlus RAB LicSAPk OLV NL 1Yr UTD","Up To Date","Non-Specific","1 Year(s)","Applications","Current (UTD)","Component UTD","Office Professional Plus","Non-specific","Non-specific","RAB",null,null,81.225000000000009,"Office Professional Plus Component UTD Current (UTD) Non-Specific RAB"]
[null,"6UA-02454","WinSBCALSte ALNG LicSAPk OLV C 1Yr PltfrmUTD DvcCAL","Platform Up-to-date","C","1 Year(s)","Servers","Current (UTD)",{"$f":"IF(D149=\"Up To Date\",\"Component UTD\",\"Platform UTD\")","v":"Platform UTD"},"Windows Small Bus CAL Ste","Non-specific","Non-specific","All Languages",null,null,10.125,"Windows Small Bus CAL Ste Platform UTD Current (UTD) C All Languages"]
["Windows Small Bus CAL Ste Platform UTD Current (UTD) C All Languages","6UA-02456","WinSBCALSte ALNG LicSAPk OLV C 1Yr PltfrmUTD UsrCAL","Platform Up-to-date","C","1 Year(s)","Servers","Current (UTD)","Platform UTD","Windows Small Bus CAL Ste","Non-specific","Non-specific","All Languages",null,null,10.125,"Windows Small Bus CAL Ste Platform UTD Current (UTD) C All Languages"]
[null,"6UA-01535","WinSBCALSte ALNG LicSAPk OLV C 1Yr UTD DvcCAL","Up To Date","C","1 Year(s)","Servers","Current (UTD)","Component UTD","Windows Small Bus CAL Ste","Non-specific","Non-specific","All Languages",null,null,10.575000000000001,"Windows Small Bus CAL Ste Component UTD Current (UTD) C All Languages"]
["Windows Small Bus CAL Ste Component UTD Current (UTD) C All Languages","6UA-01537","WinSBCALSte ALNG LicSAPk OLV C 1Yr UTD UsrCAL","Up To Date","C","1 Year(s)","Servers","Current (UTD)","Component UTD","Windows Small Bus CAL Ste","Non-specific","Non-specific","All Languages",null,null,10.575000000000001,"Windows Small Bus CAL Ste Component UTD Current (UTD) C All Languages"]
[null,"6UA-02455","WinSBCALSte ALNG LicSAPk OLV NL 1Yr PltfrmUTD DvcCAL","Platform Up-to-date","Non-Specific","1 Year(s)","Servers","Current (UTD)","Platform UTD","Windows Small Bus CAL Ste","Non-specific","Non-specific","All Languages",null,null,10.5,"Windows Small Bus CAL Ste Platform UTD Current (UTD) Non-Specific All Languages"]
["Windows Small Bus CAL Ste Platform UTD Current (UTD) Non-Specific All Languages","6UA-02457","WinSBCALSte ALNG LicSAPk OLV NL 1Yr PltfrmUTD UsrCAL","Platform Up-to-date","Non-Specific","1 Year(s)","Servers","Current (UTD)","Platform UTD","Windows Small Bus CAL Ste","Non-specific","Non-specific","All Languages",null,null,10.5,"Windows Small Bus CAL Ste Platform UTD Current (UTD) Non-Specific All Languages"]
[null,"6UA-01536","WinSBCALSte ALNG LicSAPk OLV NL 1Yr UTD DvcCAL","Up To Date","Non-Specific","1 Year(s)","Servers","Current (UTD)","Component UTD","Windows Small Bus CAL Ste","Non-specific","Non-specific","All Languages",null,null,11.025,"Windows Small Bus CAL Ste Component UTD Current (UTD) Non-Specific All Languages"]
["Windows Small Bus CAL Ste Component UTD Current (UTD) Non-Specific All Languages","6UA-01538","WinSBCALSte ALNG LicSAPk OLV NL 1Yr UTD UsrCAL","Up To Date","Non-Specific","1 Year(s)","Servers","Current (UTD)","Component UTD","Windows Small Bus CAL Ste","Non-specific","Non-specific","All Languages",null,null,11.025,"Windows Small Bus CAL Ste Component UTD Current (UTD) Non-Specific All Languages"]
[null,"6UA-02458","WinSBCALSte RAB LicSAPk OLV C 1Yr PltfrmUTD DvcCAL","Platform Up-to-date","C","1 Year(s)","Servers","Current (UTD)","Platform UTD","Windows Small Bus CAL Ste","Non-specific","Non-specific","RAB",null,null,10.125,"Windows Small Bus CAL Ste Platform UTD Current (UTD) C RAB"]
["Windows Small Bus CAL Ste Platform UTD Current (UTD) C RAB","6UA-02460","WinSBCALSte RAB LicSAPk OLV C 1Yr PltfrmUTD UsrCAL","Platform Up-to-date","C","1 Year(s)","Servers","Current (UTD)","Platform UTD","Windows Small Bus CAL Ste","Non-specific","Non-specific","RAB",null,null,10.125,"Windows Small Bus CAL Ste Platform UTD Current (UTD) C RAB"]
[null,"6UA-01715","WinSBCALSte RAB LicSAPk OLV C 1Yr UTD DvcCAL","Up To Date","C","1 Year(s)","Servers","Current (UTD)","Component UTD","Windows Small Bus CAL Ste","Non-specific","Non-specific","RAB",null,null,10.575000000000001,"Windows Small Bus CAL Ste Component UTD Current (UTD) C RAB"]
["Windows Small Bus CAL Ste Component UTD Current (UTD) C RAB","6UA-01717","WinSBCALSte RAB LicSAPk OLV C 1Yr UTD UsrCAL","Up To Date","C","1 Year(s)","Servers","Current (UTD)","Component UTD","Windows Small Bus CAL Ste","Non-specific","Non-specific","RAB",null,null,10.575000000000001,"Windows Small Bus CAL Ste Component UTD Current (UTD) C RAB"]
[null,"6UA-02459","WinSBCALSte RAB LicSAPk OLV NL 1Yr PltfrmUTD DvcCAL","Platform Up-to-date","Non-Specific","1 Year(s)","Servers","Current (UTD)","Platform UTD","Windows Small Bus CAL Ste","Non-specific","Non-specific","RAB",null,null,10.5,"Windows Small Bus CAL Ste Platform UTD Current (UTD) Non-Specific RAB"]
["Windows Small Bus CAL Ste Platform UTD Current (UTD) Non-Specific RAB","6UA-02461","WinSBCALSte RAB LicSAPk OLV NL 1Yr PltfrmUTD UsrCAL","Platform Up-to-date","Non-Specific","1 Year(s)","Servers","Current (UTD)","Platform UTD","Windows Small Bus CAL Ste","Non-specific","Non-specific","RAB",null,null,10.5,"Windows Small Bus CAL Ste Platform UTD Current (UTD) Non-Specific RAB"]
[null,"6UA-01716","WinSBCALSte RAB LicSAPk OLV NL 1Yr UTD DvcCAL","Up To Date","Non-Specific","1 Year(s)","Servers","Current (UTD)","Component UTD","Windows Small Bus CAL Ste","Non-specific","Non-specific","RAB",null,null,11.025,"Windows Small Bus CAL Ste Component UTD Current (UTD) Non-Specific RAB"]
["Windows Small Bus CAL Ste Component UTD Current (UTD) Non-Specific RAB","6UA-01718","WinSBCALSte RAB LicSAPk OLV NL 1Yr UTD UsrCAL","Up To Date","Non-Specific","1 Year(s)","Servers","Current (UTD)","Component UTD","Windows Small Bus CAL Ste","Non-specific","Non-specific","RAB",null,null,11.025,"Windows Small Bus CAL Ste Component UTD Current (UTD) Non-Specific RAB"]
[null,"6VA-02632","WinSBSvrPremCALSte ALNG LicSAPk OLV C 1Yr PltfrmUTD DvcCAL","Platform Up-to-date","C","1 Year(s)","Servers","Current (UTD)","Platform UTD","Windows Small Bus Svr Prem CAL Ste","Non-specific","Non-specific","All Languages",null,null,24.824999999999999,"Windows Small Bus Svr Prem CAL Ste Platform UTD Current (UTD) C All Languages"]
["Windows Small Bus Svr Prem CAL Ste Platform UTD Current (UTD) C All Languages","6VA-02634","WinSBSvrPremCALSte ALNG LicSAPk OLV C 1Yr PltfrmUTD UsrCAL","Platform Up-to-date","C","1 Year(s)","Servers","Current (UTD)","Platform UTD","Windows Small Bus Svr Prem CAL Ste","Non-specific","Non-specific","All Languages",null,null,24.824999999999999,"Windows Small Bus Svr Prem CAL Ste Platform UTD Current (UTD) C All Languages"]
[null,"6VA-00991","WinSBSvrPremCALSte ALNG LicSAPk OLV C 1Yr UTD DvcCAL","Up To Date","C","1 Year(s)","Servers","Current (UTD)","Component UTD","Windows Small Bus Svr Prem CAL Ste","Non-specific","Non-specific","All Languages",null,null,26.099999999999998,"Windows Small Bus Svr Prem CAL Ste Component UTD Current (UTD) C All Languages"]
["Windows Small Bus Svr Prem CAL Ste Component UTD Current (UTD) C All Languages","6VA-00993","WinSBSvrPremCALSte ALNG LicSAPk OLV C 1Yr UTD UsrCAL","Up To Date","C","1 Year(s)","Servers","Current (UTD)","Component UTD","Windows Small Bus Svr Prem CAL Ste","Non-specific","Non-specific","All Languages",null,null,26.099999999999998,"Windows Small Bus Svr Prem CAL Ste Component UTD Current (UTD) C All Languages"]
[null,"6VA-02633","WinSBSvrPremCALSte ALNG LicSAPk OLV NL 1Yr PltfrmUTD DvcCAL","Platform Up-to-date","Non-Specific","1 Year(s)","Servers","Current (UTD)","Platform UTD","Windows Small Bus Svr Prem CAL Ste","Non-specific","Non-specific","All Languages",null,null,25.8,"Windows Small Bus Svr Prem CAL Ste Platform UTD Current (UTD) Non-Specific All Languages"]
["Windows Small Bus Svr Prem CAL Ste Platform UTD Current (UTD) Non-Specific All Languages","6VA-02635","WinSBSvrPremCALSte ALNG LicSAPk OLV NL 1Yr PltfrmUTD UsrCAL","Platform Up-to-date","Non-Specific","1 Year(s)","Servers","Current (UTD)","Platform UTD","Windows Small Bus Svr Prem CAL Ste","Non-specific","Non-specific","All Languages",null,null,25.8,"Windows Small Bus Svr Prem CAL Ste Platform UTD Current (UTD) Non-Specific All Languages"]
[null,"6VA-00992","WinSBSvrPremCALSte ALNG LicSAPk OLV NL 1Yr UTD DvcCAL","Up To Date","Non-Specific","1 Year(s)","Servers","Current (UTD)","Component UTD","Windows Small Bus Svr Prem CAL Ste","Non-specific","Non-specific","All Languages",null,null,27.15,"Windows Small Bus Svr Prem CAL Ste Component UTD Current (UTD) Non-Specific All Languages"]
["Windows Small Bus Svr Prem CAL Ste Component UTD Current (UTD) Non-Specific All Languages","6VA-00994","WinSBSvrPremCALSte ALNG LicSAPk OLV NL 1Yr UTD UsrCAL","Up To Date","Non-Specific","1 Year(s)","Servers","Current (UTD)","Component UTD","Windows Small Bus Svr Prem CAL Ste","Non-specific","Non-specific","All Languages",null,null,27.15,"Windows Small Bus Svr Prem CAL Ste Component UTD Current (UTD) Non-Specific All Languages"]
[null,"6VA-02636","WinSBSvrPremCALSte RAB LicSAPk OLV C 1Yr PltfrmUTD DvcCAL","Platform Up-to-date","C","1 Year(s)","Servers","Current (UTD)","Platform UTD","Windows Small Bus Svr Prem CAL Ste","Non-specific","Non-specific","RAB",null,null,24.824999999999999,"Windows Small Bus Svr Prem CAL Ste Platform UTD Current (UTD) C RAB"]
["Windows Small Bus Svr Prem CAL Ste Platform UTD Current (UTD) C RAB","6VA-02638","WinSBSvrPremCALSte RAB LicSAPk OLV C 1Yr PltfrmUTD UsrCAL","Platform Up-to-date","C","1 Year(s)","Servers","Current (UTD)","Platform UTD","Windows Small Bus Svr Prem CAL Ste","Non-specific","Non-specific","RAB",null,null,24.824999999999999,"Windows Small Bus Svr Prem CAL Ste Platform UTD Current (UTD) C RAB"]
[null,"6VA-01171","WinSBSvrPremCALSte RAB LicSAPk OLV C 1Yr UTD DvcCAL","Up To Date","C","1 Year(s)","Servers","Current (UTD)","Component UTD","Windows Small Bus Svr Prem CAL Ste","Non-specific","Non-specific","RAB",null,null,26.099999999999998,"Windows Small Bus Svr Prem CAL Ste Component UTD Current (UTD) C RAB"]
["Windows Small Bus Svr Prem CAL Ste Component UTD Current (UTD) C RAB","6VA-01173","WinSBSvrPremCALSte RAB LicSAPk OLV C 1Yr UTD UsrCAL","Up To Date","C","1 Year(s)","Servers","Current (UTD)","Component UTD","Windows Small Bus Svr Prem CAL Ste","Non-specific","Non-specific","RAB",null,null,26.099999999999998,"Windows Small Bus Svr Prem CAL Ste Component UTD Current (UTD) C RAB"]
[null,"6VA-02637","WinSBSvrPremCALSte RAB LicSAPk OLV NL 1Yr PltfrmUTD DvcCAL","Platform Up-to-date","Non-Specific","1 Year(s)","Servers","Current (UTD)","Platform UTD","Windows Small Bus Svr Prem CAL Ste","Non-specific","Non-specific","RAB",null,null,25.8,"Windows Small Bus Svr Prem CAL Ste Platform UTD Current (UTD) Non-Specific RAB"]
["Windows Small Bus Svr Prem CAL Ste Platform UTD Current (UTD) Non-Specific RAB","6VA-02639","WinSBSvrPremCALSte RAB LicSAPk OLV NL 1Yr PltfrmUTD UsrCAL","Platform Up-to-date","Non-Specific","1 Year(s)","Servers","Current (UTD)","Platform UTD","Windows Small Bus Svr Prem CAL Ste","Non-specific","Non-specific","RAB",null,null,25.8,"Windows Small Bus Svr Prem CAL Ste Platform UTD Current (UTD) Non-Specific RAB"]
[null,"6VA-01172","WinSBSvrPremCALSte RAB LicSAPk OLV NL 1Yr UTD DvcCAL","Up To Date","Non-Specific","1 Year(s)","Servers","Current (UTD)","Component UTD","Windows Small Bus Svr Prem CAL Ste","Non-specific","Non-specific","RAB",null,null,27.15,"Windows Small Bus Svr Prem CAL Ste Component UTD Current (UTD) Non-Specific RAB"]
["Windows Small Bus Svr Prem CAL Ste Component UTD Current (UTD) Non-Specific RAB","6VA-01174","WinSBSvrPremCALSte RAB LicSAPk OLV NL 1Yr UTD UsrCAL","Up To Date","Non-Specific","1 Year(s)","Servers","Current (UTD)","Component UTD","Windows Small Bus Svr Prem CAL Ste","Non-specific","Non-specific","RAB",null,null,27.15,"Windows Small Bus Svr Prem CAL Ste Component UTD Current (UTD) Non-Specific RAB"]
["Win Pro Upgr w/MDOP Platform UTD Current (UTD) C All Languages","FQC-02927","WinPro ALNG UpgrdSAPk OLV C 1Y PltfrmUTD wMDOP","Platform Up-to-date","C","1 Year(s)","Systems","Current (UTD)","Upgr w/MDOP Platform UTD","Win Pro","Non-specific","Non-specific","All Languages",null,null,37.65,"Win Pro Upgr w/MDOP Platform UTD Current (UTD) C All Languages"]
["Win Pro Upgr w/MDOP Platform UTD Current (UTD) Non-Specific All Languages","FQC-02928","WinPro ALNG UpgrdSAPk OLV NL 1Y PltfrmUTD wMDOP","Platform Up-to-date","Non-Specific","1 Year(s)","Systems","Current (UTD)","Upgr w/MDOP Platform UTD","Win Pro","Non-specific","Non-specific","All Languages",null,null,39.15,"Win Pro Upgr w/MDOP Platform UTD Current (UTD) Non-Specific All Languages"]
["Win Pro Upgr w/MDOP Platform UTD Current (UTD) C RAB","FQC-02929","WinPro RAB UpgrdSAPk OLV C 1Y PltfrmUTD wMDOP","Platform Up-to-date","C","1 Year(s)","Systems","Current (UTD)","Upgr w/MDOP Platform UTD","Win Pro","Non-specific","Non-specific","RAB",null,null,37.65,{"$f":"CONCATENATE(J183,\" \",I183,\" \",H183,\" \",E183,\" \",M183)","v":"Win Pro Upgr w/MDOP Platform UTD Current (UTD) C RAB"}]
["Win Pro Upgr w/MDOP Platform UTD Current (UTD) Non-Specific RAB","FQC-02930","WinPro RAB UpgrdSAPk OLV NL 1Y PltfrmUTD wMDOP","Platform Up-to-date","Non-Specific","1 Year(s)","Systems","Current (UTD)","Upgr w/MDOP Platform UTD","Win Pro","Non-specific","Non-specific","RAB",null,null,39.15,"Win Pro Upgr w/MDOP Platform UTD Current (UTD) Non-Specific RAB"]
["Win Pro Upgr w/MDOP Component UTD Current (UTD) C All Languages","FQC-02931","WinPro ALNG UpgrdSAPk OLV C 1Y UTD wMDOP","Up To Date","C","1 Year(s)","Systems","Current (UTD)","Upgr w/MDOP Component UTD","Win Pro","Non-specific","Non-specific","All Languages",null,null,39.674999999999997,"Win Pro Upgr w/MDOP Component UTD Current (UTD) C All Languages"]
["Win Pro Upgr w/MDOP Component UTD Current (UTD) Non-Specific All Languages","FQC-02932","WinPro ALNG UpgrdSAPk OLV NL 1Y UTD wMDOP","Up To Date","Non-Specific","1 Year(s)","Systems","Current (UTD)","Upgr w/MDOP Component UTD","Win Pro","Non-specific","Non-specific","All Languages",null,null,41.174999999999997,"Win Pro Upgr w/MDOP Component UTD Current (UTD) Non-Specific All Languages"]
["Win Pro Upgr w/MDOP Component UTD Current (UTD) C RAB","FQC-02933","WinPro RAB UpgrdSAPk OLV C 1Y UTD wMDOP","Up To Date","C","1 Year(s)","Systems","Current (UTD)","Upgr w/MDOP Component UTD","Win Pro","Non-specific","Non-specific","RAB",null,null,39.674999999999997,"Win Pro Upgr w/MDOP Component UTD Current (UTD) C RAB"]
["Win Pro Upgr w/MDOP Component UTD Current (UTD) Non-Specific RAB","FQC-02934","WinPro RAB UpgrdSAPk OLV NL 1Y UTD wMDOP","Up To Date","Non-Specific","1 Year(s)","Systems","Current (UTD)","Upgr w/MDOP Component UTD","Win Pro","Non-specific","Non-specific","RAB",null,null,41.174999999999997,"Win Pro Upgr w/MDOP Component UTD Current (UTD) Non-Specific RAB"]
["Win Pro Upgr Platform UTD Current (UTD) C All Languages","FQC-02153","WinPro ALNG UpgrdSAPk OLV C 1Y PltfrmUTD","Platform Up-to-date","C","1 Year(s)","Systems","Current (UTD)","Upgr Platform UTD","Win Pro","Non-specific","Non-specific","All Languages",null,null,32.549999999999997,"Win Pro Upgr Platform UTD Current (UTD) C All Languages"]
["Win Pro Upgr Platform UTD Current (UTD) Non-Specific All Languages","FQC-02154","WinPro ALNG UpgrdSAPk OLV NL 1Y PltfrmUTD","Platform Up-to-date","Non-Specific","1 Year(s)","Systems","Current (UTD)","Upgr Platform UTD","Win Pro","Non-specific","Non-specific","All Languages",null,null,33.824999999999996,"Win Pro Upgr Platform UTD Current (UTD) Non-Specific All Languages"]
["Win Pro Upgr Platform UTD Current (UTD) C RAB","FQC-02746","WinPro RAB UpgrdSAPk OLV C 1Y PltfrmUTD","Platform Up-to-date","C","1 Year(s)","Systems","Current (UTD)","Upgr Platform UTD","Win Pro","Non-specific","Non-specific","RAB",null,null,32.549999999999997,"Win Pro Upgr Platform UTD Current (UTD) C RAB"]
["Win Pro Upgr Platform UTD Current (UTD) Non-Specific RAB","FQC-02747","WinPro RAB UpgrdSAPk OLV NL 1Y PltfrmUTD","Platform Up-to-date","Non-Specific","1 Year(s)","Systems","Current (UTD)","Upgr Platform UTD","Win Pro","Non-specific","Non-specific","RAB",null,null,33.824999999999996,{"$f":"CONCATENATE(J192,\" \",I192,\" \",H192,\" \",E192,\" \",M192)","v":"Win Pro Upgr Platform UTD Current (UTD) Non-Specific RAB"}]
["Win Pro Upgr Component UTD Current (UTD) C All Languages","FQC-02155","WinPro ALNG UpgrdSAPk OLV C 1Y UTD","Up To Date","C","1 Year(s)","Systems","Current (UTD)","Upgr Component UTD","Win Pro","Non-specific","Non-specific","All Languages",null,null,34.275000000000006,"Win Pro Upgr Component UTD Current (UTD) C All Languages"]
["Win Pro Upgr Component UTD Current (UTD) Non-Specific All Languages","FQC-02156","WinPro ALNG UpgrdSAPk OLV NL 1Y UTD","Up To Date","Non-Specific","1 Year(s)","Systems","Current (UTD)","Upgr Component UTD","Win Pro","Non-specific","Non-specific","All Languages",null,null,35.550000000000004,"Win Pro Upgr Component UTD Current (UTD) Non-Specific All Languages"]
["Win Pro Upgr Component UTD Current (UTD) C RAB","FQC-02748","WinPro RAB UpgrdSAPk OLV C 1Y UTD","Up To Date","C","1 Year(s)","Systems","Current (UTD)","Upgr Component UTD","Win Pro","Non-specific","Non-specific","RAB",null,null,34.275000000000006,{"$f":"CONCATENATE(J195,\" \",I195,\" \",H195,\" \",E195,\" \",M195)","v":"Win Pro Upgr Component UTD Current (UTD) C RAB"}]
["Win Pro Upgr Component UTD Current (UTD) Non-Specific RAB","FQC-02749","WinPro RAB UpgrdSAPk OLV NL 1Y UTD","Up To Date","Non-Specific","1 Year(s)","Systems","Current (UTD)","Upgr Component UTD","Win Pro","Non-specific","Non-specific","RAB",null,null,35.550000000000004,{"$f":"CONCATENATE(J196,\" \",I196,\" \",H196,\" \",E196,\" \",M196)","v":"Win Pro Upgr Component UTD Current (UTD) Non-Specific RAB"}]
[null,null,null,null,null,null,null,null,null,null,null,null,null,null,null,null,{"$f":"CONCATENATE(J197,\" \",I197,\" \",H197,\" \",E197,\" \",M197)","v":"    "}]
[null,"Produse Aditionale - nivel de pret unic, nu sunt supuse discountului UTD",null,null,null,null,null,null,null,null,null,null,null,null,null,null,"    "]
["Access   C All Languages","077-05652","Access ALNG LicSAPk OLV C 1Yr AP","Additional Product","C","1 Year(s)","Applications",null,null,"Access","Non-specific","Non-specific","All Languages",null,null,93.75,"Access   C All Languages"]
["Access   Non-Specific All Languages","077-03627","Access ALNG LicSAPk OLV NL 1Yr AP","Additional Product","Non-Specific","1 Year(s)","Applications",null,null,"Access","Non-specific","Non-specific","All Languages",null,null,97.5,"Access   Non-Specific All Languages"]
["Antigen Enterprise Manager (Services; monthly)  C All Languages","73F-00039","AntigenEntMgr ALNG SubsVL OLV C 1Mth AP Srvcs","Additional Product","C","1 Month(s)","Servers",null,"(Services; monthly)","Antigen Enterprise Manager","Non-specific","Non-specific","All Languages",null,null,8.0500000000000007,"Antigen Enterprise Manager (Services; monthly)  C All Languages"]
["Antigen Enterprise Manager (Services; monthly)  Non-Specific All Languages","73F-00020","AntigenEntMgr ALNG SubsVL OLV NL 1Mth AP Srvcs","Additional Product","Non-Specific","1 Month(s)","Servers",null,"(Services; monthly)","Antigen Enterprise Manager","Non-specific","Non-specific","All Languages",null,null,9.2750000000000004,"Antigen Enterprise Manager (Services; monthly)  Non-Specific All Languages"]
["AutoRoute Euro   C All Languages","689-01026","AutoRouteEuro ALNG LicSAPk OLV C 1Yr AP","Additional Product","C","1 Year(s)","Applications",null,null,"AutoRoute Euro","Non-specific","Non-specific","All Languages",null,null,15.45,"AutoRoute Euro   C All Languages"]
["AutoRoute Euro   Non-Specific All Languages","689-00741","AutoRouteEuro ALNG LicSAPk OLV NL 1Yr AP","Additional Product","Non-Specific","1 Year(s)","Applications",null,null,"AutoRoute Euro","Non-specific","Non-specific","All Languages",null,null,16.05,"AutoRoute Euro   Non-Specific All Languages"]
["BizTalk Adapter Pack 1 Proc Lic  C All Languages","XRA-00162","BztlkAdptrPk ALNG LicSAPk OLV C 1Yr AP 1Proc","Additional Product","C","1 Year(s)","Servers",null,"1 Proc Lic","BizTalk Adapter Pack","Non-specific","Non-specific","All Languages",null,null,2562.9,"BizTalk Adapter Pack 1 Proc Lic  C All Languages"]
["BizTalk Adapter Pack 1 Proc Lic  Non-Specific All Languages","XRA-00107","BztlkAdptrPk ALNG LicSAPk OLV NL 1Yr AP 1Proc","Additional Product","Non-Specific","1 Year(s)","Servers",null,"1 Proc Lic","BizTalk Adapter Pack","Non-specific","Non-specific","All Languages",null,null,2663.55,"BizTalk Adapter Pack 1 Proc Lic  Non-Specific All Languages"]
["BizTalk Server Branch 1 Proc Lic  C All Languages","HJA-00435","BztlkSvrBrnch ALNG LicSAPk OLV C 1Yr AP 1Proc","Additional Product","C","1 Year(s)","Servers",null,"1 Proc Lic","BizTalk Server Branch","Non-specific","Non-specific","All Languages",null,null,783.9,"BizTalk Server Branch 1 Proc Lic  C All Languages"]
["BizTalk Server Branch 1 Proc Lic  Non-Specific All Languages","HJA-00352","BztlkSvrBrnch ALNG LicSAPk OLV NL 1Yr AP 1Proc","Additional Product","Non-Specific","1 Year(s)","Servers",null,"1 Proc Lic","BizTalk Server Branch","Non-specific","Non-specific","All Languages",null,null,814.5,"BizTalk Server Branch 1 Proc Lic  Non-Specific All Languages"]
["BizTalk Server Developer   C All Languages","R04-00948","BztlkSvrDev ALNG LicSAPk OLV C 1Yr AP","Additional Product","C","1 Year(s)","Servers",null,null,"BizTalk Server Developer","Non-specific","Non-specific","All Languages",null,null,217.35,"BizTalk Server Developer   C All Languages"]
["BizTalk Server Developer   Non-Specific All Languages","R04-00558","BztlkSvrDev ALNG LicSAPk OLV NL 1Yr AP","Additional Product","Non-Specific","1 Year(s)","Servers",null,null,"BizTalk Server Developer","Non-specific","Non-specific","All Languages",null,null,225.75,"BizTalk Server Developer   Non-Specific All Languages"]
["BizTalk Server Enterprise 1 Proc Lic  C All Languages","F52-01761","BztlkSvrEnt ALNG LicSAPk OLV C 1Yr AP 1Proc","Additional Product","C","1 Year(s)","Servers",null,"1 Proc Lic","BizTalk Server Enterprise","Non-specific","Non-specific","All Languages",null,null,15248.25,"BizTalk Server Enterprise 1 Proc Lic  C All Languages"]
["BizTalk Server Enterprise 1 Proc Lic  Non-Specific All Languages","F52-01292","BztlkSvrEnt ALNG LicSAPk OLV NL 1Yr AP 1Proc","Additional Product","Non-Specific","1 Year(s)","Servers",null,"1 Proc Lic","BizTalk Server Enterprise","Non-specific","Non-specific","All Languages",null,null,15847.2,"BizTalk Server Enterprise 1 Proc Lic  Non-Specific All Languages"]
["BizTalk Server Standard 1 Proc Lic  C All Languages","D75-01577","BztlkSvrStd ALNG LicSAPk OLV C 1Yr AP 1Proc","Additional Product","C","1 Year(s)","Servers",null,"1 Proc Lic","BizTalk Server Standard","Non-specific","Non-specific","All Languages",null,null,3702.75,"BizTalk Server Standard 1 Proc Lic  C All Languages"]
["BizTalk Server Standard 1 Proc Lic  Non-Specific All Languages","D75-00851","BztlkSvrStd ALNG LicSAPk OLV NL 1Yr AP 1Proc","Additional Product","Non-Specific","1 Year(s)","Servers",null,"1 Proc Lic","BizTalk Server Standard","Non-specific","Non-specific","All Languages",null,null,3848.25,"BizTalk Server Standard 1 Proc Lic  Non-Specific All Languages"]
["BizTalk Svr Ent RFID 1 Proc Lic C All Languages","DHD-00058","BzTlkSvrEntRFID ALNG LicSAPk OLV C 1Y AP 1Proc","Additional Product","C","1 Year(s)","Servers",null,"1 Proc Lic","BizTalk Svr Ent RFID","Non-specific","Non-specific","All Languages",null,null,2168.1,"BizTalk Svr Ent RFID 1 Proc Lic  C All Languages"]
["BizTalk Svr Ent RFID 1 Proc Lic Non-Specific All Languages","DHD-00059","BzTlkSvrEntRFID ALNG LicSAPk OLV NL 1Y AP 1Proc","Additional Product","Non-Specific","1 Year(s)","Servers",null,"1 Proc Lic","BizTalk Svr Ent RFID","Non-specific","Non-specific","All Languages",null,null,2253.3000000000002,"BizTalk Svr Ent RFID 1 Proc Lic  Non-Specific All Languages"]
["Commerce Server Enterprise 1 Proc Lic  C All Languages","G20-00570","CmmrcSvrEnt ALNG LicSAPk OLV C 1Yr AP 1Proc","Additional Product","C","1 Year(s)","Servers",null,"1 Proc Lic","Commerce Server Enterprise","Non-specific","Non-specific","All Languages",null,null,8712.75,"Commerce Server Enterprise 1 Proc Lic  C All Languages"]
["Commerce Server Enterprise 1 Proc Lic  Non-Specific All Languages","G20-00360","CmmrcSvrEnt ALNG LicSAPk OLV NL 1Yr AP 1Proc","Additional Product","Non-Specific","1 Year(s)","Servers",null,"1 Proc Lic","Commerce Server Enterprise","Non-specific","Non-specific","All Languages",null,null,9055.0499999999993,"Commerce Server Enterprise 1 Proc Lic  Non-Specific All Languages"]
["Commerce Server Standard 1 Proc Lic  C All Languages","532-01330","CmmrcSvrStd ALNG LicSAPk OLV C 1Yr AP 1Proc","Additional Product","C","1 Year(s)","Servers",null,"1 Proc Lic","Commerce Server Standard","Non-specific","Non-specific","All Languages",null,null,3048.8999999999996,"Commerce Server Standard 1 Proc Lic  C All Languages"]
["Commerce Server Standard 1 Proc Lic  Non-Specific All Languages","532-01151","CmmrcSvrStd ALNG LicSAPk OLV NL 1Yr AP 1Proc","Additional Product","Non-Specific","1 Year(s)","Servers",null,"1 Proc Lic","Commerce Server Standard","Non-specific","Non-specific","All Languages",null,null,3168.75,"Commerce Server Standard 1 Proc Lic  Non-Specific All Languages"]
["Desktop Optimization Pack for SA (Per Device; monthly) Non-Specific All Languages","WSB-00074","DsktpOptmztnPkforSA ALNG SubsVL OLV NL 1Mth AP PerDvc forWinSA","Additional Product","Non-Specific","1 Month(s)","Systems",null,"(Per Device; monthly)","Desktop Optimization Pack for SA","Non-specific","Non-specific","All Languages",null,null,1.0125000000000002,"Desktop Optimization Pack for SA (Per Device; monthly)  Non-Specific All Languages"]
["Duet for MS Office and SAP CAL   Non-Specific All Languages","JS6-00187","DuetforOffice&SAPCAL ALNG LicSAPk OLV NL 1Yr AP UsrCAL","Additional Product","Non-Specific","1 Year(s)","Servers",null,null,"Duet for MS Office and SAP CAL","Non-specific","Non-specific","All Languages",null,null,50.7,"Duet for MS Office and SAP CAL   Non-Specific All Languages"]
["Duet for MS Office SAP Svr   Non-Specific All Languages","JS5-00094","DuetforOfficeSAPSvr ALNG LicSAPk OLV NL 1Yr AP","Additional Product","Non-Specific","1 Year(s)","Servers",null,null,"Duet for MS Office SAP Svr","Non-specific","Non-specific","All Languages",null,null,50.7,"Duet for MS Office SAP Svr   Non-Specific All Languages"]
["Duet for MS Office and SAP CAL   C All Languages","JS5-00672","DuetforOfficeSAPSvr ALNG LicSAPk OLV C 1Y AP","Additional Product","C","1 Year(s)","Servers",null,null,"Duet for MS Office and SAP CAL","Non-specific","Non-specific","All Languages",null,null,48.75,"Duet for MS Office and SAP CAL   C All Languages"]
["Duet for MS Office SAP Svr   C All Languages","JS6-01263","DuetforOffice&SAPCAL ALNG LicSAPk OLV C 1Y AP UsrCAL","Additional Product","C","1 Year(s)","Servers",null,null,"Duet for MS Office SAP Svr","Non-specific","Non-specific","All Languages",null,null,48.75,"Duet for MS Office SAP Svr   C All Languages"]
[null,"QYA-00588","DynCRMAddtvCAL ALNG LicSAPk OLV C 1Yr AP DvcCAL","Additional Product","C","1 Year(s)","Servers",null,null,"Dynamics CRM Full Use Add CAL","Non-specific","Non-specific","All Languages",null,null,212.39999999999998,"Dynamics CRM Full Use Add CAL   C All Languages"]
["Dynamics CRM Full Use Add CAL   C All Languages","QYA-00589","DynCRMAddtvCAL ALNG LicSAPk OLV C 1Yr AP UsrCAL","Additional Product","C","1 Year(s)","Servers",null,null,"Dynamics CRM Full Use Add CAL","Non-specific","Non-specific","All Languages",null,null,212.39999999999998,"Dynamics CRM Full Use Add CAL   C All Languages"]
[null,"QYA-00012","DynCRMAddtvCAL ALNG LicSAPk OLV NL 1Yr AP DvcCAL","Additional Product","Non-Specific","1 Year(s)","Servers",null,null,"Dynamics CRM Full Use Add CAL","Non-specific","Non-specific","All Languages",null,null,220.79999999999998,"Dynamics CRM Full Use Add CAL   Non-Specific All Languages"]
["Dynamics CRM Full Use Add CAL   Non-Specific All Languages","QYA-00046","DynCRMAddtvCAL ALNG LicSAPk OLV NL 1Yr AP UsrCAL","Additional Product","Non-Specific","1 Year(s)","Servers",null,null,"Dynamics CRM Full Use Add CAL","Non-specific","Non-specific","All Languages",null,null,220.79999999999998,"Dynamics CRM Full Use Add CAL   Non-Specific All Languages"]
["Dynamics CRM FU Add Extrnl Con   C All Languages","QHA-00303","DynCRMAddtvExtConn ALNG LicSAPk OLV C 1Yr AP","Additional Product","C","1 Year(s)","Servers",null,null,"Dynamics CRM FU Add Extrnl Con","Non-specific","Non-specific","All Languages",null,null,910.65,"Dynamics CRM FU Add Extrnl Con   C All Languages"]
["Dynamics CRM FU Add Extrnl Con   Non-Specific All Languages","QHA-00007","DynCRMAddtvExtConn ALNG LicSAPk OLV NL 1Yr AP","Additional Product","Non-Specific","1 Year(s)","Servers",null,null,"Dynamics CRM FU Add Extrnl Con","Non-specific","Non-specific","All Languages",null,null,946.5,"Dynamics CRM FU Add Extrnl Con   Non-Specific All Languages"]
[null,"ZFA-00584","DynCRMCAL ALNG LicSAPk OLV C 1Yr AP DvcCAL","Additional Product","C","1 Year(s)","Servers",null,null,"Dynamics CRM CAL","Non-specific","Non-specific","All Languages",null,null,303,"Dynamics CRM CAL   C All Languages"]
["Dynamics CRM CAL   C All Languages","ZFA-00585","DynCRMCAL ALNG LicSAPk OLV C 1Yr AP UsrCAL","Additional Product","C","1 Year(s)","Servers",null,null,"Dynamics CRM CAL","Non-specific","Non-specific","All Languages",null,null,303,"Dynamics CRM CAL   C All Languages"]
[null,"ZFA-00447","DynCRMCAL ALNG LicSAPk OLV NL 1Yr AP DvcCAL","Additional Product","Non-Specific","1 Year(s)","Servers",null,null,"Dynamics CRM CAL","Non-specific","Non-specific","All Languages",null,null,314.85000000000002,"Dynamics CRM CAL   Non-Specific All Languages"]
["Dynamics CRM CAL   Non-Specific All Languages","ZFA-00409","DynCRMCAL ALNG LicSAPk OLV NL 1Yr AP UsrCAL","Additional Product","Non-Specific","1 Year(s)","Servers",null,null,"Dynamics CRM CAL","Non-specific","Non-specific","All Languages",null,null,314.85000000000002,"Dynamics CRM CAL   Non-Specific All Languages"]
["Dynamics CRM Enterprise Svr   C All Languages","QJA-01167","DynCRMEntSvr ALNG LicSAPk OLV C 1Yr AP","Additional Product","C","1 Year(s)","Servers",null,null,"Dynamics CRM Enterprise Svr","Non-specific","Non-specific","All Languages",null,null,1517.85,"Dynamics CRM Enterprise Svr   C All Languages"]
["Dynamics CRM Enterprise Svr   Non-Specific All Languages","QJA-00839","DynCRMEntSvr ALNG LicSAPk OLV NL 1Yr AP","Additional Product","Non-Specific","1 Year(s)","Servers",null,null,"Dynamics CRM Enterprise Svr","Non-specific","Non-specific","All Languages",null,null,1577.4,"Dynamics CRM Enterprise Svr   Non-Specific All Languages"]
["Dynamics CRM External Connector   C All Languages","ZGA-00303","DynCRMExtConn ALNG LicSAPk OLV C 1Yr AP","Additional Product","C","1 Year(s)","Servers",null,null,"Dynamics CRM External Connector","Non-specific","Non-specific","All Languages",null,null,1517.85,"Dynamics CRM External Connector   C All Languages"]
["Dynamics CRM External Connector   Non-Specific All Languages","ZGA-00228","DynCRMExtConn ALNG LicSAPk OLV NL 1Yr AP","Additional Product","Non-Specific","1 Year(s)","Servers",null,null,"Dynamics CRM External Connector","Non-specific","Non-specific","All Languages",null,null,1577.4,"Dynamics CRM External Connector   Non-Specific All Languages"]
[null,"QZA-00588","DynCRMLtdCAL ALNG LicSAPk OLV C 1Yr AP DvcCAL","Additional Product","C","1 Year(s)","Servers",null,null,"Dynamics CRM Limited CAL","Non-specific","Non-specific","All Languages",null,null,90.9,"Dynamics CRM Limited CAL   C All Languages"]
["Dynamics CRM Limited CAL   C All Languages","QZA-00589","DynCRMLtdCAL ALNG LicSAPk OLV C 1Yr AP UsrCAL","Additional Product","C","1 Year(s)","Servers",null,null,"Dynamics CRM Limited CAL","Non-specific","Non-specific","All Languages",null,null,90.9,"Dynamics CRM Limited CAL   C All Languages"]
[null,"QZA-00015","DynCRMLtdCAL ALNG LicSAPk OLV NL 1Yr AP DvcCAL","Additional Product","Non-Specific","1 Year(s)","Servers",null,null,"Dynamics CRM Limited CAL","Non-specific","Non-specific","All Languages",null,null,94.5,"Dynamics CRM Limited CAL   Non-Specific All Languages"]
["Dynamics CRM Limited CAL   Non-Specific All Languages","QZA-00254","DynCRMLtdCAL ALNG LicSAPk OLV NL 1Yr AP UsrCAL","Additional Product","Non-Specific","1 Year(s)","Servers",null,null,"Dynamics CRM Limited CAL","Non-specific","Non-specific","All Languages",null,null,94.5,"Dynamics CRM Limited CAL   Non-Specific All Languages"]
["Dynamics CRM Ltd Extrnl Con   C All Languages","Q5A-00303","DynCRMLtdExtConn ALNG LicSAPk OLV C 1Yr AP","Additional Product","C","1 Year(s)","Servers",null,null,"Dynamics CRM Ltd Extrnl Con","Non-specific","Non-specific","All Languages",null,null,607.04999999999995,"Dynamics CRM Ltd Extrnl Con   C All Languages"]
["Dynamics CRM Ltd Extrnl Con   Non-Specific All Languages","Q5A-00007","DynCRMLtdExtConn ALNG LicSAPk OLV NL 1Yr AP","Additional Product","Non-Specific","1 Year(s)","Servers",null,null,"Dynamics CRM Ltd Extrnl Con","Non-specific","Non-specific","All Languages",null,null,630.90000000000009,{"$f":"CONCATENATE(J245,\" \",I245,\" \",H245,\" \",E245,\" \",M245)","v":"Dynamics CRM Ltd Extrnl Con   Non-Specific All Languages"}]
["Dynamics CRM Professional Svr   C All Languages","QCA-01431","DynCRMProSvr ALNG LicSAPk OLV C 1Yr 5Clts AP","Additional Product","C","1 Year(s)","Servers",null,null,"Dynamics CRM Professional Svr","Non-specific","Non-specific","All Languages",null,null,2122.3500000000004,"Dynamics CRM Professional Svr   C All Languages"]
["Dynamics CRM Professional Svr   C All Languages","QCA-01339","DynCRMProSvr ALNG LicSAPk OLV C 1Yr AP","Additional Product","C","1 Year(s)","Servers",null,null,"Dynamics CRM Professional Svr","Non-specific","Non-specific","All Languages",null,null,607.04999999999995,"Dynamics CRM Professional Svr   C All Languages"]
["Dynamics CRM Professional Svr 5 Clts   Non-Specific All Languages","QCA-01050","DynCRMProSvr ALNG LicSAPk OLV NL 1Yr 5Clts AP","Additional Product","Non-Specific","1 Year(s)","Servers",null,null,"Dynamics CRM Professional Svr","Non-specific","Non-specific","All Languages",null,null,2205.9,"Dynamics CRM Professional Svr   Non-Specific All Languages"]
["Dynamics CRM Professional SvrNon-Specific All Languages","QCA-00729","DynCRMProSvr ALNG LicSAPk OLV NL 1Yr AP","Additional Product","Non-Specific","1 Year(s)","Servers",null,null,"Dynamics CRM Professional Svr","Non-specific","Non-specific","All Languages",null,null,630.90000000000009,"Dynamics CRM Professional Svr   Non-Specific All Languages"]
["Dynamics CRM Workgroup Svr   C All Languages","QAA-00382","DynCRMWkgrpSvr ALNG LicSAPk OLV C 1Yr 5Clts AP","Additional Product","C","1 Year(s)","Servers",null,null,"Dynamics CRM Workgroup Svr","Non-specific","Non-specific","All Languages",null,null,758.85,"Dynamics CRM Workgroup Svr   C All Languages"]
["Dynamics CRM Workgroup Svr   Non-Specific All Languages","QAA-00083","DynCRMWkgrpSvr ALNG LicSAPk OLV NL 1Yr AP","Additional Product","Non-Specific","1 Year(s)","Servers",null,null,"Dynamics CRM Workgroup Svr","Non-specific","Non-specific","All Languages",null,null,788.55000000000007,"Dynamics CRM Workgroup Svr   Non-Specific All Languages"]
["Entourage   C All Languages","Q56-00515","Entourage ALNG LicSAPk OLV C 1Yr AP","Additional Product","C","1 Year(s)","Applications",null,null,"Entourage","Non-specific","Non-specific","All Languages",null,null,34.049999999999997,"Entourage   C All Languages"]
["Entourage   Non-Specific All Languages","Q56-00264","Entourage ALNG LicSAPk OLV NL 1Yr AP","Additional Product","Non-Specific","1 Year(s)","Applications",null,null,"Entourage","Non-specific","Non-specific","All Languages",null,null,35.4,"Entourage   Non-Specific All Languages"]
["Excel   C All Languages","065-06861","Excel ALNG LicSAPk OLV C 1Yr AP","Additional Product","C","1 Year(s)","Applications",null,null,"Excel","Non-specific","Non-specific","All Languages",null,null,91.649999999999991,"Excel   C All Languages"]
["Excel   Non-Specific All Languages","065-04766","Excel ALNG LicSAPk OLV NL 1Yr AP","Additional Product","Non-Specific","1 Year(s)","Applications",null,null,"Excel","Non-specific","Non-specific","All Languages",null,null,95.25,"Excel   Non-Specific All Languages"]
["Excel Mac   C All Languages","D46-00789","ExcelMac ALNG LicSAPk OLV C 1Yr AP","Additional Product","C","1 Year(s)","Applications",null,null,"Excel Mac","Non-specific","Non-specific","All Languages",null,null,105.9,"Excel Mac   C All Languages"]
["Excel Mac   Non-Specific All Languages","D46-00525","ExcelMac ALNG LicSAPk OLV NL 1Yr AP","Additional Product","Non-Specific","1 Year(s)","Applications",null,null,"Excel Mac","Non-specific","Non-specific","All Languages",null,null,109.94999999999999,"Excel Mac   Non-Specific All Languages"]
[null,"PGI-00141","ExchgEntCAL ALNG LicSAPk OLV C 1Y AP DvcCAL wSrvcs","Additional Product","C","1 Year(s)","Servers",null,null,"Exchange Enterprise CAL w Svc","Non-specific","Non-specific","All Languages",null,null,32.25,"Exchange Enterprise CAL w Svc   C All Languages"]
["Exchange Enterprise CAL w Svc   C All Languages","PGI-00143","ExchgEntCAL ALNG LicSAPk OLV C 1Y AP UsrCAL wSrvcs","Additional Product","C","1 Year(s)","Servers",null,null,"Exchange Enterprise CAL w Svc","Non-specific","Non-specific","All Languages",null,null,32.25,"Exchange Enterprise CAL w Svc   C All Languages"]
[null,"PGI-00142","ExchgEntCAL ALNG LicSAPk OLV NL 1Y AP DvcCAL wSrvcs","Additional Product","Non-Specific","1 Year(s)","Servers",null,null,"Exchange Enterprise CAL w Svc","Non-specific","Non-specific","All Languages",null,null,33.6,"Exchange Enterprise CAL w Svc   Non-Specific All Languages"]
["Exchange Enterprise CAL w Svc   Non-Specific All Languages","PGI-00144","ExchgEntCAL ALNG LicSAPk OLV NL 1Y AP UsrCAL wSrvcs","Additional Product","Non-Specific","1 Year(s)","Servers",null,null,"Exchange Enterprise CAL w Svc","Non-specific","Non-specific","All Languages",null,null,33.6,"Exchange Enterprise CAL w Svc   Non-Specific All Languages"]
["MS Exchange Hosted Archive (monthly)  C All Languages","74P-00042","ExchgHstdArchv ALNG SubsVL OLV C 1Mth AP PerUsr","Additional Product","C","1 Month(s)","Servers",null,"(monthly)","MS Exchange Hosted Archive","Non-specific","Non-specific","All Languages",null,null,4.8499999999999996,"MS Exchange Hosted Archive (monthly)  C All Languages"]
["MS Exchange Hosted Archive (monthly)  Non-Specific All Languages","74P-00007","ExchgHstdArchv ALNG SubsVL OLV NL 1Mth AP PerUsr","Additional Product","Non-Specific","1 Month(s)","Servers",null,"(monthly)","MS Exchange Hosted Archive","Non-specific","Non-specific","All Languages",null,null,5.0124999999999993,"MS Exchange Hosted Archive (monthly)  Non-Specific All Languages"]
["MS Exchange Hosted Encryption (monthly)  C All Languages","74G-00039","ExchgHstdEncryptn ALNG SubsVL OLV C 1Mth AP PerUsr","Additional Product","C","1 Month(s)","Servers",null,"(monthly)","MS Exchange Hosted Encryption","Non-specific","Non-specific","All Languages",null,null,2.0625,"MS Exchange Hosted Encryption (monthly)  C All Languages"]
["MS Exchange Hosted Encryption (monthly)  Non-Specific All Languages","74G-00007","ExchgHstdEncryptn ALNG SubsVL OLV NL 1Mth AP PerUsr","Additional Product","Non-Specific","1 Month(s)","Servers",null,"(monthly)","MS Exchange Hosted Encryption","Non-specific","Non-specific","All Languages",null,null,2.1375000000000002,"MS Exchange Hosted Encryption (monthly)  Non-Specific All Languages"]
["Exchange Small Business","3ED-00097","ExchgSB ALNG LicSAPk OLV C 1Y AP","Additional Product","C","1 Year(s)","Servers",null,null,"Exchange Small Business","Non-specific","Non-specific","All Languages",null,null,259.20000000000005,"Exchange Small Business   C All Languages"]
["Exchange Small Business","3ED-00098","ExchgSB ALNG LicSAPk OLV NL 1Y AP","Additional Product","Non-Specific","1 Year(s)","Servers",null,null,"Exchange Small Business","Non-specific","Non-specific","All Languages",null,null,269.40000000000003,"Exchange Small Business   Non-Specific All Languages"]
["Exchange Small Business CAL","5ZD-00121","ExchgSBCAL ALNG LicSAPk OLV C 1Y AP DvcCAL","Additional Product","C","1 Year(s)","Servers",null,null,"Exchange Small Business CAL","Non-specific","Non-specific","All Languages",null,null,25.950000000000003,"Exchange Small Business CAL   C All Languages"]
["Exchange Small Business CAL","5ZD-00123","ExchgSBCAL ALNG LicSAPk OLV C 1Y AP UsrCAL","Additional Product","C","1 Year(s)","Servers",null,null,"Exchange Small Business CAL","Non-specific","Non-specific","All Languages",null,null,25.950000000000003,"Exchange Small Business CAL   C All Languages"]
["Exchange Small Business CAL","5ZD-00122","ExchgSBCAL ALNG LicSAPk OLV NL 1Y AP DvcCAL","Additional Product","Non-Specific","1 Year(s)","Servers",null,null,"Exchange Small Business CAL","Non-specific","Non-specific","All Languages",null,null,27.15]
["Exchange Small Business CAL","5ZD-00124","ExchgSBCAL ALNG LicSAPk OLV NL 1Y AP UsrCAL","Additional Product","Non-Specific","1 Year(s)","Servers",null,null,"Exchange Small Business CAL","Non-specific","Non-specific","All Languages",null,null,27.15]
["Exchange Server - Enterprise   C All Languages","395-04245","ExchgSvrEnt ALNG LicSAPk OLV C 1Yr AP","Additional Product","C","1 Year(s)","Servers",null,null,"Exchange Server - Enterprise","Non-specific","Non-specific","All Languages",null,null,1745.5500000000002,"Exchange Server - Enterprise   C All Languages"]
["Exchange Server - Enterprise   Non-Specific All Languages","395-03516","ExchgSvrEnt ALNG LicSAPk OLV NL 1Yr AP","Additional Product","Non-Specific","1 Year(s)","Servers",null,null,"Exchange Server - Enterprise","Non-specific","Non-specific","All Languages",null,null,1814.25,"Exchange Server - Enterprise   Non-Specific All Languages"]
["Exchange Svr ExtrnConn   C All Languages","394-01234","ExchgSvrExtConn ALNG LicSAPk OLV C 1Yr AP","Additional Product","C","1 Year(s)","Servers",null,null,"Exchange Svr ExtrnConn","Non-specific","Non-specific","All Languages",null,null,21783.3,"Exchange Svr ExtrnConn   C All Languages"]
["Exchange Svr ExtrnConn   Non-Specific All Languages","394-00837","ExchgSvrExtConn ALNG LicSAPk OLV NL 1Yr AP","Additional Product","Non-Specific","1 Year(s)","Servers",null,null,"Exchange Svr ExtrnConn","Non-specific","Non-specific","All Languages",null,null,22639.050000000003,"Exchange Svr ExtrnConn   Non-Specific All Languages"]
["Exchange Server - Standard   C All Languages","312-03795","ExchgSvrStd ALNG LicSAPk OLV C 1Yr AP","Additional Product","C","1 Year(s)","Servers",null,null,"Exchange Server - Standard","Non-specific","Non-specific","All Languages",null,null,304.95,"Exchange Server - Standard   C All Languages"]
["Exchange Server - Standard   Non-Specific All Languages","312-03195","ExchgSvrStd ALNG LicSAPk OLV NL 1Yr AP","Additional Product","Non-Specific","1 Year(s)","Servers",null,null,"Exchange Server - Standard","Non-specific","Non-specific","All Languages",null,null,316.95,"Exchange Server - Standard   Non-Specific All Languages"]
["Expression Studio Ultimate   C All Languages","NKF-00396","ExprssnStdioUlt ALNG LicSAPk OLV C 1Yr AP","Additional Product","C","1 Year(s)","Applications",null,null,"Expression Studio Ultimate","Non-specific","Non-specific","All Languages",null,null,236.85,"Expression Studio Ultimate   C All Languages"]
["Expression Studio Ultimate   Non-Specific All Languages","NKF-00397","ExprssnStdioUlt ALNG LicSAPk OLV NL 1Yr AP","Additional Product","Non-Specific","1 Year(s)","Applications",null,null,"Expression Studio Ultimate","Non-specific","Non-specific","All Languages",null,null,246.14999999999998,"Expression Studio Ultimate   Non-Specific All Languages"]
["Expression Studio Web Professional   C All Languages","NHF-00170","ExprssnStdioWebPro ALNG LicSAPk OLV C 1Yr AP","Additional Product","C","1 Year(s)","Applications",null,null,"Expression Studio Web Professional","Non-specific","Non-specific","All Languages",null,null,58.949999999999996,"Expression Studio Web Professional   C All Languages"]
["Expression Studio Web Professional   Non-Specific All Languages","NHF-00171","ExprssnStdioWebPro ALNG LicSAPk OLV NL 1Yr AP","Additional Product","Non-Specific","1 Year(s)","Applications",null,null,"Expression Studio Web Professional","Non-specific","Non-specific","All Languages",null,null,61.2,"Expression Studio Web Professional   Non-Specific All Languages"]
["Expression Encoder Pro   C All Languages","47F-00108","ExprssnEncdrPro ALNG LicSAPk OLV C 1Yr AP","Additional Product","C","1 Year(s)","Applications",null,null,"Expression Encoder Pro","Non-specific","Non-specific","All Languages",null,null,23.55,{"$f":"CONCATENATE(J282,\" \",I282,\" \",H282,\" \",E282,\" \",M282)","v":"Expression Encoder Pro   C All Languages"}]
["Expression Encoder Pro   Non-Specific All Languages","47F-00109","ExprssnEncdrPro ALNG LicSAPk OLV NL 1Yr AP","Additional Product","Non-Specific","1 Year(s)","Applications",null,null,"Expression Encoder Pro","Non-specific","Non-specific","All Languages",null,null,24.6,"Expression Encoder Pro   Non-Specific All Languages"]
[null,"UFB-00288","FrFrntCltSec ALNG SubsVL OLV C 1Mth AP PerDvc","Additional Product","C","1 Month(s)","Servers",null,null,"Forefront Client Security","Non-specific","Non-specific","All Languages",null,null,1.0125000000000002,"Forefront Client Security   C All Languages"]
["Forefront Client Security (Per User; monthly)  C All Languages","UFB-00289","FrFrntCltSec ALNG SubsVL OLV C 1Mth AP PerUsr","Additional Product","C","1 Month(s)","Servers",null,"(Per User; monthly)","Forefront Client Security","Non-specific","Non-specific","All Languages",null,null,1.0125000000000002,"Forefront Client Security (Per User; monthly)  C All Languages"]
[null,"UFB-00095","FrFrntCltSec ALNG SubsVL OLV NL 1Mth AP PerDvc","Additional Product","Non-Specific","1 Month(s)","Servers",null,null,"Forefront Client Security","Non-specific","Non-specific","All Languages",null,null,1.2,"Forefront Client Security   Non-Specific All Languages"]
["Forefront Client Security (Per User; monthly)  Non-Specific All Languages","UFB-00063","FrFrntCltSec ALNG SubsVL OLV NL 1Mth AP PerUsr","Additional Product","Non-Specific","1 Month(s)","Servers",null,"(Per User; monthly)","Forefront Client Security","Non-specific","Non-specific","All Languages",null,null,1.2,"Forefront Client Security (Per User; monthly)  Non-Specific All Languages"]
["Forefront Client Sec Mgt Cnsl (monthly)  C All Languages","FTZ-00125","FrFrntCltSecMgmtCnsl ALNG SubsVL OLV C 1Mth AP","Additional Product","C","1 Month(s)","Servers",null,"(monthly)","Forefront Client Sec Mgt Cnsl","Non-specific","Non-specific","All Languages",null,null,7.8000000000000007,"Forefront Client Sec Mgt Cnsl (monthly)  C All Languages"]
["Forefront Client Sec Mgt Cnsl (wSQL; monthly)  C All Languages","FTZ-00120","FrFrntCltSecMgmtCnsl ALNG SubsVL OLV C 1Mth AP wSQL","Additional Product","C","1 Month(s)","Servers",null,"(wSQL; monthly)","Forefront Client Sec Mgt Cnsl","Non-specific","Non-specific","All Languages",null,null,196.46249999999998,"Forefront Client Sec Mgt Cnsl (wSQL; monthly)  C All Languages"]
["Forefront Client Sec Mgt Cnsl (monthly)  Non-Specific All Languages","FTZ-00050","FrFrntCltSecMgmtCnsl ALNG SubsVL OLV NL 1Mth AP","Additional Product","Non-Specific","1 Month(s)","Servers",null,"(monthly)","Forefront Client Sec Mgt Cnsl","Non-specific","Non-specific","All Languages",null,null,9.2874999999999996,"Forefront Client Sec Mgt Cnsl (monthly)  Non-Specific All Languages"]
["Forefront Client Sec Mgt Cnsl (wSQL; monthly)  Non-Specific All Languages","FTZ-00017","FrFrntCltSecMgmtCnsl ALNG SubsVL OLV NL 1Mth AP wSQL","Additional Product","Non-Specific","1 Month(s)","Servers",null,"(wSQL; monthly)","Forefront Client Sec Mgt Cnsl","Non-specific","Non-specific","All Languages",null,null,233.9375,{"$f":"CONCATENATE(J291,\" \",I291,\" \",H291,\" \",E291,\" \",M291)","v":"Forefront Client Sec Mgt Cnsl (wSQL; monthly)  Non-Specific All Languages"}]
[" ","5FD-00035","FrfrntPrtcnExchgSvr ALNG SubsVL OLV C 1Mth AP PerDvc","Additional Product","C","1 Month(s)","Servers",null,null,"Forefront Protection Exchange Svr","Non-specific","Non-specific","All Languages",null,null,1.1875,{"$f":"CONCATENATE(J292,\" \",I297,\" \",H292,\" \",E292,\" \",M292)","v":"Forefront Protection Exchange Svr (monthly)  C All Languages"}]
[" ","5FD-00036","FrfrntPrtcnExchgSvr ALNG SubsVL OLV NL 1Mth AP PerDvc","Additional Product","Non-Specific","1 Month(s)","Servers",null,null,"Forefront Protection Exchange Svr","Non-specific","Non-specific","All Languages",null,null,1.4000000000000001,{"$f":"CONCATENATE(J293,\" \",I302,\" \",H293,\" \",E293,\" \",M293)","v":"Forefront Protection Exchange Svr (IntrntSitesAdd-on; monthly)  Non-Specific All Languages"}]
["Forefront Protection Exchange Svr (Per User; monthly)  C All Languages","5FD-00037","FrfrntPrtcnExchgSvr ALNG SubsVL OLV C 1Mth AP PerUsr","Additional Product","C","1 Month(s)","Servers",null,"(Per User; monthly)","Forefront Protection Exchange Svr","Non-specific","Non-specific","All Languages",null,null,1.1875,{"$f":"CONCATENATE(J294,\" \",I303,\" \",H294,\" \",E294,\" \",M294)","v":"Forefront Protection Exchange Svr   C All Languages"}]
["Forefront Protection Exchange Svr (Per User; monthly)  Non-Specific All Languages","5FD-00038","FrfrntPrtcnExchgSvr ALNG SubsVL OLV NL 1Mth AP PerUsr","Additional Product","Non-Specific","1 Month(s)","Servers",null,"(Per User; monthly)","Forefront Protection Exchange Svr","Non-specific","Non-specific","All Languages",null,null,1.4000000000000001,{"$f":"CONCATENATE(J295,\" \",I304,\" \",H295,\" \",E295,\" \",M295)","v":"Forefront Protection Exchange Svr (Per User; monthly)  Non-Specific All Languages"}]
["Forefront Protection Exchange Svr Ext Conn (monthly)  C All Languages","5KD-00001","FrfrntPrtcnExchgSvrExtConn ALNG SubsVL OLV C 1Mth AP","Additional Product","C","1 Month(s)","Servers",null,"(monthly)","Forefront Protection Exchange Svr Ext Conn","Non-specific","Non-specific","All Languages",null,null,1339.0374999999999,{"$f":"CONCATENATE(J296,\" \",I305,\" \",H296,\" \",E296,\" \",M296)","v":"Forefront Protection Exchange Svr Ext Conn (IntrntSitesAdd-on; monthly)  C All Languages"}]
["Forefront Protection Exchange Svr Ext Conn (monthly)  Non-Specific All Languages","5KD-00002","FrfrntPrtcnExchgSvrExtConn ALNG SubsVL OLV NL 1Mth AP","Additional Product","Non-Specific","1 Month(s)","Servers",null,"(monthly)","Forefront Protection Exchange Svr Ext Conn","Non-specific","Non-specific","All Languages",null,null,1579.8,{"$f":"CONCATENATE(J297,\" \",I306,\" \",H297,\" \",E297,\" \",M297)","v":"Forefront Protection Exchange Svr Ext Conn   Non-Specific All Languages"}]
[" ","74H-00143","FrfrntOnlnPrtcnforExchg ALNG SubsVL OLV NL 1Mth AP VLPromo PerDvc","Additional Product","Non-Specific","1 Month(s)","Servers",null,"(monthly) PROMO","Forefront Online Protection for Exchange","Non-specific","Non-specific","All Languages",null,null,1.4000000000000001,"Forefront Online Protection for Exchange (monthly) PROMO  Non-Specific All Languages"]
["Forefront Online Protection for Exchange (monthly) PROMO Non-Specific All Languages","74H-00145","FrfrntOnlnPrtcnforExchg ALNG SubsVL OLV NL 1Mth AP VLPromo PerUsr","Additional Product","Non-Specific","1 Month(s)","Servers",null,"(monthly) PROMO","Forefront Online Protection for Exchange","Non-specific","Non-specific","All Languages",null,null,1.4000000000000001,"Forefront Online Protection for Exchange (monthly) PROMO  Non-Specific All Languages"]
[" ","74H-00142","FrfrntOnlnPrtcnforExchg ALNG SubsVL OLV C 1Mth AP VLPromo PerDvc","Additional Product","C","1 Month(s)","Servers",null,"(monthly) PROMO","Forefront Online Protection for Exchange","Non-specific","Non-specific","All Languages",null,null,1.2124999999999999,"Forefront Online Protection for Exchange (monthly) PROMO  C All Languages"]
["Forefront Online Protection for Exchange (monthly) PROMO C All Languages","74H-00144","FrfrntOnlnPrtcnforExchg ALNG SubsVL OLV C 1Mth AP VLPromo PerUsr","Additional Product","C","1 Month(s)","Servers",null,"(monthly) PROMO","Forefront Online Protection for Exchange","Non-specific","Non-specific","All Languages",null,null,1.2124999999999999,"Forefront Online Protection for Exchange (monthly) PROMO  C All Languages"]
["Forefront Sec SharePoint (IntrntSitesAdd-on; monthly)  C All Languages","PFF-00046","FrfrntPrtcnSharePoint ALNG SubsVL OLV C 1Mth AP IntrntSitesAddon AddOn","Additional Product","C","1 Month(s)","Servers",null,"(IntrntSitesAdd-on; monthly)","Frfrnt Prtcn SharePoint","Non-specific","Non-specific","All Languages",null,null,1421.8875,"Frfrnt Prtcn SharePoint (IntrntSitesAdd-on; monthly)  C All Languages"]
[null,"PFF-00065","FrfrntPrtcnSharePoint ALNG SubsVL OLV C 1Mth AP PerDvc","Additional Product","C","1 Month(s)","Servers",null,null,"Frfrnt Prtcn SharePoint","Non-specific","Non-specific","All Languages",null,null,0.5625,"Frfrnt Prtcn SharePoint   C All Languages"]
["Forefront Sec SharePoint (Per User; monthly)  C All Languages","PFF-00067","FrfrntPrtcnSharePoint ALNG SubsVL OLV C 1Mth AP PerUsr","Additional Product","C","1 Month(s)","Servers",null,"(Per User; monthly)","Frfrnt Prtcn SharePoint","Non-specific","Non-specific","All Languages",null,null,0.5625,"Frfrnt Prtcn SharePoint (Per User; monthly)  C All Languages"]
["Forefront Sec SharePoint (IntrntSitesAdd-on; monthly)  Non-Specific All Languages","PFF-00047","FrfrntPrtcnSharePoint ALNG SubsVL OLV NL 1Mth AP IntrntSitesAddon AddOn","Additional Product","Non-Specific","1 Month(s)","Servers",null,"(IntrntSitesAdd-on; monthly)","Frfrnt Prtcn SharePoint","Non-specific","Non-specific","All Languages",null,null,1639.35,"Frfrnt Prtcn SharePoint (IntrntSitesAdd-on; monthly)  Non-Specific All Languages"]
[null,"PFF-00066","FrfrntPrtcnSharePoint ALNG SubsVL OLV NL 1Mth AP PerDvc","Additional Product","Non-Specific","1 Month(s)","Servers",null,null,"Frfrnt Prtcn SharePoint","Non-specific","Non-specific","All Languages",null,null,0.65,"Frfrnt Prtcn SharePoint   Non-Specific All Languages"]
["Forefront Sec SharePoint (Per User; monthly)  Non-Specific All Languages","PFF-00068","FrfrntPrtcnSharePoint ALNG SubsVL OLV NL 1Mth AP PerUsr","Additional Product","Non-Specific","1 Month(s)","Servers",null,"(Per User; monthly)","Frfrnt Prtcn SharePoint","Non-specific","Non-specific","All Languages",null,null,0.65,"Frfrnt Prtcn SharePoint (Per User; monthly)  Non-Specific All Languages"]
[null,"9SE-00158","FrFrntSecSte ALNG SubsVL OLV C 1Mth AP PerDvc","Additional Product","C","1 Month(s)","Servers",null,null,"Forefront Sec Suite","Non-specific","Non-specific","All Languages",null,null,4.3125,"Forefront Sec Suite   C All Languages"]
["Forefront Sec Suite (Per User; monthly)  C All Languages","9SE-00159","FrFrntSecSte ALNG SubsVL OLV C 1Mth AP PerUsr","Additional Product","C","1 Month(s)","Servers",null,"(Per User; monthly)","Forefront Sec Suite","Non-specific","Non-specific","All Languages",null,null,4.3125,"Forefront Sec Suite (Per User; monthly)  C All Languages"]
[null,"9SE-00068","FrFrntSecSte ALNG SubsVL OLV NL 1Mth AP PerDvc","Additional Product","Non-Specific","1 Month(s)","Servers",null,null,"Forefront Sec Suite","Non-specific","Non-specific","All Languages",null,null,5.0625,"Forefront Sec Suite   Non-Specific All Languages"]
["Forefront Sec Suite (Per User; monthly)  Non-Specific All Languages","9SE-00042","FrFrntSecSte ALNG SubsVL OLV NL 1Mth AP PerUsr","Additional Product","Non-Specific","1 Month(s)","Servers",null,"(Per User; monthly)","Forefront Sec Suite","Non-specific","Non-specific","All Languages",null,null,5.0625,"Forefront Sec Suite (Per User; monthly)  Non-Specific All Languages"]
[null,"HTC-00049","FrFrntOfficeCommsSvr ALNG SubsVL OLV C 1Mth AP PerDvc","Additional Product","C","1 Month(s)","Non-Specific",null,"(Per Device; monthly)","Forefront Sec Off Comm Svr","Non-specific","Non-specific","All Languages",null,null,0.5625,"Forefront Sec Off Comm Svr (Per Device; monthly)  C All Languages"]
[null,"HTC-00050","FrFrntOfficeCommsSvr ALNG SubsVL OLV NL 1Mth AP PerDvc","Additional Product","Non-Specific","1 Month(s)","Non-Specific",null,"(Per Device; monthly)","Forefront Sec Off Comm Svr","Non-specific","Non-specific","All Languages",null,null,0.65,"Forefront Sec Off Comm Svr (Per Device; monthly)  Non-Specific All Languages"]
["Forefront Sec Off Comm Svr (Per User; monthly) C All Languages","HTC-00051","FrFrntOfficeCommsSvr ALNG SubsVL OLV C 1Mth AP PerUsr","Additional Product","C","1 Month(s)","Non-Specific",null,"(Per User; monthly)","Forefront Sec Off Comm Svr","Non-specific","Non-specific","All Languages",null,null,0.5625,"Forefront Sec Off Comm Svr (Per User; monthly)  C All Languages"]
["Forefront Sec Off Comm Svr (Per User; monthly) Non-Specific All Languages","HTC-00052","FrFrntOfficeCommsSvr ALNG SubsVL OLV NL 1Mth AP PerUsr","Additional Product","Non-Specific","1 Month(s)","Non-Specific",null,"(Per User; monthly)","Forefront Sec Off Comm Svr","Non-specific","Non-specific","All Languages",null,null,0.65,"Forefront Sec Off Comm Svr (Per User; monthly)  Non-Specific All Languages"]
["Forefront Sec Off Comm Svr ExtConnector AddOn (Services; monthly)  C All Languages","HTC-00089","FrFrntOfficeCommsSvr ALNG SubsVL OLV C 1Mth AP ExtConn AddOn","Additional Product","C","1 Month(s)","Non-Specific",null,"(Services; monthly)","Forefront Sec Off Comm Svr ExtConnector AddOn","Non-specific","Non-specific","All Languages",null,null,1421.8875,"Forefront Sec Off Comm Svr ExtConnector AddOn (Services; monthly)  C All Languages"]
["Forefront Sec Off Comm Svr ExtConnector AddOn (Services; monthly)  Non-Specific All Languages","HTC-00090","FrFrntOfficeCommsSvr ALNG SubsVL OLV NL 1Mth AP ExtConn AddOn","Additional Product","Non-Specific","1 Month(s)","Non-Specific",null,"(Services; monthly)","Forefront Sec Off Comm Svr ExtConnector AddOn","Non-specific","Non-specific","All Languages",null,null,1639.35,"Forefront Sec Off Comm Svr ExtConnector AddOn (Services; monthly)  Non-Specific All Languages"]
["Forefront TMG Enterprise   C All Languages","4VD-00073","FrFrntTMGEnt ALNG LicSAPk OLV C 1Y AP 1Proc","Additional Product","C","1 Year(s)","Servers",null,null,"Forefront TMG Enterprise","Non-specific","Non-specific","All Languages",null,null,2483.1,"Forefront TMG Enterprise   C All Languages"]
["Forefront TMG Enterprise   Non-Specific All Languages","4VD-00074","FrFrntTMGEnt ALNG LicSAPk OLV NL 1Y AP 1Proc","Additional Product","Non-Specific","1 Year(s)","Servers",null,null,"Forefront TMG Enterprise","Non-specific","Non-specific","All Languages",null,null,2580.4500000000003,"Forefront TMG Enterprise   Non-Specific All Languages"]
["Forefront TMG Standard   C All Languages","4WD-00097","FrFrntTMGStd ALNG LicSAPk OLV C 1Y AP 1Proc","Additional Product","C","1 Year(s)","Servers",null,null,"Forefront TMG Standard","Non-specific","Non-specific","All Languages",null,null,564.75,"Forefront TMG Standard   C All Languages"]
["Forefront TMG Standard   Non-Specific All Languages","4WD-00098","FrFrntTMGStd ALNG LicSAPk OLV NL 1Y AP 1Proc","Additional Product","Non-Specific","1 Year(s)","Servers",null,null,"Forefront TMG Standard","Non-specific","Non-specific","All Languages",null,null,586.95000000000005,"Forefront TMG Standard   Non-Specific All Languages"]
["Forefront TMG Web Protection Service (Per User; monthly)  C All Languages","5TD-00001","FrFrntTMGWebPrtcnSrvc ALNG SubsVL OLV C 1Mth AP PerUsr","Additional Product","C","1 Month(s)","Servers",null,"(Per User; monthly)","Forefront TMG Web Protection Service","Non-specific","Non-specific","All Languages",null,null,0.95,"Forefront TMG Web Protection Service (Per User; monthly)  C All Languages"]
["Forefront TMG Web Protection Service (Per User; monthly)  Non-Specific All Languages","5TD-00002","FrFrntTMGWebPrtcnSrvc ALNG SubsVL OLV NL 1Mth AP PerUsr","Additional Product","Non-Specific","1 Month(s)","Servers",null,"(Per User; monthly)","Forefront TMG Web Protection Service","Non-specific","Non-specific","All Languages",null,null,1.1125,"Forefront TMG Web Protection Service (Per User; monthly)  Non-Specific All Languages"]
["Forefront Unified Access Gateway CAL  C All Languages Device CAL","37D-00025","FrFrntUAGCAL ALNG LicSAPk OLV C 1Y AP DvcCAL","Additional Product","C","1 Year(s)","Servers",null,null,"Forefront UAG CAL","Non-specific","Non-specific","All Languages",null,null,5.5500000000000007,"Forefront Unified Access Gateway CAL  C All Languages Device CAL"]
["Forefront Unified Access Gateway CAL  C All Languages User CAL","37D-00027","FrFrntUAGCAL ALNG LicSAPk OLV C 1Y AP UsrCAL","Additional Product","C","1 Year(s)","Servers",null,null,"Forefront UAG CAL","Non-specific","Non-specific","All Languages",null,null,5.5500000000000007,"Forefront Unified Access Gateway CAL  C All Languages User CAL"]
["Forefront Unified Access Gateway CAL  Non-Specific All Languages Device CAL","37D-00026","FrFrntUAGCAL ALNG LicSAPk OLV NL 1Y AP DvcCAL","Additional Product","Non-Specific","1 Year(s)","Servers",null,null,"Forefront UAG CAL","Non-specific","Non-specific","All Languages",null,null,6.75,"Forefront Unified Access Gateway CAL  Non-Specific All Languages Device CAL"]
["Forefront Unified Access Gateway CAL  Non-Specific All Languages User CAL","37D-00028","FrFrntUAGCAL ALNG LicSAPk OLV NL 1Y AP UsrCAL","Additional Product","Non-Specific","1 Year(s)","Servers",null,null,"Forefront UAG CAL","Non-specific","Non-specific","All Languages",null,null,6.75,"Forefront Unified Access Gateway CAL  Non-Specific All Languages User CAL"]
["Forefront Unified Access Gateway External Connector C All Languages","39D-00013","FrFrntUAGExtConn ALNG LicSAPk OLV C 1Y AP","Additional Product","C","1 Year(s)","Servers",null,null,"Forefront UAG Ext Conn","Non-specific","Non-specific","All Languages",null,null,12884.55,"Forefront Unified Access Gateway External Connector C All Languages"]
["Forefront Unified Access Gateway External Connector Non-Specific All Languages","39D-00014","FrFrntUAGExtConn ALNG LicSAPk OLV NL 1Y AP","Additional Product","Non-Specific","1 Year(s)","Servers",null,null,"Forefront UAG Ext Conn","Non-specific","Non-specific","All Languages",null,null,15158.4,"Forefront Unified Access Gateway External Connector Non-Specific All Languages"]
["Forefront Unified Access Gateway Svr  C All Languages","35D-00019","FrFrntUAGSvr ALNG LicSAPk OLV C 1Y AP","Additional Product","C","1 Year(s)","Servers",null,null,"Forefront UAG Server","Non-specific","Non-specific","All Languages",null,null,2463.3000000000002,"Forefront Unified Access Gateway Svr  C All Languages"]
["Forefront Unified Access Gateway Svr  Non-Specific All Languages","35D-00020","FrFrntUAGSvr ALNG LicSAPk OLV NL 1Y AP","Additional Product","Non-Specific","1 Year(s)","Servers",null,null,"Forefront UAG Server","Non-specific","Non-specific","All Languages",null,null,2898,"Forefront Unified Access Gateway Svr  Non-Specific All Languages"]
["HPC Enterprise   C All Languages","9TA-00585","HPCPk ALNG LicSAPk OLV C 1Y AP Ent","Additional Product","C","1 Year(s)","Servers",null,null,"HPC Pack","Non-specific","Non-specific","All Languages",null,null,193.79999999999998,"HPC Pack   C All Languages"]
["HPC Enterprise   Non-Specific All Languages","9TA-00586","HPCPk ALNG LicSAPk OLV NL 1Y AP Ent","Additional Product","Non-Specific","1 Year(s)","Servers",null,null,"HPC Pack","Non-specific","Non-specific","All Languages",null,null,201.6,"HPC Pack   Non-Specific All Languages"]
["HPC for Workstation   C All Languages","9TA-00418","HPCPk ALNG LicSAPk OLV C 1Y AP forWrksttn","Additional Product","C","1 Year(s)","Servers",null,null,"HPC Pack for Workstation","Non-specific","Non-specific","All Languages",null,null,49.95,{"$f":"CONCATENATE(J334,\" \",I334,\" \",H334,\" \",E334,\" \",M334)","v":"HPC Pack for Workstation   C All Languages"}]
["HPC for Workstation   Non-Specific All Languages","9TA-00419","HPCPk ALNG LicSAPk OLV NL 1Y AP forWrksttn","Additional Product","Non-Specific","1 Year(s)","Servers",null,null,"HPC Pack for Workstation","Non-specific","Non-specific","All Languages",null,null,52.05,"HPC Pack for Workstation   Non-Specific All Languages"]
["InfoPath   C All Languages","S27-03217","InfoPath ALNG LicSAPk OLV C 1Yr AP","Additional Product","C","1 Year(s)","Applications",null,null,"InfoPath","Non-specific","Non-specific","All Languages",null,null,88.2,"InfoPath   C All Languages"]
["InfoPath   Non-Specific All Languages","S27-01198","InfoPath ALNG LicSAPk OLV NL 1Yr AP","Additional Product","Non-Specific","1 Year(s)","Applications",null,null,"InfoPath","Non-specific","Non-specific","All Languages",null,null,91.5,"InfoPath   Non-Specific All Languages"]
["MapPoint   C All Languages","B21-01240","MapPoint ALNG LicSAPk OLV C 1Yr AP","Additional Product","C","1 Year(s)","Applications",null,null,"MapPoint","Non-specific","Non-specific","All Languages",null,null,118.05,"MapPoint   C All Languages"]
["MapPoint   Non-Specific All Languages","B21-00756","MapPoint ALNG LicSAPk OLV NL 1Yr AP","Additional Product","Non-Specific","1 Year(s)","Applications",null,null,"MapPoint","Non-specific","Non-specific","All Languages",null,null,122.69999999999999,"MapPoint   Non-Specific All Languages"]
["MapPoint Fleet   C All Languages","ZS3-00425","MapPointFleet ALNG LicSAPk OLV C 1Yr AP","Additional Product","C","1 Year(s)","Applications",null,null,"MapPoint Fleet","Non-specific","Non-specific","All Languages",null,null,580.34999999999991,"MapPoint Fleet   C All Languages"]
["MapPoint Fleet   Non-Specific All Languages","ZS3-00250","MapPointFleet ALNG LicSAPk OLV NL 1Yr AP","Additional Product","Non-Specific","1 Year(s)","Applications",null,null,"MapPoint Fleet","Non-specific","Non-specific","All Languages",null,null,603.15,"MapPoint Fleet   Non-Specific All Languages"]
["MSDN OS   C All Languages","G71-04174","MSDNOS ALNG LicSAPk OLV C 1Yr AP","Additional Product","C","1 Year(s)","Applications",null,null,"MSDN OS","Non-specific","Non-specific","All Languages",null,null,526.5,"MSDN OS   C All Languages"]
["MSDN OS   Non-Specific All Languages","G71-03832","MSDNOS ALNG LicSAPk OLV NL 1Yr AP","Additional Product","Non-Specific","1 Year(s)","Applications",null,null,"MSDN OS","Non-specific","Non-specific","All Languages",null,null,530.1,"MSDN OS   Non-Specific All Languages"]
["Office Communicator   C All Languages","B6I-01749","OfficeCmmnctr ALNG LicSAPk OLV C 1Yr AP","Additional Product","C","1 Year(s)","Applications",null,null,"Office Communicator","Non-specific","Non-specific","All Languages",null,null,15.45,"Office Communicator   C All Languages"]
["Office Communicator   Non-Specific All Languages","B6I-00342","OfficeCmmnctr ALNG LicSAPk OLV NL 1Yr AP","Additional Product","Non-Specific","1 Year(s)","Applications",null,null,"Office Communicator","Non-specific","Non-specific","All Languages",null,null,16.05,"Office Communicator   Non-Specific All Languages"]
["Office Comm Server Ent   C All Languages","KPA-00588","OfficeCommsSvrEnt ALNG LicSAPk OLV C 1Yr AP","Additional Product","C","1 Year(s)","Servers",null,null,"Office Comm Server Ent","Non-specific","Non-specific","All Languages",null,null,1745.5500000000002,"Office Comm Server Ent   C All Languages"]
["Office Comm Server Ent   Non-Specific All Languages","KPA-00384","OfficeCommsSvrEnt ALNG LicSAPk OLV NL 1Yr AP","Additional Product","Non-Specific","1 Year(s)","Servers",null,null,"Office Comm Server Ent","Non-specific","Non-specific","All Languages",null,null,1814.25,"Office Comm Server Ent   Non-Specific All Languages"]
[null,"KMA-00884","OfficeCommsSvrEntCAL ALNG LicSAPk OLV C 1Yr AP DvcCAL","Additional Product","C","1 Year(s)","Servers",null,null,"Office Comm Server Ent CAL","Non-specific","Non-specific","All Languages",null,null,60.599999999999994,"Office Comm Server Ent CAL   C All Languages"]
["Office Comm Server Ent CAL   C All Languages","KMA-00885","OfficeCommsSvrEntCAL ALNG LicSAPk OLV C 1Yr AP UsrCAL","Additional Product","C","1 Year(s)","Servers",null,null,"Office Comm Server Ent CAL","Non-specific","Non-specific","All Languages",null,null,60.599999999999994,"Office Comm Server Ent CAL   C All Languages"]
[null,"KMA-00115","OfficeCommsSvrEntCAL ALNG LicSAPk OLV NL 1Yr AP DvcCAL","Additional Product","Non-Specific","1 Year(s)","Servers",null,null,"Office Comm Server Ent CAL","Non-specific","Non-specific","All Languages",null,null,63,"Office Comm Server Ent CAL   Non-Specific All Languages"]
["Office Comm Server Ent CAL   Non-Specific All Languages","KMA-00625","OfficeCommsSvrEntCAL ALNG LicSAPk OLV NL 1Yr AP UsrCAL","Additional Product","Non-Specific","1 Year(s)","Servers",null,null,"Office Comm Server Ent CAL","Non-specific","Non-specific","All Languages",null,null,63,"Office Comm Server Ent CAL   Non-Specific All Languages"]
["Office Comm Server Ext Conn-Ent   C All Languages","KSA-00489","OfficeCommsSvrExtConnEnt ALNG LicSAPk OLV C 1Yr AP","Additional Product","C","1 Year(s)","Servers",null,null,"Office Comm Server Ext Conn-Ent","Non-specific","Non-specific","All Languages",null,null,870.90000000000009,"Office Comm Server Ext Conn-Ent   C All Languages"]
["Office Comm Server Ext Conn-Ent   Non-Specific All Languages","KSA-00050","OfficeCommsSvrExtConnEnt ALNG LicSAPk OLV NL 1Yr AP","Additional Product","Non-Specific","1 Year(s)","Servers",null,null,"Office Comm Server Ext Conn-Ent","Non-specific","Non-specific","All Languages",null,null,905.25,"Office Comm Server Ext Conn-Ent   Non-Specific All Languages"]
["Office Comm Server Ext Conn-Std   C All Languages","KTA-00425","OfficeCommsSvrExtConnStd ALNG LicSAPk OLV C 1Yr AP","Additional Product","C","1 Year(s)","Servers",null,null,"Office Comm Server Ext Conn-Std","Non-specific","Non-specific","All Languages",null,null,870.90000000000009,"Office Comm Server Ext Conn-Std   C All Languages"]
["Office Comm Server Ext Conn-Std   Non-Specific All Languages","KTA-00033","OfficeCommsSvrExtConnStd ALNG LicSAPk OLV NL 1Yr AP","Additional Product","Non-Specific","1 Year(s)","Servers",null,null,"Office Comm Server Ext Conn-Std","Non-specific","Non-specific","All Languages",null,null,905.25,"Office Comm Server Ext Conn-Std   Non-Specific All Languages"]
["Office Comm Server Std   C All Languages","KNA-00475","OfficeCommsSvrStd ALNG LicSAPk OLV C 1Yr AP","Additional Product","C","1 Year(s)","Servers",null,null,"Office Comm Server Std","Non-specific","Non-specific","All Languages",null,null,304.95,"Office Comm Server Std   C All Languages"]
["Office Comm Server Std   Non-Specific All Languages","KNA-00389","OfficeCommsSvrStd ALNG LicSAPk OLV NL 1Yr AP","Additional Product","Non-Specific","1 Year(s)","Servers",null,null,"Office Comm Server Std","Non-specific","Non-specific","All Languages",null,null,316.95,"Office Comm Server Std   Non-Specific All Languages"]
[null,"KLA-01035","OfficeCommsSvrStdCAL ALNG LicSAPk OLV C 1Yr AP DvcCAL","Additional Product","C","1 Year(s)","Servers",null,null,"Office Comm Server Std CAL","Non-specific","Non-specific","All Languages",null,null,13.5,"Office Comm Server Std CAL   C All Languages"]
["Office Comm Server Std CAL   C All Languages","KLA-01036","OfficeCommsSvrStdCAL ALNG LicSAPk OLV C 1Yr AP UsrCAL","Additional Product","C","1 Year(s)","Servers",null,null,"Office Comm Server Std CAL","Non-specific","Non-specific","All Languages",null,null,13.5,"Office Comm Server Std CAL   C All Languages"]
[null,"KLA-00050","OfficeCommsSvrStdCAL ALNG LicSAPk OLV NL 1Yr AP DvcCAL","Additional Product","Non-Specific","1 Year(s)","Servers",null,null,"Office Comm Server Std CAL","Non-specific","Non-specific","All Languages",null,null,13.95,"Office Comm Server Std CAL   Non-Specific All Languages"]
["Office Comm Server Std CAL   Non-Specific All Languages","KLA-00465","OfficeCommsSvrStdCAL ALNG LicSAPk OLV NL 1Yr AP UsrCAL","Additional Product","Non-Specific","1 Year(s)","Servers",null,null,"Office Comm Server Std CAL","Non-specific","Non-specific","All Languages",null,null,13.95,"Office Comm Server Std CAL   Non-Specific All Languages"]
["SharePoint Workspace   C All Languages","ZUD-00347","SharePointWrkspace ALNG LicSAPk OLV C 1Y AP","Additional Product","C","1 Year(s)","Applications",null,null,"SharePoint Workspace","Non-specific","Non-specific","All Languages",null,null,64.5,{"$f":"CONCATENATE(J362,\" \",I362,\" \",H362,\" \",E362,\" \",M362)","v":"SharePoint Workspace   C All Languages"}]
["SharePoint Workspace   Non-Specific All Languages","ZUD-00348","SharePointWrkspace ALNG LicSAPk OLV NL 1Y AP","Additional Product","Non-Specific","1 Year(s)","Applications",null,null,"SharePoint Workspace","Non-specific","Non-specific","All Languages",null,null,66.900000000000006,"SharePoint Workspace   Non-Specific All Languages"]
["Groove Server   C All Languages","YYB-00462","OfficeGrooveSvr ALNG LicSAPk OLV C 1Yr AP","Additional Product","C","1 Year(s)","Servers",null,null,"Groove Server","Non-specific","Non-specific","All Languages",null,null,2122.8000000000002,"Groove Server   C All Languages"]
["Groove Server   Non-Specific All Languages","YYB-00014","OfficeGrooveSvr ALNG LicSAPk OLV NL 1Yr AP","Additional Product","Non-Specific","1 Year(s)","Servers",null,null,"Groove Server","Non-specific","Non-specific","All Languages",null,null,2206.35,"Groove Server   Non-Specific All Languages"]
["Office LCS Connect to Public IM (Per User; monthly)  C All Languages","A9S-00068","OfficeLCSCnnctPblcIM ALNG SubsVL OLV C 1Mth AP PerUsr","Additional Product","C","1 Month(s)","Servers",null,"(Per User; monthly)","Office LCS Connect to Public IM","Non-specific","Non-specific","All Languages",null,null,0.3125,"Office LCS Connect to Public IM (Per User; monthly)  C All Languages"]
["Office LCS Connect to Public IM (Per User; monthly)  Non-Specific All Languages","A9S-00031","OfficeLCSCnnctPblcIM ALNG SubsVL OLV NL 1Mth AP PerUsr","Additional Product","Non-Specific","1 Month(s)","Servers",null,"(Per User; monthly)","Office LCS Connect to Public IM","Non-specific","Non-specific","All Languages",null,null,0.32500000000000001,"Office LCS Connect to Public IM (Per User; monthly)  Non-Specific All Languages"]
["Office Live Mtg Professional (Per User; monthly)  C All Languages","BU8-00088","OfficeLiveMtgPro ALNG SubsVL OLV C 1Mth AP PerUsr","Additional Product","C","1 Month(s)","Servers",null,"(Per User; monthly)","Office Live Mtg Professional","Non-specific","Non-specific","All Languages",null,null,13.112500000000001,"Office Live Mtg Professional (Per User; monthly)  C All Languages"]
["Office Live Mtg Professional (Per User; monthly)  Non-Specific All Languages","BU8-00044","OfficeLiveMtgPro ALNG SubsVL OLV NL 1Mth AP PerUsr","Additional Product","Non-Specific","1 Month(s)","Servers",null,"(Per User; monthly)","Office Live Mtg Professional","Non-specific","Non-specific","All Languages",null,null,13.625,"Office Live Mtg Professional (Per User; monthly)  Non-Specific All Languages"]
["Office Live Mtg Standard (Per User; monthly)  C All Languages","BT1-00044","OfficeLiveMtgStd ALNG SubsVL OLV C 1Mth AP PerUsr","Additional Product","C","1 Month(s)","Servers",null,"(Per User; monthly)","Office Live Mtg Standard","Non-specific","Non-specific","All Languages",null,null,3.9000000000000004,"Office Live Mtg Standard (Per User; monthly)  C All Languages"]
["Office Live Mtg Standard (Per User; monthly)  Non-Specific All Languages","BT1-00021","OfficeLiveMtgStd ALNG SubsVL OLV NL 1Mth AP PerUsr","Additional Product","Non-Specific","1 Month(s)","Servers",null,"(Per User; monthly)","Office Live Mtg Standard","Non-specific","Non-specific","All Languages",null,null,4.0500000000000007,"Office Live Mtg Standard (Per User; monthly)  Non-Specific All Languages"]
["Office Mac   C All Languages","731-01920","OfficeMac ALNG LicSAPk OLV C 1Yr AP","Additional Product","C","1 Year(s)","Applications",null,null,"Office Mac","Non-specific","Non-specific","All Languages",null,null,186.14999999999998,"Office Mac   C All Languages"]
["Office Mac   Non-Specific All Languages","731-01323","OfficeMac ALNG LicSAPk OLV NL 1Yr AP","Additional Product","Non-Specific","1 Year(s)","Applications",null,null,"Office Mac","Non-specific","Non-specific","All Languages",null,null,193.35000000000002,"Office Mac   Non-Specific All Languages"]
["Office SharePoint Server   C All Languages","76P-01051","OfficeSharePointSvr ALNG LicSAPk OLV C 1Yr AP","Additional Product","C","1 Year(s)","Servers",null,null,"Office SharePoint Server","Non-specific","Non-specific","All Languages",null,null,2122.8000000000002,"Office SharePoint Server   C All Languages"]
["Office SharePoint Server   Non-Specific All Languages","H04-01506","OfficeSharePointSvr ALNG LicSAPk OLV NL 1Yr AP","Additional Product","Non-Specific","1 Year(s)","Servers",null,null,"Office SharePoint Server","Non-specific","Non-specific","All Languages",null,null,2206.35,"Office SharePoint Server   Non-Specific All Languages"]
["Office Standard   C All Languages","021-09202","OfficeStd ALNG LicSAPk OLV C 1Yr AP","Additional Product","C","1 Year(s)","Applications",null,null,"Office Standard","Non-specific","Non-specific","All Languages",null,null,186,"Office Standard   C All Languages"]
["Office Standard   Non-Specific All Languages","021-09106","OfficeStd ALNG LicSAPk OLV NL 1Yr AP","Additional Product","Non-Specific","1 Year(s)","Applications",null,null,"Office Standard","Non-specific","Non-specific","All Languages",null,null,193.35000000000002,"Office Standard   Non-Specific All Languages"]
["OneNote   C All Languages","S26-04027","OneNote ALNG LicSAPk OLV C 1Yr AP","Additional Product","C","1 Year(s)","Applications",null,null,"OneNote","Non-specific","Non-specific","All Languages",null,null,34.950000000000003,"OneNote   C All Languages"]
["OneNote   Non-Specific All Languages","S26-01776","OneNote ALNG LicSAPk OLV NL 1Yr AP","Additional Product","Non-Specific","1 Year(s)","Applications",null,null,"OneNote","Non-specific","Non-specific","All Languages",null,null,36.450000000000003,"OneNote   Non-Specific All Languages"]
["Outlook   C All Languages","543-05013","Outlk ALNG LicSAPk OLV C 1Yr AP","Additional Product","C","1 Year(s)","Applications",null,null,"Outlook","Non-specific","Non-specific","All Languages",null,null,39.300000000000004,"Outlook   C All Languages"]
["Outlook   Non-Specific All Languages","543-02834","Outlk ALNG LicSAPk OLV NL 1Yr AP","Additional Product","Non-Specific","1 Year(s)","Applications",null,null,"Outlook","Non-specific","Non-specific","All Languages",null,null,40.949999999999996,"Outlook   Non-Specific All Languages"]
["Publisher   C All Languages","164-06102","Pblshr ALNG LicSAPk OLV C 1Yr AP","Additional Product","C","1 Year(s)","Applications",null,null,"Publisher","Non-specific","Non-specific","All Languages",null,null,65.25,"Publisher   C All Languages"]
["Publisher   Non-Specific All Languages","164-03900","Pblshr ALNG LicSAPk OLV NL 1Yr AP","Additional Product","Non-Specific","1 Year(s)","Applications",null,null,"Publisher","Non-specific","Non-specific","All Languages",null,null,67.8,"Publisher   Non-Specific All Languages"]
["Project   C All Languages","076-04458","Prjct ALNG LicSAPk OLV C 1Yr AP","Additional Product","C","1 Year(s)","Applications",null,null,"Project","Non-specific","Non-specific","All Languages",null,null,268.2,"Project   C All Languages"]
["Project   Non-Specific All Languages","076-03609","Prjct ALNG LicSAPk OLV NL 1Yr AP","Additional Product","Non-Specific","1 Year(s)","Applications",null,null,"Project","Non-specific","Non-specific","All Languages",null,null,278.55,"Project   Non-Specific All Languages"]
["Project Professional   C All Languages","H30-02585","PrjctPro ALNG LicSAPk OLV C 1Yr AP w1PrjctSvrCAL","Additional Product","C","1 Year(s)","Applications",null,null,"Project Professional","Non-specific","Non-specific","All Languages",null,null,446.85,"Project Professional   C All Languages"]
["Project Professional   Non-Specific All Languages","H30-01671","PrjctPro ALNG LicSAPk OLV NL 1Yr AP w1PrjctSvrCAL","Additional Product","Non-Specific","1 Year(s)","Applications",null,null,"Project Professional","Non-specific","Non-specific","All Languages",null,null,464.4,"Project Professional   Non-Specific All Languages"]
["Project Server   C All Languages","H22-02148","PrjctSvr ALNG LicSAPk OLV C 1Yr AP","Additional Product","C","1 Year(s)","Servers",null,null,"Project Server","Non-specific","Non-specific","All Languages",null,null,2122.8000000000002,"Project Server   C All Languages"]
["Project Server   Non-Specific All Languages","H22-01460","PrjctSvr ALNG LicSAPk OLV NL 1Yr AP","Additional Product","Non-Specific","1 Year(s)","Servers",null,null,"Project Server","Non-specific","Non-specific","All Languages",null,null,2206.35,"Project Server   Non-Specific All Languages"]
[null,"H21-02906","PrjctSvrCAL ALNG LicSAPk OLV C 1Yr AP DvcCAL","Additional Product","C","1 Year(s)","Servers",null,null,"Project Server CAL","Non-specific","Non-specific","All Languages",null,null,69.150000000000006,"Project Server CAL   C All Languages"]
["Project Server CAL   C All Languages","H21-02907","PrjctSvrCAL ALNG LicSAPk OLV C 1Yr AP UsrCAL","Additional Product","C","1 Year(s)","Servers",null,null,"Project Server CAL","Non-specific","Non-specific","All Languages",null,null,69.150000000000006,"Project Server CAL   C All Languages"]
[null,"H21-02115","PrjctSvrCAL ALNG LicSAPk OLV NL 1Yr AP DvcCAL","Additional Product","Non-Specific","1 Year(s)","Servers",null,null,"Project Server CAL","Non-specific","Non-specific","All Languages",null,null,72,"Project Server CAL   Non-Specific All Languages"]
["Project Server CAL   Non-Specific All Languages","H21-02129","PrjctSvrCAL ALNG LicSAPk OLV NL 1Yr AP UsrCAL","Additional Product","Non-Specific","1 Year(s)","Servers",null,null,"Project Server CAL","Non-specific","Non-specific","All Languages",null,null,72,"Project Server CAL   Non-Specific All Languages"]
["PowerPoint   C All Languages","079-05086","PwrPoint ALNG LicSAPk OLV C 1Yr AP","Additional Product","C","1 Year(s)","Applications",null,null,"PowerPoint","Non-specific","Non-specific","All Languages",null,null,91.649999999999991,{"$f":"CONCATENATE(J394,\" \",I394,\" \",H394,\" \",E394,\" \",M394)","v":"PowerPoint   C All Languages"}]
["PowerPoint   Non-Specific All Languages","079-02674","PwrPoint ALNG LicSAPk OLV NL 1Yr AP","Additional Product","Non-Specific","1 Year(s)","Applications",null,null,"PowerPoint","Non-specific","Non-specific","All Languages",null,null,95.25,"PowerPoint   Non-Specific All Languages"]
["PowerPoint Mac   C All Languages","D47-00539","PwrPointMac ALNG LicSAPk OLV C 1Yr AP","Additional Product","C","1 Year(s)","Applications",null,null,"PowerPoint Mac","Non-specific","Non-specific","All Languages",null,null,105.9,"PowerPoint Mac   C All Languages"]
["PowerPoint Mac   Non-Specific All Languages","D47-00347","PwrPointMac ALNG LicSAPk OLV NL 1Yr AP","Additional Product","Non-Specific","1 Year(s)","Applications",null,null,"PowerPoint Mac","Non-specific","Non-specific","All Languages",null,null,109.94999999999999,"PowerPoint Mac   Non-Specific All Languages"]
[null,"76N-03312","SharePointEntCAL ALNG LicSAPk OLV C 1Yr AP DvcCAL","Additional Product","C","1 Year(s)","Servers",null,null,"SharePoint Enterprise CAL","Non-specific","Non-specific","All Languages",null,null,35.85,"SharePoint Enterprise CAL   C All Languages"]
["SharePoint Enterprise CAL   C All Languages","76N-03313","SharePointEntCAL ALNG LicSAPk OLV C 1Yr AP UsrCAL","Additional Product","C","1 Year(s)","Servers",null,null,"SharePoint Enterprise CAL","Non-specific","Non-specific","All Languages",null,null,35.85,"SharePoint Enterprise CAL   C All Languages"]
[null,"76N-01116","SharePointEntCAL ALNG LicSAPk OLV NL 1Yr AP DvcCAL","Additional Product","Non-Specific","1 Year(s)","Servers",null,null,"SharePoint Enterprise CAL","Non-specific","Non-specific","All Languages",null,null,37.049999999999997,"SharePoint Enterprise CAL   Non-Specific All Languages"]
["SharePoint Enterprise CAL   Non-Specific All Languages","76N-01514","SharePointEntCAL ALNG LicSAPk OLV NL 1Yr AP UsrCAL","Additional Product","Non-Specific","1 Year(s)","Servers",null,null,"SharePoint Enterprise CAL","Non-specific","Non-specific","All Languages",null,null,37.049999999999997,"SharePoint Enterprise CAL   Non-Specific All Languages"]
["SharePoint Internet Ent   C All Languages","CKF-00085","SharePointIntrntSitesEnt ALNG LicSAPk OLV C 1Y AP","Additional Product","C","1 Year(s)","Servers",null,null,"SharePoint IntrntSites Ent","Non-specific","Non-specific","All Languages",null,null,17838,"SharePoint IntrntSites Ent   C All Languages"]
["SharePoint Internet Ent   Non-Specific All Languages","CKF-00086","SharePointIntrntSitesEnt ALNG LicSAPk OLV NL 1Y AP","Additional Product","Non-Specific","1 Year(s)","Servers",null,null,"SharePoint IntrntSites Ent","Non-specific","Non-specific","All Languages",null,null,18538.800000000003,"SharePoint IntrntSites Ent   Non-Specific All Languages"]
["SharePoint Internet Std   C All Languages","CLF-00085","SharePointIntrntSitesStd ALNG LicSAPk OLV C 1Y AP","Additional Product","C","2 Year(s)","Servers",null,null,"SharePoint IntrntSites Std","Non-specific","Non-specific","All Languages",null,null,5082.1499999999996,"SharePoint IntrntSites Std   C All Languages"]
["SharePoint Internet Std   Non-Specific All Languages","CLF-00086","SharePointIntrntSitesStd ALNG LicSAPk OLV NL 1Y AP","Additional Product","Non-Specific","3 Year(s)","Servers",null,null,"SharePoint IntrntSites Std","Non-specific","Non-specific","All Languages",null,null,5281.7999999999993,"SharePoint IntrntSites Std   Non-Specific All Languages"]
[null,"359-05174","SQLCAL ALNG LicSAPk OLV C 1Yr AP DvcCAL","Additional Product","C","1 Year(s)","Servers",null,null,"SQL CAL","Non-specific","Non-specific","All Languages",null,null,70.650000000000006,"SQL CAL   C All Languages"]
["SQL CAL   C All Languages","359-05175","SQLCAL ALNG LicSAPk OLV C 1Yr AP UsrCAL","Additional Product","C","1 Year(s)","Servers",null,null,"SQL CAL","Non-specific","Non-specific","All Languages",null,null,70.650000000000006,"SQL CAL   C All Languages"]
[null,"359-01624","SQLCAL ALNG LicSAPk OLV NL 1Yr AP DvcCAL","Additional Product","Non-Specific","1 Year(s)","Servers",null,null,"SQL CAL","Non-specific","Non-specific","All Languages",null,null,73.349999999999994,"SQL CAL   Non-Specific All Languages"]
["SQL CAL   Non-Specific All Languages","359-01631","SQLCAL ALNG LicSAPk OLV NL 1Yr AP UsrCAL","Additional Product","Non-Specific","1 Year(s)","Servers",null,null,"SQL CAL","Non-specific","Non-specific","All Languages",null,null,73.349999999999994,"SQL CAL   Non-Specific All Languages"]
["SQL Server Enterprise Edition   C All Languages","810-07927","SQLSvrEnt ALNG LicSAPk OLV C 1Yr AP","Additional Product","C","1 Year(s)","Servers",null,null,"SQL Server Enterprise Edition","Non-specific","Non-specific","All Languages",null,null,3702.45,"SQL Server Enterprise Edition   C All Languages"]
["SQL Server Enterprise Edition 1 Proc Lic  C All Languages","810-07926","SQLSvrEnt ALNG LicSAPk OLV C 1Yr AP 1Proc","Additional Product","C","1 Year(s)","Servers",null,"1 Proc Lic","SQL Server Enterprise Edition","Non-specific","Non-specific","All Languages",null,null,11849.25,"SQL Server Enterprise Edition 1 Proc Lic  C All Languages"]
["SQL Server Enterprise Edition   Non-Specific All Languages","810-04921","SQLSvrEnt ALNG LicSAPk OLV NL 1Yr AP","Additional Product","Non-Specific","1 Year(s)","Servers",null,null,"SQL Server Enterprise Edition","Non-specific","Non-specific","All Languages",null,null,3847.9500000000003,"SQL Server Enterprise Edition   Non-Specific All Languages"]
["SQL Server Enterprise Edition 1 Proc Lic  Non-Specific All Languages","810-03110","SQLSvrEnt ALNG LicSAPk OLV NL 1Yr AP 1Proc","Additional Product","Non-Specific","1 Year(s)","Servers",null,"1 Proc Lic","SQL Server Enterprise Edition","Non-specific","Non-specific","All Languages",null,null,12314.7,"SQL Server Enterprise Edition 1 Proc Lic  Non-Specific All Languages"]
["SQL Server Standard Edition   C All Languages","228-08899","SQLSvrStd ALNG LicSAPk OLV C 1Yr AP","Additional Product","C","1 Year(s)","Servers",null,null,"SQL Server Standard Edition","Non-specific","Non-specific","All Languages",null,null,386.70000000000005,"SQL Server Standard Edition   C All Languages"]
["SQL Server Standard Edition 1 Proc Lic  C All Languages","228-08898","SQLSvrStd ALNG LicSAPk OLV C 1Yr AP 1Proc","Additional Product","C","1 Year(s)","Servers",null,"1 Proc Lic","SQL Server Standard Edition","Non-specific","Non-specific","All Languages",null,null,3090.1499999999996,"SQL Server Standard Edition 1 Proc Lic  C All Languages"]
["SQL Server Standard Edition   Non-Specific All Languages","228-04735","SQLSvrStd ALNG LicSAPk OLV NL 1Yr AP","Additional Product","Non-Specific","1 Year(s)","Servers",null,null,"SQL Server Standard Edition","Non-specific","Non-specific","All Languages",null,null,401.85,"SQL Server Standard Edition   Non-Specific All Languages"]
["SQL Server Standard Edition 1 Proc Lic  Non-Specific All Languages","228-05175","SQLSvrStd ALNG LicSAPk OLV NL 1Yr AP 1Proc","Additional Product","Non-Specific","1 Year(s)","Servers",null,"1 Proc Lic","SQL Server Standard Edition","Non-specific","Non-specific","All Languages",null,null,3211.65,"SQL Server Standard Edition 1 Proc Lic  Non-Specific All Languages"]
["SQL Server Web Edition 1 Proc Lic  C All Languages","TFA-00353","SQLSvrWeb ALNG LicSAPk OLV C 1Yr AP 1Proc","Additional Product","C","1 Year(s)","Servers",null,"1 Proc Lic","SQL Server Web Edition","Non-specific","Non-specific","All Languages",null,null,1508.25,"SQL Server Web Edition 1 Proc Lic  C All Languages"]
["SQL Server Web Edition 1 Proc Lic  Non-Specific All Languages","TFA-00087","SQLSvrWeb ALNG LicSAPk OLV NL 1Yr AP 1Proc","Additional Product","Non-Specific","1 Year(s)","Servers",null,"1 Proc Lic","SQL Server Web Edition","Non-specific","Non-specific","All Languages",null,null,1567.5,"SQL Server Web Edition 1 Proc Lic  Non-Specific All Languages"]
["Search Server   C All Languages","P6R-00535","SrchSvr ALNG LicSAPk OLV C 1Yr AP","Additional Product","C","1 Year(s)","Servers",null,null,"Search Server","Non-specific","Non-specific","All Languages",null,null,6878.4000000000005,"Search Server   C All Languages"]
["Search Server   Non-Specific All Languages","P6R-00138","SrchSvr ALNG LicSAPk OLV NL 1Yr AP","Additional Product","Non-Specific","1 Year(s)","Servers",null,null,"Search Server","Non-specific","Non-specific","All Languages",null,null,7148.7,"Search Server   Non-Specific All Languages"]
["Sys Ctr Config Mgr Svr   C All Languages","J3A-00471","SysCtrConfigMgrSvr ALNG LicSAPk OLV C 1Yr AP","Additional Product","C","1 Year(s)","Servers",null,null,"Sys Ctr Config Mgr Svr","Non-specific","Non-specific","All Languages",null,null,249.60000000000002,"Sys Ctr Config Mgr Svr   C All Languages"]
["Sys Ctr Config Mgr Svr   Non-Specific All Languages","J3A-00250","SysCtrConfigMgrSvr ALNG LicSAPk OLV NL 1Yr AP","Additional Product","Non-Specific","1 Year(s)","Servers",null,null,"Sys Ctr Config Mgr Svr","Non-specific","Non-specific","All Languages",null,null,259.34999999999997,"Sys Ctr Config Mgr Svr   Non-Specific All Languages"]
["Sys Ctr Config Mgr Svr Mgmt Lic Ent   C All Languages","J7A-00458","SysCtrConfigMgrSvrMLEnt ALNG LicSAPk OLV C 1Yr AP","Additional Product","C","1 Year(s)","Servers",null,null,"Sys Ctr Config Mgr Svr Mgmt Lic Ent","Non-specific","Non-specific","All Languages",null,null,185.55,"Sys Ctr Config Mgr Svr Mgmt Lic Ent   C All Languages"]
["Sys Ctr Config Mgr Svr Mgmt Lic Ent   Non-Specific All Languages","J7A-00245","SysCtrConfigMgrSvrMLEnt ALNG LicSAPk OLV NL 1Yr AP","Additional Product","Non-Specific","1 Year(s)","Servers",null,null,"Sys Ctr Config Mgr Svr Mgmt Lic Ent","Non-specific","Non-specific","All Languages",null,null,192.75,"Sys Ctr Config Mgr Svr Mgmt Lic Ent   Non-Specific All Languages"]
["Sys Ctr Config Mgr Svr Mgmt Lic Std   C All Languages","J6A-00366","SysCtrConfigMgrSvrMLStd ALNG LicSAPk OLV C 1Yr AP","Additional Product","C","1 Year(s)","Servers",null,null,"Sys Ctr Config Mgr Svr Mgmt Lic Std","Non-specific","Non-specific","All Languages",null,null,67.5,"Sys Ctr Config Mgr Svr Mgmt Lic Std   C All Languages"]
["Sys Ctr Config Mgr Svr Mgmt Lic Std   Non-Specific All Languages","J6A-00007","SysCtrConfigMgrSvrMLStd ALNG LicSAPk OLV NL 1Yr AP","Additional Product","Non-Specific","1 Year(s)","Servers",null,null,"Sys Ctr Config Mgr Svr Mgmt Lic Std","Non-specific","Non-specific","All Languages",null,null,70.05,"Sys Ctr Config Mgr Svr Mgmt Lic Std   Non-Specific All Languages"]
["Sys Ctr Config Mgr Svr wSQL   C All Languages","J4A-00407","SysCtrConfigMgrSvrwSQL ALNG LicSAPk OLV C 1Yr AP","Additional Product","C","1 Year(s)","Servers",null,null,"Sys Ctr Config Mgr Svr wSQL","Non-specific","Non-specific","All Languages",null,null,569.09999999999991,"Sys Ctr Config Mgr Svr wSQL   C All Languages"]
["Sys Ctr Config Mgr Svr wSQL   Non-Specific All Languages","J4A-00243","SysCtrConfigMgrSvrwSQL ALNG LicSAPk OLV NL 1Yr AP","Additional Product","Non-Specific","1 Year(s)","Servers",null,null,"Sys Ctr Config Mgr Svr wSQL","Non-specific","Non-specific","All Languages",null,null,591.59999999999991,"Sys Ctr Config Mgr Svr wSQL   Non-Specific All Languages"]
["Sys Ctr Data Prtcn Mgr Clt Mgmt Lic Per OSE  C All Languages","TSC-00242","SysCtrDataPrtcnMgrCltML ALNG LicSAPk OLV C 1Yr AP PerOSE","Additional Product","C","1 Year(s)","Servers",null,"Per OSE","Sys Ctr Data Prtcn Mgr Clt Mgmt Lic","Non-specific","Non-specific","All Languages",null,null,10.35,"Sys Ctr Data Prtcn Mgr Clt Mgmt Lic Per OSE  C All Languages"]
["Sys Ctr Data Prtcn Mgr Clt Mgmt Lic Per OSE  Non-Specific All Languages","TSC-00243","SysCtrDataPrtcnMgrCltML ALNG LicSAPk OLV NL 1Yr AP PerOSE","Additional Product","Non-Specific","1 Year(s)","Servers",null,"Per OSE","Sys Ctr Data Prtcn Mgr Clt Mgmt Lic","Non-specific","Non-specific","All Languages",null,null,10.649999999999999,"Sys Ctr Data Prtcn Mgr Clt Mgmt Lic Per OSE  Non-Specific All Languages"]
["Sys Ctr Data Prtcn Mgr Clt Mgmt Lic Per USER  C All Languages","TSC-00759","SysCtrDataPrtcnMgrCltML ALNG LicSAPk OLV C 1Yr AP PerUsr","Additional Product","C","1 Year(s)","Servers",null,"Per USER","Sys Ctr Data Prtcn Mgr Clt Mgmt Lic","Non-specific","Non-specific","All Languages",null,null,10.35,"Sys Ctr Data Prtcn Mgr Clt Mgmt Lic Per USER  C All Languages"]
["Sys Ctr Data Prtcn Mgr Clt Mgmt Lic Per USER  Non-Specific All Languages","TSC-00760","SysCtrDataPrtcnMgrCltML ALNG LicSAPk OLV NL 1Yr AP PerUsr","Additional Product","Non-Specific","1 Year(s)","Servers",null,"Per USER","Sys Ctr Data Prtcn Mgr Clt Mgmt Lic","Non-specific","Non-specific","All Languages",null,null,10.649999999999999,"Sys Ctr Data Prtcn Mgr Clt Mgmt Lic Per USER  Non-Specific All Languages"]
["Sys Ctr Data Prtcn Mgr Svr ML Ent   C All Languages","CGA-00585","SysCtrDPMSvrMLEnt ALNG LicSAPk OLV C 1Yr AP","Additional Product","C","1 Year(s)","Servers",null,null,"Sys Ctr Data Prtcn Mgr Svr ML Ent","Non-specific","Non-specific","All Languages",null,null,185.85000000000002,"Sys Ctr Data Prtcn Mgr Svr ML Ent   C All Languages"]
["Sys Ctr Data Prtcn Mgr Svr ML Ent   Non-Specific All Languages","CGA-00051","SysCtrDPMSvrMLEnt ALNG LicSAPk OLV NL 1Yr AP PerOSE","Additional Product","Non-Specific","1 Year(s)","Servers",null,null,"Sys Ctr Data Prtcn Mgr Svr ML Ent","Non-specific","Non-specific","All Languages",null,null,193.2,"Sys Ctr Data Prtcn Mgr Svr ML Ent   Non-Specific All Languages"]
["Sys Ctr Data Prtcn Mgr Svr ML Std   C All Languages","CVA-00453","SysCtrDPMSvrMLStd ALNG LicSAPk OLV C 1Yr AP","Additional Product","C","1 Year(s)","Servers",null,null,"Sys Ctr Data Prtcn Mgr Svr ML Std","Non-specific","Non-specific","All Languages",null,null,67.649999999999991,"Sys Ctr Data Prtcn Mgr Svr ML Std   C All Languages"]
["Sys Ctr Data Prtcn Mgr Svr ML Std   Non-Specific All Languages","CVA-00032","SysCtrDPMSvrMLStd ALNG LicSAPk OLV NL 1Yr AP PerOSE","Additional Product","Non-Specific","1 Year(s)","Servers",null,null,"Sys Ctr Data Prtcn Mgr Svr ML Std","Non-specific","Non-specific","All Languages",null,null,70.199999999999989,"Sys Ctr Data Prtcn Mgr Svr ML Std   Non-Specific All Languages"]
["Sys Ctr Essentials   C All Languages","UCH-02307","SysCtrEssntls ALNG LicSAPk OLV C 1Y AP","Additional Product","Non-Specific","1 Year(s)","Servers",null,null,"Sys Ctr Essentials","Non-specific","Non-specific","All Languages",null,null,42.9,"Sys Ctr Essentials   Non-Specific All Languages"]
["Sys Ctr Essentials   Non-Specific All Languages","UCH-02308","SysCtrEssntls ALNG LicSAPk OLV NL 1Y AP","Additional Product","C","1 Year(s)","Servers",null,null,"Sys Ctr Essentials","Non-specific","Non-specific","All Languages",null,null,44.55,"Sys Ctr Essentials   C All Languages"]
["Sys Ctr Essentials Clt Mgmt Lic  C All Languages","4PX-01515","SysCtrEssntlsCltML ALNG LicSAPk OLV C 1Y AP","Additional Product","C","1 Year(s)","Servers",null,null,"Sys Ctr Essentials Clt Mgmt Lic","Non-specific","Non-specific","All Languages",null,null,6.8999999999999995,"Sys Ctr Essentials Clt Mgmt Lic   C All Languages"]
["Sys Ctr Essentials Clt Mgmt Lic  Non-Specific All Languages","4PX-01516","SysCtrEssntlsCltML ALNG LicSAPk OLV NL 1Y AP","Additional Product","Non-Specific","1 Year(s)","Servers",null,null,"Sys Ctr Essentials Clt Mgmt Lic","Non-specific","Non-specific","All Languages",null,null,7.05,"Sys Ctr Essentials Clt Mgmt Lic   Non-Specific All Languages"]
["Sys Ctr Essentials Svr Mgmt Lic   C All Languages","DJA-01133","SysCtrEssntlsSvrML ALNG LicSAPk OLV C 1Yr AP","Additional Product","C","1 Year(s)","Servers",null,null,"Sys Ctr Essentials Svr Mgmt Lic","Non-specific","Non-specific","All Languages",null,null,42.9,{"$f":"CONCATENATE(J442,\" \",I442,\" \",H442,\" \",E442,\" \",M442)","v":"Sys Ctr Essentials Svr Mgmt Lic   C All Languages"}]
["Sys Ctr Essentials Svr Mgmt Lic   Non-Specific All Languages","DJA-00869","SysCtrEssntlsSvrML ALNG LicSAPk OLV NL 1Yr AP","Additional Product","Non-Specific","1 Year(s)","Servers",null,null,"Sys Ctr Essentials Svr Mgmt Lic","Non-specific","Non-specific","All Languages",null,null,44.55,"Sys Ctr Essentials Svr Mgmt Lic   Non-Specific All Languages"]
["Sys Ctr EssentialsPlusSvrMgmtLicSte   C All Languages","T7F-00344","SysCtrEssntlsSvrML ALNG LicSAPk OLV C 1Yr AP","Additional Product","C","1 Year(s)","Servers",null,null,"Sys Ctr EssentialsPlusSvrMgmtLicSte","Non-specific","Non-specific","All Languages",null,null,171.29999999999998,{"$f":"CONCATENATE(J444,\" \",I444,\" \",H444,\" \",E444,\" \",M444)","v":"Sys Ctr EssentialsPlusSvrMgmtLicSte   C All Languages"}]
["Sys Ctr EssentialsPlusSvrMgmtLicSte   Non-Specific All Languages","T7F-00345","SysCtrEssntlsSvrML ALNG LicSAPk OLV NL 1Yr AP","Additional Product","Non-Specific","1 Year(s)","Servers",null,null,"Sys Ctr EssentialsPlusSvrMgmtLicSte","Non-specific","Non-specific","All Languages",null,null,178.05,"Sys Ctr EssentialsPlusSvrMgmtLicSte   Non-Specific All Languages"]
["Sys Ctr EssentialsPlusCltMgmtLicSte   C All Languages","T9F-00360","SysCtrEssntlsPlusCltMLSte ALNG LicSAPk OLV C 1Y AP","Additional Product","C","1 Year(s)","Servers",null,null,"Sys Ctr EssentialsPlusCltMgmtLicSte","Non-specific","Non-specific","All Languages",null,null,13.200000000000001,{"$f":"CONCATENATE(J446,\" \",I446,\" \",H446,\" \",E446,\" \",M446)","v":"Sys Ctr EssentialsPlusCltMgmtLicSte   C All Languages"}]
["Sys Ctr EssentialsPlusCltMgmtLicSte   Non-Specific All Languages","T9F-00361","SysCtrEssntlsPlusCltMLSte ALNG LicSAPk OLV NL 1Y AP","Additional Product","Non-Specific","1 Year(s)","Servers",null,null,"Sys Ctr EssentialsPlusCltMgmtLicSte","Non-specific","Non-specific","All Languages",null,null,13.65,"Sys Ctr EssentialsPlusCltMgmtLicSte   Non-Specific All Languages"]
["Sys Ctr Essentials wSQL   Non-Specific All Languages","EEC-00736","SysCtrEssntlswSQL ALNG LicSAPk OLV C 1Y AP","Additional Product","Non-Specific","1 Year(s)","Servers",null,null,"Sys Ctr Essentials wSQL","Non-specific","Non-specific","All Languages",null,null,361.5,"Sys Ctr Essentials wSQL   Non-Specific All Languages"]
["Sys Ctr Essentials wSQL   C All Languages","EEC-00737","SysCtrEssntlswSQL ALNG LicSAPk OLV NL 1Y AP","Additional Product","C","1 Year(s)","Servers",null,null,"Sys Ctr Essentials wSQL","Non-specific","Non-specific","All Languages",null,null,375.6,"Sys Ctr Essentials wSQL   C All Languages"]
[null,"WRA-00523","SysCtrMDMCAL ALNG LicSAPk OLV C 1Yr AP DvcCAL","Additional Product","C","1 Year(s)","Servers",null,null,"Sys Ctr Mobile Device Mgr CAL","Non-specific","Non-specific","All Languages",null,null,24.900000000000002,"Sys Ctr Mobile Device Mgr CAL   C All Languages"]
["Sys Ctr Mobile Device Mgr CAL   C All Languages","WRA-00524","SysCtrMDMCAL ALNG LicSAPk OLV C 1Yr AP UsrCAL","Additional Product","C","1 Year(s)","Servers",null,null,"Sys Ctr Mobile Device Mgr CAL","Non-specific","Non-specific","All Languages",null,null,24.900000000000002,"Sys Ctr Mobile Device Mgr CAL   C All Languages"]
[null,"WRA-00049","SysCtrMDMCAL ALNG LicSAPk OLV NL 1Yr AP DvcCAL","Additional Product","Non-Specific","1 Year(s)","Servers",null,null,"Sys Ctr Mobile Device Mgr CAL","Non-specific","Non-specific","All Languages",null,null,25.950000000000003,"Sys Ctr Mobile Device Mgr CAL   Non-Specific All Languages"]
["Sys Ctr Mobile Device Mgr CAL   Non-Specific All Languages","WRA-00050","SysCtrMDMCAL ALNG LicSAPk OLV NL 1Yr AP UsrCAL","Additional Product","Non-Specific","1 Year(s)","Servers",null,null,"Sys Ctr Mobile Device Mgr CAL","Non-specific","Non-specific","All Languages",null,null,25.950000000000003,"Sys Ctr Mobile Device Mgr CAL   Non-Specific All Languages"]
["Sys Ctr Mobile Device Mgr Svr   C All Languages","WQA-00608","SysCtrMDMSvr ALNG LicSAPk OLV C 1Yr AP","Additional Product","C","1 Year(s)","Servers",null,null,"Sys Ctr Mobile Device Mgr Svr","Non-specific","Non-specific","All Languages",null,null,936.44999999999993,"Sys Ctr Mobile Device Mgr Svr   C All Languages"]
["Sys Ctr Mobile Device Mgr Svr   Non-Specific All Languages","WQA-00300","SysCtrMDMSvr ALNG LicSAPk OLV NL 1Yr AP","Additional Product","Non-Specific","1 Year(s)","Servers",null,null,"Sys Ctr Mobile Device Mgr Svr","Non-specific","Non-specific","All Languages",null,null,973.19999999999993,"Sys Ctr Mobile Device Mgr Svr   Non-Specific All Languages"]
["Sys Ctr Mobile Device Mgr Svr wSQL   C All Languages","AEB-00053","SysCtrMDMSvrwSQL ALNG LicSAPk OLV C 1Yr AP","Additional Product","C","1 Year(s)","Servers",null,null,"Sys Ctr Mobile Device Mgr Svr wSQL","Non-specific","Non-specific","All Languages",null,null,1324.5,"Sys Ctr Mobile Device Mgr Svr wSQL   C All Languages"]
["Sys Ctr Mobile Device Mgr Svr wSQL   Non-Specific All Languages","WQA-00073","SysCtrMDMSvrwSQL ALNG LicSAPk OLV NL 1Yr AP","Additional Product","Non-Specific","1 Year(s)","Servers",null,null,"Sys Ctr Mobile Device Mgr Svr wSQL","Non-specific","Non-specific","All Languages",null,null,1376.55,"Sys Ctr Mobile Device Mgr Svr wSQL   Non-Specific All Languages"]
["Sys Ctr Svr Mgmt Suite Ent   C All Languages","MUY-00743","SysCtrMgmtSteEnt ALNG LicSAPk OLV C 1Yr AP","Additional Product","C","1 Year(s)","Servers",null,null,"Sys Ctr Svr Mgmt Suite Ent","Non-specific","Non-specific","All Languages",null,null,450.75,"Sys Ctr Svr Mgmt Suite Ent   C All Languages"]
["Sys Ctr Svr Mgmt Suite Ent   Non-Specific All Languages","MUY-00071","SysCtrMgmtSteEnt ALNG LicSAPk OLV NL 1Yr AP","Additional Product","Non-Specific","1 Year(s)","Servers",null,null,"Sys Ctr Svr Mgmt Suite Ent","Non-specific","Non-specific","All Languages",null,null,468.45,"Sys Ctr Svr Mgmt Suite Ent   Non-Specific All Languages"]
["Sys Ctr Ops Mgr Clt Mgmt Lic Per OSE  C All Languages","9TX-01129","SysCtrOpsMgrCltML ALNG LicSAPk OLV C 1Yr AP PerOSE","Additional Product","C","1 Year(s)","Servers",null,"Per OSE","Sys Ctr Ops Mgr Clt Mgmt Lic","Non-specific","Non-specific","All Languages",null,null,10.5,"Sys Ctr Ops Mgr Clt Mgmt Lic Per OSE  C All Languages"]
["Sys Ctr Ops Mgr Clt Mgmt Lic Per USER  C All Languages","9TX-01128","SysCtrOpsMgrCltML ALNG LicSAPk OLV C 1Yr AP PerUsr","Additional Product","C","1 Year(s)","Servers",null,"Per USER","Sys Ctr Ops Mgr Clt Mgmt Lic","Non-specific","Non-specific","All Languages",null,null,10.5,"Sys Ctr Ops Mgr Clt Mgmt Lic Per USER  C All Languages"]
["Sys Ctr Ops Mgr Clt Mgmt Lic Per OSE  Non-Specific All Languages","9TX-00727","SysCtrOpsMgrCltML ALNG LicSAPk OLV NL 1Yr AP PerOSE","Additional Product","Non-Specific","1 Year(s)","Servers",null,"Per OSE","Sys Ctr Ops Mgr Clt Mgmt Lic","Non-specific","Non-specific","All Languages",null,null,10.8,"Sys Ctr Ops Mgr Clt Mgmt Lic Per OSE  Non-Specific All Languages"]
["Sys Ctr Ops Mgr Clt Mgmt Lic Per USER  Non-Specific All Languages","9TX-00296","SysCtrOpsMgrCltML ALNG LicSAPk OLV NL 1Yr AP PerUsr","Additional Product","Non-Specific","1 Year(s)","Servers",null,"Per USER","Sys Ctr Ops Mgr Clt Mgmt Lic","Non-specific","Non-specific","All Languages",null,null,10.8,"Sys Ctr Ops Mgr Clt Mgmt Lic Per USER  Non-Specific All Languages"]
["Sys Ctr Ops Mgr Svr   C All Languages","UAR-01227","SysCtrOpsMgrSvr ALNG LicSAPk OLV C 1Yr AP","Additional Product","C","1 Year(s)","Servers",null,null,"Sys Ctr Ops Mgr Svr","Non-specific","Non-specific","All Languages",null,null,250.35,"Sys Ctr Ops Mgr Svr   C All Languages"]
["Sys Ctr Ops Mgr Svr   Non-Specific All Languages","UAR-00766","SysCtrOpsMgrSvr ALNG LicSAPk OLV NL 1Yr AP","Additional Product","Non-Specific","1 Year(s)","Servers",null,null,"Sys Ctr Ops Mgr Svr","Non-specific","Non-specific","All Languages",null,null,260.10000000000002,"Sys Ctr Ops Mgr Svr   Non-Specific All Languages"]
["Sys Ctr Ops Mgr Svr Mgmt Lic Ent   C All Languages","UAS-00744","SysCtrOpsMgrSvrMLEnt ALNG LicSAPk OLV C 1Yr AP","Additional Product","C","1 Year(s)","Servers",null,null,"Sys Ctr Ops Mgr Svr Mgmt Lic Ent","Non-specific","Non-specific","All Languages",null,null,186.14999999999998,"Sys Ctr Ops Mgr Svr Mgmt Lic Ent   C All Languages"]
["Sys Ctr Ops Mgr Svr Mgmt Lic Ent   Non-Specific All Languages","UAS-00175","SysCtrOpsMgrSvrMLEnt ALNG LicSAPk OLV NL 1Yr AP","Additional Product","Non-Specific","1 Year(s)","Servers",null,null,"Sys Ctr Ops Mgr Svr Mgmt Lic Ent","Non-specific","Non-specific","All Languages",null,null,193.35000000000002,"Sys Ctr Ops Mgr Svr Mgmt Lic Ent   Non-Specific All Languages"]
["Sys Ctr Ops Mgr Svr Mgmt Lic Std   C All Languages","UAT-00519","SysCtrOpsMgrSvrMLStd ALNG LicSAPk OLV C 1Yr AP","Additional Product","C","1 Year(s)","Servers",null,null,"Sys Ctr Ops Mgr Svr Mgmt Lic Std","Non-specific","Non-specific","All Languages",null,null,67.8,"Sys Ctr Ops Mgr Svr Mgmt Lic Std   C All Languages"]
["Sys Ctr Ops Mgr Svr Mgmt Lic Std   Non-Specific All Languages","UAT-00414","SysCtrOpsMgrSvrMLStd ALNG LicSAPk OLV NL 1Yr AP","Additional Product","Non-Specific","1 Year(s)","Servers",null,null,"Sys Ctr Ops Mgr Svr Mgmt Lic Std","Non-specific","Non-specific","All Languages",null,null,70.5,"Sys Ctr Ops Mgr Svr Mgmt Lic Std   Non-Specific All Languages"]
["Sys Ctr Ops Mgr Svr wSQL   C All Languages","EFC-00456","SysCtrOpsMgrSvrwSQL ALNG LicSAPk OLV C 1Yr AP","Additional Product","C","1 Year(s)","Servers",null,null,"Sys Ctr Ops Mgr Svr wSQL","Non-specific","Non-specific","All Languages",null,null,570.75,"Sys Ctr Ops Mgr Svr wSQL   C All Languages"]
["Sys Ctr Ops Mgr Svr wSQL   Non-Specific All Languages","EFC-00106","SysCtrOpsMgrSvrwSQL ALNG LicSAPk OLV NL 1Yr AP","Additional Product","Non-Specific","1 Year(s)","Servers",null,null,"Sys Ctr Ops Mgr Svr wSQL","Non-specific","Non-specific","All Languages",null,null,593.25,"Sys Ctr Ops Mgr Svr wSQL   Non-Specific All Languages"]
["Sys Ctr VMM Svr Mgmt Lic Ent   C All Languages","CJA-00656","SysCtrVMMSvrMLEnt ALNG LicSAPk OLV C 1Yr AP","Additional Product","C","1 Year(s)","Servers",null,null,"Sys Ctr VMM Svr Mgmt Lic Ent","Non-specific","Non-specific","All Languages",null,null,374.7,"Sys Ctr VMM Svr Mgmt Lic Ent   C All Languages"]
["Sys Ctr VMM Svr Mgmt Lic Ent   Non-Specific All Languages","CJA-00324","SysCtrVMMSvrMLEnt ALNG LicSAPk OLV NL 1Yr AP","Additional Product","Non-Specific","1 Year(s)","Servers",null,null,"Sys Ctr VMM Svr Mgmt Lic Ent","Non-specific","Non-specific","All Languages",null,null,389.4,"Sys Ctr VMM Svr Mgmt Lic Ent   Non-Specific All Languages"]
["Sys Ctr VMM Wkgrp   C All Languages","SNA-00494","SysCtrVMMWkgrp ALNG LicSAPk OLV C 1Yr AP","Additional Product","C","1 Year(s)","Servers",null,null,"Sys Ctr VMM Wkgrp","Non-specific","Non-specific","All Languages",null,null,217.35,"Sys Ctr VMM Wkgrp   C All Languages"]
["Sys Ctr VMM Wkgrp   Non-Specific All Languages","SNA-00245","SysCtrVMMWkgrp ALNG LicSAPk OLV NL 1Yr AP","Additional Product","Non-Specific","1 Year(s)","Servers",null,null,"Sys Ctr VMM Wkgrp","Non-specific","Non-specific","All Languages",null,null,225.9,"Sys Ctr VMM Wkgrp   Non-Specific All Languages"]
["TechNet Plus Direct   C All Languages","JT9-00119","TechNetPlusDirect ALNG LicSAPk OLV C 1Yr AP","Additional Product","C","1 Year(s)","Applications",null,null,"TechNet Plus Direct","Non-specific","Non-specific","All Languages",null,null,401.70000000000005,"TechNet Plus Direct   C All Languages"]
["TechNet Plus Direct   Non-Specific All Languages","JT9-00044","TechNetPlusDirect ALNG LicSAPk OLV NL 1Yr AP","Additional Product","Non-Specific","1 Year(s)","Applications",null,null,"TechNet Plus Direct","Non-specific","Non-specific","All Languages",null,null,309.60000000000002,"TechNet Plus Direct   Non-Specific All Languages"]
["Technet Plus Single User   C All Languages","Q99-00106","TechnetPlusSingleUsr ALNG LicSAPk OLV C 1Yr AP","Additional Product","C","1 Year(s)","Servers",null,null,"Technet Plus Single User","Non-specific","Non-specific","All Languages",null,null,746.85,"Technet Plus Single User   C All Languages"]
["Technet Plus Single User   Non-Specific All Languages","Q99-00042","TechnetPlusSingleUsr ALNG LicSAPk OLV NL 1Yr AP","Additional Product","Non-Specific","1 Year(s)","Servers",null,null,"Technet Plus Single User","Non-specific","Non-specific","All Languages",null,null,680.84999999999991,"Technet Plus Single User   Non-Specific All Languages"]
["Virtual Desktop Access (Per Device; monthly)  C All Languages","4ZF-00001","VDA ALNG SubsVL OLV C 1Mth AP PerDvc","Additional Product","C","1 Month(s)","Systems",null,"(Per Device; monthly)","VDA","Non-specific","Non-specific","All Languages",null,null,9.2374999999999989,"VDA (Per Device; monthly)  C All Languages"]
["Virtual Desktop Access (Per Device; monthly)  Non-Specific All Languages","4ZF-00002","VDA ALNG SubsVL OLV NL 1Mth AP PerDvc","Additional Product","Non-Specific","1 Month(s)","Systems",null,"(Per Device; monthly)","VDA","Non-specific","Non-specific","All Languages",null,null,9.6,"VDA (Per Device; monthly)  Non-Specific All Languages"]
["Virtual Desktop Access (Per Device; monthly)   C RAB","4ZF-00009","VDA RAB SubsVL OLV C 1Mth AP PerDvc","Additional Product","C","1 Month(s)","Systems",null,"(Per Device; monthly)","VDA","Non-specific","Non-specific","RAB",null,null,9.2374999999999989,"VDA (Per Device; monthly)  C RAB"]
["Virtual Desktop Access (Per Device; monthly)   Non-Specific RAB","4ZF-00010","VDA RAB SubsVL OLV NL 1Mth AP PerDvc","Additional Product","Non-Specific","1 Month(s)","Systems",null,"(Per Device; monthly)","VDA","Non-specific","Non-specific","RAB",null,null,9.6,"VDA (Per Device; monthly)  Non-Specific RAB"]
["VDI Std Ste (Per Device; monthly)  C All Languages","H6D-00001","VDISte ALNG SubsVL OLV C 1Mth AP PerDvc","Additional Product","C","1 Month(s)","Servers",null,"(Per Device; monthly)","VDI Std Ste","Non-specific","Non-specific","All Languages",null,null,1.1000000000000001,"VDI Std Ste (Per Device; monthly)  C All Languages"]
["VDI Std Ste (Per Device; monthly)  Non-Specific All Languages","H6D-00002","VDISte ALNG SubsVL OLV NL 1Mth AP PerDvc","Additional Product","Non-Specific","1 Month(s)","Servers",null,"(Per Device; monthly)","VDI Std Ste","Non-specific","Non-specific","All Languages",null,null,1.1375,"VDI Std Ste (Per Device; monthly)  Non-Specific All Languages"]
["VDI Prem Ste (Per Device; monthly)  C All Languages","H7D-00007","VDIPremSte ALNG SubsVL OLV C 1Mth AP PerDvc","Additional Product","C","1 Month(s)","Servers",null,"(Per Device; monthly)","VDI Prem Ste","Non-specific","Non-specific","All Languages",null,null,4.0125000000000002,"VDI Prem Ste (Per Device; monthly)  C All Languages"]
["VDI Prem Ste (Per Device; monthly)  Non-Specific All Languages","H7D-00008","VDIPremSte ALNG SubsVL OLV NL 1Mth AP PerDvc","Additional Product","Non-Specific","1 Month(s)","Servers",null,"(Per Device; monthly)","VDI Prem Ste","Non-specific","Non-specific","All Languages",null,null,4.1749999999999998,"VDI Prem Ste (Per Device; monthly)  Non-Specific All Languages"]
["VDI Std Ste wMDOP (Per Device; monthly)  Non-Specific All Languages","UYD-00010","VDIStewMDOP ALNG SubsVL OLV NL 1Mth AP PerDvc","Additional Product","Non-Specific","1 Month(s)","Servers",null,"(Per Device; monthly)","VDI Std Ste wMDOP","Non-specific","Non-specific","All Languages",null,null,2,"VDI Std Ste wMDOP (Per Device; monthly)  Non-Specific All Languages"]
["VDI Prem Ste wMDOP (Per Device; monthly)  Non-Specific All Languages","UZD-00002","VDIPremStewMDOP ALNG SubsVL OLV NL 1Mth AP PerDvc","Additional Product","Non-Specific","1 Month(s)","Servers",null,"(Per Device; monthly)","VDI Prem Ste wMDOP","Non-specific","Non-specific","All Languages",null,null,5.0375000000000005,"VDI Prem Ste wMDOP (Per Device; monthly)  Non-Specific All Languages"]
["Visio Professional   C All Languages","D87-04277","VisioPro ALNG LicSAPk OLV C 1Yr AP","Additional Product","C","1 Year(s)","Applications",null,null,"Visio Professional","Non-specific","Non-specific","All Languages",null,null,229.35,"Visio Professional   C All Languages"]
["Visio Professional   Non-Specific All Languages","D87-02619","VisioPro ALNG LicSAPk OLV NL 1Yr AP","Additional Product","Non-Specific","1 Year(s)","Applications",null,null,"Visio Professional","Non-specific","Non-specific","All Languages",null,null,238.35000000000002,"Visio Professional   Non-Specific All Languages"]
["Visio Standard   C All Languages","D86-04087","VisioStd ALNG LicSAPk OLV C 1Yr AP","Additional Product","C","1 Year(s)","Applications",null,null,"Visio Standard","Non-specific","Non-specific","All Languages",null,null,103.94999999999999,"Visio Standard   C All Languages"]
["Visio Standard   Non-Specific All Languages","D86-02606","VisioStd ALNG LicSAPk OLV NL 1Yr AP","Additional Product","Non-Specific","1 Year(s)","Applications",null,null,"Visio Standard","Non-specific","Non-specific","All Languages",null,null,107.85,"Visio Standard   Non-Specific All Languages"]
["Virtual Earth: User/Add-on SL (100KTrnsctnAddon; monthly)  C All Languages","SFA-00045","VrtEarth ALNG SubsVL OLV C 1Mth AP 100KTrnsctnAddon","Additional Product","C","1 Month(s)","Servers",null,"(100KTrnsctnAddon; monthly)","Virtual Earth: User/Add-on SL","Non-specific","Non-specific","All Languages",null,null,293.7,"Virtual Earth: User/Add-on SL (100KTrnsctnAddon; monthly)  C All Languages"]
["Virtual Earth: User/Add-on SL (1MlnTrnsctnAddon; monthly)  C All Languages","SFA-00046","VrtEarth ALNG SubsVL OLV C 1Mth AP 1MlnTrnsctnAddon","Additional Product","C","1 Month(s)","Servers",null,"(1MlnTrnsctnAddon; monthly)","Virtual Earth: User/Add-on SL","Non-specific","Non-specific","All Languages",null,null,2936.95,"Virtual Earth: User/Add-on SL (1MlnTrnsctnAddon; monthly)  C All Languages"]
["Virtual Earth: User/Add-on SL (Per User; monthly)  C All Languages","SFA-00047","VrtEarth ALNG SubsVL OLV C 1Mth AP PerUsr","Additional Product","C","1 Month(s)","Servers",null,"(Per User; monthly)","Virtual Earth: User/Add-on SL","Non-specific","Non-specific","All Languages",null,null,2.1375000000000002,"Virtual Earth: User/Add-on SL (Per User; monthly)  C All Languages"]
["Virtual Earth: User/Add-on SL (100KTrnsctnAddon; monthly)  Non-Specific All Languages","SFA-00031","VrtEarth ALNG SubsVL OLV NL 1Mth AP 100KTrnsctnAddon","Additional Product","Non-Specific","1 Month(s)","Servers",null,"(100KTrnsctnAddon; monthly)","Virtual Earth: User/Add-on SL","Non-specific","Non-specific","All Languages",null,null,305.23750000000001,"Virtual Earth: User/Add-on SL (100KTrnsctnAddon; monthly)  Non-Specific All Languages"]
["Virtual Earth: User/Add-on SL (1MlnTrnsctnAddon; monthly)  Non-Specific All Languages","SFA-00020","VrtEarth ALNG SubsVL OLV NL 1Mth AP 1MlnTrnsctnAddon","Additional Product","Non-Specific","1 Month(s)","Servers",null,"(1MlnTrnsctnAddon; monthly)","Virtual Earth: User/Add-on SL","Non-specific","Non-specific","All Languages",null,null,3052.3374999999996,"Virtual Earth: User/Add-on SL (1MlnTrnsctnAddon; monthly)  Non-Specific All Languages"]
["Virtual Earth: User/Add-on SL (Per User; monthly)  Non-Specific All Languages","SFA-00009","VrtEarth ALNG SubsVL OLV NL 1Mth AP PerUsr","Additional Product","Non-Specific","1 Month(s)","Servers",null,"(Per User; monthly)","Virtual Earth: User/Add-on SL","Non-specific","Non-specific","All Languages",null,null,2.2250000000000001,"Virtual Earth: User/Add-on SL (Per User; monthly)  Non-Specific All Languages"]
["Virtual Earth: Pro (Services; monthly)  C All Languages","SGA-00012","VrtEarthPro ALNG SubsVL OLV C 1Mth AP Srvcs","Additional Product","C","1 Month(s)","Servers",null,"(Services; monthly)","Virtual Earth: Pro","Non-specific","Non-specific","All Languages",null,null,271.08749999999998,"Virtual Earth: Pro (Services; monthly)  C All Languages"]
["Virtual Earth: Pro (Services; monthly)  Non-Specific All Languages","SGA-00009","VrtEarthPro ALNG SubsVL OLV NL 1Mth AP Srvcs","Additional Product","Non-Specific","1 Month(s)","Servers",null,"(Services; monthly)","Virtual Earth: Pro","Non-specific","Non-specific","All Languages",null,null,281.73749999999995,"Virtual Earth: Pro (Services; monthly)  Non-Specific All Languages"]
["Virtual Earth Server monthly C All Languages","LLD-00001","VrtEarthSvr ALNG SubsVL OLV C 1Mth AP","Additional Product","C","1 Month(s)","Servers",null,"monthly","Vrt Earth Svr","Non-specific","Non-specific","All Languages",null,null,2371.3624999999997,"Virtual Earth Server monthly  C All Languages"]
["Virtual Earth Server monthly Non-Specific All Languages","LLD-00002","VrtEarthSvr ALNG SubsVL OLV NL 1Mth AP","Additional Product","Non-Specific","1 Month(s)","Servers",null,"monthly","Vrt Earth Svr","Non-specific","Non-specific","All Languages",null,null,2464.5249999999996,"Virtual Earth Server monthly  Non-Specific All Languages"]
[null,"LMD-00001","VrtEarthSvrCAL ALNG SubsVL OLV C 1Mth AP DvcCAL","Additional Product","C","1 Month(s)","Servers",null,"monthly","Vrt Earth Svr CAL","Non-specific","Non-specific","All Languages",null,null,9.1125000000000007,"Virtual Earth Server CAL monthly  C All Languages"]
[null,"LMD-00002","VrtEarthSvrCAL ALNG SubsVL OLV NL 1Mth AP DvcCAL","Additional Product","Non-Specific","1 Month(s)","Servers",null,"monthly","Vrt Earth Svr CAL","Non-specific","Non-specific","All Languages",null,null,9.4749999999999996,"Virtual Earth Server CAL monthly  Non-Specific All Languages"]
["Virtual Earth Server CAL monthly C All Languages","LMD-00003","VrtEarthSvrCAL ALNG SubsVL OLV C 1Mth AP UsrCAL","Additional Product","C","1 Month(s)","Servers",null,"monthly","Vrt Earth Svr CAL","Non-specific","Non-specific","All Languages",null,null,9.1125000000000007,"Virtual Earth Server CAL monthly  C All Languages"]
["Virtual Earth Server CAL monthly Non-Specific All Languages","LMD-00004","VrtEarthSvrCAL ALNG SubsVL OLV NL 1Mth AP UsrCAL","Additional Product","Non-Specific","1 Month(s)","Servers",null,"monthly","Vrt Earth Svr CAL","Non-specific","Non-specific","All Languages",null,null,9.4749999999999996,"Virtual Earth Server CAL monthly  Non-Specific All Languages"]
["Virtual Earth Server wECP monthly C All Languages","LND-00001","VrtEarthSvrwECP ALNG SubsVL OLV C 1Mth AP","Additional Product","C","1 Month(s)","Servers",null,"monthly","Vrt Earth Svr wECP","Non-specific","Non-specific","All Languages",null,null,2371.3624999999997,"Virtual Earth Server wECP monthly  C All Languages"]
["Virtual Earth Server wECP monthly Non-Specific All Languages","LND-00002","VrtEarthSvrwECP ALNG SubsVL OLV NL 1Mth AP","Additional Product","Non-Specific","1 Month(s)","Servers",null,"monthly","Vrt Earth Svr wECP","Non-specific","Non-specific","All Languages",null,null,2464.5249999999996,"Virtual Earth Server wECP monthly  Non-Specific All Languages"]
[null,"LPD-00001","VrtEarthSvrwECPCAL ALNG SubsVL OLV C 1Mth AP DvcCAL","Additional Product","C","1 Month(s)","Servers",null,"monthly","Vrt Earth Svr wECP CAL","Non-specific","Non-specific","All Languages",null,null,22.799999999999997,"Virtual Earth Server wECP CAL monthly  C All Languages"]
[null,"LPD-00002","VrtEarthSvrwECPCAL ALNG SubsVL OLV NL 1Mth AP DvcCAL","Additional Product","Non-Specific","1 Month(s)","Servers",null,"monthly","Vrt Earth Svr wECP CAL","Non-specific","Non-specific","All Languages",null,null,23.700000000000003,"Virtual Earth Server wECP CAL monthly  Non-Specific All Languages"]
["Virtual Earth Server wECP CAL monthly C All Languages","LPD-00003","VrtEarthSvrwECPCAL ALNG SubsVL OLV C 1Mth AP UsrCAL","Additional Product","C","1 Month(s)","Servers",null,"monthly","Vrt Earth Svr wECP CAL","Non-specific","Non-specific","All Languages",null,null,22.799999999999997,"Virtual Earth Server wECP CAL monthly  C All Languages"]
["Virtual Earth Server wECP CAL monthly Non-Specific All Languages","LPD-00004","VrtEarthSvrwECPCAL ALNG SubsVL OLV NL 1Mth AP UsrCAL","Additional Product","Non-Specific","1 Month(s)","Servers",null,"monthly","Vrt Earth Svr wECP CAL","Non-specific","Non-specific","All Languages",null,null,23.700000000000003,"Virtual Earth Server wECP CAL monthly  Non-Specific All Languages"]
["Virtual Earth Desktop monthly C All Languages","LQD-00001","VrtEarthDsktp ALNG SubsVL OLV C 1Mth AP","Additional Product","C","1 Month(s)","Applications",null,"monthly","Vrt Earth Dsktp","Non-specific","Non-specific","All Languages",null,null,478.83749999999998,"Virtual Earth Desktop monthly  C All Languages"]
["Virtual Earth Desktop monthly Non-Specific All Languages","LQD-00002","VrtEarthDsktp ALNG SubsVL OLV NL 1Mth AP","Additional Product","Non-Specific","1 Month(s)","Applications",null,"monthly","Vrt Earth Dsktp","Non-specific","Non-specific","All Languages",null,null,497.65,"Virtual Earth Desktop monthly  Non-Specific All Languages"]
["Visual Studio Pro w/MSDN   C All Languages","77D-00052","VSProwMSDN ALNG LicSAPk OLV C 1Y AP","Additional Product","C","1 Year(s)","Applications",null,null,"Visual Studio Pro w/MSDN","Non-specific","Non-specific","All Languages",null,null,552.29999999999995,"Visual Studio Pro w/MSDN   C All Languages"]
["Visual Studio Pro w/MSDN   Non-Specific All Languages","77D-00053","VSProwMSDN ALNG LicSAPk OLV NL 1Y AP","Additional Product","Non-Specific","1 Year(s)","Applications",null,null,"Visual Studio Pro w/MSDN","Non-specific","Non-specific","All Languages",null,null,580.34999999999991,"Visual Studio Pro w/MSDN   Non-Specific All Languages"]
["Visual Studio Pro w/MSDN Emb   C All Languages","6KD-00052","VSProwMSDNEmb ALNG LicSAPk OLV C 1Y AP","Additional Product","C","1 Year(s)","Applications",null,null,"Visual Studio Pro w MSDN Embedded","Non-specific","Non-specific","All Languages",null,null,552.29999999999995,"Visual Studio Pro w MSDN Embedded   C All Languages"]
["Visual Studio Pro w/MSDN Emb   Non-Specific All Languages","6KD-00053","VSProwMSDNEmb ALNG LicSAPk OLV NL 1Y AP","Additional Product","Non-Specific","1 Year(s)","Applications",null,null,"Visual Studio Pro w MSDN Embedded","Non-specific","Non-specific","All Languages",null,null,580.34999999999991,"Visual Studio Pro w MSDN Embedded   Non-Specific All Languages"]
["Visual Studio Prem w/MSDN   C All Languages","9ED-00078","VSPremwMSDN ALNG LicSAPk OLV C 1Y AP","Additional Product","C","1 Year(s)","Applications",null,null,"Visual Studio Premium w/MSDN","Non-specific","Non-specific","All Languages",null,null,2242.5,"Visual Studio Premium w/MSDN   C All Languages"]
["Visual Studio Prem w/MSDN   Non-Specific All Languages","9ED-00079","VSPremwMSDN ALNG LicSAPk OLV NL 1Y AP","Additional Product","Non-Specific","1 Year(s)","Applications",null,null,"Visual Studio Premium w/MSDN","Non-specific","Non-specific","All Languages",null,null,2330.6999999999998,"Visual Studio Premium w/MSDN   Non-Specific All Languages"]
["Visual Studio Ult w/MSDN   C All Languages","9JD-00096","VSUltwMSDN ALNG LicSAPk OLV C 1Y AP","Additional Product","C","1 Year(s)","Applications",null,null,"Visual Studio Ultimate w/MSDN","Non-specific","Non-specific","All Languages",null,null,4891.6500000000005,"Visual Studio Ultimate w/MSDN   C All Languages"]
["Visual Studio Ult w/MSDN   Non-Specific All Languages","9JD-00097","VSUltwMSDN ALNG LicSAPk OLV NL 1Y AP","Additional Product","Non-Specific","1 Year(s)","Applications",null,null,"Visual Studio Ultimate w/MSDN","Non-specific","Non-specific","All Languages",null,null,5083.95,"Visual Studio Ultimate w/MSDN   Non-Specific All Languages"]
["Visual Studio Test Pro w/MSDN   C All Languages","L5D-00103","VSTstProwMSDN ALNG LicSAPk OLV C 1Y AP","Additional Product","C","1 Year(s)","Applications",null,null,"Visual Studio Test Pro w/MSDN","Non-specific","Non-specific","All Languages",null,null,903.6,"Visual Studio Test Pro w/MSDN   C All Languages"]
["Visual Studio Test Pro w/MSDN   Non-Specific All Languages","L5D-00104","VSTstProwMSDN ALNG LicSAPk OLV NL 1Y AP","Additional Product","Non-Specific","1 Year(s)","Applications",null,null,"Visual Studio Test Pro w/MSDN","Non-specific","Non-specific","All Languages",null,null,939.15000000000009,"Visual Studio Test Pro w/MSDN   Non-Specific All Languages"]
["Visual Studio Team Foundation Svr   C All Languages","125-00821","VSTeamFndtnSvr ALNG LicSAPk OLV C 1Yr AP","Additional Product","C","1 Year(s)","Servers",null,null,"Visual Studio Team Foundation Svr","Non-specific","Non-specific","All Languages",null,null,166.95,"Visual Studio Team Foundation Svr   C All Languages"]
["Visual Studio Team Foundation Svr   Non-Specific All Languages","125-00250","VSTeamFndtnSvr ALNG LicSAPk OLV NL 1Yr AP","Additional Product","Non-Specific","1 Year(s)","Servers",null,null,"Visual Studio Team Foundation Svr","Non-specific","Non-specific","All Languages",null,null,173.55,{"$f":"CONCATENATE(J527,\" \",I527,\" \",H527,\" \",E527,\" \",M527)","v":"Visual Studio Team Foundation Svr   Non-Specific All Languages"}]
[null,"126-01370","VSTeamFndtnSvrCAL ALNG LicSAPk OLV C 1Yr AP DvcCAL","Additional Product","C","1 Year(s)","Servers",null,null,"Visual Studio Team Fndation Svr CAL","Non-specific","Non-specific","All Languages",null,null,166.95,"Visual Studio Team Fndation Svr CAL   C All Languages"]
["Visual Studio Team Fndation Svr CAL   C All Languages","126-01371","VSTeamFndtnSvrCAL ALNG LicSAPk OLV C 1Yr AP UsrCAL","Additional Product","C","1 Year(s)","Servers",null,null,"Visual Studio Team Fndation Svr CAL","Non-specific","Non-specific","All Languages",null,null,166.95,"Visual Studio Team Fndation Svr CAL   C All Languages"]
[null,"126-00435","VSTeamFndtnSvrCAL ALNG LicSAPk OLV NL 1Yr AP DvcCAL","Additional Product","Non-Specific","1 Year(s)","Servers",null,null,"Visual Studio Team Fndation Svr CAL","Non-specific","Non-specific","All Languages",null,null,173.55,"Visual Studio Team Fndation Svr CAL   Non-Specific All Languages"]
["Visual Studio Team Fndation Svr CAL   Non-Specific All Languages","126-00488","VSTeamFndtnSvrCAL ALNG LicSAPk OLV NL 1Yr AP UsrCAL","Additional Product","Non-Specific","1 Year(s)","Servers",null,null,"Visual Studio Team Fndation Svr CAL","Non-specific","Non-specific","All Languages",null,null,173.55,"Visual Studio Team Fndation Svr CAL   Non-Specific All Languages"]
["Visual Studio Team Fndn Svr Ext Con   C All Languages","66B-00628","VSTeamFndtnSvrExtConn ALNG LicSAPk OLV C 1Yr AP","Additional Product","C","1 Year(s)","Servers",null,null,"Visual Studio Team Fndn Svr Ext Con","Non-specific","Non-specific","All Languages",null,null,4194.5999999999995,"Visual Studio Team Fndn Svr Ext Con   C All Languages"]
["Visual Studio Team Fndn Svr Ext Con   Non-Specific All Languages","66B-00211","VSTeamFndtnSvrExtConn ALNG LicSAPk OLV NL 1Yr AP","Additional Product","Non-Specific","1 Year(s)","Servers",null,null,"Visual Studio Team Fndn Svr Ext Con","Non-specific","Non-specific","All Languages",null,null,4359.3,"Visual Studio Team Fndn Svr Ext Con   Non-Specific All Languages"]
["Visual Studio Vrtl UserPK   C All Languages","7XD-00041","VSLoadTstVrtlUsrPK ALNG LicSAPk OLV C 1Y AP","Additional Product","C","1 Year(s)","Servers",null,null,"Visual Studio Load Test Vrtl UserPK","Non-specific","Non-specific","All Languages",null,null,1567.5,"Visual Studio Load Test Vrtl UserPK   C All Languages"]
["Visual Studio Vrtl UserPK   Non-Specific All Languages","7XD-00042","VSLoadTstVrtlUsrPK ALNG LicSAPk OLV NL 1Y AP","Additional Product","Non-Specific","1 Year(s)","Servers",null,null,"Visual Studio Load Test Vrtl UserPK","Non-specific","Non-specific","All Languages",null,null,1629,"Visual Studio Load Test Vrtl UserPK   Non-Specific All Languages"]
["Visual Studio Team Explrer Everywhr   C All Languages","KKF-00297","VSTeamExplrerEverywhr ALNG LicSAPk OLV C 1Y AP","Additional Product","C","1 Year(s)","Applications",null,null,"Visual Studio Team Explrer Everywhr","Non-specific","Non-specific","All Languages",null,null,118.65,"Visual Studio Team Explrer Everywhr   C All Languages"]
["Visual Studio Team Explrer Everywhr   Non-Specific All Languages","KKF-00298","VSTeamExplrerEverywhr ALNG LicSAPk OLV NL 1Y AP","Additional Product","Non-Specific","1 Year(s)","Applications",null,null,"Visual Studio Team Explrer Everywhr","Non-specific","Non-specific","All Languages",null,null,123.3,"Visual Studio Team Explrer Everywhr   Non-Specific All Languages"]
[null,"HXC-00093","WebAntmlwrTMGMB ALNG SubsVL OLV C 1Mth AP PerDvc","Additional Product","C","1 Month(s)","Servers",null,null,"Web Antimalware for TMG MB","Non-specific","Non-specific","All Languages",null,null,0.86249999999999993,"Web Antimalware for TMG MB   C All Languages"]
["Web Antimalware for TMG MB (Per User; monthly)  C All Languages","HXC-00094","WebAntmlwrTMGMB ALNG SubsVL OLV C 1Mth AP PerUsr","Additional Product","C","1 Month(s)","Servers",null,"(Per User; monthly)","Web Antimalware for TMG MB","Non-specific","Non-specific","All Languages",null,null,0.86249999999999993,"Web Antimalware for TMG MB (Per User; monthly)  C All Languages"]
[null,"HXC-00001","WebAntmlwrTMGMB ALNG SubsVL OLV NL 1Mth AP PerDvc","Additional Product","Non-Specific","1 Month(s)","Servers",null,null,"Web Antimalware for TMG MB","Non-specific","Non-specific","All Languages",null,null,0.88749999999999996,"Web Antimalware for TMG MB   Non-Specific All Languages"]
["Web Antimalware for TMG MB (Per User; monthly)  Non-Specific All Languages","HXC-00002","WebAntmlwrTMGMB ALNG SubsVL OLV NL 1Mth AP PerUsr","Additional Product","Non-Specific","1 Month(s)","Servers",null,"(Per User; monthly)","Web Antimalware for TMG MB","Non-specific","Non-specific","All Languages",null,null,0.88749999999999996,"Web Antimalware for TMG MB (Per User; monthly)  Non-Specific All Languages"]
["Windows HPC Suite   C All Languages","9WA-00433","WinHPCSvr ALNG LicSAPk OLV C 1Y AP Ste","Additional Product","C","1 Year(s)","Servers",null,null,"Windows HPC Svr","Non-specific","Non-specific","All Languages",null,null,398.54999999999995,"Windows HPC Svr   C All Languages"]
["Windows HPC Suite   Non-Specific All Languages","9WA-00434","WinHPCSvr ALNG LicSAPk OLV NL 1Y AP Ste","Additional Product","Non-Specific","1 Year(s)","Servers",null,null,"Windows HPC Svr","Non-specific","Non-specific","All Languages",null,null,414.45,"Windows HPC Svr   Non-Specific All Languages"]
["Windows HPC Svr OS   C All Languages","AAB-00278","WinHPCSvrOS ALNG LicSAPk OLV C 1Yr AP","Additional Product","C","1 Year(s)","Servers",null,null,"Windows HPC Svr OS","Non-specific","Non-specific","All Languages",null,null,204.75,"Windows HPC Svr OS   C All Languages"]
["Windows HPC Svr OS   Non-Specific All Languages","AAB-00059","WinHPCSvrOS ALNG LicSAPk OLV NL 1Yr AP","Additional Product","Non-Specific","1 Year(s)","Servers",null,null,"Windows HPC Svr OS","Non-specific","Non-specific","All Languages",null,null,212.85,"Windows HPC Svr OS   Non-Specific All Languages"]
[null,"T98-02537","WinRghtsMgmtSrvcsCAL ALNG LicSAPk OLV C 1Yr AP DvcCAL","Additional Product","C","1 Year(s)","Servers",null,null,"Windows Rights Mgmt Services CAL","Non-specific","Non-specific","All Languages",null,null,15.75,"Windows Rights Mgmt Services CAL   C All Languages"]
["Windows Rights Mgmt Services CAL   C All Languages","T98-02538","WinRghtsMgmtSrvcsCAL ALNG LicSAPk OLV C 1Yr AP UsrCAL","Additional Product","C","1 Year(s)","Servers",null,null,"Windows Rights Mgmt Services CAL","Non-specific","Non-specific","All Languages",null,null,15.75,"Windows Rights Mgmt Services CAL   C All Languages"]
[null,"T98-01836","WinRghtsMgmtSrvcsCAL ALNG LicSAPk OLV NL 1Yr AP DvcCAL","Additional Product","Non-Specific","1 Year(s)","Servers",null,null,"Windows Rights Mgmt Services CAL","Non-specific","Non-specific","All Languages",null,null,16.350000000000001,"Windows Rights Mgmt Services CAL   Non-Specific All Languages"]
["Windows Rights Mgmt Services CAL   Non-Specific All Languages","T98-01843","WinRghtsMgmtSrvcsCAL ALNG LicSAPk OLV NL 1Yr AP UsrCAL","Additional Product","Non-Specific","1 Year(s)","Servers",null,null,"Windows Rights Mgmt Services CAL","Non-specific","Non-specific","All Languages",null,null,16.350000000000001,"Windows Rights Mgmt Services CAL   Non-Specific All Languages"]
["Windows Rights Mgt Svcs ExtnConn   C All Languages","T99-01014","WinRghtsMgmtSrvcsExtConn ALNG LicSAPk OLV C 1Yr AP","Additional Product","C","1 Year(s)","Servers",null,null,"Windows Rights Mgt Svcs ExtnConn","Non-specific","Non-specific","All Languages",null,null,7854.2999999999993,"Windows Rights Mgt Svcs ExtnConn   C All Languages"]
["Windows Rights Mgt Svcs ExtnConn   Non-Specific All Languages","T99-00659","WinRghtsMgmtSrvcsExtConn ALNG LicSAPk OLV NL 1Yr AP","Additional Product","Non-Specific","1 Year(s)","Servers",null,null,"Windows Rights Mgt Svcs ExtnConn","Non-specific","Non-specific","All Languages",null,null,8162.8499999999995,"Windows Rights Mgt Svcs ExtnConn   Non-Specific All Languages"]
["Windows Small Bus Svr Prem   C All Languages","T75-02712","WinSBSvrPrem ALNG LicSAPk OLV C 1Yr 5Clts AP","Additional Product","C","1 Year(s)","Servers",null,null,"Windows Small Bus Svr Prem","Non-specific","Non-specific","All Languages",null,null,715.19999999999993,"Windows Small Bus Svr Prem   C All Languages"]
["Windows Small Bus Svr Prem   Non-Specific All Languages","T75-01136","WinSBSvrPrem ALNG LicSAPk OLV NL 1Yr 5Clts AP","Additional Product","Non-Specific","1 Year(s)","Servers",null,null,"Windows Small Bus Svr Prem","Non-specific","Non-specific","All Languages",null,null,743.40000000000009,"Windows Small Bus Svr Prem   Non-Specific All Languages"]
["Windows Small Bus Svr Std   C All Languages","T72-02623","WinSBSvrStd ALNG LicSAPk OLV C 1Yr 5Clts AP","Additional Product","C","1 Year(s)","Servers",null,null,"Windows Small Bus Svr Std","Non-specific","Non-specific","All Languages",null,null,410.09999999999997,"Windows Small Bus Svr Std   C All Languages"]
["Windows Small Bus Svr Std   Non-Specific All Languages","T72-01298","WinSBSvrStd ALNG LicSAPk OLV NL 1Yr 5Clts AP","Additional Product","Non-Specific","1 Year(s)","Servers",null,null,"Windows Small Bus Svr Std","Non-specific","Non-specific","All Languages",null,null,426.15000000000003,"Windows Small Bus Svr Std   Non-Specific All Languages"]
["Windows Server Datacenter 1 Proc Lic  C All Languages","P71-05643","WinSvrDataCtr ALNG LicSAPk OLV C 1Yr AP","Additional Product","C","1 Year(s)","Servers",null,"1 Proc Lic","Windows Server Datacenter","Non-specific","Non-specific","All Languages",null,null,1036.3500000000001,"Windows Server Datacenter 1 Proc Lic  C All Languages"]
["Windows Server Datacenter 1 Proc Lic  Non-Specific All Languages","P71-01088","WinSvrDataCtr ALNG LicSAPk OLV NL 1Yr AP 1Proc","Additional Product","Non-Specific","1 Year(s)","Servers",null,"1 Proc Lic","Windows Server Datacenter","Non-specific","Non-specific","All Languages",null,null,1076.8499999999999,"Windows Server Datacenter 1 Proc Lic  Non-Specific All Languages"]
["Windows Server Enterprise   C All Languages","P72-03562","WinSvrEnt ALNG LicSAPk OLV C 1Yr AP","Additional Product","C","1 Year(s)","Servers",null,null,"Windows Server Enterprise","Non-specific","Non-specific","All Languages",null,null,1015.95,"Windows Server Enterprise   C All Languages"]
["Windows Server Enterprise   Non-Specific All Languages","P72-01582","WinSvrEnt ALNG LicSAPk OLV NL 1Yr AP","Additional Product","Non-Specific","1 Year(s)","Servers",null,null,"Windows Server Enterprise","Non-specific","Non-specific","All Languages",null,null,1055.6999999999998,"Windows Server Enterprise   Non-Specific All Languages"]
["Windows Svr ExtrnConn   C All Languages","R39-01077","WinSvrExtConn ALNG LicSAPk OLV C 1Yr AP","Additional Product","C","1 Year(s)","Servers",null,null,"Windows Svr ExtrnConn","Non-specific","Non-specific","All Languages",null,null,870,"Windows Svr ExtrnConn   C All Languages"]
["Windows Svr ExtrnConn   Non-Specific All Languages","R39-00739","WinSvrExtConn ALNG LicSAPk OLV NL 1Yr AP","Additional Product","Non-Specific","1 Year(s)","Servers",null,null,"Windows Svr ExtrnConn","Non-specific","Non-specific","All Languages",null,null,904.35,"Windows Svr ExtrnConn   Non-Specific All Languages"]
["Win Svr for Win Essn Svr   C All Languages","MYC-00455","WinSvrforWinEssntlSvr ALNG LicSAPk OLV C 1Yr 5Clts AP","Additional Product","C","1 Year(s)","Servers",null,null,"Win Svr for Win Essn Svr","Non-specific","Non-specific","All Languages",null,null,335.09999999999997,"Win Svr for Win Essn Svr   C All Languages"]
["Win Svr for Win Essn Svr   Non-Specific All Languages","MYC-00180","WinSvrforWinEssntlSvr ALNG LicSAPk OLV NL 1Yr 5Clts AP","Additional Product","Non-Specific","1 Year(s)","Servers",null,null,"Win Svr for Win Essn Svr","Non-specific","Non-specific","All Languages",null,null,348.29999999999995,"Win Svr for Win Essn Svr   Non-Specific All Languages"]
[null,"M2C-00751","WinSvrforWinEssntlSvrCAL ALNG LicSAPk OLV 5Lic C 1Yr AP DvcCAL","Additional Product","C","1 Year(s)","Servers",null,null,"Win Svr for Win Essn Svr CAL","Non-specific","Non-specific","All Languages",null,null,113.10000000000001,"Win Svr for Win Essn Svr CAL   C All Languages"]
["Win Svr for Win Essn Svr CAL   C All Languages","M2C-00752","WinSvrforWinEssntlSvrCAL ALNG LicSAPk OLV 5Lic C 1Yr AP UsrCAL","Additional Product","C","1 Year(s)","Servers",null,null,"Win Svr for Win Essn Svr CAL","Non-specific","Non-specific","All Languages",null,null,113.10000000000001,{"$f":"CONCATENATE(J565,\" \",I565,\" \",H565,\" \",E565,\" \",M565)","v":"Win Svr for Win Essn Svr CAL   C All Languages"}]
[null,"M2C-00162","WinSvrforWinEssntlSvrCAL ALNG LicSAPk OLV 5Lic NL 1Yr AP DvcCAL","Additional Product","Non-Specific","1 Year(s)","Servers",null,null,"Win Svr for Win Essn Svr CAL","Non-specific","Non-specific","All Languages",null,null,117.44999999999999,"Win Svr for Win Essn Svr CAL   Non-Specific All Languages"]
["Win Svr for Win Essn Svr CAL   Non-Specific All Languages","M2C-00163","WinSvrforWinEssntlSvrCAL ALNG LicSAPk OLV 5Lic NL 1Yr AP UsrCAL","Additional Product","Non-Specific","1 Year(s)","Servers",null,null,"Win Svr for Win Essn Svr CAL","Non-specific","Non-specific","All Languages",null,null,117.44999999999999,"Win Svr for Win Essn Svr CAL   Non-Specific All Languages"]
["Windows Server Itanium 1 Proc Lic  C All Languages","LVA-00613","WinSvrItnm ALNG LicSAPk OLV C 1Yr AP 1Proc","Additional Product","C","1 Year(s)","Servers",null,"1 Proc Lic","Windows Server Itanium","Non-specific","Non-specific","All Languages",null,null,1036.3500000000001,"Windows Server Itanium 1 Proc Lic  C All Languages"]
["Windows Server Itanium 1 Proc Lic  Non-Specific All Languages","LVA-00316","WinSvrItnm ALNG LicSAPk OLV NL 1Yr AP 1Proc","Additional Product","Non-Specific","1 Year(s)","Servers",null,"1 Proc Lic","Windows Server Itanium","Non-specific","Non-specific","All Languages",null,null,1076.8499999999999,"Windows Server Itanium 1 Proc Lic  Non-Specific All Languages"]
["Windows Server Standard   C All Languages","P73-04512","WinSvrStd ALNG LicSAPk OLV C 1Yr AP","Additional Product","C","1 Year(s)","Servers",null,null,"Windows Server Standard","Non-specific","Non-specific","All Languages",null,null,312.60000000000002,"Windows Server Standard   C All Languages"]
["Windows Server Standard   Non-Specific All Languages","P73-01608","WinSvrStd ALNG LicSAPk OLV NL 1Yr AP","Additional Product","Non-Specific","1 Year(s)","Servers",null,null,"Windows Server Standard","Non-specific","Non-specific","All Languages",null,null,324.90000000000003,"Windows Server Standard   Non-Specific All Languages"]
[" ","6VC-00826","WinRmtDsktpSrvcsCAL ALNG LicSAPk OLV C 1Y AP DvcCAL","Additional Product","C","1 Year(s)","Servers",null,null,"Windows Remote Desktop Services CAL","Non-specific","Non-specific","All Languages",null,null,36.450000000000003,"Windows Remote Desktop Services CAL   C All Languages"]
[" ","6VC-00827","WinRmtDsktpSrvcsCAL ALNG LicSAPk OLV NL 1Y AP DvcCAL","Additional Product","Non-Specific","1 Year(s)","Servers",null,null,"Windows Remote Desktop Services CAL","Non-specific","Non-specific","All Languages",null,null,37.799999999999997,"Windows Remote Desktop Services CAL   Non-Specific All Languages"]
["Windows Remote Desktop Services CAL  C All Languages","6VC-00828","WinRmtDsktpSrvcsCAL ALNG LicSAPk OLV C 1Y AP UsrCAL","Additional Product","C","1 Year(s)","Servers",null,null,"Windows Remote Desktop Services CAL","Non-specific","Non-specific","All Languages",null,null,36.450000000000003,{"$f":"CONCATENATE(J574,\"\",I574,\" \",H574,\" \",E574,\" \",M574)","v":"Windows Remote Desktop Services CAL  C All Languages"}]
["Windows Remote Desktop Services CAL  Non-Specific All Languages","6VC-00829","WinRmtDsktpSrvcsCAL ALNG LicSAPk OLV NL 1Y AP UsrCAL","Additional Product","Non-Specific","1 Year(s)","Servers",null,null,"Windows Remote Desktop Services CAL","Non-specific","Non-specific","All Languages",null,null,37.799999999999997,{"$f":"CONCATENATE(J575,\"\",I575,\" \",H575,\" \",E575,\" \",M575)","v":"Windows Remote Desktop Services CAL  Non-Specific All Languages"}]
["Windows Remote Desktop Services Ext Connector  C All Languages","6XC-00085","WinRmtDsktpSrvcsExtConn ALNG LicSAPk OLV C 1Y AP","Additional Product","C","1 Year(s)","Servers",null,null,"Windows Remote Desktop Services Ext Connector","Non-specific","Non-specific","All Languages",null,null,3655.7999999999997,{"$f":"CONCATENATE(J576,\"\",I576,\" \",H576,\" \",E576,\" \",M576)","v":"Windows Remote Desktop Services Ext Connector  C All Languages"}]
["Windows Remote Desktop Services Ext Connector  Non-Specific All Languages","6XC-00086","WinRmtDsktpSrvcsExtConn ALNG LicSAPk OLV NL 1Y AP","Additional Product","Non-Specific","1 Year(s)","Servers",null,null,"Windows Remote Desktop Services Ext Connector","Non-specific","Non-specific","All Languages",null,null,3799.5,{"$f":"CONCATENATE(J577,\"\",I577,\" \",H577,\" \",E577,\" \",M577)","v":"Windows Remote Desktop Services Ext Connector  Non-Specific All Languages"}]
["Windows Web Server   C All Languages","LWA-00876","WinWebSvr ALNG LicSAPk OLV C 1Yr AP","Additional Product","C","1 Year(s)","Servers",null,null,"Windows Web Server","Non-specific","Non-specific","All Languages",null,null,173.4,"Windows Web Server   C All Languages"]
["Windows Web Server   Non-Specific All Languages","LWA-00703","WinWebSvr ALNG LicSAPk OLV NL 1Yr AP","Additional Product","Non-Specific","1 Year(s)","Servers",null,null,"Windows Web Server","Non-specific","Non-specific","All Languages",null,null,180.3,"Windows Web Server   Non-Specific All Languages"]
["Word   C All Languages","059-07527","Word ALNG LicSAPk OLV C 1Yr AP","Additional Product","C","1 Year(s)","Applications",null,null,"Word","Non-specific","Non-specific","All Languages",null,null,91.649999999999991,"Word   C All Languages"]
["Word   Non-Specific All Languages","059-05310","Word ALNG LicSAPk OLV NL 1Yr AP","Additional Product","Non-Specific","1 Year(s)","Applications",null,null,"Word","Non-specific","Non-specific","All Languages",null,null,95.25,"Word   Non-Specific All Languages"]
["Word Mac   C All Languages","D48-00946","WordMac ALNG LicSAPk OLV C 1Yr AP","Additional Product","C","1 Year(s)","Applications",null,null,"Word Mac","Non-specific","Non-specific","All Languages",null,null,105.9,"Word Mac   C All Languages"]
["Word Mac   Non-Specific All Languages","D48-00675","WordMac ALNG LicSAPk OLV NL 1Yr AP","Additional Product","Non-Specific","1 Year(s)","Applications",null,null,"Word Mac","Non-specific","Non-specific","All Languages",null,null,109.94999999999999,"Word Mac   Non-Specific All Languages"]
["Sys Ctr VMM Clt Mgmt Lic Per OSE C All Languages","26C-00097","SysCtrVMMCltML ALNG LicSAPk OLV C 1Y AP PerOSE","Additional Product","C","1 Year(s)","Servers",null,"Per OSE","Sys Ctr VMM Clt Mgmt Lic","Non-specific","Non-specific","All Languages",null,null,11.25,"Sys Ctr VMM Clt Mgmt Lic Per OSE  C All Languages"]
["Sys Ctr VMM Clt Mgmt Lic Per OSE Non-Specific All Languages","26C-00098","SysCtrVMMCltML ALNG LicSAPk OLV NL 1Y AP PerOSE","Additional Product","Non-Specific","1 Year(s)","Servers",null,"Per OSE","Sys Ctr VMM Clt Mgmt Lic","Non-specific","Non-specific","All Languages",null,null,11.55,"Sys Ctr VMM Clt Mgmt Lic Per OSE  Non-Specific All Languages"]
["Sys Ctr VMM Clt Mgmt Lic C All Languages","26C-00099","SysCtrVMMCltML ALNG LicSAPk OLV C 1Y AP PerUsr","Additional Product","C","1 Year(s)","Servers",null,null,"Sys Ctr VMM Clt Mgmt Lic","Non-specific","Non-specific","All Languages",null,null,11.25,"Sys Ctr VMM Clt Mgmt Lic   C All Languages"]
["Sys Ctr VMM Clt Mgmt Lic Non-Specific All Languages","26C-00100","SysCtrVMMCltML ALNG LicSAPk OLV NL 1Y AP PerUsr","Additional Product","Non-Specific","1 Year(s)","Servers",null,null,"Sys Ctr VMM Clt Mgmt Lic","Non-specific","Non-specific","All Languages",null,null,11.55,"Sys Ctr VMM Clt Mgmt Lic   Non-Specific All Languages"]
[]
[]
["Sys Ctr Srv Mgmt Ste DataCtr Non-Specific All Languages"]

{"sheet":"Specificatii","index":3,"n_rows":36,"n_cols":2,"rows_kept":36,"cut":false,"hidden":false,"merged":[[3,0,4,11],[34,0,34,8],[35,0,35,5],[22,0,22,11],[8,1,8,6]]}
["Definiţii:"]
["Contractul include toate PC-urile eligibile din companie"]
[]
["PC eligibil (Computer desktop calificat) înseamnă un computer personal care întruneşte specificaţiile tehnice minime pentru executarea oricărui Produs. Computerele desktop calificate nu includ (a) servere, (b) computere care execută exclusiv software specializat pe sectoare de activitate sau (c) dispozitive care execută sisteme de operare integrate. \n\n\"a executa\" înseamnă a copia, a instala, a utiliza, a accesa, a afișa sau a interacționa în vreun fel cu un Produs"]
[]
[]
["Versiuni calificate pentru discount-ul Up-To-Date (50% in primul an de contract): "]
["(*) indiferent de varianta de limbă: Romanian, English, etc."]
["Produs","Versiuni calificate"]
["Windows Professional Upgrade","Windows 7 Professional, Windows 7 Ultimate"]
[null,"Windows Vista Business, Windows Vista Ultimate"]
[null,"Windows XP Professional"]
["Office Professional","Office 2007 Professional Plus, Office 2007 Professional, Standard, Small Business, Enterprise, Ultimate"]
[null,"Office 2003 Professional, Standard, Small Business"]
["Office Small Business","Office 2007 Small Business, Standard, Professional, Professional Plus, Enterprise, Ultimate"]
[null,"Office 2003 Small Business, Standard, Professional"]
["Core-CAL","Windows Svr 2008 CAL sau Exchange Svr 2007 CAL"]
[null,"Windows Svr 2003 CAL sau Exchange Svr 2003 CAL"]
["Windows SBS CAL","SBS 2008 CAL"]
[null,"SBS 2003 CAL"]
[]
["Licenţe Client Access License (CAL): User CAL sau Device CAL"]
["Exemplul din formularul de calcul estimativ are la bază licenţe tip User CAL. Pentru comenzi explicite de licenţe tip Device CAL vă rugăm să folosiţi Part Number-ele specifice din lista de preţuri."]
[]
[]
["Variante limbi:"]
["RAB: include dreptul de folosire a produselor doar in variantele de limbă română și bulgară - folositi foaia de calcul \"OVS Proposal Form - ROMANIAN\""]
["All Languages: Toate variantele de limbă suportate la acest moment de Microsoft, inclusiv engleză - folositi foaia de calcul \"OVS Proposal Form - ALL Languages\""]
[]
[]
[]
[]
["Declaraţie de confidenţialitate"]
[]
["At Microsoft, we are committed to protecting your privacy.  The Web site linking to this privacy statement does not request or collect any personal information from you. Nor does this site use any cookies or other technologies to track your usage of the site. \n\nThis site may contain links to other sites and services. We encourage you to review the privacy statements of those sites and services that you choose to visit, so that you can understand how they may collect, use and share your personal information. Microsoft is not responsible for the privacy statements or practices of sites and services controlled by other companies or organizations.\n\nClick on the link below for more information on Microsoft's commitment to privacy."]
["http://www.microsoft.com/security/articles/safe_harbor.asp"]